Workbook

Sheet Notes
A1: VAccIndicator.xlsm; Traders Tip spreadsheet created for the November 2023 Issue
A2: Coded beginning 2023-September-14 by Ronald McAllister (rpmac_xltt@sprynet.com)
A4: This Workbook demonstrates an EXCEL version of the ideas presented
A5: by Scott Cong, PhD in an article titled "VAcc: A Momentum Indicator Based On Velocity And Acceleration",
A6: which originally appeared in the November 2023 issue of
A7: "Technical Analysis of Stocks and Commodities" magazine.
A10: Dr. Cong uses a looping construct of the form
A11: V = V + (C - C(i))/I where I ranges from 1 to a user specified N
A12: Algebraically this translates to
A13: V= (C - C(1))/1 + (C - C(2))/2 + … + (C - C(n))/n
A14: Redistributing the terms, we get
A15: V = C * (1/1+1/2+…+1/n) - (C(1)*1/1 + c(2)*1/2 + … + C(n)* 1/n)
A18: With this in mind, I can generate a column of "1/n"s and then use
A19: the EXCEL builtins SUM and SUMPRODUCT to calulate the required intermediate
A20: values directly in my column formulas.
A21: The looping EXCEL performs under the covers of the SUM and SUMPRODUCT functions
A22: is far faster than anything I could build in a VBA User Defined Function (UDF).
A31: ERROR 9 (already fixed in this spreadsheet)
A32: On or about Jan 29, 2020 Yahoo Finance changed the format of the split factor expression used their historical data downloads.
A33: The Split expression went from using "/" as in "New Share Number/Old Share Number",
A34: to using ":" as in "New Share Number:Old Share Number".
A35: This caused the then current version of my VBA code to fail with a "Runtime Error '9': subscript out of range".
A37: Fix for this ERROR 9
A38: For T-Tip spreadsheets from September 2018 up to present:
A39: Selecting the Debug option takes one into the VBA at the code line which causes the failure:
A40: CellArray(C_A_RowNdx, C_A_ColNdx + 1) = SplitFactors(1)
A41: Two lines above the failing VBA line is a line that reads:
A42: SplitFactors = Split(CsvColumns(CsvColNdx), "/")
A43: Change the / to a :
A44: The corrected line should now read
A45: SplitFactors = Split(CsvColumns(CsvColNdx), ":")
A47: If you are fixing several spreadsheets and do not want to use the failure to find the fix location,
A48: you can use VBA’s FIND dialog (Ctrl F) to look for the substring
A49: SplitFactors =
A50: Do include one space and the equal sign in your FIND string
A51: Select the "Current Project" option
A52: There should only be one instance.
A54: T-Tip spreadsheets prior to the September 2018 spreadsheet do not hard fail.
A56: They just get weird results in the split columns of the Input Price Data tab (soft fail).
A57: These older spreadsheets used different data retrieval and formatting logic.
A59: To fix these older spreadsheets:
A60: In the VBA editor, use find (CTRL-F).
A61: Select the "Current Project" option, and search for the following:
A62: OtherChar:="/"
A63: You are looking for a hit in a line reading:
A64: Other:=True, OtherChar:="/", _
A65: This line is part of a multiline block of code starting with a line that reads:
A66: SplitRange.Offset(0, 1).Resize(SpRows, 1).TextToColumns
A67: Change the / to a : so that the line reads
A68: Other:=True, OtherChar:=":", _
A71: Just a note:
A72: All previous T-Tip spreadsheets were built using EXCEL 2010.
A73: November 2023 is the first T-Tip built using EXCEL 365. Specifically:
A74: Microsoft® Excel® for Microsoft 365 MSO (Version 2308 Build 16.0.16731.20052) 64-bit

Sheet InputPriceData
A1: NASDAQ 100 (^NDX) -Nasdaq GIDS (Daily)
M2: To retrieve data for symbols traded on non US Exchanges, | IJ2: 241.79
A3: Request Online Yahoo History for: | F3: Market State == > | G3: As of | H3: 12:10:00 | I3: EDT. Market open. | M3: you will need to append the dot-suffix for the exchange to the symbol.
A4: Symbol | B4: ^NDX | D4: Valid | I4: =OFFSET(I4,-2,0,1,1) -> 0 | M4: The following links provide a description of how to use the exchange suffix
A5: From | B5: =EDATE(HistReqEndDate,-36) -> 2020-09-15 | D5: Data | M5: along with a list of suffixes for the major world exchanges. | AD5: Trailing 12 Div return (Cur Close)
A6: To | B6: =NOW() -> 2023-09-15T12:11:22.670 | D6: Types | E6: =VLOOKUP(B7,D7:E10,2,FALSE) -> d | M6: https://help.yahoo.com/kb/finance/SLN2310.html
A7: Data Type | B7: Daily | D7: Daily | E7: d | M7: And
A8: Crumb | D8: Weekly | E8: w | M8: https://www.stockmarketeye.com/users-guide/ticker-symbols-and-data-providers/data-providers.html
A9: Available Data | D9: Monthly | E9: m
A10: Bar Count: | B10: 756 | M10: You may search on “exchange suffixes” for additional discussions | AD10: =OFFSET(AC15,1,0,1,1)/OFFSET(N15,1,0,1,1) -> 0
A11: From: | B11: =IF(B10<=0,"",OFFSET(B15,B10,IF(HistReqDataType="v",1,0),1,1)) -> 2020-09-15 | W11: Trailing 12 Month Dividend Returns
A12: To: | B12: =IF(B10<=0,"",IF(HistReqDataType="v",OFFSET(B15,2,1,1,1),OFFSET(B15,1,0,1,1))) -> 2023-09-15 | W12: Raw Close price on Dividend date | X12: Div Year and Month | Y12: Looking for year ago Div Year and Month | Z12: Year ago Div Date we found | AA12: row offset to year ago div Date | AB12: Same month flag | AC12: Trailing 12 Div Total | AD12: Trailing 12 Div return
Q13: Split History | S13: 0 | T13: Running | U13: Dividend History
B14: Raw Data Values | H14: Adjusted | I14: Price Adjust | J14: Vol Adjust | K14: Adjusted Values | P14: Last | Q14: Effective | R14: Shares | T14: Vol Adjust | V14: 0
A15: RelRow | B15: Date | C15: Open | D15: High | E15: Low | F15: Close | G15: Volume | H15: Close | I15: Factor | J15: Factor | K15: Open | L15: High | M15: Low | N15: Close | O15: Volume | P15: Trade | Q15: 45185 | R15: New | S15: Old | T15: 1 | U15: Date | V15: $ / Share
A16: 1 | B16: 2023-09-15 | C16: 15425.90039 | D16: 15435.45019 | E16: 15227.21777 | F16: 15258.62207 | G16: 507836217 | H16: 15258.62207 | I16: =IF(F16=0,1,H16/F16) -> 1 | J16: =INDEX(OFFSET($T$15,0,0,$S$13+1,1),MATCH(B16,OFFSET($Q$15,0,0,$S$13+1,1),-1)) -> 1 | K16: =ROUND($I16*C16,2) -> 15425.9 | L16: =ROUND($I16*D16,2) -> 15435.45 | M16: 15227.22 | N16: 15258.62 | O16: =G16*J16 -> 507836217
A17: 2 | B17: 2023-09-14 | C17: 15433.00977 | D17: 15512.82031 | E17: 15337.17969 | F17: 15473.88965 | G17: 4649010000 | H17: 15473.88965 | I17: =IF(F17=0,1,H17/F17) -> 1 | J17: =INDEX(OFFSET($T$15,0,0,$S$13+1,1),MATCH(B17,OFFSET($Q$15,0,0,$S$13+1,1),-1)) -> 1 | K17: =ROUND($I17*C17,2) -> 15433.01 | L17: =ROUND($I17*D17,2) -> 15512.82 | M17: =ROUND($I17*E17,2) -> 15337.18 | N17: =ROUND($I17*F17,2) -> 15473.89 | O17: =G17*J17 -> 4649010000
A18: 3 | B18: 2023-09-13 | C18: 15293.26953 | D18: 15414.61035 | E18: 15256.59961 | F18: 15348.53027 | G18: 4840310000 | H18: 15348.53027 | I18: 1 | J18: 1 | K18: 15293.27 | L18: 15414.61 | M18: 15256.6 | N18: 15348.53 | O18: 4840310000
A19: 4 | B19: 2023-09-12 | C19: 15390.58984 | D19: 15447.84961 | E19: 15278.87988 | F19: 15289.74023 | G19: 4595490000 | H19: 15289.74023 | I19: 1 | J19: 1 | K19: 15390.59 | L19: 15447.85 | M19: 15278.88 | N19: 15289.74 | O19: 4595490000
A20: 5 | B20: 2023-09-11 | C20: 15409.76953 | D20: 15482.83984 | E20: 15328.34961 | F20: 15461.87012 | G20: 4538870000 | H20: 15461.87012 | I20: 1 | J20: 1 | K20: 15409.77 | L20: 15482.84 | M20: 15328.35 | N20: 15461.87 | O20: 4538870000
A21: 6 | B21: 2023-09-08 | C21: 15265.57031 | D21: 15374.21973 | E21: 15244.05957 | F21: 15280.23047 | G21: 4160360000 | H21: 15280.23047 | I21: 1 | J21: 1 | K21: 15265.57 | L21: 15374.22 | M21: 15244.06 | N21: 15280.23 | O21: 4160360000
A22: 7 | B22: 2023-09-07 | C22: 15174.21973 | D22: 15288.20019 | E22: 15138.73047 | F22: 15258.51953 | G22: 4320830000 | H22: 15258.51953 | I22: 1 | J22: 1 | K22: 15174.22 | L22: 15288.2 | M22: 15138.73 | N22: 15258.52 | O22: 4320830000
A23: 8 | B23: 2023-09-06 | C23: 15467.32031 | D23: 15487 | E23: 15289.48047 | F23: 15371.44043 | G23: 4215320000 | H23: 15371.44043 | I23: 1 | J23: 1 | K23: 15467.32 | L23: 15487 | M23: 15289.48 | N23: 15371.44 | O23: 4215320000
A24: 9 | B24: 2023-09-05 | C24: 15460.51953 | D24: 15556.84961 | E24: 15419.95996 | F24: 15508.24023 | G24: 4379790000 | H24: 15508.24023 | I24: 1 | J24: 1 | K24: 15460.52 | L24: 15556.85 | M24: 15419.96 | N24: 15508.24 | O24: 4379790000
A25: 10 | B25: 2023-09-01 | C25: 15600.95019 | D25: 15618.84961 | E25: 15429.36035 | F25: 15490.86035 | G25: 4033960000 | H25: 15490.86035 | I25: 1 | J25: 1 | K25: 15600.95 | L25: 15618.85 | M25: 15429.36 | N25: 15490.86 | O25: 4033960000
A26: 11 | B26: 2023-08-31 | C26: 15475.42969 | D26: 15575.00977 | E26: 15466.41016 | F26: 15501.07031 | G26: 4568610000 | H26: 15501.07031 | I26: 1 | J26: 1 | K26: 15475.43 | L26: 15575.01 | M26: 15466.41 | N26: 15501.07 | O26: 4568610000
A27: 12 | B27: 2023-08-30 | C27: 15386.66992 | D27: 15484.83008 | E27: 15341.94043 | F27: 15462.42969 | G27: 4364600000 | H27: 15462.42969 | I27: 1 | J27: 1 | K27: 15386.67 | L27: 15484.83 | M27: 15341.94 | N27: 15462.43 | O27: 4364600000
A28: 13 | B28: 2023-08-29 | C28: 15043.01953 | D28: 15391.55957 | E28: 15034.54004 | F28: 15376.54981 | G28: 4748180000 | H28: 15376.54981 | I28: 1 | J28: 1 | K28: 15043.02 | L28: 15391.56 | M28: 15034.54 | N28: 15376.55 | O28: 4748180000
A29: 14 | B29: 2023-08-28 | C29: 15035.48047 | D29: 15086.23047 | E29: 14948.91992 | F29: 15052.45996 | G29: 3666680000 | H29: 15052.45996 | I29: 1 | J29: 1 | K29: 15035.48 | L29: 15086.23 | M29: 14948.92 | N29: 15052.46 | O29: 3666680000
A30: 15 | B30: 2023-08-25 | C30: 14858.92969 | D30: 15001.29004 | E30: 14715.36035 | F30: 14941.83008 | G30: 3970060000 | H30: 14941.83008 | I30: 1 | J30: 1 | K30: 14858.93 | L30: 15001.29 | M30: 14715.36 | N30: 14941.83 | O30: 3970060000
A31: 16 | B31: 2023-08-24 | C31: 15278.92969 | D31: 15279.24023 | E31: 14814.83008 | F31: 14816.44043 | G31: 4383820000 | H31: 14816.44043 | I31: 1 | J31: 1 | K31: 15278.93 | L31: 15279.24 | M31: 14814.83 | N31: 14816.44 | O31: 4383820000
A32: 17 | B32: 2023-08-23 | C32: 14947.58008 | D32: 15188.86035 | E32: 14947.58008 | F32: 15148.05957 | G32: 4127850000 | H32: 15148.05957 | I32: 1 | J32: 1 | K32: 14947.58 | L32: 15188.86 | M32: 14947.58 | N32: 15148.06 | O32: 4127850000
A33: 18 | B33: 2023-08-22 | C33: 15035.07031 | D33: 15037.79004 | E33: 14883.98047 | F33: 14908.95996 | G33: 4282430000 | H33: 14908.95996 | I33: 1 | J33: 1 | K33: 15035.07 | L33: 15037.79 | M33: 14883.98 | N33: 14908.96 | O33: 4282430000
A34: 19 | B34: 2023-08-21 | C34: 14762.00977 | D34: 14958.87012 | E34: 14739.37012 | F34: 14936.69043 | G34: 4363070000 | H34: 14936.69043 | I34: 1 | J34: 1 | K34: 14762.01 | L34: 14958.87 | M34: 14739.37 | N34: 14936.69 | O34: 4363070000
A35: 20 | B35: 2023-08-18 | C35: 14589.70996 | D35: 14744.57031 | E35: 14557.83008 | F35: 14694.83984 | G35: 4801910000 | H35: 14694.83984 | I35: 1 | J35: 1 | K35: 14589.71 | L35: 14744.57 | M35: 14557.83 | N35: 14694.84 | O35: 4801910000
A36: 21 | B36: 2023-08-17 | C36: 14943.33984 | D36: 14949.58008 | E36: 14698.29004 | F36: 14715.80957 | G36: 5280180000 | H36: 14715.80957 | I36: 1 | J36: 1 | K36: 14943.34 | L36: 14949.58 | M36: 14698.29 | N36: 14715.81 | O36: 5280180000
A37: 22 | B37: 2023-08-16 | C37: 15021.62988 | D37: 15077.04981 | E37: 14874.01953 | F37: 14876.46973 | G37: 6243760000 | H37: 14876.46973 | I37: 1 | J37: 1 | K37: 15021.63 | L37: 15077.05 | M37: 14874.02 | N37: 14876.47 | O37: 6243760000
A38: 23 | B38: 2023-08-15 | C38: 15172.08008 | D38: 15192.87988 | E38: 15014.36035 | F38: 15037.65039 | G38: 4473320000 | H38: 15037.65039 | I38: 1 | J38: 1 | K38: 15172.08 | L38: 15192.88 | M38: 15014.36 | N38: 15037.65 | O38: 4473320000
A39: 24 | B39: 2023-08-14 | C39: 14988.41992 | D39: 15206.25977 | E39: 14972.00977 | F39: 15205.58984 | G39: 4272020000 | H39: 15205.58984 | I39: 1 | J39: 1 | K39: 14988.42 | L39: 15206.26 | M39: 14972.01 | N39: 15205.59 | O39: 4272020000
A40: 25 | B40: 2023-08-11 | C40: 15010.51953 | D40: 15102.53027 | E40: 14973.66992 | F40: 15028.07031 | G40: 4638880000 | H40: 15028.07031 | I40: 1 | J40: 1 | K40: 15010.52 | L40: 15102.53 | M40: 14973.67 | N40: 15028.07 | O40: 4638880000
A41: 26 | B41: 2023-08-10 | C41: 15217.29004 | D41: 15366.29004 | E41: 15072.49023 | F41: 15128.83984 | G41: 5299080000 | H41: 15128.83984 | I41: 1 | J41: 1 | K41: 15217.29 | L41: 15366.29 | M41: 15072.49 | N41: 15128.84 | O41: 5299080000
A42: 27 | B42: 2023-08-09 | C42: 15286.99023 | D42: 15288.75977 | E42: 15077.91016 | F42: 15101.70996 | G42: 5591360000 | H42: 15101.70996 | I42: 1 | J42: 1 | K42: 15286.99 | L42: 15288.76 | M42: 15077.91 | N42: 15101.71 | O42: 5591360000
A43: 28 | B43: 2023-08-08 | C43: 15279.41016 | D43: 15295.79981 | E43: 15148.25 | F43: 15273.04981 | G43: 5284550000 | H43: 15273.04981 | I43: 1 | J43: 1 | K43: 15279.41 | L43: 15295.8 | M43: 15148.25 | N43: 15273.05 | O43: 5284550000
A44: 29 | B44: 2023-08-07 | C44: 15355.62012 | D44: 15410.84961 | E44: 15258.91992 | F44: 15407.84961 | G44: 4892330000 | H44: 15407.84961 | I44: 1 | J44: 1 | K44: 15355.62 | L44: 15410.85 | M44: 15258.92 | N44: 15407.85 | O44: 4892330000
A45: 30 | B45: 2023-08-04 | C45: 15420.74023 | D45: 15523.30957 | E45: 15258.69043 | F45: 15274.91992 | G45: 5349450000 | H45: 15274.91992 | I45: 1 | J45: 1 | K45: 15420.74 | L45: 15523.31 | M45: 15258.69 | N45: 15274.92 | O45: 5349450000
A46: 31 | B46: 2023-08-03 | C46: 15287.76953 | D46: 15436.58984 | E46: 15270.71973 | F46: 15353.54004 | G46: 6036970000 | H46: 15353.54004 | I46: 1 | J46: 1 | K46: 15287.77 | L46: 15436.59 | M46: 15270.72 | N46: 15353.54 | O46: 6036970000
A47: 32 | B47: 2023-08-02 | C47: 15561.15039 | D47: 15561.36035 | E47: 15321.44043 | F47: 15370.74023 | G47: 5481960000 | H47: 15370.74023 | I47: 1 | J47: 1 | K47: 15561.15 | L47: 15561.36 | M47: 15321.44 | N47: 15370.74 | O47: 5481960000
A48: 33 | B48: 2023-08-01 | C48: 15696.98047 | D48: 15748.42969 | E48: 15636.57031 | F48: 15718.00977 | G48: 4633770000 | H48: 15718.00977 | I48: 1 | J48: 1 | K48: 15696.98 | L48: 15748.43 | M48: 15636.57 | N48: 15718.01 | O48: 4633770000
A49: 34 | B49: 2023-07-31 | C49: 15774.29981 | D49: 15803.54981 | E49: 15702.74023 | F49: 15757 | G49: 4934440000 | H49: 15757 | I49: 1 | J49: 1 | K49: 15774.3 | L49: 15803.55 | M49: 15702.74 | N49: 15757 | O49: 4934440000
A50: 35 | B50: 2023-07-28 | C50: 15630.16992 | D50: 15788.48047 | E50: 15617.75 | F50: 15750.92969 | G50: 4453520000 | H50: 15750.92969 | I50: 1 | J50: 1 | K50: 15630.17 | L50: 15788.48 | M50: 15617.75 | N50: 15750.93 | O50: 4453520000
A51: 36 | B51: 2023-07-27 | C51: 15734.03027 | D51: 15795.50977 | E51: 15416.04981 | F51: 15464.92969 | G51: 5115840000 | H51: 15464.92969 | I51: 1 | J51: 1 | K51: 15734.03 | L51: 15795.51 | M51: 15416.05 | N51: 15464.93 | O51: 5115840000
A52: 37 | B52: 2023-07-26 | C52: 15514.04004 | D52: 15571.16016 | E52: 15411.91016 | F52: 15499.25977 | G52: 4322000000 | H52: 15499.25977 | I52: 1 | J52: 1 | K52: 15514.04 | L52: 15571.16 | M52: 15411.91 | N52: 15499.26 | O52: 4322000000
A53: 38 | B53: 2023-07-25 | C53: 15483.05957 | D53: 15622.69043 | E53: 15482.04004 | F53: 15561.41992 | G53: 3812470000 | H53: 15561.41992 | I53: 1 | J53: 1 | K53: 15483.06 | L53: 15622.69 | M53: 15482.04 | N53: 15561.42 | O53: 3812470000
A54: 39 | B54: 2023-07-24 | C54: 15475.15039 | D54: 15504.66992 | E54: 15374.66016 | F54: 15448.01953 | G54: 4083070000 | H54: 15448.01953 | I54: 1 | J54: 1 | K54: 15475.15 | L54: 15504.67 | M54: 15374.66 | N54: 15448.02 | O54: 4083070000
A55: 40 | B55: 2023-07-21 | C55: 15554.95019 | D55: 15600.54004 | E55: 15410.57031 | F55: 15425.66992 | G55: 5254180000 | H55: 15425.66992 | I55: 1 | J55: 1 | K55: 15554.95 | L55: 15600.54 | M55: 15410.57 | N55: 15425.67 | O55: 5254180000
A56: 41 | B56: 2023-07-20 | C56: 15717.66992 | D56: 15771.83984 | E56: 15429.87012 | F56: 15466.08984 | G56: 5128020000 | H56: 15466.08984 | I56: 1 | J56: 1 | K56: 15717.67 | L56: 15771.84 | M56: 15429.87 | N56: 15466.09 | O56: 5128020000
A57: 42 | B57: 2023-07-19 | C57: 15888.16016 | D57: 15932.04981 | E57: 15781.95996 | F57: 15826.34961 | G57: 5112420000 | H57: 15826.34961 | I57: 1 | J57: 1 | K57: 15888.16 | L57: 15932.05 | M57: 15781.96 | N57: 15826.35 | O57: 5112420000
A58: 43 | B58: 2023-07-18 | C58: 15671.71973 | D58: 15895.67969 | E58: 15607.70996 | F58: 15841.34961 | G58: 4824070000 | H58: 15841.34961 | I58: 1 | J58: 1 | K58: 15671.72 | L58: 15895.68 | M58: 15607.71 | N58: 15841.35 | O58: 4824070000
A59: 44 | B59: 2023-07-17 | C59: 15608.28027 | D59: 15745.66992 | E59: 15576.50977 | F59: 15713.28027 | G59: 4593160000 | H59: 15713.28027 | I59: 1 | J59: 1 | K59: 15608.28 | L59: 15745.67 | M59: 15576.51 | N59: 15713.28 | O59: 4593160000
A60: 45 | B60: 2023-07-14 | C60: 15610 | D60: 15720.05957 | E60: 15531 | F60: 15565.59961 | G60: 5366890000 | H60: 15565.59961 | I60: 1 | J60: 1 | K60: 15610 | L60: 15720.06 | M60: 15531 | N60: 15565.6 | O60: 5366890000
A61: 46 | B61: 2023-07-13 | C61: 15432.48047 | D61: 15602.74023 | E61: 15420.70996 | F61: 15571.98047 | G61: 5183560000 | H61: 15571.98047 | I61: 1 | J61: 1 | K61: 15432.48 | L61: 15602.74 | M61: 15420.71 | N61: 15571.98 | O61: 5183560000
A62: 47 | B62: 2023-07-12 | C62: 15279.34961 | D62: 15364.08984 | E62: 15209.70996 | F62: 15307.23047 | G62: 5230620000 | H62: 15307.23047 | I62: 1 | J62: 1 | K62: 15279.35 | L62: 15364.09 | M62: 15209.71 | N62: 15307.23 | O62: 5230620000
A63: 48 | B63: 2023-07-11 | C63: 15068.12988 | D63: 15135.29004 | E63: 14974.16016 | F63: 15119.05957 | G63: 4840950000 | H63: 15119.05957 | I63: 1 | J63: 1 | K63: 15068.13 | L63: 15135.29 | M63: 14974.16 | N63: 15119.06 | O63: 4840950000
A64: 49 | B64: 2023-07-10 | C64: 15031.95019 | D64: 15066.44043 | E64: 14924.63965 | F64: 15045.63965 | G64: 5275390000 | H64: 15045.63965 | I64: 1 | J64: 1 | K64: 15031.95 | L64: 15066.44 | M64: 14924.64 | N64: 15045.64 | O64: 5275390000
A65: 50 | B65: 2023-07-07 | C65: 15070.5 | D65: 15210.62988 | E65: 15032.55957 | F65: 15036.84961 | G65: 5098120000 | H65: 15036.84961 | I65: 1 | J65: 1 | K65: 15070.5 | L65: 15210.63 | M65: 15032.56 | N65: 15036.85 | O65: 5098120000
A66: 51 | B66: 2023-07-06 | C66: 15054.09961 | D66: 15106.45019 | E66: 14969.13965 | F66: 15089.45019 | G66: 6113080000 | H66: 15089.45019 | I66: 1 | J66: 1 | K66: 15054.1 | L66: 15106.45 | M66: 14969.14 | N66: 15089.45 | O66: 6113080000
A67: 52 | B67: 2023-07-05 | C67: 15165.36035 | D67: 15275.17969 | E67: 15162.66016 | F67: 15203.78027 | G67: 5339340000 | H67: 15203.78027 | I67: 1 | J67: 1 | K67: 15165.36 | L67: 15275.18 | M67: 15162.66 | N67: 15203.78 | O67: 5339340000
A68: 53 | B68: 2023-07-03 | C68: 15190.54004 | D68: 15232.95996 | E68: 15153.59961 | F68: 15208.69043 | G68: 2902300000 | H68: 15208.69043 | I68: 1 | J68: 1 | K68: 15190.54 | L68: 15232.96 | M68: 15153.6 | N68: 15208.69 | O68: 2902300000
A69: 54 | B69: 2023-06-30 | C69: 15085.24023 | D69: 15213.75 | E69: 15081.57031 | F69: 15179.20996 | G69: 4661120000 | H69: 15179.20996 | I69: 1 | J69: 1 | K69: 15085.24 | L69: 15213.75 | M69: 15081.57 | N69: 15179.21 | O69: 4661120000
A70: 55 | B70: 2023-06-29 | C70: 14965.54981 | D70: 14986.88965 | E70: 14876.94043 | F70: 14939.95019 | G70: 4388140000 | H70: 14939.95019 | I70: 1 | J70: 1 | K70: 14965.55 | L70: 14986.89 | M70: 14876.94 | N70: 14939.95 | O70: 4388140000
A71: 56 | B71: 2023-06-28 | C71: 14876.25 | D71: 15051.08008 | E71: 14865.80957 | F71: 14964.57031 | G71: 4533270000 | H71: 14964.57031 | I71: 1 | J71: 1 | K71: 14876.25 | L71: 15051.08 | M71: 14865.81 | N71: 14964.57 | O71: 4533270000
A72: 57 | B72: 2023-06-27 | C72: 14751.57031 | D72: 14972.30957 | E72: 14726.75 | F72: 14945.91016 | G72: 5053660000 | H72: 14945.91016 | I72: 1 | J72: 1 | K72: 14751.57 | L72: 14972.31 | M72: 14726.75 | N72: 14945.91 | O72: 5053660000
A73: 58 | B73: 2023-06-26 | C73: 14866.66016 | D73: 14982.82031 | E73: 14687.01953 | F73: 14689.01953 | G73: 4430600000 | H73: 14689.01953 | I73: 1 | J73: 1 | K73: 14866.66 | L73: 14982.82 | M73: 14687.02 | N73: 14689.02 | O73: 4430600000
A74: 59 | B74: 2023-06-23 | C74: 14879.23047 | D74: 14983.73047 | E74: 14821.80957 | F74: 14891.48047 | G74: 7734500000 | H74: 14891.48047 | I74: 1 | J74: 1 | K74: 14879.23 | L74: 14983.73 | M74: 14821.81 | N74: 14891.48 | O74: 7734500000
A75: 60 | B75: 2023-06-22 | C75: 14797.88965 | D75: 15044.21973 | E75: 14794.95019 | F75: 15042.32031 | G75: 4499550000 | H75: 15042.32031 | I75: 1 | J75: 1 | K75: 14797.89 | L75: 15044.22 | M75: 14794.95 | N75: 15042.32 | O75: 4499550000
A76: 61 | B76: 2023-06-21 | C76: 15019.00977 | D76: 15038.90039 | E76: 14826.01953 | F76: 14867.45019 | G76: 5194640000 | H76: 14867.45019 | I76: 1 | J76: 1 | K76: 15019.01 | L76: 15038.9 | M76: 14826.02 | N76: 14867.45 | O76: 5194640000
A77: 62 | B77: 2023-06-20 | C77: 15036.48047 | D77: 15127.41992 | E77: 14946.71973 | F77: 15070.15039 | G77: 5237710000 | H77: 15070.15039 | I77: 1 | J77: 1 | K77: 15036.48 | L77: 15127.42 | M77: 14946.72 | N77: 15070.15 | O77: 5237710000
A78: 63 | B78: 2023-06-16 | C78: 15272.65039 | D78: 15284.65039 | E78: 15073.45019 | F78: 15083.91992 | G78: 8076530000 | H78: 15083.91992 | I78: 1 | J78: 1 | K78: 15272.65 | L78: 15284.65 | M78: 15073.45 | N78: 15083.92 | O78: 8076530000
A79: 64 | B79: 2023-06-15 | C79: 14949.70019 | D79: 15246.62012 | E79: 14930.12012 | F79: 15185.48047 | G79: 5667520000 | H79: 15185.48047 | I79: 1 | J79: 1 | K79: 14949.7 | L79: 15246.62 | M79: 14930.12 | N79: 15185.48 | O79: 5667520000
A80: 65 | B80: 2023-06-14 | C80: 14894.09961 | D80: 15017.09961 | E80: 14784.62012 | F80: 15005.69043 | G80: 5772550000 | H80: 15005.69043 | I80: 1 | J80: 1 | K80: 14894.1 | L80: 15017.1 | M80: 14784.62 | N80: 15005.69 | O80: 5772550000
A81: 66 | B81: 2023-06-13 | C81: 14911.25977 | D81: 14931.83008 | E81: 14770.13965 | F81: 14900.84961 | G81: 5522100000 | H81: 14900.84961 | I81: =IF(F81=0,1,H81/F81) -> 1 | J81: =INDEX(OFFSET($T$15,0,0,$S$13+1,1),MATCH(B81,OFFSET($Q$15,0,0,$S$13+1,1),-1)) -> 1 | K81: =ROUND($I81*C81,2) -> 14911.26 | L81: =ROUND($I81*D81,2) -> 14931.83 | M81: =ROUND($I81*E81,2) -> 14770.14 | N81: =ROUND($I81*F81,2) -> 14900.85 | O81: =G81*J81 -> 5522100000
A82: 67 | B82: 2023-06-12 | C82: 14617.34961 | D82: 14789.59961 | E82: 14571.36035 | F82: 14784.29981 | G82: 4722680000 | H82: 14784.29981 | I82: 1 | J82: 1 | K82: 14617.35 | L82: 14789.6 | M82: 14571.36 | N82: 14784.3 | O82: 4722680000
A83: 68 | B83: 2023-06-09 | C83: 14574.24023 | D83: 14672.84961 | E83: 14487.48047 | F83: 14528.36035 | G83: 4412710000 | H83: 14528.36035 | I83: 1 | J83: 1 | K83: 14574.24 | L83: 14672.85 | M83: 14487.48 | N83: 14528.36 | O83: 4412710000
A84: 69 | B84: 2023-06-08 | C84: 14319.24023 | D84: 14503.30957 | E84: 14314.69043 | F84: 14484.54004 | G84: 4280160000 | H84: 14484.54004 | I84: 1 | J84: 1 | K84: 14319.24 | L84: 14503.31 | M84: 14314.69 | N84: 14484.54 | O84: 4280160000
A85: 70 | B85: 2023-06-07 | C85: 14573.26953 | D85: 14647.91016 | E85: 14283.87988 | F85: 14303.29004 | G85: 5270600000 | H85: 14303.29004 | I85: 1 | J85: 1 | K85: 14573.27 | L85: 14647.91 | M85: 14283.88 | N85: 14303.29 | O85: 5270600000
A86: 71 | B86: 2023-06-06 | C86: 14526.09961 | D86: 14593.5 | E86: 14476.99023 | F86: 14558.08984 | G86: 4810910000 | H86: 14558.08984 | I86: 1 | J86: 1 | K86: 14526.1 | L86: 14593.5 | M86: 14476.99 | N86: 14558.09 | O86: 4810910000
A87: 72 | B87: 2023-06-05 | C87: 14550.12988 | D87: 14662.95019 | E87: 14516.87988 | F87: 14556.5 | G87: 4344280000 | H87: 14556.5 | I87: 1 | J87: 1 | K87: 14550.13 | L87: 14662.95 | M87: 14516.88 | N87: 14556.5 | O87: 4344280000
A88: 73 | B88: 2023-06-02 | C88: 14517.08008 | D88: 14595.80957 | E88: 14442.15039 | F88: 14546.63965 | G88: 4426760000 | H88: 14546.63965 | I88: 1 | J88: 1 | K88: 14517.08 | L88: 14595.81 | M88: 14442.15 | N88: 14546.64 | O88: 4426760000
A89: 74 | B89: 2023-06-01 | C89: 14269.08984 | D89: 14493.30957 | E89: 14219.94043 | F89: 14441.50977 | G89: 4610310000 | H89: 14441.50977 | I89: 1 | J89: 1 | K89: 14269.09 | L89: 14493.31 | M89: 14219.94 | N89: 14441.51 | O89: 4610310000
A90: 75 | B90: 2023-05-31 | C90: 14293.55957 | D90: 14375.37988 | E90: 14216.16016 | F90: 14254.08984 | G90: 5905760000 | H90: 14254.08984 | I90: 1 | J90: 1 | K90: 14293.56 | L90: 14375.38 | M90: 14216.16 | N90: 14254.09 | O90: 5905760000
A91: 76 | B91: 2023-05-30 | C91: 14465.58984 | D91: 14520.16992 | E91: 14301.08008 | F91: 14354.99023 | G91: 4843470000 | H91: 14354.99023 | I91: 1 | J91: 1 | K91: 14465.59 | L91: 14520.17 | M91: 14301.08 | N91: 14354.99 | O91: 4843470000
A92: 77 | B92: 2023-05-26 | C92: 13990.54981 | D92: 14329.49023 | E92: 13982.16016 | F92: 14298.41016 | G92: 4434070000 | H92: 14298.41016 | I92: 1 | J92: 1 | K92: 13990.55 | L92: 14329.49 | M92: 13982.16 | N92: 14298.41 | O92: 4434070000
A93: 78 | B93: 2023-05-25 | C93: 13920.88965 | D93: 13986.87012 | E93: 13812.17969 | F93: 13938.53027 | G93: 4651640000 | H93: 13938.53027 | I93: 1 | J93: 1 | K93: 13920.89 | L93: 13986.87 | M93: 13812.18 | N93: 13938.53 | O93: 4651640000
A94: 79 | B94: 2023-05-24 | C94: 13589.01953 | D94: 13655.73047 | E94: 13520.91992 | F94: 13604.48047 | G94: 4088270000 | H94: 13604.48047 | I94: 1 | J94: 1 | K94: 13589.02 | L94: 13655.73 | M94: 13520.92 | N94: 13604.48 | O94: 4088270000
A95: 80 | B95: 2023-05-23 | C95: 13773.67969 | D95: 13827.09961 | E95: 13662.91016 | F95: 13672.54004 | G95: 4347440000 | H95: 13672.54004 | I95: 1 | J95: 1 | K95: 13773.68 | L95: 13827.1 | M95: 13662.91 | N95: 13672.54 | O95: 4347440000
A96: 81 | B96: 2023-05-22 | C96: 13805.33008 | D96: 13893.70996 | E96: 13792.96973 | F96: 13849.74023 | G96: 4278920000 | H96: 13849.74023 | I96: 1 | J96: 1 | K96: 13805.33 | L96: 13893.71 | M96: 13792.97 | N96: 13849.74 | O96: 4278920000
A97: 82 | B97: 2023-05-19 | C97: 13842.69043 | D97: 13874.41992 | E97: 13763.90039 | F97: 13803.49023 | G97: 3935780000 | H97: 13803.49023 | I97: 1 | J97: 1 | K97: 13842.69 | L97: 13874.42 | M97: 13763.9 | N97: 13803.49 | O97: 3935780000
A98: 83 | B98: 2023-05-18 | C98: 13608.95019 | D98: 13844.75977 | E98: 13606.80957 | F98: 13834.62012 | G98: 4532890000 | H98: 13834.62012 | I98: 1 | J98: 1 | K98: 13608.95 | L98: 13844.76 | M98: 13606.81 | N98: 13834.62 | O98: 4532890000
A99: 84 | B99: 2023-05-17 | C99: 13474.51953 | D99: 13608.33008 | E99: 13419.34961 | F99: 13589.25977 | G99: 4501820000 | H99: 13589.25977 | I99: 1 | J99: 1 | K99: 13474.52 | L99: 13608.33 | M99: 13419.35 | N99: 13589.26 | O99: 4501820000
A100: 85 | B100: 2023-05-16 | C100: 13385.37012 | D100: 13498.44043 | E100: 13384.76953 | F100: 13426.00977 | G100: 4067510000 | H100: 13426.00977 | I100: 1 | J100: 1 | K100: 13385.37 | L100: 13498.44 | M100: 13384.77 | N100: 13426.01 | O100: 4067510000
A101: 86 | B101: 2023-05-15 | C101: 13352.25977 | D101: 13419.80957 | E101: 13297.84961 | F101: 13413.50977 | G101: 3979290000 | H101: 13413.50977 | I101: 1 | J101: 1 | K101: 13352.26 | L101: 13419.81 | M101: 13297.85 | N101: 13413.51 | O101: 3979290000
A102: 87 | B102: 2023-05-12 | C102: 13407.01953 | D102: 13427.41992 | E102: 13256.55957 | F102: 13340.17969 | G102: 4170000000 | H102: 13340.17969 | I102: 1 | J102: 1 | K102: 13407.02 | L102: 13427.42 | M102: 13256.56 | N102: 13340.18 | O102: 4170000000
A103: 88 | B103: 2023-05-11 | C103: 13376.84961 | D103: 13411.70019 | E103: 13306.08008 | F103: 13389.78027 | G103: 4489490000 | H103: 13389.78027 | I103: 1 | J103: 1 | K103: 13376.85 | L103: 13411.7 | M103: 13306.08 | N103: 13389.78 | O103: 4489490000
A104: 89 | B104: 2023-05-10 | C104: 13308.41016 | D104: 13384.41992 | E104: 13204.79004 | F104: 13347.83008 | G104: 4948260000 | H104: 13347.83008 | I104: 1 | J104: 1 | K104: 13308.41 | L104: 13384.42 | M104: 13204.79 | N104: 13347.83 | O104: 4948260000
A105: 90 | B105: 2023-05-09 | C105: 13228.63965 | D105: 13254.80957 | E105: 13193.87988 | F105: 13201.11035 | G105: 4126780000 | H105: 13201.11035 | I105: 1 | J105: 1 | K105: 13228.64 | L105: 13254.81 | M105: 13193.88 | N105: 13201.11 | O105: 4126780000
A106: 91 | B106: 2023-05-08 | C106: 13247.08984 | D106: 13302.42969 | E106: 13193.08008 | F106: 13291.63965 | G106: 4216360000 | H106: 13291.63965 | I106: 1 | J106: 1 | K106: 13247.09 | L106: 13302.43 | M106: 13193.08 | N106: 13291.64 | O106: 4216360000
A107: 92 | B107: 2023-05-05 | C107: 13070.70019 | D107: 13291.11035 | E107: 13059.91016 | F107: 13259.12988 | G107: 4574790000 | H107: 13259.12988 | I107: 1 | J107: 1 | K107: 13070.7 | L107: 13291.11 | M107: 13059.91 | N107: 13259.13 | O107: 4574790000
A108: 93 | B108: 2023-05-04 | C108: 13014.07031 | D108: 13064.01953 | E108: 12938.45019 | F108: 12982.48047 | G108: 4745780000 | H108: 12982.48047 | I108: 1 | J108: 1 | K108: 13014.07 | L108: 13064.02 | M108: 12938.45 | N108: 12982.48 | O108: 4745780000
A109: 94 | B109: 2023-05-03 | C109: 13123.09961 | D109: 13231.70996 | E109: 13026.04004 | F109: 13030.20996 | G109: 5782160000 | H109: 13030.20996 | I109: 1 | J109: 1 | K109: 13123.1 | L109: 13231.71 | M109: 13026.04 | N109: 13030.21 | O109: 5782160000
A110: 95 | B110: 2023-05-02 | C110: 13225.48047 | D110: 13241.53027 | E110: 13046.79004 | F110: 13113.66016 | G110: 5501410000 | H110: 13113.66016 | I110: 1 | J110: 1 | K110: 13225.48 | L110: 13241.53 | M110: 13046.79 | N110: 13113.66 | O110: 5501410000
A111: 96 | B111: 2023-05-01 | C111: 13229.11035 | D111: 13287.46973 | E111: 13186.40039 | F111: 13231.46973 | G111: 5168430000 | H111: 13231.46973 | I111: 1 | J111: 1 | K111: 13229.11 | L111: 13287.47 | M111: 13186.4 | N111: 13231.47 | O111: 5168430000
A112: 97 | B112: 2023-04-28 | C112: 13139.34961 | D112: 13247.38965 | E112: 13096.94043 | F112: 13245.99023 | G112: 5331380000 | H112: 13245.99023 | I112: 1 | J112: 1 | K112: 13139.35 | L112: 13247.39 | M112: 13096.94 | N112: 13245.99 | O112: 5331380000
A113: 98 | B113: 2023-04-27 | C113: 12963.20996 | D113: 13175.62012 | E113: 12938.5 | F113: 13160.03027 | G113: 5253710000 | H113: 13160.03027 | I113: 1 | J113: 1 | K113: 12963.21 | L113: 13175.62 | M113: 12938.5 | N113: 13160.03 | O113: 5253710000
A114: 99 | B114: 2023-04-26 | C114: 12866.63965 | D114: 12929.62012 | E114: 12783.41992 | F114: 12806.48047 | G114: 5281970000 | H114: 12806.48047 | I114: 1 | J114: 1 | K114: 12866.64 | L114: 12929.62 | M114: 12783.42 | N114: 12806.48 | O114: 5281970000
A115: 100 | B115: 2023-04-25 | C115: 12905.08984 | D115: 12933.28027 | E115: 12724.24023 | F115: 12725.11035 | G115: 4806020000 | H115: 12725.11035 | I115: 1 | J115: 1 | K115: 12905.09 | L115: 12933.28 | M115: 12724.24 | N115: 12725.11 | O115: 4806020000
A116: 101 | B116: 2023-04-24 | C116: 12981.70996 | D116: 13044.21973 | E116: 12883.76953 | F116: 12969.75977 | G116: 4854050000 | H116: 12969.75977 | I116: 1 | J116: 1 | K116: 12981.71 | L116: 13044.22 | M116: 12883.77 | N116: 12969.76 | O116: 4854050000
A117: 102 | B117: 2023-04-21 | C117: 12970.32031 | D117: 13030.84961 | E117: 12899.63965 | F117: 13000.76953 | G117: 4868050000 | H117: 13000.76953 | I117: 1 | J117: 1 | K117: 12970.32 | L117: 13030.85 | M117: 12899.64 | N117: 13000.77 | O117: 4868050000
A118: 103 | B118: 2023-04-20 | C118: 12962.29004 | D118: 13107.91992 | E118: 12933.79981 | F118: 12985.98047 | G118: 4590530000 | H118: 12985.98047 | I118: 1 | J118: 1 | K118: 12962.29 | L118: 13107.92 | M118: 12933.8 | N118: 12985.98 | O118: 4590530000
A119: 104 | B119: 2023-04-19 | C119: 12992.50977 | D119: 13128.25 | E119: 12988.20019 | F119: 13088.70996 | G119: 4972700000 | H119: 13088.70996 | I119: 1 | J119: 1 | K119: 12992.51 | L119: 13128.25 | M119: 12988.2 | N119: 13088.71 | O119: 4972700000
A120: 105 | B120: 2023-04-18 | C120: 13180.30957 | D120: 13196.17969 | E120: 13044.20996 | F120: 13091.79004 | G120: 4851810000 | H120: 13091.79004 | I120: 1 | J120: 1 | K120: 13180.31 | L120: 13196.18 | M120: 13044.21 | N120: 13091.79 | O120: 4851810000
A121: 106 | B121: 2023-04-17 | C121: 13053.25977 | D121: 13105.67969 | E121: 12981.25977 | F121: 13087.70996 | G121: 4823180000 | H121: 13087.70996 | I121: 1 | J121: 1 | K121: 13053.26 | L121: 13105.68 | M121: 12981.26 | N121: 13087.71 | O121: 4823180000
A122: 107 | B122: 2023-04-14 | C122: 13044.69043 | D122: 13152.28027 | E122: 12962.50977 | F122: 13079.51953 | G122: 4655740000 | H122: 13079.51953 | I122: 1 | J122: 1 | K122: 13044.69 | L122: 13152.28 | M122: 12962.51 | N122: 13079.52 | O122: 4655740000
A123: 108 | B123: 2023-04-13 | C123: 12922.90039 | D123: 13124.41016 | E123: 12920.01953 | F123: 13109.38965 | G123: 4942990000 | H123: 13109.38965 | I123: 1 | J123: 1 | K123: 12922.9 | L123: 13124.41 | M123: 12920.02 | N123: 13109.39 | O123: 4942990000
A124: 109 | B124: 2023-04-12 | C124: 13043.96973 | D124: 13071.98047 | E124: 12833.30957 | F124: 12848.34961 | G124: 4909770000 | H124: 12848.34961 | I124: 1 | J124: 1 | K124: 13043.97 | L124: 13071.98 | M124: 12833.31 | N124: 12848.35 | O124: 4909770000
A125: 110 | B125: 2023-04-11 | C125: 13040.49023 | D125: 13049.55957 | E125: 12947.66016 | F125: 12964.15039 | G125: 4676960000 | H125: 12964.15039 | I125: 1 | J125: 1 | K125: 13040.49 | L125: 13049.56 | M125: 12947.66 | N125: 12964.15 | O125: 4676960000
A126: 111 | B126: 2023-04-10 | C126: 12936.51953 | D126: 13051.84961 | E126: 12861.51953 | F126: 13051.23047 | G126: 4334070000 | H126: 13051.23047 | I126: 1 | J126: 1 | K126: 12936.52 | L126: 13051.85 | M126: 12861.52 | N126: 13051.23 | O126: 4334070000
A127: 112 | B127: 2023-04-06 | C127: 12892.90039 | D127: 13078.09961 | E127: 12846.03027 | F127: 13062.59961 | G127: 3862800000 | H127: 13062.59961 | I127: 1 | J127: 1 | K127: 12892.9 | L127: 13078.1 | M127: 12846.03 | N127: 13062.6 | O127: 3862800000
A128: 113 | B128: 2023-04-05 | C128: 13056.79004 | D128: 13065.28027 | E128: 12894.44043 | F128: 12967.20019 | G128: 4378590000 | H128: 12967.20019 | I128: 1 | J128: 1 | K128: 13056.79 | L128: 13065.28 | M128: 12894.44 | N128: 12967.2 | O128: 4378590000
A129: 114 | B129: 2023-04-04 | C129: 13165.32031 | D129: 13204.08008 | E129: 13049.98047 | F129: 13100.08008 | G129: 4298760000 | H129: 13100.08008 | I129: 1 | J129: 1 | K129: 13165.32 | L129: 13204.08 | M129: 13049.98 | N129: 13100.08 | O129: 4298760000
A130: 115 | B130: 2023-04-03 | C130: 13084.09961 | D130: 13157.46973 | E130: 13036.54981 | F130: 13148.34961 | G130: 4816440000 | H130: 13148.34961 | I130: 1 | J130: 1 | K130: 13084.1 | L130: 13157.47 | M130: 13036.55 | N130: 13148.35 | O130: 4816440000
A131: 116 | B131: 2023-03-31 | C131: 12968.95996 | D131: 13188.83008 | E131: 12968 | F131: 13181.34961 | G131: 5521150000 | H131: 13181.34961 | I131: 1 | J131: 1 | K131: 12968.96 | L131: 13188.83 | M131: 12968 | N131: 13181.35 | O131: 5521150000
A132: 117 | B132: 2023-03-30 | C132: 12934.99023 | D132: 12987.96973 | E132: 12894.13965 | F132: 12963.13965 | G132: 4738880000 | H132: 12963.13965 | I132: 1 | J132: 1 | K132: 12934.99 | L132: 12987.97 | M132: 12894.14 | N132: 12963.14 | O132: 4738880000
A133: 118 | B133: 2023-03-29 | C133: 12768.13965 | D133: 12867.32031 | E133: 12734.67969 | F133: 12846.03027 | G133: 4493540000 | H133: 12846.03027 | I133: 1 | J133: 1 | K133: 12768.14 | L133: 12867.32 | M133: 12734.68 | N133: 12846.03 | O133: 4493540000
A134: 119 | B134: 2023-03-28 | C134: 12654.91016 | D134: 12654.91016 | E134: 12517.87012 | F134: 12610.57031 | G134: 4036910000 | H134: 12610.57031 | I134: 1 | J134: 1 | K134: 12654.91 | L134: 12654.91 | M134: 12517.87 | N134: 12610.57 | O134: 4036910000
A135: 120 | B135: 2023-03-27 | C135: 12797.90039 | D135: 12839.41992 | E135: 12647.94043 | F135: 12673.07031 | G135: 4330320000 | H135: 12673.07031 | I135: 1 | J135: 1 | K135: 12797.9 | L135: 12839.42 | M135: 12647.94 | N135: 12673.07 | O135: 4330320000
A136: 121 | B136: 2023-03-24 | C136: 12700.50977 | D136: 12770.28027 | E136: 12608.15039 | F136: 12767.04981 | G136: 4363650000 | H136: 12767.04981 | I136: 1 | J136: 1 | K136: 12700.51 | L136: 12770.28 | M136: 12608.15 | N136: 12767.05 | O136: 4363650000
A137: 122 | B137: 2023-03-23 | C137: 12735.59961 | D137: 12900.09961 | E137: 12611.66992 | F137: 12729.23047 | G137: 4917460000 | H137: 12729.23047 | I137: 1 | J137: 1 | K137: 12735.6 | L137: 12900.1 | M137: 12611.67 | N137: 12729.23 | O137: 4917460000
A138: 123 | B138: 2023-03-22 | C138: 12742.41016 | D138: 12943.62012 | E138: 12563.78027 | F138: 12567.15039 | G138: 4981590000 | H138: 12567.15039 | I138: 1 | J138: 1 | K138: 12742.41 | L138: 12943.62 | M138: 12563.78 | N138: 12567.15 | O138: 4981590000
A139: 124 | B139: 2023-03-21 | C139: 12643.34961 | D139: 12762.45019 | E139: 12582.75977 | F139: 12741.44043 | G139: 4829870000 | H139: 12741.44043 | I139: 1 | J139: 1 | K139: 12643.35 | L139: 12762.45 | M139: 12582.76 | N139: 12741.44 | O139: 4829870000
A140: 125 | B140: 2023-03-20 | C140: 12487.79004 | D140: 12578.34961 | E140: 12407.82031 | F140: 12562.61035 | G140: 4970630000 | H140: 12562.61035 | I140: 1 | J140: 1 | K140: 12487.79 | L140: 12578.35 | M140: 12407.82 | N140: 12562.61 | O140: 4970630000
A141: 126 | B141: 2023-03-17 | C141: 12570.16016 | D141: 12674.33984 | E141: 12444.08008 | F141: 12519.87988 | G141: 7903090000 | H141: 12519.87988 | I141: 1 | J141: 1 | K141: 12570.16 | L141: 12674.34 | M141: 12444.08 | N141: 12519.88 | O141: 7903090000
A142: 127 | B142: 2023-03-16 | C142: 12211.87012 | D142: 12595.69043 | E142: 12190.65039 | F142: 12581.38965 | G142: 5498920000 | H142: 12581.38965 | I142: 1 | J142: 1 | K142: 12211.87 | L142: 12595.69 | M142: 12190.65 | N142: 12581.39 | O142: 5498920000
A143: 128 | B143: 2023-03-15 | C143: 12083.24023 | D143: 12269.45019 | E143: 12026.17969 | F143: 12251.32031 | G143: 5912430000 | H143: 12251.32031 | I143: 1 | J143: 1 | K143: 12083.24 | L143: 12269.45 | M143: 12026.18 | N143: 12251.32 | O143: 5912430000
A144: 129 | B144: 2023-03-14 | C144: 12078.45996 | D144: 12217.87012 | E144: 12035.21973 | F144: 12199.79004 | G144: 5533120000 | H144: 12199.79004 | I144: 1 | J144: 1 | K144: 12078.46 | L144: 12217.87 | M144: 12035.22 | N144: 12199.79 | O144: 5533120000
A145: 130 | B145: 2023-03-13 | C145: 11752.09961 | D145: 12073.95996 | E145: 11695.41016 | F145: 11923.16992 | G145: 6201490000 | H145: 11923.16992 | I145: =IF(F145=0,1,H145/F145) -> 1 | J145: =INDEX(OFFSET($T$15,0,0,$S$13+1,1),MATCH(B145,OFFSET($Q$15,0,0,$S$13+1,1),-1)) -> 1 | K145: =ROUND($I145*C145,2) -> 11752.1 | L145: =ROUND($I145*D145,2) -> 12073.96 | M145: =ROUND($I145*E145,2) -> 11695.41 | N145: =ROUND($I145*F145,2) -> 11923.17 | O145: =G145*J145 -> 6201490000
A146: 131 | B146: 2023-03-10 | C146: 12001.70019 | D146: 12069.62012 | E146: 11789.86035 | F146: 11830.28027 | G146: 6193500000 | H146: 11830.28027 | I146: 1 | J146: 1 | K146: 12001.7 | L146: 12069.62 | M146: 11789.86 | N146: 11830.28 | O146: 6193500000
A147: 132 | B147: 2023-03-09 | C147: 12230.83984 | D147: 12340.45019 | E147: 11970.33984 | F147: 11995.87988 | G147: 5061790000 | H147: 11995.87988 | I147: 1 | J147: 1 | K147: 12230.84 | L147: 12340.45 | M147: 11970.34 | N147: 11995.88 | O147: 5061790000
A148: 133 | B148: 2023-03-08 | C148: 12181.05957 | D148: 12237.71973 | E148: 12102.28027 | F148: 12215.33008 | G148: 5085970000 | H148: 12215.33008 | I148: 1 | J148: 1 | K148: 12181.06 | L148: 12237.72 | M148: 12102.28 | N148: 12215.33 | O148: 5085970000
A149: 134 | B149: 2023-03-07 | C149: 12303.19043 | D149: 12344.04004 | E149: 12130.00977 | F149: 12152.16992 | G149: 5422820000 | H149: 12152.16992 | I149: 1 | J149: 1 | K149: 12303.19 | L149: 12344.04 | M149: 12130.01 | N149: 12152.17 | O149: 5422820000
A150: 135 | B150: 2023-03-06 | C150: 12344.65039 | D150: 12466.87988 | E150: 12297.57031 | F150: 12302.48047 | G150: 4982880000 | H150: 12302.48047 | I150: 1 | J150: 1 | K150: 12344.65 | L150: 12466.88 | M150: 12297.57 | N150: 12302.48 | O150: 4982880000
A151: 136 | B151: 2023-03-03 | C151: 12110.70996 | D151: 12300.45996 | E151: 12095.24023 | F151: 12290.80957 | G151: 5102210000 | H151: 12290.80957 | I151: 1 | J151: 1 | K151: 12110.71 | L151: 12300.46 | M151: 12095.24 | N151: 12290.81 | O151: 5102210000
A152: 137 | B152: 2023-03-02 | C152: 11830.08984 | D152: 12074.58984 | E152: 11830.08984 | F152: 12044.87012 | G152: 5313760000 | H152: 12044.87012 | I152: 1 | J152: 1 | K152: 11830.09 | L152: 12074.59 | M152: 11830.09 | N152: 12044.87 | O152: 5313760000
A153: 138 | B153: 2023-03-01 | C153: 12026.71973 | D153: 12054.48047 | E153: 11906.58008 | F153: 11938.57031 | G153: 4927530000 | H153: 11938.57031 | I153: 1 | J153: 1 | K153: 12026.72 | L153: 12054.48 | M153: 11906.58 | N153: 11938.57 | O153: 4927530000
A154: 139 | B154: 2023-02-28 | C154: 12041.75 | D154: 12146.51953 | E154: 12021.32031 | F154: 12042.12012 | G154: 5340950000 | H154: 12042.12012 | I154: 1 | J154: 1 | K154: 12041.75 | L154: 12146.52 | M154: 12021.32 | N154: 12042.12 | O154: 5340950000
A155: 140 | B155: 2023-02-27 | C155: 12106.79004 | D155: 12159.63965 | E155: 12034.61035 | F155: 12057.79004 | G155: 4494000000 | H155: 12057.79004 | I155: 1 | J155: 1 | K155: 12106.79 | L155: 12159.64 | M155: 12034.61 | N155: 12057.79 | O155: 4494000000
A156: 141 | B156: 2023-02-24 | C156: 11979.79981 | D156: 12018.32031 | E156: 11900.83984 | F156: 11969.65039 | G156: 4432650000 | H156: 11969.65039 | I156: 1 | J156: 1 | K156: 11979.8 | L156: 12018.32 | M156: 11900.84 | N156: 11969.65 | O156: 4432650000
A157: 142 | B157: 2023-02-23 | C157: 12224.44043 | D157: 12227.40039 | E157: 12003.30957 | F157: 12180.13965 | G157: 4714580000 | H157: 12180.13965 | I157: 1 | J157: 1 | K157: 12224.44 | L157: 12227.4 | M157: 12003.31 | N157: 12180.14 | O157: 4714580000
A158: 143 | B158: 2023-02-22 | C158: 12085.66992 | D158: 12156.20996 | E158: 12006.04004 | F158: 12066.26953 | G158: 4671270000 | H158: 12066.26953 | I158: 1 | J158: 1 | K158: 12085.67 | L158: 12156.21 | M158: 12006.04 | N158: 12066.27 | O158: 4671270000
A159: 144 | B159: 2023-02-21 | C159: 12205.20996 | D159: 12257.05957 | E159: 12058.23047 | F159: 12060.29981 | G159: 5002540000 | H159: 12060.29981 | I159: 1 | J159: 1 | K159: 12205.21 | L159: 12257.06 | M159: 12058.23 | N159: 12060.3 | O159: 5002540000
A160: 145 | B160: 2023-02-17 | C160: 12352.29981 | D160: 12385.51953 | E160: 12233.79004 | F160: 12358.17969 | G160: 4925230000 | H160: 12358.17969 | I160: 1 | J160: 1 | K160: 12352.3 | L160: 12385.52 | M160: 12233.79 | N160: 12358.18 | O160: 4925230000
A161: 146 | B161: 2023-02-16 | C161: 12495.07031 | D161: 12653.40039 | E161: 12440 | F161: 12442.48047 | G161: 5159410000 | H161: 12442.48047 | I161: 1 | J161: 1 | K161: 12495.07 | L161: 12653.4 | M161: 12440 | N161: 12442.48 | O161: 5159410000
A162: 147 | B162: 2023-02-15 | C162: 12531.59961 | D162: 12689.33984 | E162: 12486.41992 | F162: 12687.88965 | G162: 5056640000 | H162: 12687.88965 | I162: 1 | J162: 1 | K162: 12531.6 | L162: 12689.34 | M162: 12486.42 | N162: 12687.89 | O162: 5056640000
A163: 148 | B163: 2023-02-14 | C163: 12413.09961 | D163: 12627.40039 | E163: 12356.32031 | F163: 12590.88965 | G163: 5032430000 | H163: 12590.88965 | I163: 1 | J163: 1 | K163: 12413.1 | L163: 12627.4 | M163: 12356.32 | N163: 12590.89 | O163: 5032430000
A164: 149 | B164: 2023-02-13 | C164: 12356.5 | D164: 12522.78027 | E164: 12313.45019 | F164: 12502.30957 | G164: 4752880000 | H164: 12502.30957 | I164: 1 | J164: 1 | K164: 12356.5 | L164: 12522.78 | M164: 12313.45 | N164: 12502.31 | O164: 4752880000
A165: 150 | B165: 2023-02-10 | C165: 12306.58984 | D165: 12375.71973 | E165: 12204.20996 | F165: 12304.91992 | G165: 4885030000 | H165: 12304.91992 | I165: 1 | J165: 1 | K165: 12306.59 | L165: 12375.72 | M165: 12204.21 | N165: 12304.92 | O165: 4885030000
A166: 151 | B166: 2023-02-09 | C166: 12677.54004 | D166: 12679.54004 | E166: 12327.44043 | F166: 12381.16992 | G166: 5536290000 | H166: 12381.16992 | I166: 1 | J166: 1 | K166: 12677.54 | L166: 12679.54 | M166: 12327.44 | N166: 12381.17 | O166: 5536290000
A167: 152 | B167: 2023-02-08 | C167: 12680.03027 | D167: 12709.45019 | E167: 12471.12012 | F167: 12495.37988 | G167: 5052870000 | H167: 12495.37988 | I167: 1 | J167: 1 | K167: 12680.03 | L167: 12709.45 | M167: 12471.12 | N167: 12495.38 | O167: 5052870000
A168: 153 | B168: 2023-02-07 | C168: 12474.95019 | D168: 12771.58984 | E168: 12419.70996 | F168: 12728.26953 | G168: 5720240000 | H168: 12728.26953 | I168: 1 | J168: 1 | K168: 12474.95 | L168: 12771.59 | M168: 12419.71 | N168: 12728.27 | O168: 5720240000
A169: 154 | B169: 2023-02-06 | C169: 12468.79981 | D169: 12558.87012 | E169: 12411.87988 | F169: 12464.50977 | G169: 5538350000 | H169: 12464.50977 | I169: 1 | J169: 1 | K169: 12468.8 | L169: 12558.87 | M169: 12411.88 | N169: 12464.51 | O169: 5538350000
A170: 155 | B170: 2023-02-03 | C170: 12520.95019 | D170: 12828.70996 | E170: 12520.95019 | F170: 12573.36035 | G170: 5954490000 | H170: 12573.36035 | I170: 1 | J170: 1 | K170: 12520.95 | L170: 12828.71 | M170: 12520.95 | N170: 12573.36 | O170: 5954490000
A171: 156 | B171: 2023-02-02 | C171: 12655.17969 | D171: 12880.98047 | E171: 12600.75977 | F171: 12803.13965 | G171: 7038210000 | H171: 12803.13965 | I171: 1 | J171: 1 | K171: 12655.18 | L171: 12880.98 | M171: 12600.76 | N171: 12803.14 | O171: 7038210000
A172: 157 | B172: 2023-02-01 | C172: 12087.91992 | D172: 12458.87012 | E172: 12010.73047 | F172: 12363.09961 | G172: 6336040000 | H172: 12363.09961 | I172: 1 | J172: 1 | K172: 12087.92 | L172: 12458.87 | M172: 12010.73 | N172: 12363.1 | O172: 6336040000
A173: 158 | B173: 2023-01-31 | C173: 11915.94043 | D173: 12104.12988 | E173: 11915.94043 | F173: 12101.92969 | G173: 5695150000 | H173: 12101.92969 | I173: 1 | J173: 1 | K173: 11915.94 | L173: 12104.13 | M173: 11915.94 | N173: 12101.93 | O173: 5695150000
A174: 159 | B174: 2023-01-30 | C174: 12047.16016 | D174: 12087.67969 | E174: 11906.11035 | F174: 11912.38965 | G174: 5122320000 | H174: 11912.38965 | I174: 1 | J174: 1 | K174: 12047.16 | L174: 12087.68 | M174: 11906.11 | N174: 11912.39 | O174: 5122320000
A175: 160 | B175: 2023-01-27 | C175: 12000.20996 | D175: 12248.15039 | E175: 11999.87012 | F175: 12166.59961 | G175: 6243800000 | H175: 12166.59961 | I175: 1 | J175: 1 | K175: 12000.21 | L175: 12248.15 | M175: 11999.87 | N175: 12166.6 | O175: 6243800000
A176: 161 | B176: 2023-01-26 | C176: 11972.57031 | D176: 12055.80957 | E176: 11853.37012 | F176: 12051.48047 | G176: 5732890000 | H176: 12051.48047 | I176: 1 | J176: 1 | K176: 11972.57 | L176: 12055.81 | M176: 11853.37 | N176: 12051.48 | O176: 5732890000
A177: 162 | B177: 2023-01-25 | C177: 11636.00977 | D177: 11841.80957 | E177: 11550.07031 | F177: 11814.69043 | G177: 5485570000 | H177: 11814.69043 | I177: 1 | J177: 1 | K177: 11636.01 | L177: 11841.81 | M177: 11550.07 | N177: 11814.69 | O177: 5485570000
A178: 163 | B178: 2023-01-24 | C178: 11802.95019 | D178: 11889.37012 | E178: 11780.07031 | F178: 11846.63965 | G178: 5670860000 | H178: 11846.63965 | I178: 1 | J178: 1 | K178: 11802.95 | L178: 11889.37 | M178: 11780.07 | N178: 11846.64 | O178: 5670860000
A179: 164 | B179: 2023-01-23 | C179: 11652 | D179: 11918.86035 | E179: 11617.83008 | F179: 11872.54004 | G179: 5997810000 | H179: 11872.54004 | I179: 1 | J179: 1 | K179: 11652 | L179: 11918.86 | M179: 11617.83 | N179: 11872.54 | O179: 5997810000
A180: 165 | B180: 2023-01-20 | C180: 11363.84961 | D180: 11623.20019 | E180: 11329.54004 | F180: 11619.03027 | G180: 5980110000 | H180: 11619.03027 | I180: 1 | J180: 1 | K180: 11363.85 | L180: 11623.2 | M180: 11329.54 | N180: 11619.03 | O180: 5980110000
A181: 166 | B181: 2023-01-19 | C181: 11345.19043 | D181: 11388.45996 | E181: 11251.94043 | F181: 11295.66992 | G181: 4660800000 | H181: 11295.66992 | I181: 1 | J181: 1 | K181: 11345.19 | L181: 11388.46 | M181: 11251.94 | N181: 11295.67 | O181: 4660800000
A182: 167 | B182: 2023-01-18 | C182: 11636.61035 | D182: 11690.26953 | E182: 11403.30957 | F182: 11410.29004 | G182: 5288630000 | H182: 11410.29004 | I182: 1 | J182: 1 | K182: 11636.61 | L182: 11690.27 | M182: 11403.31 | N182: 11410.29 | O182: 5288630000
A183: 168 | B183: 2023-01-17 | C183: 11531.54004 | D183: 11615.95019 | E183: 11484.01953 | F183: 11557.19043 | G183: 5138410000 | H183: 11557.19043 | I183: 1 | J183: 1 | K183: 11531.54 | L183: 11615.95 | M183: 11484.02 | N183: 11557.19 | O183: 5138410000
A184: 169 | B184: 2023-01-13 | C184: 11362.12988 | D184: 11547.95996 | E184: 11347.59961 | F184: 11541.48047 | G184: 5077990000 | H184: 11541.48047 | I184: 1 | J184: 1 | K184: 11362.13 | L184: 11547.96 | M184: 11347.6 | N184: 11541.48 | O184: 5077990000
A185: 170 | B185: 2023-01-12 | C185: 11441.45019 | D185: 11500.86035 | E185: 11246.01953 | F185: 11459.61035 | G185: 5681240000 | H185: 11459.61035 | I185: 1 | J185: 1 | K185: 11441.45 | L185: 11500.86 | M185: 11246.02 | N185: 11459.61 | O185: 5681240000
A186: 171 | B186: 2023-01-11 | C186: 11259.16016 | D186: 11403.88965 | E186: 11220.75 | F186: 11402.51953 | G186: 5284390000 | H186: 11402.51953 | I186: 1 | J186: 1 | K186: 11259.16 | L186: 11403.89 | M186: 11220.75 | N186: 11402.52 | O186: 5284390000
A187: 172 | B187: 2023-01-10 | C187: 11069.04981 | D187: 11207.55957 | E187: 11050.67969 | F187: 11205.78027 | G187: 4710680000 | H187: 11205.78027 | I187: 1 | J187: 1 | K187: 11069.05 | L187: 11207.56 | M187: 11050.68 | N187: 11205.78 | O187: 4710680000
A188: 173 | B188: 2023-01-09 | C188: 11133.07031 | D188: 11304.83984 | E188: 11085.32031 | F188: 11108.45019 | G188: 5132190000 | H188: 11108.45019 | I188: 1 | J188: 1 | K188: 11133.07 | L188: 11304.84 | M188: 11085.32 | N188: 11108.45 | O188: 5132190000
A189: 174 | B189: 2023-01-06 | C189: 10807.45996 | D189: 11082.58984 | E189: 10696.41992 | F189: 11040.34961 | G189: 5199780000 | H189: 11040.34961 | I189: 1 | J189: 1 | K189: 10807.46 | L189: 11082.59 | M189: 10696.42 | N189: 11040.35 | O189: 5199780000
A190: 175 | B190: 2023-01-05 | C190: 10837.25 | D190: 10842.33008 | E190: 10728.25977 | F190: 10741.21973 | G190: 4764270000 | H190: 10741.21973 | I190: 1 | J190: 1 | K190: 10837.25 | L190: 10842.33 | M190: 10728.26 | N190: 10741.22 | O190: 4764270000
A191: 176 | B191: 2023-01-04 | C191: 10949.33984 | D191: 10981.45996 | E191: 10785.53027 | F191: 10914.79981 | G191: 5085380000 | H191: 10914.79981 | I191: 1 | J191: 1 | K191: 10949.34 | L191: 10981.46 | M191: 10785.53 | N191: 10914.8 | O191: 5085380000
A192: 177 | B192: 2023-01-03 | C192: 11038.41992 | D192: 11093.09961 | E192: 10770.92969 | F192: 10862.63965 | G192: 4780650000 | H192: 10862.63965 | I192: 1 | J192: 1 | K192: 11038.42 | L192: 11093.1 | M192: 10770.93 | N192: 10862.64 | O192: 4780650000
A193: 178 | B193: 2022-12-30 | C193: 10835.58984 | D193: 10942.90039 | E193: 10778.63965 | F193: 10939.75977 | G193: 3959030000 | H193: 10939.75977 | I193: 1 | J193: 1 | K193: 10835.59 | L193: 10942.9 | M193: 10778.64 | N193: 10939.76 | O193: 3959030000
A194: 179 | B194: 2022-12-29 | C194: 10800.79981 | D194: 10981.05957 | E194: 10776.62012 | F194: 10951.04981 | G194: 4154100000 | H194: 10951.04981 | I194: 1 | J194: 1 | K194: 10800.8 | L194: 10981.06 | M194: 10776.62 | N194: 10951.05 | O194: 4154100000
A195: 180 | B195: 2022-12-28 | C195: 10807.12012 | D195: 10898.63965 | E195: 10671.19043 | F195: 10679.33984 | G195: 3842970000 | H195: 10679.33984 | I195: 1 | J195: 1 | K195: 10807.12 | L195: 10898.64 | M195: 10671.19 | N195: 10679.34 | O195: 3842970000
A196: 181 | B196: 2022-12-27 | C196: 10944.29981 | D196: 10957.44043 | E196: 10807.61035 | F196: 10822.50977 | G196: 3827290000 | H196: 10822.50977 | I196: 1 | J196: 1 | K196: 10944.3 | L196: 10957.44 | M196: 10807.61 | N196: 10822.51 | O196: 3827290000
A197: 182 | B197: 2022-12-23 | C197: 10911.04004 | D197: 11007.08984 | E197: 10830.90039 | F197: 10985.45019 | G197: 3544680000 | H197: 10985.45019 | I197: 1 | J197: 1 | K197: 10911.04 | L197: 11007.09 | M197: 10830.9 | N197: 10985.45 | O197: 3544680000
A198: 183 | B198: 2022-12-22 | C198: 11099.36035 | D198: 11114.23047 | E198: 10784.01953 | F198: 10956.13965 | G198: 5125070000 | H198: 10956.13965 | I198: 1 | J198: 1 | K198: 11099.36 | L198: 11114.23 | M198: 10784.02 | N198: 10956.14 | O198: 5125070000
A199: 184 | B199: 2022-12-21 | C199: 11110.65039 | D199: 11285.78027 | E199: 11083.36035 | F199: 11235.87988 | G199: 4401420000 | H199: 11235.87988 | I199: 1 | J199: 1 | K199: 11110.65 | L199: 11285.78 | M199: 11083.36 | N199: 11235.88 | O199: 4401420000
A200: 185 | B200: 2022-12-20 | C200: 11023.46973 | D200: 11143.62012 | E200: 10967.07031 | F200: 11072.41992 | G200: 4707190000 | H200: 11072.41992 | I200: 1 | J200: 1 | K200: 11023.47 | L200: 11143.62 | M200: 10967.07 | N200: 11072.42 | O200: 4707190000
... 571 more rows

Sheet CalculationsAndCharts
A1: VAccIndicator.xlsm
A2: =InputPriceData!A1 -> NASDAQ 100 (^NDX) -Nasdaq GIDS (Daily)
A4: User Charting Controls | E4: Click to Shift Chart One Bar:
A5: Data Control | C5: FALSE
A6: =InputPriceData!$B$10 -> 756 | B6: Available Input Data Rows | E6: Earliest: | F6: =OFFSET(InputPriceData!B15,CalculationsAndCharts!A6,0,1,1) -> 2020-09-15
A7: =MAX(A33:A56896) -> 1250 | B7: Available Calculation Rows | E7: Latest: | F7: =OFFSET(InputPriceData!B15,1,0,1,1) -> 2023-09-15
A8: =MIN(AvailableInputRows-DataPanRows,A7) -> 711 | B8: Logically Available for Calc / Plot | E8: $ Change: | F8: =G33-G34 -> 264.75
A10: Historical Price Windowing Specifications | F10: Click to Shift
A11: 45 | B11: Input Data Offset (Pan) | F11: Points to Plot
A12: 257 | B12: Data Points to Plot (Zoom)
B13: First: | C13: =OFFSET(B32,A12,0,1,1) -> 2022-07-06
B14: ="Last: " & IF(OFFSET(InputPriceData!P15,1+A11,0,1,1)="","",TEXT(OFFSET(InputPriceData!P15,1+A11,0,1,1),"H:MM AM/PM")) -> Last: | C14: =B33 -> 2023-07-13
A15: User Controls
A16: Vacc
A17: 26 | B17: Period
A18: 9 | B18: Smooth, | C18: =2/(A18+1) -> 0.2 | D18: Calculated "k"
A25: Help! I would like to plot data
A26: From | B26: 2022-07-06 | C26: =OFFSET(InputPriceData!$A$15,MATCH(B26,OFFSET(InputPriceData!B15,1,0,InputPriceData!$B$10,1),0),0,1,1)-C27 -> 257 | E26: 217
A27: To | B27: 2023-07-13 | C27: =OFFSET(InputPriceData!$A$15,MATCH(B27,OFFSET(InputPriceData!$B$15,1,0,InputPriceData!$B$10,1),0),0,1,1)-1 -> 45 | E27: =$A$12-$E$26+1 -> 41
H28: Value @ Cursor => | I28: =OFFSET(A32,$E$27,0,1,1)&"(RR)" -> 41(RR) | J28: =OFFSET($B$32,E27,0,1,1) -> 2023-05-15 | K28: =TEXT(OFFSET(D32,$E$27,0,1,1),"#,##0.00")&"(o)" -> 13,352.26(o) | L28: =TEXT(OFFSET(E32,$E$27,0,1,1),"#,##0.00")&"(h)" -> 13,419.81(h) | M28: =TEXT(OFFSET(F32,$E$27,0,1,1),"#,##0.00")&"(l)" -> 13,297.85(l) | N28: =TEXT(OFFSET(G32,$E$27,0,1,1),"#,##0.00")&"(c)" -> 13,413.51(c) | O28: =TEXT(OFFSET(C32,$E$27,0,1,1),"#,##0.00,,""M""")&"(v)" -> 3,979.29M(v)
E29: Cursor ==> | BE29: Work Area For Chart Cursors
B30: =LogicallyAvailableRows -> 711 | C30: <== Calculation Rel Row Limits ==> | J30: =B30-A17 -> 685 | L30: =J30-A18+1 -> 677
A31: Rel Row | H31: =$A$17&" bar look back coef's" -> 26 bar look back coef's | I31: =$A$17&" bar coef sum" -> 26 bar coef sum | L31: ="EMA(Vel(" & $A$17&"),"&$A$18&")" -> EMA(Vel(26),9) | N31: Vel | R31: Acc | S31: Chart Title | BC31: Used To Color Vol Bars
B32: Date | C32: Volume | D32: Open | E32: High | F32: Low | G32: Close | J32: ="SumVel("&A17&")" -> SumVel(26) | K32: ="SumVel / "&$A$17 -> SumVel / 26 | M32: ="AvgVel(" & $A$17 &" ," & $A$18 & ")" -> AvgVel(26 ,9) | N32: ="VACC(" & $A$17 &" ," & $A$18 & ")" -> VACC(26 ,9) | P32: ="SumAcc("&$A$17&")" -> SumAcc(26) | Q32: ="SumAcc / "&A17 -> SumAcc / 26 | R32: ="AvgACC(" & $A$17 &" ," & $A$18 & ")" -> AvgACC(26 ,9) | S32: =$N$32 & ": "&N31& "= " &TEXT(N33,"#,##0.00;[Red]-#,##0.00")&", "&$R$31&" = "&TEXT(R33,"#,##0.00;[Red]-#,##0.00") -> VACC(26 ,9): Vel= 269.33, Acc = 8.05 | BC32: Up Vol | BD32: Dn Vol | BE32: Volume Cursor | BF32: =MAX(OFFSET(C33,0,0,A12,1)) -> 8076530000 | BG32: Price Chart Cursor | BI32: Indicator01Cursor | BK32: Indicator02Cursor | BM32: Indicator03Cursor | BO32: Indicator04Cursor | BQ32: Indicator05Cursor | BS32: Indicator06Cursor | BU32: Indicator07Cursor | BW32: Indicator08Cursor
A33: 1 | B33: =IF($A33>$A$8,"",OFFSET(InputPriceData!$B$15,$A33+$A$11,0,1,1)) -> 2023-07-13 | C33: =IF($A33>$A$8,"",OFFSET(InputPriceData!$G$15,CalculationsAndCharts!$A33+$A$11,IF($C$5,8,0),1,1)) -> 5183560000 | D33: =IF(A33>$A$8,"",OFFSET(InputPriceData!$C$15,CalculationsAndCharts!$A33+$A$11,IF($C$5,8,0),1,1)) -> 15432.48047 | E33: =IF(A33>$A$8,"",OFFSET(InputPriceData!$D$15,CalculationsAndCharts!$A33+$A$11,IF($C$5,8,0),1,1)) -> 15602.74023 | F33: =IF(A33>$A$8,"",OFFSET(InputPriceData!$E$15,CalculationsAndCharts!$A33+$A$11,IF($C$5,8,0),1,1)) -> 15420.70996 | G33: =IF(A33>$A$8,"",OFFSET(InputPriceData!$F$15,CalculationsAndCharts!$A33+$A$11,IF($C$5,8,0),1,1)) -> 15571.98047 | H33: =IF(A33<=$A$17,1/A33,NA()) -> 1 | I33: =SUM(OFFSET(H33,0,0,A17,1)) -> 3.854419716 | J33: =IF(A33>$J$30,NA(),(G33*$I$33)-SUMPRODUCT(OFFSET(G34,0,0,$A$17,1),OFFSET($H$33,0,0,$A$17,1))) -> 1867.525514 | K33: =IF(A33>$J$30,NA(),J33/$A$17) -> 71.8279044 | L33: =IF(A33>$L$30,NA(),IF(A33=$L$30,AVERAGE(OFFSET(K33,0,0,$A$18,1)),$C$18*(K33-L34)+L34)) -> 35.01325778 | M33: =IF(A33>$L$30,NA(),L33*100) -> 3501.325778 | N33: =IF(A33>$L$30,NA(),M33/$A$17*2) -> 269.3327522 | P33: =IF(A33>$J$30,NA(),(L33*$I$33)-SUMPRODUCT(OFFSET(L34,0,0,$A$17,1),OFFSET($H$33,0,0,$A$17,1))) -> 2.093512459 | Q33: =IF(A33>$J$30,NA(),P33/$A$17) -> 0.08051970998 | R33: =IF(A33>$J$30,NA(),Q33*100) -> 8.051970998 | BC33: =IF(G33>=G34,C33,NA()) -> 5183560000 | BD33: =IF(G33<G34,C33,NA()) ->  | BE33: =$E$27 -> 41 | BF33: 0 | BG33: =$E$27 -> 41 | BH33: 10376.11339 | BI33: =$E$27 -> 41 | BJ33: -780.8077327 | BK33: =$E$27 -> 41 | BL33: -100 | BM33: =$E$27 -> 41 | BO33: =$E$27 -> 41 | BP33: -780.8077327 | BQ33: 41 | BS33: 41 | BT33: 0 | BU33: 41 | BV33: 0 | BW33: 41
A34: 2 | B34: =IF($A34>$A$8,"",OFFSET(InputPriceData!$B$15,$A34+$A$11,0,1,1)) -> 2023-07-12 | C34: =IF($A34>$A$8,"",OFFSET(InputPriceData!$G$15,CalculationsAndCharts!$A34+$A$11,IF($C$5,8,0),1,1)) -> 5230620000 | D34: =IF(A34>$A$8,"",OFFSET(InputPriceData!$C$15,CalculationsAndCharts!$A34+$A$11,IF($C$5,8,0),1,1)) -> 15279.34961 | E34: =IF(A34>$A$8,"",OFFSET(InputPriceData!$D$15,CalculationsAndCharts!$A34+$A$11,IF($C$5,8,0),1,1)) -> 15364.08984 | F34: =IF(A34>$A$8,"",OFFSET(InputPriceData!$E$15,CalculationsAndCharts!$A34+$A$11,IF($C$5,8,0),1,1)) -> 15209.70996 | G34: =IF(A34>$A$8,"",OFFSET(InputPriceData!$F$15,CalculationsAndCharts!$A34+$A$11,IF($C$5,8,0),1,1)) -> 15307.23047 | H34: =IF(A34<=$A$17,1/A34,NA()) -> 0.5 | J34: =IF(A34>$J$30,NA(),(G34*$I$33)-SUMPRODUCT(OFFSET(G35,0,0,$A$17,1),OFFSET($H$33,0,0,$A$17,1))) -> 1091.534977 | K34: =IF(A34>$J$30,NA(),J34/$A$17) -> 41.98211449 | L34: =IF(A34>$L$30,NA(),IF(A34=$L$30,AVERAGE(OFFSET(K34,0,0,$A$18,1)),$C$18*(K34-L35)+L35)) -> 25.80959613 | M34: =IF(A34>$L$30,NA(),L34*100) -> 2580.959613 | N34: =IF(A34>$L$30,NA(),M34/$A$17*2) -> 198.5353549 | P34: =IF(A34>$J$30,NA(),(L34*$I$33)-SUMPRODUCT(OFFSET(L35,0,0,$A$17,1),OFFSET($H$33,0,0,$A$17,1))) -> -35.5774061 | Q34: =IF(A34>$J$30,NA(),P34/$A$17) -> -1.368361773 | R34: =IF(A34>$J$30,NA(),Q34*100) -> -136.8361773 | BC34: =IF(G34>=G35,C34,NA()) -> 5230620000 | BD34: =IF(G34<G35,C34,NA()) ->  | BE34: =$E$27 -> 41 | BF34: =CEILING(BF32,10^INT(LOG10(BF32))/8) -> 8125000000 | BG34: =$E$27 -> 41 | BH34: 15667.26649 | BI34: =$E$27 -> 41 | BJ34: 621.1289436 | BK34: =$E$27 -> 41 | BL34: 100 | BM34: 41 | BN34: 0 | BO34: 41 | BP34: 621.1289436 | BQ34: 41 | BR34: 0 | BS34: 41 | BT34: 0 | BU34: 41 | BV34: 0 | BW34: 41 | BX34: 0
A35: 3 | B35: =IF(A35>$A$8,"",OFFSET(InputPriceData!B$15,$A35+$A$11,0,1,1)) -> 2023-07-11 | C35: =IF(A35>$A$8,"",OFFSET(InputPriceData!G$15,CalculationsAndCharts!$A35+$A$11,IF($C$5,8,0),1,1)) -> 4840950000 | D35: =IF(A35>$A$8,"",OFFSET(InputPriceData!C$15,CalculationsAndCharts!$A35+$A$11,IF($C$5,8,0),1,1)) -> 15068.12988 | E35: =IF(A35>$A$8,"",OFFSET(InputPriceData!D$15,CalculationsAndCharts!$A35+$A$11,IF($C$5,8,0),1,1)) -> 15135.29004 | F35: =IF(A35>$A$8,"",OFFSET(InputPriceData!E$15,CalculationsAndCharts!$A35+$A$11,IF($C$5,8,0),1,1)) -> 14974.16016 | G35: =IF(A35>$A$8,"",OFFSET(InputPriceData!F$15,CalculationsAndCharts!$A35+$A$11,IF($C$5,8,0),1,1)) -> 15119.05957 | H35: 0.3333333333 | J35: 460.5551523 | K35: 17.71365971 | L35: =IF(A35>$L$30,NA(),IF(A35=$L$30,AVERAGE(OFFSET(K35,0,0,$A$18,1)),$C$18*(K35-L36)+L36)) -> 21.76646654 | M35: 2176.646654 | N35: 167.434358 | P35: =IF(A35>$J$30,NA(),(L35*$I$33)-SUMPRODUCT(OFFSET(L36,0,0,$A$17,1),OFFSET($H$33,0,0,$A$17,1))) -> -59.21732078 | Q35: =IF(A35>$J$30,NA(),P35/$A$17) -> -2.277589261 | R35: =IF(A35>$J$30,NA(),Q35*100) -> -227.7589261 | BC35: 4840950000
A36: 4 | B36: =IF(A36>$A$8,"",OFFSET(InputPriceData!B$15,$A36+$A$11,0,1,1)) -> 2023-07-10 | C36: =IF(A36>$A$8,"",OFFSET(InputPriceData!G$15,CalculationsAndCharts!$A36+$A$11,IF($C$5,8,0),1,1)) -> 5275390000 | D36: =IF(A36>$A$8,"",OFFSET(InputPriceData!C$15,CalculationsAndCharts!$A36+$A$11,IF($C$5,8,0),1,1)) -> 15031.95019 | E36: =IF(A36>$A$8,"",OFFSET(InputPriceData!D$15,CalculationsAndCharts!$A36+$A$11,IF($C$5,8,0),1,1)) -> 15066.44043 | F36: =IF(A36>$A$8,"",OFFSET(InputPriceData!E$15,CalculationsAndCharts!$A36+$A$11,IF($C$5,8,0),1,1)) -> 14924.63965 | G36: =IF(A36>$A$8,"",OFFSET(InputPriceData!F$15,CalculationsAndCharts!$A36+$A$11,IF($C$5,8,0),1,1)) -> 15045.63965 | H36: 0.25 | J36: 199.5980168 | K36: 7.6768468 | L36: =IF(A36>$L$30,NA(),IF(A36=$L$30,AVERAGE(OFFSET(K36,0,0,$A$18,1)),$C$18*(K36-L37)+L37)) -> 22.77966825 | M36: 2277.966825 | N36: 175.2282173 | P36: =IF(A36>$J$30,NA(),(L36*$I$33)-SUMPRODUCT(OFFSET(L37,0,0,$A$17,1),OFFSET($H$33,0,0,$A$17,1))) -> -65.51600579 | Q36: =IF(A36>$J$30,NA(),P36/$A$17) -> -2.519846377 | R36: =IF(A36>$J$30,NA(),Q36*100) -> -251.9846377 | BC36: 5275390000
A37: 5 | B37: =IF(A37>$A$8,"",OFFSET(InputPriceData!B$15,$A37+$A$11,0,1,1)) -> 2023-07-07 | C37: =IF(A37>$A$8,"",OFFSET(InputPriceData!G$15,CalculationsAndCharts!$A37+$A$11,IF($C$5,8,0),1,1)) -> 5098120000 | D37: =IF(A37>$A$8,"",OFFSET(InputPriceData!C$15,CalculationsAndCharts!$A37+$A$11,IF($C$5,8,0),1,1)) -> 15070.5 | E37: =IF(A37>$A$8,"",OFFSET(InputPriceData!D$15,CalculationsAndCharts!$A37+$A$11,IF($C$5,8,0),1,1)) -> 15210.62988 | F37: =IF(A37>$A$8,"",OFFSET(InputPriceData!E$15,CalculationsAndCharts!$A37+$A$11,IF($C$5,8,0),1,1)) -> 15032.55957 | G37: =IF(A37>$A$8,"",OFFSET(InputPriceData!F$15,CalculationsAndCharts!$A37+$A$11,IF($C$5,8,0),1,1)) -> 15036.84961 | H37: 0.2 | J37: 140.6695847 | K37: 5.410368643 | L37: =IF(A37>$L$30,NA(),IF(A37=$L$30,AVERAGE(OFFSET(K37,0,0,$A$18,1)),$C$18*(K37-L38)+L38)) -> 26.55537361 | M37: 2655.537361 | N37: 204.2721047 | P37: =IF(A37>$J$30,NA(),(L37*$I$33)-SUMPRODUCT(OFFSET(L38,0,0,$A$17,1),OFFSET($H$33,0,0,$A$17,1))) -> -60.99711612 | Q37: =IF(A37>$J$30,NA(),P37/$A$17) -> -2.346042928 | R37: =IF(A37>$J$30,NA(),Q37*100) -> -234.6042928 | BD37: 5098120000
A38: 6 | B38: =IF(A38>$A$8,"",OFFSET(InputPriceData!B$15,$A38+$A$11,0,1,1)) -> 2023-07-06 | C38: =IF(A38>$A$8,"",OFFSET(InputPriceData!G$15,CalculationsAndCharts!$A38+$A$11,IF($C$5,8,0),1,1)) -> 6113080000 | D38: =IF(A38>$A$8,"",OFFSET(InputPriceData!C$15,CalculationsAndCharts!$A38+$A$11,IF($C$5,8,0),1,1)) -> 15054.09961 | E38: =IF(A38>$A$8,"",OFFSET(InputPriceData!D$15,CalculationsAndCharts!$A38+$A$11,IF($C$5,8,0),1,1)) -> 15106.45019 | F38: =IF(A38>$A$8,"",OFFSET(InputPriceData!E$15,CalculationsAndCharts!$A38+$A$11,IF($C$5,8,0),1,1)) -> 14969.13965 | G38: =IF(A38>$A$8,"",OFFSET(InputPriceData!F$15,CalculationsAndCharts!$A38+$A$11,IF($C$5,8,0),1,1)) -> 15089.45019 | H38: 0.1666666667 | J38: 331.6370798 | K38: 12.7552723 | L38: =IF(A38>$L$30,NA(),IF(A38=$L$30,AVERAGE(OFFSET(K38,0,0,$A$18,1)),$C$18*(K38-L39)+L39)) -> 31.84162485 | M38: 3184.162485 | N38: 244.9355758 | P38: =IF(A38>$J$30,NA(),(L38*$I$33)-SUMPRODUCT(OFFSET(L39,0,0,$A$17,1),OFFSET($H$33,0,0,$A$17,1))) -> -47.64270346 | Q38: =IF(A38>$J$30,NA(),P38/$A$17) -> -1.832411672 | R38: =IF(A38>$J$30,NA(),Q38*100) -> -183.2411672 | BD38: 6113080000
A39: 7 | B39: =IF(A39>$A$8,"",OFFSET(InputPriceData!B$15,$A39+$A$11,0,1,1)) -> 2023-07-05 | C39: =IF(A39>$A$8,"",OFFSET(InputPriceData!G$15,CalculationsAndCharts!$A39+$A$11,IF($C$5,8,0),1,1)) -> 5339340000 | D39: =IF(A39>$A$8,"",OFFSET(InputPriceData!C$15,CalculationsAndCharts!$A39+$A$11,IF($C$5,8,0),1,1)) -> 15165.36035 | E39: =IF(A39>$A$8,"",OFFSET(InputPriceData!D$15,CalculationsAndCharts!$A39+$A$11,IF($C$5,8,0),1,1)) -> 15275.17969 | F39: =IF(A39>$A$8,"",OFFSET(InputPriceData!E$15,CalculationsAndCharts!$A39+$A$11,IF($C$5,8,0),1,1)) -> 15162.66016 | G39: =IF(A39>$A$8,"",OFFSET(InputPriceData!F$15,CalculationsAndCharts!$A39+$A$11,IF($C$5,8,0),1,1)) -> 15203.78027 | H39: 0.1428571429 | J39: 913.6538328 | K39: 35.14053203 | L39: =IF(A39>$L$30,NA(),IF(A39=$L$30,AVERAGE(OFFSET(K39,0,0,$A$18,1)),$C$18*(K39-L40)+L40)) -> 36.61321299 | M39: 3661.321299 | N39: 281.6400999 | P39: =IF(A39>$J$30,NA(),(L39*$I$33)-SUMPRODUCT(OFFSET(L40,0,0,$A$17,1),OFFSET($H$33,0,0,$A$17,1))) -> -31.17070961 | Q39: =IF(A39>$J$30,NA(),P39/$A$17) -> -1.198873446 | R39: =IF(A39>$J$30,NA(),Q39*100) -> -119.8873446 | BD39: 5339340000
A40: 8 | B40: =IF(A40>$A$8,"",OFFSET(InputPriceData!B$15,$A40+$A$11,0,1,1)) -> 2023-07-03 | C40: =IF(A40>$A$8,"",OFFSET(InputPriceData!G$15,CalculationsAndCharts!$A40+$A$11,IF($C$5,8,0),1,1)) -> 2902300000 | D40: =IF(A40>$A$8,"",OFFSET(InputPriceData!C$15,CalculationsAndCharts!$A40+$A$11,IF($C$5,8,0),1,1)) -> 15190.54004 | E40: =IF(A40>$A$8,"",OFFSET(InputPriceData!D$15,CalculationsAndCharts!$A40+$A$11,IF($C$5,8,0),1,1)) -> 15232.95996 | F40: =IF(A40>$A$8,"",OFFSET(InputPriceData!E$15,CalculationsAndCharts!$A40+$A$11,IF($C$5,8,0),1,1)) -> 15153.59961 | G40: =IF(A40>$A$8,"",OFFSET(InputPriceData!F$15,CalculationsAndCharts!$A40+$A$11,IF($C$5,8,0),1,1)) -> 15208.69043 | H40: 0.125 | J40: 1149.956749 | K40: 44.22910572 | L40: =IF(A40>$L$30,NA(),IF(A40=$L$30,AVERAGE(OFFSET(K40,0,0,$A$18,1)),$C$18*(K40-L41)+L41)) -> 36.98138323 | M40: 3698.138323 | N40: 284.4721787 | P40: =IF(A40>$J$30,NA(),(L40*$I$33)-SUMPRODUCT(OFFSET(L41,0,0,$A$17,1),OFFSET($H$33,0,0,$A$17,1))) -> -30.34678812 | Q40: =IF(A40>$J$30,NA(),P40/$A$17) -> -1.167184158 | R40: =IF(A40>$J$30,NA(),Q40*100) -> -116.7184158 | BC40: =IF(G40>=G41,C40,NA()) -> 2902300000 | BD40: =IF(G40<G41,C40,NA()) -> 
A41: 9 | B41: =IF(A41>$A$8,"",OFFSET(InputPriceData!B$15,$A41+$A$11,0,1,1)) -> 2023-06-30 | C41: =IF(A41>$A$8,"",OFFSET(InputPriceData!G$15,CalculationsAndCharts!$A41+$A$11,IF($C$5,8,0),1,1)) -> 4661120000 | D41: =IF(A41>$A$8,"",OFFSET(InputPriceData!C$15,CalculationsAndCharts!$A41+$A$11,IF($C$5,8,0),1,1)) -> 15085.24023 | E41: =IF(A41>$A$8,"",OFFSET(InputPriceData!D$15,CalculationsAndCharts!$A41+$A$11,IF($C$5,8,0),1,1)) -> 15213.75 | F41: =IF(A41>$A$8,"",OFFSET(InputPriceData!E$15,CalculationsAndCharts!$A41+$A$11,IF($C$5,8,0),1,1)) -> 15081.57031 | G41: =IF(A41>$A$8,"",OFFSET(InputPriceData!F$15,CalculationsAndCharts!$A41+$A$11,IF($C$5,8,0),1,1)) -> 15179.20996 | H41: 0.1111111111 | J41: 1346.035595 | K41: 51.77059981 | L41: =IF(A41>$L$30,NA(),IF(A41=$L$30,AVERAGE(OFFSET(K41,0,0,$A$18,1)),$C$18*(K41-L42)+L42)) -> 35.16945261 | M41: 3516.945261 | N41: 270.5342508 | P41: =IF(A41>$J$30,NA(),(L41*$I$33)-SUMPRODUCT(OFFSET(L42,0,0,$A$17,1),OFFSET($H$33,0,0,$A$17,1))) -> -39.24491505 | Q41: =IF(A41>$J$30,NA(),P41/$A$17) -> -1.509419809 | R41: =IF(A41>$J$30,NA(),Q41*100) -> -150.9419809 | BC41: 4661120000
A42: 10 | B42: =IF(A42>$A$8,"",OFFSET(InputPriceData!B$15,$A42+$A$11,0,1,1)) -> 2023-06-29 | C42: =IF(A42>$A$8,"",OFFSET(InputPriceData!G$15,CalculationsAndCharts!$A42+$A$11,IF($C$5,8,0),1,1)) -> 4388140000 | D42: =IF(A42>$A$8,"",OFFSET(InputPriceData!C$15,CalculationsAndCharts!$A42+$A$11,IF($C$5,8,0),1,1)) -> 14965.54981 | E42: =IF(A42>$A$8,"",OFFSET(InputPriceData!D$15,CalculationsAndCharts!$A42+$A$11,IF($C$5,8,0),1,1)) -> 14986.88965 | F42: =IF(A42>$A$8,"",OFFSET(InputPriceData!E$15,CalculationsAndCharts!$A42+$A$11,IF($C$5,8,0),1,1)) -> 14876.94043 | G42: =IF(A42>$A$8,"",OFFSET(InputPriceData!F$15,CalculationsAndCharts!$A42+$A$11,IF($C$5,8,0),1,1)) -> 14939.95019 | H42: 0.1 | J42: 490.1060677 | K42: 18.85023337 | L42: =IF(A42>$L$30,NA(),IF(A42=$L$30,AVERAGE(OFFSET(K42,0,0,$A$18,1)),$C$18*(K42-L43)+L43)) -> 31.01916581 | M42: 3101.916581 | N42: 238.6089678 | P42: =IF(A42>$J$30,NA(),(L42*$I$33)-SUMPRODUCT(OFFSET(L43,0,0,$A$17,1),OFFSET($H$33,0,0,$A$17,1))) -> -64.36833925 | Q42: =IF(A42>$J$30,NA(),P42/$A$17) -> -2.475705356 | R42: =IF(A42>$J$30,NA(),Q42*100) -> -247.5705356 | BD42: 4388140000
A43: 11 | B43: =IF(A43>$A$8,"",OFFSET(InputPriceData!B$15,$A43+$A$11,0,1,1)) -> 2023-06-28 | C43: =IF(A43>$A$8,"",OFFSET(InputPriceData!G$15,CalculationsAndCharts!$A43+$A$11,IF($C$5,8,0),1,1)) -> 4533270000 | D43: =IF(A43>$A$8,"",OFFSET(InputPriceData!C$15,CalculationsAndCharts!$A43+$A$11,IF($C$5,8,0),1,1)) -> 14876.25 | E43: =IF(A43>$A$8,"",OFFSET(InputPriceData!D$15,CalculationsAndCharts!$A43+$A$11,IF($C$5,8,0),1,1)) -> 15051.08008 | F43: =IF(A43>$A$8,"",OFFSET(InputPriceData!E$15,CalculationsAndCharts!$A43+$A$11,IF($C$5,8,0),1,1)) -> 14865.80957 | G43: =IF(A43>$A$8,"",OFFSET(InputPriceData!F$15,CalculationsAndCharts!$A43+$A$11,IF($C$5,8,0),1,1)) -> 14964.57031 | H43: 0.09090909091 | J43: 711.9249395 | K43: 27.38172844 | L43: =IF(A43>$L$30,NA(),IF(A43=$L$30,AVERAGE(OFFSET(K43,0,0,$A$18,1)),$C$18*(K43-L44)+L44)) -> 34.06139892 | M43: 3406.139892 | N43: 262.0107609 | P43: =IF(A43>$J$30,NA(),(L43*$I$33)-SUMPRODUCT(OFFSET(L44,0,0,$A$17,1),OFFSET($H$33,0,0,$A$17,1))) -> -61.23151501 | Q43: =IF(A43>$J$30,NA(),P43/$A$17) -> -2.35505827 | R43: =IF(A43>$J$30,NA(),Q43*100) -> -235.505827 | BC43: 4533270000
A44: 12 | B44: =IF(A44>$A$8,"",OFFSET(InputPriceData!B$15,$A44+$A$11,0,1,1)) -> 2023-06-27 | C44: =IF(A44>$A$8,"",OFFSET(InputPriceData!G$15,CalculationsAndCharts!$A44+$A$11,IF($C$5,8,0),1,1)) -> 5053660000 | D44: =IF(A44>$A$8,"",OFFSET(InputPriceData!C$15,CalculationsAndCharts!$A44+$A$11,IF($C$5,8,0),1,1)) -> 14751.57031 | E44: =IF(A44>$A$8,"",OFFSET(InputPriceData!D$15,CalculationsAndCharts!$A44+$A$11,IF($C$5,8,0),1,1)) -> 14972.30957 | F44: =IF(A44>$A$8,"",OFFSET(InputPriceData!E$15,CalculationsAndCharts!$A44+$A$11,IF($C$5,8,0),1,1)) -> 14726.75 | G44: =IF(A44>$A$8,"",OFFSET(InputPriceData!F$15,CalculationsAndCharts!$A44+$A$11,IF($C$5,8,0),1,1)) -> 14945.91016 | H44: 0.08333333333 | J44: 837.6624523 | K44: 32.21778663 | L44: =IF(A44>$L$30,NA(),IF(A44=$L$30,AVERAGE(OFFSET(K44,0,0,$A$18,1)),$C$18*(K44-L45)+L45)) -> 35.73131653 | M44: 3573.131653 | N44: 274.856281 | P44: =IF(A44>$J$30,NA(),(L44*$I$33)-SUMPRODUCT(OFFSET(L45,0,0,$A$17,1),OFFSET($H$33,0,0,$A$17,1))) -> -65.04111768 | Q44: =IF(A44>$J$30,NA(),P44/$A$17) -> -2.501581449 | R44: =IF(A44>$J$30,NA(),Q44*100) -> -250.1581449 | BC44: 5053660000
A45: 13 | B45: =IF(A45>$A$8,"",OFFSET(InputPriceData!B$15,$A45+$A$11,0,1,1)) -> 2023-06-26 | C45: =IF(A45>$A$8,"",OFFSET(InputPriceData!G$15,CalculationsAndCharts!$A45+$A$11,IF($C$5,8,0),1,1)) -> 4430600000 | D45: =IF(A45>$A$8,"",OFFSET(InputPriceData!C$15,CalculationsAndCharts!$A45+$A$11,IF($C$5,8,0),1,1)) -> 14866.66016 | E45: =IF(A45>$A$8,"",OFFSET(InputPriceData!D$15,CalculationsAndCharts!$A45+$A$11,IF($C$5,8,0),1,1)) -> 14982.82031 | F45: =IF(A45>$A$8,"",OFFSET(InputPriceData!E$15,CalculationsAndCharts!$A45+$A$11,IF($C$5,8,0),1,1)) -> 14687.01953 | G45: =IF(A45>$A$8,"",OFFSET(InputPriceData!F$15,CalculationsAndCharts!$A45+$A$11,IF($C$5,8,0),1,1)) -> 14689.01953 | H45: 0.07692307692 | J45: -316.6666707 | K45: -12.17948733 | L45: =IF(A45>$L$30,NA(),IF(A45=$L$30,AVERAGE(OFFSET(K45,0,0,$A$18,1)),$C$18*(K45-L46)+L46)) -> 36.60969901 | M45: 3660.969901 | N45: 281.6130693 | P45: =IF(A45>$J$30,NA(),(L45*$I$33)-SUMPRODUCT(OFFSET(L46,0,0,$A$17,1),OFFSET($H$33,0,0,$A$17,1))) -> -78.63133455 | Q45: =IF(A45>$J$30,NA(),P45/$A$17) -> -3.024282098 | R45: =IF(A45>$J$30,NA(),Q45*100) -> -302.4282098 | BC45: =IF(G45>=G46,C45,NA()) ->  | BD45: =IF(G45<G46,C45,NA()) -> 4430600000
A46: 14 | B46: =IF(A46>$A$8,"",OFFSET(InputPriceData!B$15,$A46+$A$11,0,1,1)) -> 2023-06-23 | C46: =IF(A46>$A$8,"",OFFSET(InputPriceData!G$15,CalculationsAndCharts!$A46+$A$11,IF($C$5,8,0),1,1)) -> 7734500000 | D46: =IF(A46>$A$8,"",OFFSET(InputPriceData!C$15,CalculationsAndCharts!$A46+$A$11,IF($C$5,8,0),1,1)) -> 14879.23047 | E46: =IF(A46>$A$8,"",OFFSET(InputPriceData!D$15,CalculationsAndCharts!$A46+$A$11,IF($C$5,8,0),1,1)) -> 14983.73047 | F46: =IF(A46>$A$8,"",OFFSET(InputPriceData!E$15,CalculationsAndCharts!$A46+$A$11,IF($C$5,8,0),1,1)) -> 14821.80957 | G46: =IF(A46>$A$8,"",OFFSET(InputPriceData!F$15,CalculationsAndCharts!$A46+$A$11,IF($C$5,8,0),1,1)) -> 14891.48047 | H46: 0.07142857143 | J46: 454.4635803 | K46: 17.47936847 | L46: =IF(A46>$L$30,NA(),IF(A46=$L$30,AVERAGE(OFFSET(K46,0,0,$A$18,1)),$C$18*(K46-L47)+L47)) -> 48.8069956 | M46: 4880.69956 | N46: 375.4384277 | P46: =IF(A46>$J$30,NA(),(L46*$I$33)-SUMPRODUCT(OFFSET(L47,0,0,$A$17,1),OFFSET($H$33,0,0,$A$17,1))) -> -41.18673215 | Q46: =IF(A46>$J$30,NA(),P46/$A$17) -> -1.584105083 | R46: =IF(A46>$J$30,NA(),Q46*100) -> -158.4105083 | BD46: 7734500000
A47: 15 | B47: =IF(A47>$A$8,"",OFFSET(InputPriceData!B$15,$A47+$A$11,0,1,1)) -> 2023-06-22 | C47: =IF(A47>$A$8,"",OFFSET(InputPriceData!G$15,CalculationsAndCharts!$A47+$A$11,IF($C$5,8,0),1,1)) -> 4499550000 | D47: =IF(A47>$A$8,"",OFFSET(InputPriceData!C$15,CalculationsAndCharts!$A47+$A$11,IF($C$5,8,0),1,1)) -> 14797.88965 | E47: =IF(A47>$A$8,"",OFFSET(InputPriceData!D$15,CalculationsAndCharts!$A47+$A$11,IF($C$5,8,0),1,1)) -> 15044.21973 | F47: =IF(A47>$A$8,"",OFFSET(InputPriceData!E$15,CalculationsAndCharts!$A47+$A$11,IF($C$5,8,0),1,1)) -> 14794.95019 | G47: =IF(A47>$A$8,"",OFFSET(InputPriceData!F$15,CalculationsAndCharts!$A47+$A$11,IF($C$5,8,0),1,1)) -> 15042.32031 | H47: 0.06666666667 | J47: 1242.941484 | K47: 47.8054417 | L47: =IF(A47>$L$30,NA(),IF(A47=$L$30,AVERAGE(OFFSET(K47,0,0,$A$18,1)),$C$18*(K47-L48)+L48)) -> 56.63890238 | M47: 5663.890238 | N47: 435.6838645 | P47: =IF(A47>$J$30,NA(),(L47*$I$33)-SUMPRODUCT(OFFSET(L48,0,0,$A$17,1),OFFSET($H$33,0,0,$A$17,1))) -> -15.33589132 | Q47: =IF(A47>$J$30,NA(),P47/$A$17) -> -0.5898419738 | R47: =IF(A47>$J$30,NA(),Q47*100) -> -58.98419738 | BC47: 4499550000
A48: 16 | B48: =IF(A48>$A$8,"",OFFSET(InputPriceData!B$15,$A48+$A$11,0,1,1)) -> 2023-06-21 | C48: =IF(A48>$A$8,"",OFFSET(InputPriceData!G$15,CalculationsAndCharts!$A48+$A$11,IF($C$5,8,0),1,1)) -> 5194640000 | D48: =IF(A48>$A$8,"",OFFSET(InputPriceData!C$15,CalculationsAndCharts!$A48+$A$11,IF($C$5,8,0),1,1)) -> 15019.00977 | E48: =IF(A48>$A$8,"",OFFSET(InputPriceData!D$15,CalculationsAndCharts!$A48+$A$11,IF($C$5,8,0),1,1)) -> 15038.90039 | F48: =IF(A48>$A$8,"",OFFSET(InputPriceData!E$15,CalculationsAndCharts!$A48+$A$11,IF($C$5,8,0),1,1)) -> 14826.01953 | G48: =IF(A48>$A$8,"",OFFSET(InputPriceData!F$15,CalculationsAndCharts!$A48+$A$11,IF($C$5,8,0),1,1)) -> 14867.45019 | H48: 0.0625 | J48: 515.6332186 | K48: 19.83204687 | L48: =IF(A48>$L$30,NA(),IF(A48=$L$30,AVERAGE(OFFSET(K48,0,0,$A$18,1)),$C$18*(K48-L49)+L49)) -> 58.84726755 | M48: 5884.726755 | N48: 452.6712888 | P48: =IF(A48>$J$30,NA(),(L48*$I$33)-SUMPRODUCT(OFFSET(L49,0,0,$A$17,1),OFFSET($H$33,0,0,$A$17,1))) -> -13.81390487 | Q48: =IF(A48>$J$30,NA(),P48/$A$17) -> -0.5313040336 | R48: =IF(A48>$J$30,NA(),Q48*100) -> -53.13040336 | BD48: 5194640000
A49: 17 | B49: =IF(A49>$A$8,"",OFFSET(InputPriceData!B$15,$A49+$A$11,0,1,1)) -> 2023-06-20 | C49: =IF(A49>$A$8,"",OFFSET(InputPriceData!G$15,CalculationsAndCharts!$A49+$A$11,IF($C$5,8,0),1,1)) -> 5237710000 | D49: =IF(A49>$A$8,"",OFFSET(InputPriceData!C$15,CalculationsAndCharts!$A49+$A$11,IF($C$5,8,0),1,1)) -> 15036.48047 | E49: =IF(A49>$A$8,"",OFFSET(InputPriceData!D$15,CalculationsAndCharts!$A49+$A$11,IF($C$5,8,0),1,1)) -> 15127.41992 | F49: =IF(A49>$A$8,"",OFFSET(InputPriceData!E$15,CalculationsAndCharts!$A49+$A$11,IF($C$5,8,0),1,1)) -> 14946.71973 | G49: =IF(A49>$A$8,"",OFFSET(InputPriceData!F$15,CalculationsAndCharts!$A49+$A$11,IF($C$5,8,0),1,1)) -> 15070.15039 | H49: 0.05882352941 | J49: 1455.547044 | K49: 55.98257863 | L49: =IF(A49>$L$30,NA(),IF(A49=$L$30,AVERAGE(OFFSET(K49,0,0,$A$18,1)),$C$18*(K49-L50)+L50)) -> 68.60107272 | M49: 6860.107272 | N49: 527.7005594 | P49: =IF(A49>$J$30,NA(),(L49*$I$33)-SUMPRODUCT(OFFSET(L50,0,0,$A$17,1),OFFSET($H$33,0,0,$A$17,1))) -> 25.61126519 | Q49: =IF(A49>$J$30,NA(),P49/$A$17) -> 0.985048661 | R49: =IF(A49>$J$30,NA(),Q49*100) -> 98.5048661 | BD49: 5237710000
A50: 18 | B50: =IF(A50>$A$8,"",OFFSET(InputPriceData!B$15,$A50+$A$11,0,1,1)) -> 2023-06-16 | C50: =IF(A50>$A$8,"",OFFSET(InputPriceData!G$15,CalculationsAndCharts!$A50+$A$11,IF($C$5,8,0),1,1)) -> 8076530000 | D50: =IF(A50>$A$8,"",OFFSET(InputPriceData!C$15,CalculationsAndCharts!$A50+$A$11,IF($C$5,8,0),1,1)) -> 15272.65039 | E50: =IF(A50>$A$8,"",OFFSET(InputPriceData!D$15,CalculationsAndCharts!$A50+$A$11,IF($C$5,8,0),1,1)) -> 15284.65039 | F50: =IF(A50>$A$8,"",OFFSET(InputPriceData!E$15,CalculationsAndCharts!$A50+$A$11,IF($C$5,8,0),1,1)) -> 15073.45019 | G50: =IF(A50>$A$8,"",OFFSET(InputPriceData!F$15,CalculationsAndCharts!$A50+$A$11,IF($C$5,8,0),1,1)) -> 15083.91992 | H50: 0.05555555556 | J50: 1690.424243 | K50: 65.01631705 | L50: =IF(A50>$L$30,NA(),IF(A50=$L$30,AVERAGE(OFFSET(K50,0,0,$A$18,1)),$C$18*(K50-L51)+L51)) -> 71.75569624 | M50: 7175.569624 | N50: 551.9668942 | P50: =IF(A50>$J$30,NA(),(L50*$I$33)-SUMPRODUCT(OFFSET(L51,0,0,$A$17,1),OFFSET($H$33,0,0,$A$17,1))) -> 43.65860669 | Q50: =IF(A50>$J$30,NA(),P50/$A$17) -> 1.67917718 | R50: =IF(A50>$J$30,NA(),Q50*100) -> 167.917718 | BD50: 8076530000
A51: 19 | B51: =IF(A51>$A$8,"",OFFSET(InputPriceData!B$15,$A51+$A$11,0,1,1)) -> 2023-06-15 | C51: =IF(A51>$A$8,"",OFFSET(InputPriceData!G$15,CalculationsAndCharts!$A51+$A$11,IF($C$5,8,0),1,1)) -> 5667520000 | D51: =IF(A51>$A$8,"",OFFSET(InputPriceData!C$15,CalculationsAndCharts!$A51+$A$11,IF($C$5,8,0),1,1)) -> 14949.70019 | E51: =IF(A51>$A$8,"",OFFSET(InputPriceData!D$15,CalculationsAndCharts!$A51+$A$11,IF($C$5,8,0),1,1)) -> 15246.62012 | F51: =IF(A51>$A$8,"",OFFSET(InputPriceData!E$15,CalculationsAndCharts!$A51+$A$11,IF($C$5,8,0),1,1)) -> 14930.12012 | G51: =IF(A51>$A$8,"",OFFSET(InputPriceData!F$15,CalculationsAndCharts!$A51+$A$11,IF($C$5,8,0),1,1)) -> 15185.48047 | H51: 0.05263157895 | J51: 2507.57044 | K51: 96.44501692 | L51: =IF(A51>$L$30,NA(),IF(A51=$L$30,AVERAGE(OFFSET(K51,0,0,$A$18,1)),$C$18*(K51-L52)+L52)) -> 73.44054104 | M51: 7344.054104 | N51: 564.9272388 | P51: =IF(A51>$J$30,NA(),(L51*$I$33)-SUMPRODUCT(OFFSET(L52,0,0,$A$17,1),OFFSET($H$33,0,0,$A$17,1))) -> 61.92785281 | Q51: =IF(A51>$J$30,NA(),P51/$A$17) -> 2.381840493 | R51: =IF(A51>$J$30,NA(),Q51*100) -> 238.1840493 | BC51: 5667520000
A52: 20 | B52: =IF(A52>$A$8,"",OFFSET(InputPriceData!B$15,$A52+$A$11,0,1,1)) -> 2023-06-14 | C52: =IF(A52>$A$8,"",OFFSET(InputPriceData!G$15,CalculationsAndCharts!$A52+$A$11,IF($C$5,8,0),1,1)) -> 5772550000 | D52: =IF(A52>$A$8,"",OFFSET(InputPriceData!C$15,CalculationsAndCharts!$A52+$A$11,IF($C$5,8,0),1,1)) -> 14894.09961 | E52: =IF(A52>$A$8,"",OFFSET(InputPriceData!D$15,CalculationsAndCharts!$A52+$A$11,IF($C$5,8,0),1,1)) -> 15017.09961 | F52: =IF(A52>$A$8,"",OFFSET(InputPriceData!E$15,CalculationsAndCharts!$A52+$A$11,IF($C$5,8,0),1,1)) -> 14784.62012 | G52: =IF(A52>$A$8,"",OFFSET(InputPriceData!F$15,CalculationsAndCharts!$A52+$A$11,IF($C$5,8,0),1,1)) -> 15005.69043 | H52: 0.05 | J52: 2159.081984 | K52: 83.04161476 | L52: =IF(A52>$L$30,NA(),IF(A52=$L$30,AVERAGE(OFFSET(K52,0,0,$A$18,1)),$C$18*(K52-L53)+L53)) -> 67.68942207 | M52: 6768.942207 | N52: 520.6878621 | P52: =IF(A52>$J$30,NA(),(L52*$I$33)-SUMPRODUCT(OFFSET(L53,0,0,$A$17,1),OFFSET($H$33,0,0,$A$17,1))) -> 48.672337 | Q52: =IF(A52>$J$30,NA(),P52/$A$17) -> 1.872012962 | R52: =IF(A52>$J$30,NA(),Q52*100) -> 187.2012962 | BC52: 5772550000
A53: 21 | B53: =IF(A53>$A$8,"",OFFSET(InputPriceData!B$15,$A53+$A$11,0,1,1)) -> 2023-06-13 | C53: =IF(A53>$A$8,"",OFFSET(InputPriceData!G$15,CalculationsAndCharts!$A53+$A$11,IF($C$5,8,0),1,1)) -> 5522100000 | D53: =IF(A53>$A$8,"",OFFSET(InputPriceData!C$15,CalculationsAndCharts!$A53+$A$11,IF($C$5,8,0),1,1)) -> 14911.25977 | E53: =IF(A53>$A$8,"",OFFSET(InputPriceData!D$15,CalculationsAndCharts!$A53+$A$11,IF($C$5,8,0),1,1)) -> 14931.83008 | F53: =IF(A53>$A$8,"",OFFSET(InputPriceData!E$15,CalculationsAndCharts!$A53+$A$11,IF($C$5,8,0),1,1)) -> 14770.13965 | G53: =IF(A53>$A$8,"",OFFSET(InputPriceData!F$15,CalculationsAndCharts!$A53+$A$11,IF($C$5,8,0),1,1)) -> 14900.84961 | H53: 0.04761904762 | J53: 2108.876028 | K53: 81.11061645 | L53: =IF(A53>$L$30,NA(),IF(A53=$L$30,AVERAGE(OFFSET(K53,0,0,$A$18,1)),$C$18*(K53-L54)+L54)) -> 63.8513739 | M53: 6385.13739 | N53: 491.1644146 | P53: =IF(A53>$J$30,NA(),(L53*$I$33)-SUMPRODUCT(OFFSET(L54,0,0,$A$17,1),OFFSET($H$33,0,0,$A$17,1))) -> 41.80284371 | Q53: =IF(A53>$J$30,NA(),P53/$A$17) -> 1.607801681 | R53: =IF(A53>$J$30,NA(),Q53*100) -> 160.7801681 | BC53: 5522100000
A54: 22 | B54: =IF(A54>$A$8,"",OFFSET(InputPriceData!B$15,$A54+$A$11,0,1,1)) -> 2023-06-12 | C54: =IF(A54>$A$8,"",OFFSET(InputPriceData!G$15,CalculationsAndCharts!$A54+$A$11,IF($C$5,8,0),1,1)) -> 4722680000 | D54: =IF(A54>$A$8,"",OFFSET(InputPriceData!C$15,CalculationsAndCharts!$A54+$A$11,IF($C$5,8,0),1,1)) -> 14617.34961 | E54: =IF(A54>$A$8,"",OFFSET(InputPriceData!D$15,CalculationsAndCharts!$A54+$A$11,IF($C$5,8,0),1,1)) -> 14789.59961 | F54: =IF(A54>$A$8,"",OFFSET(InputPriceData!E$15,CalculationsAndCharts!$A54+$A$11,IF($C$5,8,0),1,1)) -> 14571.36035 | G54: =IF(A54>$A$8,"",OFFSET(InputPriceData!F$15,CalculationsAndCharts!$A54+$A$11,IF($C$5,8,0),1,1)) -> 14784.29981 | H54: 0.04545454545 | J54: 2054.78331 | K54: 79.03012729 | L54: =IF(A54>$L$30,NA(),IF(A54=$L$30,AVERAGE(OFFSET(K54,0,0,$A$18,1)),$C$18*(K54-L55)+L55)) -> 59.53656326 | M54: 5953.656326 | N54: 457.9735635 | P54: =IF(A54>$J$30,NA(),(L54*$I$33)-SUMPRODUCT(OFFSET(L55,0,0,$A$17,1),OFFSET($H$33,0,0,$A$17,1))) -> 30.87517212 | Q54: =IF(A54>$J$30,NA(),P54/$A$17) -> 1.18750662 | R54: =IF(A54>$J$30,NA(),Q54*100) -> 118.750662 | BC54: 4722680000
A55: 23 | B55: =IF(A55>$A$8,"",OFFSET(InputPriceData!B$15,$A55+$A$11,0,1,1)) -> 2023-06-09 | C55: =IF(A55>$A$8,"",OFFSET(InputPriceData!G$15,CalculationsAndCharts!$A55+$A$11,IF($C$5,8,0),1,1)) -> 4412710000 | D55: =IF(A55>$A$8,"",OFFSET(InputPriceData!C$15,CalculationsAndCharts!$A55+$A$11,IF($C$5,8,0),1,1)) -> 14574.24023 | E55: =IF(A55>$A$8,"",OFFSET(InputPriceData!D$15,CalculationsAndCharts!$A55+$A$11,IF($C$5,8,0),1,1)) -> 14672.84961 | F55: =IF(A55>$A$8,"",OFFSET(InputPriceData!E$15,CalculationsAndCharts!$A55+$A$11,IF($C$5,8,0),1,1)) -> 14487.48047 | G55: =IF(A55>$A$8,"",OFFSET(InputPriceData!F$15,CalculationsAndCharts!$A55+$A$11,IF($C$5,8,0),1,1)) -> 14528.36035 | H55: 0.04347826087 | J55: 1248.74615 | K55: 48.02869808 | L55: =IF(A55>$L$30,NA(),IF(A55=$L$30,AVERAGE(OFFSET(K55,0,0,$A$18,1)),$C$18*(K55-L56)+L56)) -> 54.66317225 | M55: 5466.317225 | N55: 420.4859404 | P55: =IF(A55>$J$30,NA(),(L55*$I$33)-SUMPRODUCT(OFFSET(L56,0,0,$A$17,1),OFFSET($H$33,0,0,$A$17,1))) -> 11.2659072 | Q55: =IF(A55>$J$30,NA(),P55/$A$17) -> 0.4333041232 | R55: =IF(A55>$J$30,NA(),Q55*100) -> 43.33041232 | BC55: 4412710000
A56: 24 | B56: =IF(A56>$A$8,"",OFFSET(InputPriceData!B$15,$A56+$A$11,0,1,1)) -> 2023-06-08 | C56: =IF(A56>$A$8,"",OFFSET(InputPriceData!G$15,CalculationsAndCharts!$A56+$A$11,IF($C$5,8,0),1,1)) -> 4280160000 | D56: =IF(A56>$A$8,"",OFFSET(InputPriceData!C$15,CalculationsAndCharts!$A56+$A$11,IF($C$5,8,0),1,1)) -> 14319.24023 | E56: =IF(A56>$A$8,"",OFFSET(InputPriceData!D$15,CalculationsAndCharts!$A56+$A$11,IF($C$5,8,0),1,1)) -> 14503.30957 | F56: =IF(A56>$A$8,"",OFFSET(InputPriceData!E$15,CalculationsAndCharts!$A56+$A$11,IF($C$5,8,0),1,1)) -> 14314.69043 | G56: =IF(A56>$A$8,"",OFFSET(InputPriceData!F$15,CalculationsAndCharts!$A56+$A$11,IF($C$5,8,0),1,1)) -> 14484.54004 | H56: 0.04166666667 | J56: 1276.932082 | K56: 49.11277239 | L56: =IF(A56>$L$30,NA(),IF(A56=$L$30,AVERAGE(OFFSET(K56,0,0,$A$18,1)),$C$18*(K56-L57)+L57)) -> 56.32179079 | M56: 5632.179079 | N56: 433.2445445 | P56: =IF(A56>$J$30,NA(),(L56*$I$33)-SUMPRODUCT(OFFSET(L57,0,0,$A$17,1),OFFSET($H$33,0,0,$A$17,1))) -> 16.34321624 | Q56: =IF(A56>$J$30,NA(),P56/$A$17) -> 0.6285852399 | R56: =IF(A56>$J$30,NA(),Q56*100) -> 62.85852399 | BC56: 4280160000
A57: 25 | B57: =IF(A57>$A$8,"",OFFSET(InputPriceData!B$15,$A57+$A$11,0,1,1)) -> 2023-06-07 | C57: =IF(A57>$A$8,"",OFFSET(InputPriceData!G$15,CalculationsAndCharts!$A57+$A$11,IF($C$5,8,0),1,1)) -> 5270600000 | D57: =IF(A57>$A$8,"",OFFSET(InputPriceData!C$15,CalculationsAndCharts!$A57+$A$11,IF($C$5,8,0),1,1)) -> 14573.26953 | E57: =IF(A57>$A$8,"",OFFSET(InputPriceData!D$15,CalculationsAndCharts!$A57+$A$11,IF($C$5,8,0),1,1)) -> 14647.91016 | F57: =IF(A57>$A$8,"",OFFSET(InputPriceData!E$15,CalculationsAndCharts!$A57+$A$11,IF($C$5,8,0),1,1)) -> 14283.87988 | G57: =IF(A57>$A$8,"",OFFSET(InputPriceData!F$15,CalculationsAndCharts!$A57+$A$11,IF($C$5,8,0),1,1)) -> 14303.29004 | H57: 0.04 | J57: 482.9084451 | K57: 18.57340173 | L57: =IF(A57>$L$30,NA(),IF(A57=$L$30,AVERAGE(OFFSET(K57,0,0,$A$18,1)),$C$18*(K57-L58)+L58)) -> 58.12404539 | M57: 5812.404539 | N57: 447.1080415 | P57: =IF(A57>$J$30,NA(),(L57*$I$33)-SUMPRODUCT(OFFSET(L58,0,0,$A$17,1),OFFSET($H$33,0,0,$A$17,1))) -> 19.42706234 | Q57: =IF(A57>$J$30,NA(),P57/$A$17) -> 0.7471947055 | R57: =IF(A57>$J$30,NA(),Q57*100) -> 74.71947055 | BD57: 5270600000
A58: 26 | B58: =IF(A58>$A$8,"",OFFSET(InputPriceData!B$15,$A58+$A$11,0,1,1)) -> 2023-06-06 | C58: =IF(A58>$A$8,"",OFFSET(InputPriceData!G$15,CalculationsAndCharts!$A58+$A$11,IF($C$5,8,0),1,1)) -> 4810910000 | D58: =IF(A58>$A$8,"",OFFSET(InputPriceData!C$15,CalculationsAndCharts!$A58+$A$11,IF($C$5,8,0),1,1)) -> 14526.09961 | E58: =IF(A58>$A$8,"",OFFSET(InputPriceData!D$15,CalculationsAndCharts!$A58+$A$11,IF($C$5,8,0),1,1)) -> 14593.5 | F58: =IF(A58>$A$8,"",OFFSET(InputPriceData!E$15,CalculationsAndCharts!$A58+$A$11,IF($C$5,8,0),1,1)) -> 14476.99023 | G58: =IF(A58>$A$8,"",OFFSET(InputPriceData!F$15,CalculationsAndCharts!$A58+$A$11,IF($C$5,8,0),1,1)) -> 14558.08984 | H58: 0.03846153846 | J58: 1654.037367 | K58: 63.61682181 | L58: =IF(A58>$L$30,NA(),IF(A58=$L$30,AVERAGE(OFFSET(K58,0,0,$A$18,1)),$C$18*(K58-L59)+L59)) -> 68.0117063 | M58: 6801.17063 | N58: 523.1669716 | P58: =IF(A58>$J$30,NA(),(L58*$I$33)-SUMPRODUCT(OFFSET(L59,0,0,$A$17,1),OFFSET($H$33,0,0,$A$17,1))) -> 64.3810085 | Q58: =IF(A58>$J$30,NA(),P58/$A$17) -> 2.476192634 | R58: =IF(A58>$J$30,NA(),Q58*100) -> 247.6192634 | BC58: 4810910000
A59: 27 | B59: =IF(A59>$A$8,"",OFFSET(InputPriceData!B$15,$A59+$A$11,0,1,1)) -> 2023-06-05 | C59: =IF(A59>$A$8,"",OFFSET(InputPriceData!G$15,CalculationsAndCharts!$A59+$A$11,IF($C$5,8,0),1,1)) -> 4344280000 | D59: =IF(A59>$A$8,"",OFFSET(InputPriceData!C$15,CalculationsAndCharts!$A59+$A$11,IF($C$5,8,0),1,1)) -> 14550.12988 | E59: =IF(A59>$A$8,"",OFFSET(InputPriceData!D$15,CalculationsAndCharts!$A59+$A$11,IF($C$5,8,0),1,1)) -> 14662.95019 | F59: =IF(A59>$A$8,"",OFFSET(InputPriceData!E$15,CalculationsAndCharts!$A59+$A$11,IF($C$5,8,0),1,1)) -> 14516.87988 | G59: =IF(A59>$A$8,"",OFFSET(InputPriceData!F$15,CalculationsAndCharts!$A59+$A$11,IF($C$5,8,0),1,1)) -> 14556.5 | J59: 1888.557008 | K59: 72.63680799 | L59: =IF(A59>$L$30,NA(),IF(A59=$L$30,AVERAGE(OFFSET(K59,0,0,$A$18,1)),$C$18*(K59-L60)+L60)) -> 69.11042743 | M59: 6911.042743 | N59: 531.6186725 | P59: =IF(A59>$J$30,NA(),(L59*$I$33)-SUMPRODUCT(OFFSET(L60,0,0,$A$17,1),OFFSET($H$33,0,0,$A$17,1))) -> 79.02336845 | Q59: =IF(A59>$J$30,NA(),P59/$A$17) -> 3.039360325 | R59: =IF(A59>$J$30,NA(),Q59*100) -> 303.9360325 | BC59: 4344280000
A60: 28 | B60: =IF(A60>$A$8,"",OFFSET(InputPriceData!B$15,$A60+$A$11,0,1,1)) -> 2023-06-02 | C60: =IF(A60>$A$8,"",OFFSET(InputPriceData!G$15,CalculationsAndCharts!$A60+$A$11,IF($C$5,8,0),1,1)) -> 4426760000 | D60: =IF(A60>$A$8,"",OFFSET(InputPriceData!C$15,CalculationsAndCharts!$A60+$A$11,IF($C$5,8,0),1,1)) -> 14517.08008 | E60: =IF(A60>$A$8,"",OFFSET(InputPriceData!D$15,CalculationsAndCharts!$A60+$A$11,IF($C$5,8,0),1,1)) -> 14595.80957 | F60: =IF(A60>$A$8,"",OFFSET(InputPriceData!E$15,CalculationsAndCharts!$A60+$A$11,IF($C$5,8,0),1,1)) -> 14442.15039 | G60: =IF(A60>$A$8,"",OFFSET(InputPriceData!F$15,CalculationsAndCharts!$A60+$A$11,IF($C$5,8,0),1,1)) -> 14546.63965 | J60: 2193.518677 | K60: 84.36610298 | L60: =IF(A60>$L$30,NA(),IF(A60=$L$30,AVERAGE(OFFSET(K60,0,0,$A$18,1)),$C$18*(K60-L61)+L61)) -> 68.22883229 | M60: 6822.883229 | N60: 524.8371714 | P60: =IF(A60>$J$30,NA(),(L60*$I$33)-SUMPRODUCT(OFFSET(L61,0,0,$A$17,1),OFFSET($H$33,0,0,$A$17,1))) -> 89.25449108 | Q60: =IF(A60>$J$30,NA(),P60/$A$17) -> 3.432865042 | R60: =IF(A60>$J$30,NA(),Q60*100) -> 343.2865042 | BC60: 4426760000
A61: 29 | B61: =IF(A61>$A$8,"",OFFSET(InputPriceData!B$15,$A61+$A$11,0,1,1)) -> 2023-06-01 | C61: =IF(A61>$A$8,"",OFFSET(InputPriceData!G$15,CalculationsAndCharts!$A61+$A$11,IF($C$5,8,0),1,1)) -> 4610310000 | D61: =IF(A61>$A$8,"",OFFSET(InputPriceData!C$15,CalculationsAndCharts!$A61+$A$11,IF($C$5,8,0),1,1)) -> 14269.08984 | E61: =IF(A61>$A$8,"",OFFSET(InputPriceData!D$15,CalculationsAndCharts!$A61+$A$11,IF($C$5,8,0),1,1)) -> 14493.30957 | F61: =IF(A61>$A$8,"",OFFSET(InputPriceData!E$15,CalculationsAndCharts!$A61+$A$11,IF($C$5,8,0),1,1)) -> 14219.94043 | G61: =IF(A61>$A$8,"",OFFSET(InputPriceData!F$15,CalculationsAndCharts!$A61+$A$11,IF($C$5,8,0),1,1)) -> 14441.50977 | J61: 2140.609638 | K61: 82.33113993 | L61: =IF(A61>$L$30,NA(),IF(A61=$L$30,AVERAGE(OFFSET(K61,0,0,$A$18,1)),$C$18*(K61-L62)+L62)) -> 64.19451462 | M61: 6419.451462 | N61: 493.8039586 | P61: =IF(A61>$J$30,NA(),(L61*$I$33)-SUMPRODUCT(OFFSET(L62,0,0,$A$17,1),OFFSET($H$33,0,0,$A$17,1))) -> 87.00560933 | Q61: =IF(A61>$J$30,NA(),P61/$A$17) -> 3.34636959 | R61: =IF(A61>$J$30,NA(),Q61*100) -> 334.636959 | BC61: 4610310000
A62: 30 | B62: =IF(A62>$A$8,"",OFFSET(InputPriceData!B$15,$A62+$A$11,0,1,1)) -> 2023-05-31 | C62: =IF(A62>$A$8,"",OFFSET(InputPriceData!G$15,CalculationsAndCharts!$A62+$A$11,IF($C$5,8,0),1,1)) -> 5905760000 | D62: =IF(A62>$A$8,"",OFFSET(InputPriceData!C$15,CalculationsAndCharts!$A62+$A$11,IF($C$5,8,0),1,1)) -> 14293.55957 | E62: =IF(A62>$A$8,"",OFFSET(InputPriceData!D$15,CalculationsAndCharts!$A62+$A$11,IF($C$5,8,0),1,1)) -> 14375.37988 | F62: =IF(A62>$A$8,"",OFFSET(InputPriceData!E$15,CalculationsAndCharts!$A62+$A$11,IF($C$5,8,0),1,1)) -> 14216.16016 | G62: =IF(A62>$A$8,"",OFFSET(InputPriceData!F$15,CalculationsAndCharts!$A62+$A$11,IF($C$5,8,0),1,1)) -> 14254.08984 | J62: 1579.426999 | K62: 60.74719228 | L62: =IF(A62>$L$30,NA(),IF(A62=$L$30,AVERAGE(OFFSET(K62,0,0,$A$18,1)),$C$18*(K62-L63)+L63)) -> 59.66035829 | M62: 5966.035829 | N62: 458.925833 | P62: =IF(A62>$J$30,NA(),(L62*$I$33)-SUMPRODUCT(OFFSET(L63,0,0,$A$17,1),OFFSET($H$33,0,0,$A$17,1))) -> 80.72057 | Q62: =IF(A62>$J$30,NA(),P62/$A$17) -> 3.104637308 | R62: =IF(A62>$J$30,NA(),Q62*100) -> 310.4637308 | BD62: 5905760000
A63: 31 | B63: =IF(A63>$A$8,"",OFFSET(InputPriceData!B$15,$A63+$A$11,0,1,1)) -> 2023-05-30 | C63: =IF(A63>$A$8,"",OFFSET(InputPriceData!G$15,CalculationsAndCharts!$A63+$A$11,IF($C$5,8,0),1,1)) -> 4843470000 | D63: =IF(A63>$A$8,"",OFFSET(InputPriceData!C$15,CalculationsAndCharts!$A63+$A$11,IF($C$5,8,0),1,1)) -> 14465.58984 | E63: =IF(A63>$A$8,"",OFFSET(InputPriceData!D$15,CalculationsAndCharts!$A63+$A$11,IF($C$5,8,0),1,1)) -> 14520.16992 | F63: =IF(A63>$A$8,"",OFFSET(InputPriceData!E$15,CalculationsAndCharts!$A63+$A$11,IF($C$5,8,0),1,1)) -> 14301.08008 | G63: =IF(A63>$A$8,"",OFFSET(InputPriceData!F$15,CalculationsAndCharts!$A63+$A$11,IF($C$5,8,0),1,1)) -> 14354.99023 | J63: 2343.649669 | K63: 90.14037187 | L63: =IF(A63>$L$30,NA(),IF(A63=$L$30,AVERAGE(OFFSET(K63,0,0,$A$18,1)),$C$18*(K63-L64)+L64)) -> 59.38864979 | M63: 5938.864979 | N63: 456.8357676 | P63: =IF(A63>$J$30,NA(),(L63*$I$33)-SUMPRODUCT(OFFSET(L64,0,0,$A$17,1),OFFSET($H$33,0,0,$A$17,1))) -> 96.88036909 | Q63: =IF(A63>$J$30,NA(),P63/$A$17) -> 3.726168042 | R63: =IF(A63>$J$30,NA(),Q63*100) -> 372.6168042 | BC63: 4843470000
A64: 32 | B64: =IF(A64>$A$8,"",OFFSET(InputPriceData!B$15,$A64+$A$11,0,1,1)) -> 2023-05-26 | C64: =IF(A64>$A$8,"",OFFSET(InputPriceData!G$15,CalculationsAndCharts!$A64+$A$11,IF($C$5,8,0),1,1)) -> 4434070000 | D64: =IF(A64>$A$8,"",OFFSET(InputPriceData!C$15,CalculationsAndCharts!$A64+$A$11,IF($C$5,8,0),1,1)) -> 13990.54981 | E64: =IF(A64>$A$8,"",OFFSET(InputPriceData!D$15,CalculationsAndCharts!$A64+$A$11,IF($C$5,8,0),1,1)) -> 14329.49023 | F64: =IF(A64>$A$8,"",OFFSET(InputPriceData!E$15,CalculationsAndCharts!$A64+$A$11,IF($C$5,8,0),1,1)) -> 13982.16016 | G64: =IF(A64>$A$8,"",OFFSET(InputPriceData!F$15,CalculationsAndCharts!$A64+$A$11,IF($C$5,8,0),1,1)) -> 14298.41016 | J64: 2675.456225 | K64: 102.9021625 | L64: =IF(A64>$L$30,NA(),IF(A64=$L$30,AVERAGE(OFFSET(K64,0,0,$A$18,1)),$C$18*(K64-L65)+L65)) -> 51.70071927 | M64: 5170.071927 | N64: 397.6978405 | P64: =IF(A64>$J$30,NA(),(L64*$I$33)-SUMPRODUCT(OFFSET(L65,0,0,$A$17,1),OFFSET($H$33,0,0,$A$17,1))) -> 83.83344112 | Q64: =IF(A64>$J$30,NA(),P64/$A$17) -> 3.22436312 | R64: =IF(A64>$J$30,NA(),Q64*100) -> 322.436312 | BC64: 4434070000
A65: 33 | B65: =IF(A65>$A$8,"",OFFSET(InputPriceData!B$15,$A65+$A$11,0,1,1)) -> 2023-05-25 | C65: =IF(A65>$A$8,"",OFFSET(InputPriceData!G$15,CalculationsAndCharts!$A65+$A$11,IF($C$5,8,0),1,1)) -> 4651640000 | D65: =IF(A65>$A$8,"",OFFSET(InputPriceData!C$15,CalculationsAndCharts!$A65+$A$11,IF($C$5,8,0),1,1)) -> 13920.88965 | E65: =IF(A65>$A$8,"",OFFSET(InputPriceData!D$15,CalculationsAndCharts!$A65+$A$11,IF($C$5,8,0),1,1)) -> 13986.87012 | F65: =IF(A65>$A$8,"",OFFSET(InputPriceData!E$15,CalculationsAndCharts!$A65+$A$11,IF($C$5,8,0),1,1)) -> 13812.17969 | G65: =IF(A65>$A$8,"",OFFSET(InputPriceData!F$15,CalculationsAndCharts!$A65+$A$11,IF($C$5,8,0),1,1)) -> 13938.53027 | J65: 1627.76752 | K65: 62.60644309 | L65: =IF(A65>$L$30,NA(),IF(A65=$L$30,AVERAGE(OFFSET(K65,0,0,$A$18,1)),$C$18*(K65-L66)+L66)) -> 38.90035846 | M65: 3890.035846 | N65: 299.2335266 | P65: =IF(A65>$J$30,NA(),(L65*$I$33)-SUMPRODUCT(OFFSET(L66,0,0,$A$17,1),OFFSET($H$33,0,0,$A$17,1))) -> 40.4169414 | Q65: =IF(A65>$J$30,NA(),P65/$A$17) -> 1.554497746 | R65: =IF(A65>$J$30,NA(),Q65*100) -> 155.4497746 | BC65: 4651640000
A66: 34 | B66: =IF(A66>$A$8,"",OFFSET(InputPriceData!B$15,$A66+$A$11,0,1,1)) -> 2023-05-24 | C66: =IF(A66>$A$8,"",OFFSET(InputPriceData!G$15,CalculationsAndCharts!$A66+$A$11,IF($C$5,8,0),1,1)) -> 4088270000 | D66: =IF(A66>$A$8,"",OFFSET(InputPriceData!C$15,CalculationsAndCharts!$A66+$A$11,IF($C$5,8,0),1,1)) -> 13589.01953 | E66: =IF(A66>$A$8,"",OFFSET(InputPriceData!D$15,CalculationsAndCharts!$A66+$A$11,IF($C$5,8,0),1,1)) -> 13655.73047 | F66: =IF(A66>$A$8,"",OFFSET(InputPriceData!E$15,CalculationsAndCharts!$A66+$A$11,IF($C$5,8,0),1,1)) -> 13520.91992 | G66: =IF(A66>$A$8,"",OFFSET(InputPriceData!F$15,CalculationsAndCharts!$A66+$A$11,IF($C$5,8,0),1,1)) -> 13604.48047 | J66: 299.0076729 | K66: 11.50029511 | L66: =IF(A66>$L$30,NA(),IF(A66=$L$30,AVERAGE(OFFSET(K66,0,0,$A$18,1)),$C$18*(K66-L67)+L67)) -> 32.9738373 | M66: 3297.38373 | N66: 253.6449023 | P66: =IF(A66>$J$30,NA(),(L66*$I$33)-SUMPRODUCT(OFFSET(L67,0,0,$A$17,1),OFFSET($H$33,0,0,$A$17,1))) -> 14.97690526 | Q66: =IF(A66>$J$30,NA(),P66/$A$17) -> 0.5760348177 | R66: =IF(A66>$J$30,NA(),Q66*100) -> 57.60348177 | BD66: 4088270000
A67: 35 | B67: =IF(A67>$A$8,"",OFFSET(InputPriceData!B$15,$A67+$A$11,0,1,1)) -> 2023-05-23 | C67: =IF(A67>$A$8,"",OFFSET(InputPriceData!G$15,CalculationsAndCharts!$A67+$A$11,IF($C$5,8,0),1,1)) -> 4347440000 | D67: =IF(A67>$A$8,"",OFFSET(InputPriceData!C$15,CalculationsAndCharts!$A67+$A$11,IF($C$5,8,0),1,1)) -> 13773.67969 | E67: =IF(A67>$A$8,"",OFFSET(InputPriceData!D$15,CalculationsAndCharts!$A67+$A$11,IF($C$5,8,0),1,1)) -> 13827.09961 | F67: =IF(A67>$A$8,"",OFFSET(InputPriceData!E$15,CalculationsAndCharts!$A67+$A$11,IF($C$5,8,0),1,1)) -> 13662.91016 | G67: =IF(A67>$A$8,"",OFFSET(InputPriceData!F$15,CalculationsAndCharts!$A67+$A$11,IF($C$5,8,0),1,1)) -> 13672.54004 | J67: 525.9270382 | K67: 20.22796301 | L67: =IF(A67>$L$30,NA(),IF(A67=$L$30,AVERAGE(OFFSET(K67,0,0,$A$18,1)),$C$18*(K67-L68)+L68)) -> 38.34222285 | M67: 3834.222285 | N67: 294.9401758 | P67: =IF(A67>$J$30,NA(),(L67*$I$33)-SUMPRODUCT(OFFSET(L68,0,0,$A$17,1),OFFSET($H$33,0,0,$A$17,1))) -> 37.61351413 | Q67: =IF(A67>$J$30,NA(),P67/$A$17) -> 1.446673621 | R67: =IF(A67>$J$30,NA(),Q67*100) -> 144.6673621 | BD67: 4347440000
A68: 36 | B68: =IF(A68>$A$8,"",OFFSET(InputPriceData!B$15,$A68+$A$11,0,1,1)) -> 2023-05-22 | C68: =IF(A68>$A$8,"",OFFSET(InputPriceData!G$15,CalculationsAndCharts!$A68+$A$11,IF($C$5,8,0),1,1)) -> 4278920000 | D68: =IF(A68>$A$8,"",OFFSET(InputPriceData!C$15,CalculationsAndCharts!$A68+$A$11,IF($C$5,8,0),1,1)) -> 13805.33008 | E68: =IF(A68>$A$8,"",OFFSET(InputPriceData!D$15,CalculationsAndCharts!$A68+$A$11,IF($C$5,8,0),1,1)) -> 13893.70996 | F68: =IF(A68>$A$8,"",OFFSET(InputPriceData!E$15,CalculationsAndCharts!$A68+$A$11,IF($C$5,8,0),1,1)) -> 13792.96973 | G68: =IF(A68>$A$8,"",OFFSET(InputPriceData!F$15,CalculationsAndCharts!$A68+$A$11,IF($C$5,8,0),1,1)) -> 13849.74023 | J68: 1401.787294 | K68: 53.91489591 | L68: =IF(A68>$L$30,NA(),IF(A68=$L$30,AVERAGE(OFFSET(K68,0,0,$A$18,1)),$C$18*(K68-L69)+L69)) -> 42.87078781 | M68: 4287.078781 | N68: 329.7752908 | P68: =IF(A68>$J$30,NA(),(L68*$I$33)-SUMPRODUCT(OFFSET(L69,0,0,$A$17,1),OFFSET($H$33,0,0,$A$17,1))) -> 64.63510143 | Q68: =IF(A68>$J$30,NA(),P68/$A$17) -> 2.485965439 | R68: =IF(A68>$J$30,NA(),Q68*100) -> 248.5965439 | BC68: 4278920000
A69: 37 | B69: =IF(A69>$A$8,"",OFFSET(InputPriceData!B$15,$A69+$A$11,0,1,1)) -> 2023-05-19 | C69: =IF(A69>$A$8,"",OFFSET(InputPriceData!G$15,CalculationsAndCharts!$A69+$A$11,IF($C$5,8,0),1,1)) -> 3935780000 | D69: =IF(A69>$A$8,"",OFFSET(InputPriceData!C$15,CalculationsAndCharts!$A69+$A$11,IF($C$5,8,0),1,1)) -> 13842.69043 | E69: =IF(A69>$A$8,"",OFFSET(InputPriceData!D$15,CalculationsAndCharts!$A69+$A$11,IF($C$5,8,0),1,1)) -> 13874.41992 | F69: =IF(A69>$A$8,"",OFFSET(InputPriceData!E$15,CalculationsAndCharts!$A69+$A$11,IF($C$5,8,0),1,1)) -> 13763.90039 | G69: =IF(A69>$A$8,"",OFFSET(InputPriceData!F$15,CalculationsAndCharts!$A69+$A$11,IF($C$5,8,0),1,1)) -> 13803.49023 | J69: 1413.419755 | K69: 54.36229826 | L69: =IF(A69>$L$30,NA(),IF(A69=$L$30,AVERAGE(OFFSET(K69,0,0,$A$18,1)),$C$18*(K69-L70)+L70)) -> 40.10976079 | M69: 4010.976079 | N69: 308.5366214 | P69: =IF(A69>$J$30,NA(),(L69*$I$33)-SUMPRODUCT(OFFSET(L70,0,0,$A$17,1),OFFSET($H$33,0,0,$A$17,1))) -> 64.70326261 | Q69: =IF(A69>$J$30,NA(),P69/$A$17) -> 2.488587023 | R69: =IF(A69>$J$30,NA(),Q69*100) -> 248.8587023 | BD69: 3935780000
A70: 38 | B70: =IF(A70>$A$8,"",OFFSET(InputPriceData!B$15,$A70+$A$11,0,1,1)) -> 2023-05-18 | C70: =IF(A70>$A$8,"",OFFSET(InputPriceData!G$15,CalculationsAndCharts!$A70+$A$11,IF($C$5,8,0),1,1)) -> 4532890000 | D70: =IF(A70>$A$8,"",OFFSET(InputPriceData!C$15,CalculationsAndCharts!$A70+$A$11,IF($C$5,8,0),1,1)) -> 13608.95019 | E70: =IF(A70>$A$8,"",OFFSET(InputPriceData!D$15,CalculationsAndCharts!$A70+$A$11,IF($C$5,8,0),1,1)) -> 13844.75977 | F70: =IF(A70>$A$8,"",OFFSET(InputPriceData!E$15,CalculationsAndCharts!$A70+$A$11,IF($C$5,8,0),1,1)) -> 13606.80957 | G70: =IF(A70>$A$8,"",OFFSET(InputPriceData!F$15,CalculationsAndCharts!$A70+$A$11,IF($C$5,8,0),1,1)) -> 13834.62012 | J70: 1921.95347 | K70: 73.92128729 | L70: =IF(A70>$L$30,NA(),IF(A70=$L$30,AVERAGE(OFFSET(K70,0,0,$A$18,1)),$C$18*(K70-L71)+L71)) -> 36.54662642 | M70: 3654.662642 | N70: 281.1278955 | P70: =IF(A70>$J$30,NA(),(L70*$I$33)-SUMPRODUCT(OFFSET(L71,0,0,$A$17,1),OFFSET($H$33,0,0,$A$17,1))) -> 63.96745393 | Q70: =IF(A70>$J$30,NA(),P70/$A$17) -> 2.46028669 | R70: =IF(A70>$J$30,NA(),Q70*100) -> 246.028669 | BC70: 4532890000
A71: 39 | B71: =IF(A71>$A$8,"",OFFSET(InputPriceData!B$15,$A71+$A$11,0,1,1)) -> 2023-05-17 | C71: =IF(A71>$A$8,"",OFFSET(InputPriceData!G$15,CalculationsAndCharts!$A71+$A$11,IF($C$5,8,0),1,1)) -> 4501820000 | D71: =IF(A71>$A$8,"",OFFSET(InputPriceData!C$15,CalculationsAndCharts!$A71+$A$11,IF($C$5,8,0),1,1)) -> 13474.51953 | E71: =IF(A71>$A$8,"",OFFSET(InputPriceData!D$15,CalculationsAndCharts!$A71+$A$11,IF($C$5,8,0),1,1)) -> 13608.33008 | F71: =IF(A71>$A$8,"",OFFSET(InputPriceData!E$15,CalculationsAndCharts!$A71+$A$11,IF($C$5,8,0),1,1)) -> 13419.34961 | G71: =IF(A71>$A$8,"",OFFSET(InputPriceData!F$15,CalculationsAndCharts!$A71+$A$11,IF($C$5,8,0),1,1)) -> 13589.25977 | J71: 1208.655903 | K71: 46.4867655 | L71: =IF(A71>$L$30,NA(),IF(A71=$L$30,AVERAGE(OFFSET(K71,0,0,$A$18,1)),$C$18*(K71-L72)+L72)) -> 27.2029612 | M71: 2720.29612 | N71: 209.2535477 | P71: =IF(A71>$J$30,NA(),(L71*$I$33)-SUMPRODUCT(OFFSET(L72,0,0,$A$17,1),OFFSET($H$33,0,0,$A$17,1))) -> 34.18981752 | Q71: =IF(A71>$J$30,NA(),P71/$A$17) -> 1.314992982 | R71: =IF(A71>$J$30,NA(),Q71*100) -> 131.4992982 | BC71: 4501820000
A72: 40 | B72: =IF(A72>$A$8,"",OFFSET(InputPriceData!B$15,$A72+$A$11,0,1,1)) -> 2023-05-16 | C72: =IF(A72>$A$8,"",OFFSET(InputPriceData!G$15,CalculationsAndCharts!$A72+$A$11,IF($C$5,8,0),1,1)) -> 4067510000 | D72: =IF(A72>$A$8,"",OFFSET(InputPriceData!C$15,CalculationsAndCharts!$A72+$A$11,IF($C$5,8,0),1,1)) -> 13385.37012 | E72: =IF(A72>$A$8,"",OFFSET(InputPriceData!D$15,CalculationsAndCharts!$A72+$A$11,IF($C$5,8,0),1,1)) -> 13498.44043 | F72: =IF(A72>$A$8,"",OFFSET(InputPriceData!E$15,CalculationsAndCharts!$A72+$A$11,IF($C$5,8,0),1,1)) -> 13384.76953 | G72: =IF(A72>$A$8,"",OFFSET(InputPriceData!F$15,CalculationsAndCharts!$A72+$A$11,IF($C$5,8,0),1,1)) -> 13426.00977 | J72: 668.0537261 | K72: 25.69437408 | L72: =IF(A72>$L$30,NA(),IF(A72=$L$30,AVERAGE(OFFSET(K72,0,0,$A$18,1)),$C$18*(K72-L73)+L73)) -> 22.38201012 | M72: 2238.201012 | N72: 172.1693086 | P72: =IF(A72>$J$30,NA(),(L72*$I$33)-SUMPRODUCT(OFFSET(L73,0,0,$A$17,1),OFFSET($H$33,0,0,$A$17,1))) -> 17.7723661 | Q72: =IF(A72>$J$30,NA(),P72/$A$17) -> 0.6835525421 | R72: =IF(A72>$J$30,NA(),Q72*100) -> 68.35525421 | BC72: 4067510000
A73: 41 | B73: =IF(A73>$A$8,"",OFFSET(InputPriceData!B$15,$A73+$A$11,0,1,1)) -> 2023-05-15 | C73: =IF(A73>$A$8,"",OFFSET(InputPriceData!G$15,CalculationsAndCharts!$A73+$A$11,IF($C$5,8,0),1,1)) -> 3979290000 | D73: =IF(A73>$A$8,"",OFFSET(InputPriceData!C$15,CalculationsAndCharts!$A73+$A$11,IF($C$5,8,0),1,1)) -> 13352.25977 | E73: =IF(A73>$A$8,"",OFFSET(InputPriceData!D$15,CalculationsAndCharts!$A73+$A$11,IF($C$5,8,0),1,1)) -> 13419.80957 | F73: =IF(A73>$A$8,"",OFFSET(InputPriceData!E$15,CalculationsAndCharts!$A73+$A$11,IF($C$5,8,0),1,1)) -> 13297.84961 | G73: =IF(A73>$A$8,"",OFFSET(InputPriceData!F$15,CalculationsAndCharts!$A73+$A$11,IF($C$5,8,0),1,1)) -> 13413.50977 | J73: 736.3254799 | K73: 28.32021077 | L73: =IF(A73>$L$30,NA(),IF(A73=$L$30,AVERAGE(OFFSET(K73,0,0,$A$18,1)),$C$18*(K73-L74)+L74)) -> 21.55391913 | M73: 2155.391913 | N73: 165.7993779 | P73: =IF(A73>$J$30,NA(),(L73*$I$33)-SUMPRODUCT(OFFSET(L74,0,0,$A$17,1),OFFSET($H$33,0,0,$A$17,1))) -> 17.0662649 | Q73: =IF(A73>$J$30,NA(),P73/$A$17) -> 0.6563948039 | R73: =IF(A73>$J$30,NA(),Q73*100) -> 65.63948039 | BC73: 3979290000
A74: 42 | B74: =IF(A74>$A$8,"",OFFSET(InputPriceData!B$15,$A74+$A$11,0,1,1)) -> 2023-05-12 | C74: =IF(A74>$A$8,"",OFFSET(InputPriceData!G$15,CalculationsAndCharts!$A74+$A$11,IF($C$5,8,0),1,1)) -> 4170000000 | D74: =IF(A74>$A$8,"",OFFSET(InputPriceData!C$15,CalculationsAndCharts!$A74+$A$11,IF($C$5,8,0),1,1)) -> 13407.01953 | E74: =IF(A74>$A$8,"",OFFSET(InputPriceData!D$15,CalculationsAndCharts!$A74+$A$11,IF($C$5,8,0),1,1)) -> 13427.41992 | F74: =IF(A74>$A$8,"",OFFSET(InputPriceData!E$15,CalculationsAndCharts!$A74+$A$11,IF($C$5,8,0),1,1)) -> 13256.55957 | G74: =IF(A74>$A$8,"",OFFSET(InputPriceData!F$15,CalculationsAndCharts!$A74+$A$11,IF($C$5,8,0),1,1)) -> 13340.17969 | J74: 496.4706586 | K74: 19.09502533 | L74: =IF(A74>$L$30,NA(),IF(A74=$L$30,AVERAGE(OFFSET(K74,0,0,$A$18,1)),$C$18*(K74-L75)+L75)) -> 19.86234622 | M74: 1986.234622 | N74: 152.7872786 | P74: =IF(A74>$J$30,NA(),(L74*$I$33)-SUMPRODUCT(OFFSET(L75,0,0,$A$17,1),OFFSET($H$33,0,0,$A$17,1))) -> 12.00096424 | Q74: =IF(A74>$J$30,NA(),P74/$A$17) -> 0.4615755477 | R74: =IF(A74>$J$30,NA(),Q74*100) -> 46.15755477 | BD74: 4170000000
A75: 43 | B75: =IF(A75>$A$8,"",OFFSET(InputPriceData!B$15,$A75+$A$11,0,1,1)) -> 2023-05-11 | C75: =IF(A75>$A$8,"",OFFSET(InputPriceData!G$15,CalculationsAndCharts!$A75+$A$11,IF($C$5,8,0),1,1)) -> 4489490000 | D75: =IF(A75>$A$8,"",OFFSET(InputPriceData!C$15,CalculationsAndCharts!$A75+$A$11,IF($C$5,8,0),1,1)) -> 13376.84961 | E75: =IF(A75>$A$8,"",OFFSET(InputPriceData!D$15,CalculationsAndCharts!$A75+$A$11,IF($C$5,8,0),1,1)) -> 13411.70019 | F75: =IF(A75>$A$8,"",OFFSET(InputPriceData!E$15,CalculationsAndCharts!$A75+$A$11,IF($C$5,8,0),1,1)) -> 13306.08008 | G75: =IF(A75>$A$8,"",OFFSET(InputPriceData!F$15,CalculationsAndCharts!$A75+$A$11,IF($C$5,8,0),1,1)) -> 13389.78027 | J75: 821.6713022 | K75: 31.60274239 | L75: =IF(A75>$L$30,NA(),IF(A75=$L$30,AVERAGE(OFFSET(K75,0,0,$A$18,1)),$C$18*(K75-L76)+L76)) -> 20.05417645 | M75: 2005.417645 | N75: 154.2628957 | P75: =IF(A75>$J$30,NA(),(L75*$I$33)-SUMPRODUCT(OFFSET(L76,0,0,$A$17,1),OFFSET($H$33,0,0,$A$17,1))) -> 16.28548659 | Q75: =IF(A75>$J$30,NA(),P75/$A$17) -> 0.6263648687 | R75: =IF(A75>$J$30,NA(),Q75*100) -> 62.63648687 | BC75: 4489490000
A76: 44 | B76: =IF(A76>$A$8,"",OFFSET(InputPriceData!B$15,$A76+$A$11,0,1,1)) -> 2023-05-10 | C76: =IF(A76>$A$8,"",OFFSET(InputPriceData!G$15,CalculationsAndCharts!$A76+$A$11,IF($C$5,8,0),1,1)) -> 4948260000 | D76: =IF(A76>$A$8,"",OFFSET(InputPriceData!C$15,CalculationsAndCharts!$A76+$A$11,IF($C$5,8,0),1,1)) -> 13308.41016 | E76: =IF(A76>$A$8,"",OFFSET(InputPriceData!D$15,CalculationsAndCharts!$A76+$A$11,IF($C$5,8,0),1,1)) -> 13384.41992 | F76: =IF(A76>$A$8,"",OFFSET(InputPriceData!E$15,CalculationsAndCharts!$A76+$A$11,IF($C$5,8,0),1,1)) -> 13204.79004 | G76: =IF(A76>$A$8,"",OFFSET(InputPriceData!F$15,CalculationsAndCharts!$A76+$A$11,IF($C$5,8,0),1,1)) -> 13347.83008 | J76: 821.8895338 | K76: 31.61113592 | L76: =IF(A76>$L$30,NA(),IF(A76=$L$30,AVERAGE(OFFSET(K76,0,0,$A$18,1)),$C$18*(K76-L77)+L77)) -> 17.16703496 | M76: 1716.703496 | N76: 132.0541151 | P76: =IF(A76>$J$30,NA(),(L76*$I$33)-SUMPRODUCT(OFFSET(L77,0,0,$A$17,1),OFFSET($H$33,0,0,$A$17,1))) -> 7.709619947 | Q76: =IF(A76>$J$30,NA(),P76/$A$17) -> 0.2965238441 | R76: =IF(A76>$J$30,NA(),Q76*100) -> 29.65238441 | BC76: 4948260000
A77: 45 | B77: =IF(A77>$A$8,"",OFFSET(InputPriceData!B$15,$A77+$A$11,0,1,1)) -> 2023-05-09 | C77: =IF(A77>$A$8,"",OFFSET(InputPriceData!G$15,CalculationsAndCharts!$A77+$A$11,IF($C$5,8,0),1,1)) -> 4126780000 | D77: =IF(A77>$A$8,"",OFFSET(InputPriceData!C$15,CalculationsAndCharts!$A77+$A$11,IF($C$5,8,0),1,1)) -> 13228.63965 | E77: =IF(A77>$A$8,"",OFFSET(InputPriceData!D$15,CalculationsAndCharts!$A77+$A$11,IF($C$5,8,0),1,1)) -> 13254.80957 | F77: =IF(A77>$A$8,"",OFFSET(InputPriceData!E$15,CalculationsAndCharts!$A77+$A$11,IF($C$5,8,0),1,1)) -> 13193.87988 | G77: =IF(A77>$A$8,"",OFFSET(InputPriceData!F$15,CalculationsAndCharts!$A77+$A$11,IF($C$5,8,0),1,1)) -> 13201.11035 | J77: 248.6891962 | K77: 9.564969083 | L77: =IF(A77>$L$30,NA(),IF(A77=$L$30,AVERAGE(OFFSET(K77,0,0,$A$18,1)),$C$18*(K77-L78)+L78)) -> 13.55600972 | M77: 1355.600972 | N77: 104.2769979 | P77: =IF(A77>$J$30,NA(),(L77*$I$33)-SUMPRODUCT(OFFSET(L78,0,0,$A$17,1),OFFSET($H$33,0,0,$A$17,1))) -> -7.000220757 | Q77: =IF(A77>$J$30,NA(),P77/$A$17) -> -0.2692392599 | R77: =IF(A77>$J$30,NA(),Q77*100) -> -26.92392599 | BD77: 4126780000
A78: 46 | B78: =IF(A78>$A$8,"",OFFSET(InputPriceData!B$15,$A78+$A$11,0,1,1)) -> 2023-05-08 | C78: =IF(A78>$A$8,"",OFFSET(InputPriceData!G$15,CalculationsAndCharts!$A78+$A$11,IF($C$5,8,0),1,1)) -> 4216360000 | D78: =IF(A78>$A$8,"",OFFSET(InputPriceData!C$15,CalculationsAndCharts!$A78+$A$11,IF($C$5,8,0),1,1)) -> 13247.08984 | E78: =IF(A78>$A$8,"",OFFSET(InputPriceData!D$15,CalculationsAndCharts!$A78+$A$11,IF($C$5,8,0),1,1)) -> 13302.42969 | F78: =IF(A78>$A$8,"",OFFSET(InputPriceData!E$15,CalculationsAndCharts!$A78+$A$11,IF($C$5,8,0),1,1)) -> 13193.08008 | G78: =IF(A78>$A$8,"",OFFSET(InputPriceData!F$15,CalculationsAndCharts!$A78+$A$11,IF($C$5,8,0),1,1)) -> 13291.63965 | J78: 743.2074816 | K78: 28.58490314 | L78: =IF(A78>$L$30,NA(),IF(A78=$L$30,AVERAGE(OFFSET(K78,0,0,$A$18,1)),$C$18*(K78-L79)+L79)) -> 14.55376988 | M78: 1455.376988 | N78: 111.952076 | P78: =IF(A78>$J$30,NA(),(L78*$I$33)-SUMPRODUCT(OFFSET(L79,0,0,$A$17,1),OFFSET($H$33,0,0,$A$17,1))) -> -0.5282954292 | Q78: =IF(A78>$J$30,NA(),P78/$A$17) -> -0.02031905497 | R78: =IF(A78>$J$30,NA(),Q78*100) -> -2.031905497 | BC78: 4216360000
A79: 47 | B79: =IF(A79>$A$8,"",OFFSET(InputPriceData!B$15,$A79+$A$11,0,1,1)) -> 2023-05-05 | C79: =IF(A79>$A$8,"",OFFSET(InputPriceData!G$15,CalculationsAndCharts!$A79+$A$11,IF($C$5,8,0),1,1)) -> 4574790000 | D79: =IF(A79>$A$8,"",OFFSET(InputPriceData!C$15,CalculationsAndCharts!$A79+$A$11,IF($C$5,8,0),1,1)) -> 13070.70019 | E79: =IF(A79>$A$8,"",OFFSET(InputPriceData!D$15,CalculationsAndCharts!$A79+$A$11,IF($C$5,8,0),1,1)) -> 13291.11035 | F79: =IF(A79>$A$8,"",OFFSET(InputPriceData!E$15,CalculationsAndCharts!$A79+$A$11,IF($C$5,8,0),1,1)) -> 13059.91016 | G79: =IF(A79>$A$8,"",OFFSET(InputPriceData!F$15,CalculationsAndCharts!$A79+$A$11,IF($C$5,8,0),1,1)) -> 13259.12988 | J79: 858.7828252 | K79: 33.03010866 | L79: =IF(A79>$L$30,NA(),IF(A79=$L$30,AVERAGE(OFFSET(K79,0,0,$A$18,1)),$C$18*(K79-L80)+L80)) -> 11.04598657 | M79: 1104.598657 | N79: 84.96912744 | P79: =IF(A79>$J$30,NA(),(L79*$I$33)-SUMPRODUCT(OFFSET(L80,0,0,$A$17,1),OFFSET($H$33,0,0,$A$17,1))) -> -13.00550912 | Q79: =IF(A79>$J$30,NA(),P79/$A$17) -> -0.5002118892 | R79: =IF(A79>$J$30,NA(),Q79*100) -> -50.02118892 | BC79: 4574790000
A80: 48 | B80: =IF(A80>$A$8,"",OFFSET(InputPriceData!B$15,$A80+$A$11,0,1,1)) -> 2023-05-04 | C80: =IF(A80>$A$8,"",OFFSET(InputPriceData!G$15,CalculationsAndCharts!$A80+$A$11,IF($C$5,8,0),1,1)) -> 4745780000 | D80: =IF(A80>$A$8,"",OFFSET(InputPriceData!C$15,CalculationsAndCharts!$A80+$A$11,IF($C$5,8,0),1,1)) -> 13014.07031 | E80: =IF(A80>$A$8,"",OFFSET(InputPriceData!D$15,CalculationsAndCharts!$A80+$A$11,IF($C$5,8,0),1,1)) -> 13064.01953 | F80: =IF(A80>$A$8,"",OFFSET(InputPriceData!E$15,CalculationsAndCharts!$A80+$A$11,IF($C$5,8,0),1,1)) -> 12938.45019 | G80: =IF(A80>$A$8,"",OFFSET(InputPriceData!F$15,CalculationsAndCharts!$A80+$A$11,IF($C$5,8,0),1,1)) -> 12982.48047 | J80: -273.6762702 | K80: -10.52601039 | L80: =IF(A80>$L$30,NA(),IF(A80=$L$30,AVERAGE(OFFSET(K80,0,0,$A$18,1)),$C$18*(K80-L81)+L81)) -> 5.549956043 | M80: 554.9956043 | N80: 42.69196956 | P80: =IF(A80>$J$30,NA(),(L80*$I$33)-SUMPRODUCT(OFFSET(L81,0,0,$A$17,1),OFFSET($H$33,0,0,$A$17,1))) -> -41.12827856 | Q80: =IF(A80>$J$30,NA(),P80/$A$17) -> -1.581856868 | R80: =IF(A80>$J$30,NA(),Q80*100) -> -158.1856868 | BD80: 4745780000
A81: 49 | B81: =IF(A81>$A$8,"",OFFSET(InputPriceData!B$15,$A81+$A$11,0,1,1)) -> 2023-05-03 | C81: =IF(A81>$A$8,"",OFFSET(InputPriceData!G$15,CalculationsAndCharts!$A81+$A$11,IF($C$5,8,0),1,1)) -> 5782160000 | D81: =IF(A81>$A$8,"",OFFSET(InputPriceData!C$15,CalculationsAndCharts!$A81+$A$11,IF($C$5,8,0),1,1)) -> 13123.09961 | E81: =IF(A81>$A$8,"",OFFSET(InputPriceData!D$15,CalculationsAndCharts!$A81+$A$11,IF($C$5,8,0),1,1)) -> 13231.70996 | F81: =IF(A81>$A$8,"",OFFSET(InputPriceData!E$15,CalculationsAndCharts!$A81+$A$11,IF($C$5,8,0),1,1)) -> 13026.04004 | G81: =IF(A81>$A$8,"",OFFSET(InputPriceData!F$15,CalculationsAndCharts!$A81+$A$11,IF($C$5,8,0),1,1)) -> 13030.20996 | J81: -159.6685701 | K81: -6.14109885 | L81: =IF(A81>$L$30,NA(),IF(A81=$L$30,AVERAGE(OFFSET(K81,0,0,$A$18,1)),$C$18*(K81-L82)+L82)) -> 9.568947652 | M81: 956.8947652 | N81: 73.60728963 | P81: =IF(A81>$J$30,NA(),(L81*$I$33)-SUMPRODUCT(OFFSET(L82,0,0,$A$17,1),OFFSET($H$33,0,0,$A$17,1))) -> -30.62650139 | Q81: =IF(A81>$J$30,NA(),P81/$A$17) -> -1.177942361 | R81: =IF(A81>$J$30,NA(),Q81*100) -> -117.7942361 | BD81: 5782160000
A82: 50 | B82: =IF(A82>$A$8,"",OFFSET(InputPriceData!B$15,$A82+$A$11,0,1,1)) -> 2023-05-02 | C82: =IF(A82>$A$8,"",OFFSET(InputPriceData!G$15,CalculationsAndCharts!$A82+$A$11,IF($C$5,8,0),1,1)) -> 5501410000 | D82: =IF(A82>$A$8,"",OFFSET(InputPriceData!C$15,CalculationsAndCharts!$A82+$A$11,IF($C$5,8,0),1,1)) -> 13225.48047 | E82: =IF(A82>$A$8,"",OFFSET(InputPriceData!D$15,CalculationsAndCharts!$A82+$A$11,IF($C$5,8,0),1,1)) -> 13241.53027 | F82: =IF(A82>$A$8,"",OFFSET(InputPriceData!E$15,CalculationsAndCharts!$A82+$A$11,IF($C$5,8,0),1,1)) -> 13046.79004 | G82: =IF(A82>$A$8,"",OFFSET(InputPriceData!F$15,CalculationsAndCharts!$A82+$A$11,IF($C$5,8,0),1,1)) -> 13113.66016 | J82: 131.7479497 | K82: 5.067228835 | L82: =IF(A82>$L$30,NA(),IF(A82=$L$30,AVERAGE(OFFSET(K82,0,0,$A$18,1)),$C$18*(K82-L83)+L83)) -> 13.49645928 | M82: 1349.645928 | N82: 103.8189175 | P82: =IF(A82>$J$30,NA(),(L82*$I$33)-SUMPRODUCT(OFFSET(L83,0,0,$A$17,1),OFFSET($H$33,0,0,$A$17,1))) -> -16.85095464 | Q82: =IF(A82>$J$30,NA(),P82/$A$17) -> -0.6481136402 | R82: =IF(A82>$J$30,NA(),Q82*100) -> -64.81136402 | BD82: 5501410000
A83: 51 | B83: =IF(A83>$A$8,"",OFFSET(InputPriceData!B$15,$A83+$A$11,0,1,1)) -> 2023-05-01 | C83: =IF(A83>$A$8,"",OFFSET(InputPriceData!G$15,CalculationsAndCharts!$A83+$A$11,IF($C$5,8,0),1,1)) -> 5168430000 | D83: =IF(A83>$A$8,"",OFFSET(InputPriceData!C$15,CalculationsAndCharts!$A83+$A$11,IF($C$5,8,0),1,1)) -> 13229.11035 | E83: =IF(A83>$A$8,"",OFFSET(InputPriceData!D$15,CalculationsAndCharts!$A83+$A$11,IF($C$5,8,0),1,1)) -> 13287.46973 | F83: =IF(A83>$A$8,"",OFFSET(InputPriceData!E$15,CalculationsAndCharts!$A83+$A$11,IF($C$5,8,0),1,1)) -> 13186.40039 | G83: =IF(A83>$A$8,"",OFFSET(InputPriceData!F$15,CalculationsAndCharts!$A83+$A$11,IF($C$5,8,0),1,1)) -> 13231.46973 | J83: 706.3563237 | K83: 27.16755091 | L83: =IF(A83>$L$30,NA(),IF(A83=$L$30,AVERAGE(OFFSET(K83,0,0,$A$18,1)),$C$18*(K83-L84)+L84)) -> 15.60376689 | M83: 1560.376689 | N83: 120.0289761 | P83: =IF(A83>$J$30,NA(),(L83*$I$33)-SUMPRODUCT(OFFSET(L84,0,0,$A$17,1),OFFSET($H$33,0,0,$A$17,1))) -> -5.517449995 | Q83: =IF(A83>$J$30,NA(),P83/$A$17) -> -0.2122096152 | R83: =IF(A83>$J$30,NA(),Q83*100) -> -21.22096152 | BD83: 5168430000
A84: 52 | B84: =IF(A84>$A$8,"",OFFSET(InputPriceData!B$15,$A84+$A$11,0,1,1)) -> 2023-04-28 | C84: =IF(A84>$A$8,"",OFFSET(InputPriceData!G$15,CalculationsAndCharts!$A84+$A$11,IF($C$5,8,0),1,1)) -> 5331380000 | D84: =IF(A84>$A$8,"",OFFSET(InputPriceData!C$15,CalculationsAndCharts!$A84+$A$11,IF($C$5,8,0),1,1)) -> 13139.34961 | E84: =IF(A84>$A$8,"",OFFSET(InputPriceData!D$15,CalculationsAndCharts!$A84+$A$11,IF($C$5,8,0),1,1)) -> 13247.38965 | F84: =IF(A84>$A$8,"",OFFSET(InputPriceData!E$15,CalculationsAndCharts!$A84+$A$11,IF($C$5,8,0),1,1)) -> 13096.94043 | G84: =IF(A84>$A$8,"",OFFSET(InputPriceData!F$15,CalculationsAndCharts!$A84+$A$11,IF($C$5,8,0),1,1)) -> 13245.99023 | J84: 998.6779254 | K84: 38.41068944 | L84: =IF(A84>$L$30,NA(),IF(A84=$L$30,AVERAGE(OFFSET(K84,0,0,$A$18,1)),$C$18*(K84-L85)+L85)) -> 12.71282088 | M84: 1271.282088 | N84: 97.79092986 | P84: =IF(A84>$J$30,NA(),(L84*$I$33)-SUMPRODUCT(OFFSET(L85,0,0,$A$17,1),OFFSET($H$33,0,0,$A$17,1))) -> -12.85459814 | Q84: =IF(A84>$J$30,NA(),P84/$A$17) -> -0.4944076207 | R84: =IF(A84>$J$30,NA(),Q84*100) -> -49.44076207 | BC84: 5331380000
A85: 53 | B85: =IF(A85>$A$8,"",OFFSET(InputPriceData!B$15,$A85+$A$11,0,1,1)) -> 2023-04-27 | C85: =IF(A85>$A$8,"",OFFSET(InputPriceData!G$15,CalculationsAndCharts!$A85+$A$11,IF($C$5,8,0),1,1)) -> 5253710000 | D85: =IF(A85>$A$8,"",OFFSET(InputPriceData!C$15,CalculationsAndCharts!$A85+$A$11,IF($C$5,8,0),1,1)) -> 12963.20996 | E85: =IF(A85>$A$8,"",OFFSET(InputPriceData!D$15,CalculationsAndCharts!$A85+$A$11,IF($C$5,8,0),1,1)) -> 13175.62012 | F85: =IF(A85>$A$8,"",OFFSET(InputPriceData!E$15,CalculationsAndCharts!$A85+$A$11,IF($C$5,8,0),1,1)) -> 12938.5 | G85: =IF(A85>$A$8,"",OFFSET(InputPriceData!F$15,CalculationsAndCharts!$A85+$A$11,IF($C$5,8,0),1,1)) -> 13160.03027 | J85: 979.0477422 | K85: 37.65568239 | L85: =IF(A85>$L$30,NA(),IF(A85=$L$30,AVERAGE(OFFSET(K85,0,0,$A$18,1)),$C$18*(K85-L86)+L86)) -> 6.288353742 | M85: 628.8353742 | N85: 48.37195186 | P85: =IF(A85>$J$30,NA(),(L85*$I$33)-SUMPRODUCT(OFFSET(L86,0,0,$A$17,1),OFFSET($H$33,0,0,$A$17,1))) -> -38.3207637 | Q85: =IF(A85>$J$30,NA(),P85/$A$17) -> -1.473875527 | R85: =IF(A85>$J$30,NA(),Q85*100) -> -147.3875527 | BC85: 5253710000
A86: 54 | B86: =IF(A86>$A$8,"",OFFSET(InputPriceData!B$15,$A86+$A$11,0,1,1)) -> 2023-04-26 | C86: =IF(A86>$A$8,"",OFFSET(InputPriceData!G$15,CalculationsAndCharts!$A86+$A$11,IF($C$5,8,0),1,1)) -> 5281970000 | D86: =IF(A86>$A$8,"",OFFSET(InputPriceData!C$15,CalculationsAndCharts!$A86+$A$11,IF($C$5,8,0),1,1)) -> 12866.63965 | E86: =IF(A86>$A$8,"",OFFSET(InputPriceData!D$15,CalculationsAndCharts!$A86+$A$11,IF($C$5,8,0),1,1)) -> 12929.62012 | F86: =IF(A86>$A$8,"",OFFSET(InputPriceData!E$15,CalculationsAndCharts!$A86+$A$11,IF($C$5,8,0),1,1)) -> 12783.41992 | G86: =IF(A86>$A$8,"",OFFSET(InputPriceData!F$15,CalculationsAndCharts!$A86+$A$11,IF($C$5,8,0),1,1)) -> 12806.48047 | J86: -422.4884066 | K86: -16.2495541 | L86: =IF(A86>$L$30,NA(),IF(A86=$L$30,AVERAGE(OFFSET(K86,0,0,$A$18,1)),$C$18*(K86-L87)+L87)) -> -1.553478421 | M86: -155.3478421 | N86: -11.94983401 | P86: =IF(A86>$J$30,NA(),(L86*$I$33)-SUMPRODUCT(OFFSET(L87,0,0,$A$17,1),OFFSET($H$33,0,0,$A$17,1))) -> -81.06692426 | Q86: =IF(A86>$J$30,NA(),P86/$A$17) -> -3.117958625 | R86: =IF(A86>$J$30,NA(),Q86*100) -> -311.7958625 | BC86: 5281970000
A87: 55 | B87: =IF(A87>$A$8,"",OFFSET(InputPriceData!B$15,$A87+$A$11,0,1,1)) -> 2023-04-25 | C87: =IF(A87>$A$8,"",OFFSET(InputPriceData!G$15,CalculationsAndCharts!$A87+$A$11,IF($C$5,8,0),1,1)) -> 4806020000 | D87: =IF(A87>$A$8,"",OFFSET(InputPriceData!C$15,CalculationsAndCharts!$A87+$A$11,IF($C$5,8,0),1,1)) -> 12905.08984 | E87: =IF(A87>$A$8,"",OFFSET(InputPriceData!D$15,CalculationsAndCharts!$A87+$A$11,IF($C$5,8,0),1,1)) -> 12933.28027 | F87: =IF(A87>$A$8,"",OFFSET(InputPriceData!E$15,CalculationsAndCharts!$A87+$A$11,IF($C$5,8,0),1,1)) -> 12724.24023 | G87: =IF(A87>$A$8,"",OFFSET(InputPriceData!F$15,CalculationsAndCharts!$A87+$A$11,IF($C$5,8,0),1,1)) -> 12725.11035 | J87: -983.9675884 | K87: -37.84490725 | L87: =IF(A87>$L$30,NA(),IF(A87=$L$30,AVERAGE(OFFSET(K87,0,0,$A$18,1)),$C$18*(K87-L88)+L88)) -> 2.120540499 | M87: 212.0540499 | N87: 16.31184999 | P87: =IF(A87>$J$30,NA(),(L87*$I$33)-SUMPRODUCT(OFFSET(L88,0,0,$A$17,1),OFFSET($H$33,0,0,$A$17,1))) -> -81.87470367 | Q87: =IF(A87>$J$30,NA(),P87/$A$17) -> -3.149027064 | R87: =IF(A87>$J$30,NA(),Q87*100) -> -314.9027064 | BD87: 4806020000
A88: 56 | B88: =IF(A88>$A$8,"",OFFSET(InputPriceData!B$15,$A88+$A$11,0,1,1)) -> 2023-04-24 | C88: =IF(A88>$A$8,"",OFFSET(InputPriceData!G$15,CalculationsAndCharts!$A88+$A$11,IF($C$5,8,0),1,1)) -> 4854050000 | D88: =IF(A88>$A$8,"",OFFSET(InputPriceData!C$15,CalculationsAndCharts!$A88+$A$11,IF($C$5,8,0),1,1)) -> 12981.70996 | E88: =IF(A88>$A$8,"",OFFSET(InputPriceData!D$15,CalculationsAndCharts!$A88+$A$11,IF($C$5,8,0),1,1)) -> 13044.21973 | F88: =IF(A88>$A$8,"",OFFSET(InputPriceData!E$15,CalculationsAndCharts!$A88+$A$11,IF($C$5,8,0),1,1)) -> 12883.76953 | G88: =IF(A88>$A$8,"",OFFSET(InputPriceData!F$15,CalculationsAndCharts!$A88+$A$11,IF($C$5,8,0),1,1)) -> 12969.75977 | J88: -65.59361894 | K88: -2.522831498 | L88: =IF(A88>$L$30,NA(),IF(A88=$L$30,AVERAGE(OFFSET(K88,0,0,$A$18,1)),$C$18*(K88-L89)+L89)) -> 12.11190243 | M88: 1211.190243 | N88: 93.16848027 | P88: =IF(A88>$J$30,NA(),(L88*$I$33)-SUMPRODUCT(OFFSET(L89,0,0,$A$17,1),OFFSET($H$33,0,0,$A$17,1))) -> -51.15723978 | Q88: =IF(A88>$J$30,NA(),P88/$A$17) -> -1.967586145 | R88: =IF(A88>$J$30,NA(),Q88*100) -> -196.7586145 | BD88: 4854050000
A89: 57 | B89: =IF(A89>$A$8,"",OFFSET(InputPriceData!B$15,$A89+$A$11,0,1,1)) -> 2023-04-21 | C89: =IF(A89>$A$8,"",OFFSET(InputPriceData!G$15,CalculationsAndCharts!$A89+$A$11,IF($C$5,8,0),1,1)) -> 4868050000 | D89: =IF(A89>$A$8,"",OFFSET(InputPriceData!C$15,CalculationsAndCharts!$A89+$A$11,IF($C$5,8,0),1,1)) -> 12970.32031 | E89: =IF(A89>$A$8,"",OFFSET(InputPriceData!D$15,CalculationsAndCharts!$A89+$A$11,IF($C$5,8,0),1,1)) -> 13030.84961 | F89: =IF(A89>$A$8,"",OFFSET(InputPriceData!E$15,CalculationsAndCharts!$A89+$A$11,IF($C$5,8,0),1,1)) -> 12899.63965 | G89: =IF(A89>$A$8,"",OFFSET(InputPriceData!F$15,CalculationsAndCharts!$A89+$A$11,IF($C$5,8,0),1,1)) -> 13000.76953 | J89: 66.3172049 | K89: 2.550661727 | L89: =IF(A89>$L$30,NA(),IF(A89=$L$30,AVERAGE(OFFSET(K89,0,0,$A$18,1)),$C$18*(K89-L90)+L90)) -> 15.77058592 | M89: 1577.058592 | N89: 121.3121994 | P89: =IF(A89>$J$30,NA(),(L89*$I$33)-SUMPRODUCT(OFFSET(L90,0,0,$A$17,1),OFFSET($H$33,0,0,$A$17,1))) -> -43.53150245 | Q89: =IF(A89>$J$30,NA(),P89/$A$17) -> -1.674288556 | R89: =IF(A89>$J$30,NA(),Q89*100) -> -167.4288556 | BC89: 4868050000
A90: 58 | B90: =IF(A90>$A$8,"",OFFSET(InputPriceData!B$15,$A90+$A$11,0,1,1)) -> 2023-04-20 | C90: =IF(A90>$A$8,"",OFFSET(InputPriceData!G$15,CalculationsAndCharts!$A90+$A$11,IF($C$5,8,0),1,1)) -> 4590530000 | D90: =IF(A90>$A$8,"",OFFSET(InputPriceData!C$15,CalculationsAndCharts!$A90+$A$11,IF($C$5,8,0),1,1)) -> 12962.29004 | E90: =IF(A90>$A$8,"",OFFSET(InputPriceData!D$15,CalculationsAndCharts!$A90+$A$11,IF($C$5,8,0),1,1)) -> 13107.91992 | F90: =IF(A90>$A$8,"",OFFSET(InputPriceData!E$15,CalculationsAndCharts!$A90+$A$11,IF($C$5,8,0),1,1)) -> 12933.79981 | G90: =IF(A90>$A$8,"",OFFSET(InputPriceData!F$15,CalculationsAndCharts!$A90+$A$11,IF($C$5,8,0),1,1)) -> 12985.98047 | J90: -38.19181419 | K90: -1.46891593 | L90: =IF(A90>$L$30,NA(),IF(A90=$L$30,AVERAGE(OFFSET(K90,0,0,$A$18,1)),$C$18*(K90-L91)+L91)) -> 19.07556697 | M90: 1907.556697 | N90: 146.7351305 | P90: =IF(A90>$J$30,NA(),(L90*$I$33)-SUMPRODUCT(OFFSET(L91,0,0,$A$17,1),OFFSET($H$33,0,0,$A$17,1))) -> -36.89848096 | Q90: =IF(A90>$J$30,NA(),P90/$A$17) -> -1.419172345 | R90: =IF(A90>$J$30,NA(),Q90*100) -> -141.9172345 | BD90: 4590530000
A91: 59 | B91: =IF(A91>$A$8,"",OFFSET(InputPriceData!B$15,$A91+$A$11,0,1,1)) -> 2023-04-19 | C91: =IF(A91>$A$8,"",OFFSET(InputPriceData!G$15,CalculationsAndCharts!$A91+$A$11,IF($C$5,8,0),1,1)) -> 4972700000 | D91: =IF(A91>$A$8,"",OFFSET(InputPriceData!C$15,CalculationsAndCharts!$A91+$A$11,IF($C$5,8,0),1,1)) -> 12992.50977 | E91: =IF(A91>$A$8,"",OFFSET(InputPriceData!D$15,CalculationsAndCharts!$A91+$A$11,IF($C$5,8,0),1,1)) -> 13128.25 | F91: =IF(A91>$A$8,"",OFFSET(InputPriceData!E$15,CalculationsAndCharts!$A91+$A$11,IF($C$5,8,0),1,1)) -> 12988.20019 | G91: =IF(A91>$A$8,"",OFFSET(InputPriceData!F$15,CalculationsAndCharts!$A91+$A$11,IF($C$5,8,0),1,1)) -> 13088.70996 | J91: 428.7811961 | K91: 16.49158446 | L91: =IF(A91>$L$30,NA(),IF(A91=$L$30,AVERAGE(OFFSET(K91,0,0,$A$18,1)),$C$18*(K91-L92)+L92)) -> 24.21168769 | M91: 2421.168769 | N91: 186.2437515 | P91: =IF(A91>$J$30,NA(),(L91*$I$33)-SUMPRODUCT(OFFSET(L92,0,0,$A$17,1),OFFSET($H$33,0,0,$A$17,1))) -> -19.22033512 | Q91: =IF(A91>$J$30,NA(),P91/$A$17) -> -0.7392436583 | R91: =IF(A91>$J$30,NA(),Q91*100) -> -73.92436583 | BD91: 4972700000
A92: 60 | B92: =IF(A92>$A$8,"",OFFSET(InputPriceData!B$15,$A92+$A$11,0,1,1)) -> 2023-04-18 | C92: =IF(A92>$A$8,"",OFFSET(InputPriceData!G$15,CalculationsAndCharts!$A92+$A$11,IF($C$5,8,0),1,1)) -> 4851810000 | D92: =IF(A92>$A$8,"",OFFSET(InputPriceData!C$15,CalculationsAndCharts!$A92+$A$11,IF($C$5,8,0),1,1)) -> 13180.30957 | E92: =IF(A92>$A$8,"",OFFSET(InputPriceData!D$15,CalculationsAndCharts!$A92+$A$11,IF($C$5,8,0),1,1)) -> 13196.17969 | F92: =IF(A92>$A$8,"",OFFSET(InputPriceData!E$15,CalculationsAndCharts!$A92+$A$11,IF($C$5,8,0),1,1)) -> 13044.20996 | G92: =IF(A92>$A$8,"",OFFSET(InputPriceData!F$15,CalculationsAndCharts!$A92+$A$11,IF($C$5,8,0),1,1)) -> 13091.79004 | J92: 529.5101079 | K92: 20.36577338 | L92: =IF(A92>$L$30,NA(),IF(A92=$L$30,AVERAGE(OFFSET(K92,0,0,$A$18,1)),$C$18*(K92-L93)+L93)) -> 26.1417135 | M92: 2614.17135 | N92: 201.0901038 | P92: =IF(A92>$J$30,NA(),(L92*$I$33)-SUMPRODUCT(OFFSET(L93,0,0,$A$17,1),OFFSET($H$33,0,0,$A$17,1))) -> -13.14787154 | Q92: =IF(A92>$J$30,NA(),P92/$A$17) -> -0.5056873668 | R92: =IF(A92>$J$30,NA(),Q92*100) -> -50.56873668 | BC92: 4851810000
A93: 61 | B93: =IF(A93>$A$8,"",OFFSET(InputPriceData!B$15,$A93+$A$11,0,1,1)) -> 2023-04-17 | C93: =IF(A93>$A$8,"",OFFSET(InputPriceData!G$15,CalculationsAndCharts!$A93+$A$11,IF($C$5,8,0),1,1)) -> 4823180000 | D93: =IF(A93>$A$8,"",OFFSET(InputPriceData!C$15,CalculationsAndCharts!$A93+$A$11,IF($C$5,8,0),1,1)) -> 13053.25977 | E93: =IF(A93>$A$8,"",OFFSET(InputPriceData!D$15,CalculationsAndCharts!$A93+$A$11,IF($C$5,8,0),1,1)) -> 13105.67969 | F93: =IF(A93>$A$8,"",OFFSET(InputPriceData!E$15,CalculationsAndCharts!$A93+$A$11,IF($C$5,8,0),1,1)) -> 12981.25977 | G93: =IF(A93>$A$8,"",OFFSET(InputPriceData!F$15,CalculationsAndCharts!$A93+$A$11,IF($C$5,8,0),1,1)) -> 13087.70996 | J93: 608.0762031 | K93: 23.38754627 | L93: =IF(A93>$L$30,NA(),IF(A93=$L$30,AVERAGE(OFFSET(K93,0,0,$A$18,1)),$C$18*(K93-L94)+L94)) -> 27.58569853 | M93: 2758.569853 | N93: 212.197681 | P93: =IF(A93>$J$30,NA(),(L93*$I$33)-SUMPRODUCT(OFFSET(L94,0,0,$A$17,1),OFFSET($H$33,0,0,$A$17,1))) -> -8.71682356 | Q93: =IF(A93>$J$30,NA(),P93/$A$17) -> -0.3352624446 | R93: =IF(A93>$J$30,NA(),Q93*100) -> -33.52624446 | BC93: 4823180000
A94: 62 | B94: =IF(A94>$A$8,"",OFFSET(InputPriceData!B$15,$A94+$A$11,0,1,1)) -> 2023-04-14 | C94: =IF(A94>$A$8,"",OFFSET(InputPriceData!G$15,CalculationsAndCharts!$A94+$A$11,IF($C$5,8,0),1,1)) -> 4655740000 | D94: =IF(A94>$A$8,"",OFFSET(InputPriceData!C$15,CalculationsAndCharts!$A94+$A$11,IF($C$5,8,0),1,1)) -> 13044.69043 | E94: =IF(A94>$A$8,"",OFFSET(InputPriceData!D$15,CalculationsAndCharts!$A94+$A$11,IF($C$5,8,0),1,1)) -> 13152.28027 | F94: =IF(A94>$A$8,"",OFFSET(InputPriceData!E$15,CalculationsAndCharts!$A94+$A$11,IF($C$5,8,0),1,1)) -> 12962.50977 | G94: =IF(A94>$A$8,"",OFFSET(InputPriceData!F$15,CalculationsAndCharts!$A94+$A$11,IF($C$5,8,0),1,1)) -> 13079.51953 | J94: 672.6980861 | K94: 25.87300331 | L94: =IF(A94>$L$30,NA(),IF(A94=$L$30,AVERAGE(OFFSET(K94,0,0,$A$18,1)),$C$18*(K94-L95)+L95)) -> 28.63523659 | M94: 2863.523659 | N94: 220.2710507 | P94: =IF(A94>$J$30,NA(),(L94*$I$33)-SUMPRODUCT(OFFSET(L95,0,0,$A$17,1),OFFSET($H$33,0,0,$A$17,1))) -> -5.746983365 | Q94: =IF(A94>$J$30,NA(),P94/$A$17) -> -0.2210378217 | R94: =IF(A94>$J$30,NA(),Q94*100) -> -22.10378217 | BD94: 4655740000
A95: 63 | B95: =IF(A95>$A$8,"",OFFSET(InputPriceData!B$15,$A95+$A$11,0,1,1)) -> 2023-04-13 | C95: =IF(A95>$A$8,"",OFFSET(InputPriceData!G$15,CalculationsAndCharts!$A95+$A$11,IF($C$5,8,0),1,1)) -> 4942990000 | D95: =IF(A95>$A$8,"",OFFSET(InputPriceData!C$15,CalculationsAndCharts!$A95+$A$11,IF($C$5,8,0),1,1)) -> 12922.90039 | E95: =IF(A95>$A$8,"",OFFSET(InputPriceData!D$15,CalculationsAndCharts!$A95+$A$11,IF($C$5,8,0),1,1)) -> 13124.41016 | F95: =IF(A95>$A$8,"",OFFSET(InputPriceData!E$15,CalculationsAndCharts!$A95+$A$11,IF($C$5,8,0),1,1)) -> 12920.01953 | G95: =IF(A95>$A$8,"",OFFSET(InputPriceData!F$15,CalculationsAndCharts!$A95+$A$11,IF($C$5,8,0),1,1)) -> 13109.38965 | J95: 1024.528151 | K95: 39.4049289 | L95: =IF(A95>$L$30,NA(),IF(A95=$L$30,AVERAGE(OFFSET(K95,0,0,$A$18,1)),$C$18*(K95-L96)+L96)) -> 29.32579491 | M95: 2932.579491 | N95: 225.5830378 | P95: =IF(A95>$J$30,NA(),(L95*$I$33)-SUMPRODUCT(OFFSET(L96,0,0,$A$17,1),OFFSET($H$33,0,0,$A$17,1))) -> -3.851532823 | Q95: =IF(A95>$J$30,NA(),P95/$A$17) -> -0.1481358778 | R95: =IF(A95>$J$30,NA(),Q95*100) -> -14.81358778 | BC95: 4942990000
A96: 64 | B96: =IF(A96>$A$8,"",OFFSET(InputPriceData!B$15,$A96+$A$11,0,1,1)) -> 2023-04-12 | C96: =IF(A96>$A$8,"",OFFSET(InputPriceData!G$15,CalculationsAndCharts!$A96+$A$11,IF($C$5,8,0),1,1)) -> 4909770000 | D96: =IF(A96>$A$8,"",OFFSET(InputPriceData!C$15,CalculationsAndCharts!$A96+$A$11,IF($C$5,8,0),1,1)) -> 13043.96973 | E96: =IF(A96>$A$8,"",OFFSET(InputPriceData!D$15,CalculationsAndCharts!$A96+$A$11,IF($C$5,8,0),1,1)) -> 13071.98047 | F96: =IF(A96>$A$8,"",OFFSET(InputPriceData!E$15,CalculationsAndCharts!$A96+$A$11,IF($C$5,8,0),1,1)) -> 12833.30957 | G96: =IF(A96>$A$8,"",OFFSET(InputPriceData!F$15,CalculationsAndCharts!$A96+$A$11,IF($C$5,8,0),1,1)) -> 12848.34961 | J96: -79.03969797 | K96: -3.039988383 | L96: =IF(A96>$L$30,NA(),IF(A96=$L$30,AVERAGE(OFFSET(K96,0,0,$A$18,1)),$C$18*(K96-L97)+L97)) -> 26.80601141 | M96: 2680.601141 | N96: 206.2000878 | P96: =IF(A96>$J$30,NA(),(L96*$I$33)-SUMPRODUCT(OFFSET(L97,0,0,$A$17,1),OFFSET($H$33,0,0,$A$17,1))) -> -21.62159754 | Q96: =IF(A96>$J$30,NA(),P96/$A$17) -> -0.8315999055 | R96: =IF(A96>$J$30,NA(),Q96*100) -> -83.15999055 | BD96: 4909770000
A97: 65 | B97: =IF(A97>$A$8,"",OFFSET(InputPriceData!B$15,$A97+$A$11,0,1,1)) -> 2023-04-11 | C97: =IF(A97>$A$8,"",OFFSET(InputPriceData!G$15,CalculationsAndCharts!$A97+$A$11,IF($C$5,8,0),1,1)) -> 4676960000 | D97: =IF(A97>$A$8,"",OFFSET(InputPriceData!C$15,CalculationsAndCharts!$A97+$A$11,IF($C$5,8,0),1,1)) -> 13040.49023 | E97: =IF(A97>$A$8,"",OFFSET(InputPriceData!D$15,CalculationsAndCharts!$A97+$A$11,IF($C$5,8,0),1,1)) -> 13049.55957 | F97: =IF(A97>$A$8,"",OFFSET(InputPriceData!E$15,CalculationsAndCharts!$A97+$A$11,IF($C$5,8,0),1,1)) -> 12947.66016 | G97: =IF(A97>$A$8,"",OFFSET(InputPriceData!F$15,CalculationsAndCharts!$A97+$A$11,IF($C$5,8,0),1,1)) -> 12964.15039 | J97: 348.5942009 | K97: 13.40746927 | L97: =IF(A97>$L$30,NA(),IF(A97=$L$30,AVERAGE(OFFSET(K97,0,0,$A$18,1)),$C$18*(K97-L98)+L98)) -> 34.26751136 | M97: 3426.751136 | N97: 263.5962412 | P97: =IF(A97>$J$30,NA(),(L97*$I$33)-SUMPRODUCT(OFFSET(L98,0,0,$A$17,1),OFFSET($H$33,0,0,$A$17,1))) -> 3.736106895 | Q97: =IF(A97>$J$30,NA(),P97/$A$17) -> 0.143696419 | R97: =IF(A97>$J$30,NA(),Q97*100) -> 14.3696419 | BD97: 4676960000
A98: 66 | B98: =IF(A98>$A$8,"",OFFSET(InputPriceData!B$15,$A98+$A$11,0,1,1)) -> 2023-04-10 | C98: =IF(A98>$A$8,"",OFFSET(InputPriceData!G$15,CalculationsAndCharts!$A98+$A$11,IF($C$5,8,0),1,1)) -> 4334070000 | D98: =IF(A98>$A$8,"",OFFSET(InputPriceData!C$15,CalculationsAndCharts!$A98+$A$11,IF($C$5,8,0),1,1)) -> 12936.51953 | E98: =IF(A98>$A$8,"",OFFSET(InputPriceData!D$15,CalculationsAndCharts!$A98+$A$11,IF($C$5,8,0),1,1)) -> 13051.84961 | F98: =IF(A98>$A$8,"",OFFSET(InputPriceData!E$15,CalculationsAndCharts!$A98+$A$11,IF($C$5,8,0),1,1)) -> 12861.51953 | G98: =IF(A98>$A$8,"",OFFSET(InputPriceData!F$15,CalculationsAndCharts!$A98+$A$11,IF($C$5,8,0),1,1)) -> 13051.23047 | H98: =IF(A98<=$A$17,1/A98,NA()) ->  | J98: =IF(A98>$J$30,NA(),(G98*$I$33)-SUMPRODUCT(OFFSET(G99,0,0,$A$17,1),OFFSET($H$33,0,0,$A$17,1))) -> 769.14195 | K98: =IF(A98>$J$30,NA(),J98/$A$17) -> 29.58238269 | L98: =IF(A98>$L$30,NA(),IF(A98=$L$30,AVERAGE(OFFSET(K98,0,0,$A$18,1)),$C$18*(K98-L99)+L99)) -> 39.48252188 | M98: =IF(A98>$L$30,NA(),L98*100) -> 3948.252188 | N98: =IF(A98>$L$30,NA(),M98/$A$17*2) -> 303.7117068 | P98: =IF(A98>$J$30,NA(),(L98*$I$33)-SUMPRODUCT(OFFSET(L99,0,0,$A$17,1),OFFSET($H$33,0,0,$A$17,1))) -> 24.56551764 | Q98: =IF(A98>$J$30,NA(),P98/$A$17) -> 0.9448276015 | R98: =IF(A98>$J$30,NA(),Q98*100) -> 94.48276015 | BD98: 4334070000
A99: 67 | B99: =IF(A99>$A$8,"",OFFSET(InputPriceData!B$15,$A99+$A$11,0,1,1)) -> 2023-04-06 | C99: =IF(A99>$A$8,"",OFFSET(InputPriceData!G$15,CalculationsAndCharts!$A99+$A$11,IF($C$5,8,0),1,1)) -> 3862800000 | D99: =IF(A99>$A$8,"",OFFSET(InputPriceData!C$15,CalculationsAndCharts!$A99+$A$11,IF($C$5,8,0),1,1)) -> 12892.90039 | E99: =IF(A99>$A$8,"",OFFSET(InputPriceData!D$15,CalculationsAndCharts!$A99+$A$11,IF($C$5,8,0),1,1)) -> 13078.09961 | F99: =IF(A99>$A$8,"",OFFSET(InputPriceData!E$15,CalculationsAndCharts!$A99+$A$11,IF($C$5,8,0),1,1)) -> 12846.03027 | G99: =IF(A99>$A$8,"",OFFSET(InputPriceData!F$15,CalculationsAndCharts!$A99+$A$11,IF($C$5,8,0),1,1)) -> 13062.59961 | J99: 948.7609544 | K99: 36.49080594 | L99: =IF(A99>$L$30,NA(),IF(A99=$L$30,AVERAGE(OFFSET(K99,0,0,$A$18,1)),$C$18*(K99-L100)+L100)) -> 41.95755668 | M99: 4195.755668 | N99: 322.750436 | P99: =IF(A99>$J$30,NA(),(L99*$I$33)-SUMPRODUCT(OFFSET(L100,0,0,$A$17,1),OFFSET($H$33,0,0,$A$17,1))) -> 36.46416474 | Q99: =IF(A99>$J$30,NA(),P99/$A$17) -> 1.402467875 | R99: =IF(A99>$J$30,NA(),Q99*100) -> 140.2467875 | BC99: 3862800000
A100: 68 | B100: =IF(A100>$A$8,"",OFFSET(InputPriceData!B$15,$A100+$A$11,0,1,1)) -> 2023-04-05 | C100: =IF(A100>$A$8,"",OFFSET(InputPriceData!G$15,CalculationsAndCharts!$A100+$A$11,IF($C$5,8,0),1,1)) -> 4378590000 | D100: =IF(A100>$A$8,"",OFFSET(InputPriceData!C$15,CalculationsAndCharts!$A100+$A$11,IF($C$5,8,0),1,1)) -> 13056.79004 | E100: =IF(A100>$A$8,"",OFFSET(InputPriceData!D$15,CalculationsAndCharts!$A100+$A$11,IF($C$5,8,0),1,1)) -> 13065.28027 | F100: =IF(A100>$A$8,"",OFFSET(InputPriceData!E$15,CalculationsAndCharts!$A100+$A$11,IF($C$5,8,0),1,1)) -> 12894.44043 | G100: =IF(A100>$A$8,"",OFFSET(InputPriceData!F$15,CalculationsAndCharts!$A100+$A$11,IF($C$5,8,0),1,1)) -> 12967.20019 | J100: 562.1089632 | K100: 21.61957551 | L100: =IF(A100>$L$30,NA(),IF(A100=$L$30,AVERAGE(OFFSET(K100,0,0,$A$18,1)),$C$18*(K100-L101)+L101)) -> 43.32424436 | M100: 4332.424436 | N100: 333.2634182 | P100: =IF(A100>$J$30,NA(),(L100*$I$33)-SUMPRODUCT(OFFSET(L101,0,0,$A$17,1),OFFSET($H$33,0,0,$A$17,1))) -> 43.55884231 | Q100: =IF(A100>$J$30,NA(),P100/$A$17) -> 1.675340089 | R100: =IF(A100>$J$30,NA(),Q100*100) -> 167.5340089 | BD100: 4378590000
A101: 69 | B101: =IF(A101>$A$8,"",OFFSET(InputPriceData!B$15,$A101+$A$11,0,1,1)) -> 2023-04-04 | C101: =IF(A101>$A$8,"",OFFSET(InputPriceData!G$15,CalculationsAndCharts!$A101+$A$11,IF($C$5,8,0),1,1)) -> 4298760000 | D101: =IF(A101>$A$8,"",OFFSET(InputPriceData!C$15,CalculationsAndCharts!$A101+$A$11,IF($C$5,8,0),1,1)) -> 13165.32031 | E101: =IF(A101>$A$8,"",OFFSET(InputPriceData!D$15,CalculationsAndCharts!$A101+$A$11,IF($C$5,8,0),1,1)) -> 13204.08008 | F101: =IF(A101>$A$8,"",OFFSET(InputPriceData!E$15,CalculationsAndCharts!$A101+$A$11,IF($C$5,8,0),1,1)) -> 13049.98047 | G101: =IF(A101>$A$8,"",OFFSET(InputPriceData!F$15,CalculationsAndCharts!$A101+$A$11,IF($C$5,8,0),1,1)) -> 13100.08008 | J101: 1191.09485 | K101: 45.81134038 | L101: =IF(A101>$L$30,NA(),IF(A101=$L$30,AVERAGE(OFFSET(K101,0,0,$A$18,1)),$C$18*(K101-L102)+L102)) -> 48.75041158 | M101: 4875.041158 | N101: 375.003166 | P101: =IF(A101>$J$30,NA(),(L101*$I$33)-SUMPRODUCT(OFFSET(L102,0,0,$A$17,1),OFFSET($H$33,0,0,$A$17,1))) -> 73.04870716 | Q101: =IF(A101>$J$30,NA(),P101/$A$17) -> 2.80956566 | R101: =IF(A101>$J$30,NA(),Q101*100) -> 280.956566 | BD101: 4298760000
A102: 70 | B102: =IF(A102>$A$8,"",OFFSET(InputPriceData!B$15,$A102+$A$11,0,1,1)) -> 2023-04-03 | C102: =IF(A102>$A$8,"",OFFSET(InputPriceData!G$15,CalculationsAndCharts!$A102+$A$11,IF($C$5,8,0),1,1)) -> 4816440000 | D102: =IF(A102>$A$8,"",OFFSET(InputPriceData!C$15,CalculationsAndCharts!$A102+$A$11,IF($C$5,8,0),1,1)) -> 13084.09961 | E102: =IF(A102>$A$8,"",OFFSET(InputPriceData!D$15,CalculationsAndCharts!$A102+$A$11,IF($C$5,8,0),1,1)) -> 13157.46973 | F102: =IF(A102>$A$8,"",OFFSET(InputPriceData!E$15,CalculationsAndCharts!$A102+$A$11,IF($C$5,8,0),1,1)) -> 13036.54981 | G102: =IF(A102>$A$8,"",OFFSET(InputPriceData!F$15,CalculationsAndCharts!$A102+$A$11,IF($C$5,8,0),1,1)) -> 13148.34961 | J102: 1587.926712 | K102: 61.0741043 | L102: =IF(A102>$L$30,NA(),IF(A102=$L$30,AVERAGE(OFFSET(K102,0,0,$A$18,1)),$C$18*(K102-L103)+L103)) -> 49.48517938 | M102: 4948.517938 | N102: 380.655226 | P102: =IF(A102>$J$30,NA(),(L102*$I$33)-SUMPRODUCT(OFFSET(L103,0,0,$A$17,1),OFFSET($H$33,0,0,$A$17,1))) -> 88.81379179 | Q102: =IF(A102>$J$30,NA(),P102/$A$17) -> 3.415915069 | R102: =IF(A102>$J$30,NA(),Q102*100) -> 341.5915069 | BD102: 4816440000
A103: 71 | B103: =IF(A103>$A$8,"",OFFSET(InputPriceData!B$15,$A103+$A$11,0,1,1)) -> 2023-03-31 | C103: =IF(A103>$A$8,"",OFFSET(InputPriceData!G$15,CalculationsAndCharts!$A103+$A$11,IF($C$5,8,0),1,1)) -> 5521150000 | D103: =IF(A103>$A$8,"",OFFSET(InputPriceData!C$15,CalculationsAndCharts!$A103+$A$11,IF($C$5,8,0),1,1)) -> 12968.95996 | E103: =IF(A103>$A$8,"",OFFSET(InputPriceData!D$15,CalculationsAndCharts!$A103+$A$11,IF($C$5,8,0),1,1)) -> 13188.83008 | F103: =IF(A103>$A$8,"",OFFSET(InputPriceData!E$15,CalculationsAndCharts!$A103+$A$11,IF($C$5,8,0),1,1)) -> 12968 | G103: =IF(A103>$A$8,"",OFFSET(InputPriceData!F$15,CalculationsAndCharts!$A103+$A$11,IF($C$5,8,0),1,1)) -> 13181.34961 | J103: 2099.336886 | K103: 80.74372639 | L103: =IF(A103>$L$30,NA(),IF(A103=$L$30,AVERAGE(OFFSET(K103,0,0,$A$18,1)),$C$18*(K103-L104)+L104)) -> 46.58794815 | M103: 4658.794815 | N103: 358.3688319 | P103: =IF(A103>$J$30,NA(),(L103*$I$33)-SUMPRODUCT(OFFSET(L104,0,0,$A$17,1),OFFSET($H$33,0,0,$A$17,1))) -> 93.06336631 | Q103: =IF(A103>$J$30,NA(),P103/$A$17) -> 3.579360243 | R103: =IF(A103>$J$30,NA(),Q103*100) -> 357.9360243 | BC103: 5521150000
A104: 72 | B104: =IF(A104>$A$8,"",OFFSET(InputPriceData!B$15,$A104+$A$11,0,1,1)) -> 2023-03-30 | C104: =IF(A104>$A$8,"",OFFSET(InputPriceData!G$15,CalculationsAndCharts!$A104+$A$11,IF($C$5,8,0),1,1)) -> 4738880000 | D104: =IF(A104>$A$8,"",OFFSET(InputPriceData!C$15,CalculationsAndCharts!$A104+$A$11,IF($C$5,8,0),1,1)) -> 12934.99023 | E104: =IF(A104>$A$8,"",OFFSET(InputPriceData!D$15,CalculationsAndCharts!$A104+$A$11,IF($C$5,8,0),1,1)) -> 12987.96973 | F104: =IF(A104>$A$8,"",OFFSET(InputPriceData!E$15,CalculationsAndCharts!$A104+$A$11,IF($C$5,8,0),1,1)) -> 12894.13965 | G104: =IF(A104>$A$8,"",OFFSET(InputPriceData!F$15,CalculationsAndCharts!$A104+$A$11,IF($C$5,8,0),1,1)) -> 12963.13965 | J104: 1524.445103 | K104: 58.63250398 | L104: =IF(A104>$L$30,NA(),IF(A104=$L$30,AVERAGE(OFFSET(K104,0,0,$A$18,1)),$C$18*(K104-L105)+L105)) -> 38.04900359 | M104: 3804.900359 | N104: 292.684643 | P104: =IF(A104>$J$30,NA(),(L104*$I$33)-SUMPRODUCT(OFFSET(L105,0,0,$A$17,1),OFFSET($H$33,0,0,$A$17,1))) -> 70.43056492 | Q104: =IF(A104>$J$30,NA(),P104/$A$17) -> 2.708867881 | R104: =IF(A104>$J$30,NA(),Q104*100) -> 270.8867881 | BC104: 4738880000
A105: 73 | B105: =IF(A105>$A$8,"",OFFSET(InputPriceData!B$15,$A105+$A$11,0,1,1)) -> 2023-03-29 | C105: =IF(A105>$A$8,"",OFFSET(InputPriceData!G$15,CalculationsAndCharts!$A105+$A$11,IF($C$5,8,0),1,1)) -> 4493540000 | D105: =IF(A105>$A$8,"",OFFSET(InputPriceData!C$15,CalculationsAndCharts!$A105+$A$11,IF($C$5,8,0),1,1)) -> 12768.13965 | E105: =IF(A105>$A$8,"",OFFSET(InputPriceData!D$15,CalculationsAndCharts!$A105+$A$11,IF($C$5,8,0),1,1)) -> 12867.32031 | F105: =IF(A105>$A$8,"",OFFSET(InputPriceData!E$15,CalculationsAndCharts!$A105+$A$11,IF($C$5,8,0),1,1)) -> 12734.67969 | G105: =IF(A105>$A$8,"",OFFSET(InputPriceData!F$15,CalculationsAndCharts!$A105+$A$11,IF($C$5,8,0),1,1)) -> 12846.03027 | J105: 1332.462656 | K105: 51.24856368 | L105: =IF(A105>$L$30,NA(),IF(A105=$L$30,AVERAGE(OFFSET(K105,0,0,$A$18,1)),$C$18*(K105-L106)+L106)) -> 32.90312849 | M105: 3290.312849 | N105: 253.1009884 | P105: =IF(A105>$J$30,NA(),(L105*$I$33)-SUMPRODUCT(OFFSET(L106,0,0,$A$17,1),OFFSET($H$33,0,0,$A$17,1))) -> 57.69381932 | Q105: =IF(A105>$J$30,NA(),P105/$A$17) -> 2.218993051 | R105: =IF(A105>$J$30,NA(),Q105*100) -> 221.8993051 | BC105: 4493540000
A106: 74 | B106: =IF(A106>$A$8,"",OFFSET(InputPriceData!B$15,$A106+$A$11,0,1,1)) -> 2023-03-28 | C106: =IF(A106>$A$8,"",OFFSET(InputPriceData!G$15,CalculationsAndCharts!$A106+$A$11,IF($C$5,8,0),1,1)) -> 4036910000 | D106: =IF(A106>$A$8,"",OFFSET(InputPriceData!C$15,CalculationsAndCharts!$A106+$A$11,IF($C$5,8,0),1,1)) -> 12654.91016 | E106: =IF(A106>$A$8,"",OFFSET(InputPriceData!D$15,CalculationsAndCharts!$A106+$A$11,IF($C$5,8,0),1,1)) -> 12654.91016 | F106: =IF(A106>$A$8,"",OFFSET(InputPriceData!E$15,CalculationsAndCharts!$A106+$A$11,IF($C$5,8,0),1,1)) -> 12517.87012 | G106: =IF(A106>$A$8,"",OFFSET(InputPriceData!F$15,CalculationsAndCharts!$A106+$A$11,IF($C$5,8,0),1,1)) -> 12610.57031 | J106: 405.420783 | K106: 15.59310704 | L106: =IF(A106>$L$30,NA(),IF(A106=$L$30,AVERAGE(OFFSET(K106,0,0,$A$18,1)),$C$18*(K106-L107)+L107)) -> 28.31676969 | M106: 2831.676969 | N106: 217.8213053 | P106: =IF(A106>$J$30,NA(),(L106*$I$33)-SUMPRODUCT(OFFSET(L107,0,0,$A$17,1),OFFSET($H$33,0,0,$A$17,1))) -> 41.06453928 | Q106: =IF(A106>$J$30,NA(),P106/$A$17) -> 1.579405357 | R106: =IF(A106>$J$30,NA(),Q106*100) -> 157.9405357 | BD106: 4036910000
A107: 75 | B107: =IF(A107>$A$8,"",OFFSET(InputPriceData!B$15,$A107+$A$11,0,1,1)) -> 2023-03-27 | C107: =IF(A107>$A$8,"",OFFSET(InputPriceData!G$15,CalculationsAndCharts!$A107+$A$11,IF($C$5,8,0),1,1)) -> 4330320000 | D107: =IF(A107>$A$8,"",OFFSET(InputPriceData!C$15,CalculationsAndCharts!$A107+$A$11,IF($C$5,8,0),1,1)) -> 12797.90039 | E107: =IF(A107>$A$8,"",OFFSET(InputPriceData!D$15,CalculationsAndCharts!$A107+$A$11,IF($C$5,8,0),1,1)) -> 12839.41992 | F107: =IF(A107>$A$8,"",OFFSET(InputPriceData!E$15,CalculationsAndCharts!$A107+$A$11,IF($C$5,8,0),1,1)) -> 12647.94043 | G107: =IF(A107>$A$8,"",OFFSET(InputPriceData!F$15,CalculationsAndCharts!$A107+$A$11,IF($C$5,8,0),1,1)) -> 12673.07031 | J107: 662.2478178 | K107: 25.47106991 | L107: =IF(A107>$L$30,NA(),IF(A107=$L$30,AVERAGE(OFFSET(K107,0,0,$A$18,1)),$C$18*(K107-L108)+L108)) -> 31.49768536 | M107: 3149.768536 | N107: 242.2898874 | P107: =IF(A107>$J$30,NA(),(L107*$I$33)-SUMPRODUCT(OFFSET(L108,0,0,$A$17,1),OFFSET($H$33,0,0,$A$17,1))) -> 57.96469976 | Q107: =IF(A107>$J$30,NA(),P107/$A$17) -> 2.229411529 | R107: =IF(A107>$J$30,NA(),Q107*100) -> 222.9411529 | BD107: 4330320000
A108: 76 | B108: =IF(A108>$A$8,"",OFFSET(InputPriceData!B$15,$A108+$A$11,0,1,1)) -> 2023-03-24 | C108: =IF(A108>$A$8,"",OFFSET(InputPriceData!G$15,CalculationsAndCharts!$A108+$A$11,IF($C$5,8,0),1,1)) -> 4363650000 | D108: =IF(A108>$A$8,"",OFFSET(InputPriceData!C$15,CalculationsAndCharts!$A108+$A$11,IF($C$5,8,0),1,1)) -> 12700.50977 | E108: =IF(A108>$A$8,"",OFFSET(InputPriceData!D$15,CalculationsAndCharts!$A108+$A$11,IF($C$5,8,0),1,1)) -> 12770.28027 | F108: =IF(A108>$A$8,"",OFFSET(InputPriceData!E$15,CalculationsAndCharts!$A108+$A$11,IF($C$5,8,0),1,1)) -> 12608.15039 | G108: =IF(A108>$A$8,"",OFFSET(InputPriceData!F$15,CalculationsAndCharts!$A108+$A$11,IF($C$5,8,0),1,1)) -> 12767.04981 | J108: 1173.068816 | K108: 45.11803137 | L108: =IF(A108>$L$30,NA(),IF(A108=$L$30,AVERAGE(OFFSET(K108,0,0,$A$18,1)),$C$18*(K108-L109)+L109)) -> 33.00433922 | M108: 3300.433922 | N108: 253.8795325 | P108: =IF(A108>$J$30,NA(),(L108*$I$33)-SUMPRODUCT(OFFSET(L109,0,0,$A$17,1),OFFSET($H$33,0,0,$A$17,1))) -> 72.69697133 | Q108: =IF(A108>$J$30,NA(),P108/$A$17) -> 2.796037359 | R108: =IF(A108>$J$30,NA(),Q108*100) -> 279.6037359 | BC108: 4363650000
A109: 77 | B109: =IF(A109>$A$8,"",OFFSET(InputPriceData!B$15,$A109+$A$11,0,1,1)) -> 2023-03-23 | C109: =IF(A109>$A$8,"",OFFSET(InputPriceData!G$15,CalculationsAndCharts!$A109+$A$11,IF($C$5,8,0),1,1)) -> 4917460000 | D109: =IF(A109>$A$8,"",OFFSET(InputPriceData!C$15,CalculationsAndCharts!$A109+$A$11,IF($C$5,8,0),1,1)) -> 12735.59961 | E109: =IF(A109>$A$8,"",OFFSET(InputPriceData!D$15,CalculationsAndCharts!$A109+$A$11,IF($C$5,8,0),1,1)) -> 12900.09961 | F109: =IF(A109>$A$8,"",OFFSET(InputPriceData!E$15,CalculationsAndCharts!$A109+$A$11,IF($C$5,8,0),1,1)) -> 12611.66992 | G109: =IF(A109>$A$8,"",OFFSET(InputPriceData!F$15,CalculationsAndCharts!$A109+$A$11,IF($C$5,8,0),1,1)) -> 12729.23047 | J109: 1218.855993 | K109: 46.87907665 | L109: =IF(A109>$L$30,NA(),IF(A109=$L$30,AVERAGE(OFFSET(K109,0,0,$A$18,1)),$C$18*(K109-L110)+L110)) -> 29.97591618 | M109: 2997.591618 | N109: 230.5839706 | P109: =IF(A109>$J$30,NA(),(L109*$I$33)-SUMPRODUCT(OFFSET(L110,0,0,$A$17,1),OFFSET($H$33,0,0,$A$17,1))) -> 70.38639657 | Q109: =IF(A109>$J$30,NA(),P109/$A$17) -> 2.707169099 | R109: =IF(A109>$J$30,NA(),Q109*100) -> 270.7169099 | BC109: =IF(G109>=G110,C109,NA()) -> 4917460000 | BD109: =IF(G109<G110,C109,NA()) -> 
A110: 78 | B110: =IF(A110>$A$8,"",OFFSET(InputPriceData!B$15,$A110+$A$11,0,1,1)) -> 2023-03-22 | C110: =IF(A110>$A$8,"",OFFSET(InputPriceData!G$15,CalculationsAndCharts!$A110+$A$11,IF($C$5,8,0),1,1)) -> 4981590000 | D110: =IF(A110>$A$8,"",OFFSET(InputPriceData!C$15,CalculationsAndCharts!$A110+$A$11,IF($C$5,8,0),1,1)) -> 12742.41016 | E110: =IF(A110>$A$8,"",OFFSET(InputPriceData!D$15,CalculationsAndCharts!$A110+$A$11,IF($C$5,8,0),1,1)) -> 12943.62012 | F110: =IF(A110>$A$8,"",OFFSET(InputPriceData!E$15,CalculationsAndCharts!$A110+$A$11,IF($C$5,8,0),1,1)) -> 12563.78027 | G110: =IF(A110>$A$8,"",OFFSET(InputPriceData!F$15,CalculationsAndCharts!$A110+$A$11,IF($C$5,8,0),1,1)) -> 12567.15039 | J110: 584.5342193 | K110: 22.48208536 | L110: =IF(A110>$L$30,NA(),IF(A110=$L$30,AVERAGE(OFFSET(K110,0,0,$A$18,1)),$C$18*(K110-L111)+L111)) -> 25.75012607 | M110: 2575.012607 | N110: 198.0778928 | P110: =IF(A110>$J$30,NA(),(L110*$I$33)-SUMPRODUCT(OFFSET(L111,0,0,$A$17,1),OFFSET($H$33,0,0,$A$17,1))) -> 61.38010198 | Q110: =IF(A110>$J$30,NA(),P110/$A$17) -> 2.360773153 | R110: =IF(A110>$J$30,NA(),Q110*100) -> 236.0773153 | BD110: 4981590000
A111: 79 | B111: =IF(A111>$A$8,"",OFFSET(InputPriceData!B$15,$A111+$A$11,0,1,1)) -> 2023-03-21 | C111: =IF(A111>$A$8,"",OFFSET(InputPriceData!G$15,CalculationsAndCharts!$A111+$A$11,IF($C$5,8,0),1,1)) -> 4829870000 | D111: =IF(A111>$A$8,"",OFFSET(InputPriceData!C$15,CalculationsAndCharts!$A111+$A$11,IF($C$5,8,0),1,1)) -> 12643.34961 | E111: =IF(A111>$A$8,"",OFFSET(InputPriceData!D$15,CalculationsAndCharts!$A111+$A$11,IF($C$5,8,0),1,1)) -> 12762.45019 | F111: =IF(A111>$A$8,"",OFFSET(InputPriceData!E$15,CalculationsAndCharts!$A111+$A$11,IF($C$5,8,0),1,1)) -> 12582.75977 | G111: =IF(A111>$A$8,"",OFFSET(InputPriceData!F$15,CalculationsAndCharts!$A111+$A$11,IF($C$5,8,0),1,1)) -> 12741.44043 | J111: 1541.651885 | K111: 59.29430327 | L111: =IF(A111>$L$30,NA(),IF(A111=$L$30,AVERAGE(OFFSET(K111,0,0,$A$18,1)),$C$18*(K111-L112)+L112)) -> 26.56713624 | M111: 2656.713624 | N111: 204.3625865 | P111: =IF(A111>$J$30,NA(),(L111*$I$33)-SUMPRODUCT(OFFSET(L112,0,0,$A$17,1),OFFSET($H$33,0,0,$A$17,1))) -> 78.76678519 | Q111: =IF(A111>$J$30,NA(),P111/$A$17) -> 3.029491738 | R111: =IF(A111>$J$30,NA(),Q111*100) -> 302.9491738 | BC111: 4829870000
A112: 80 | B112: =IF(A112>$A$8,"",OFFSET(InputPriceData!B$15,$A112+$A$11,0,1,1)) -> 2023-03-20 | C112: =IF(A112>$A$8,"",OFFSET(InputPriceData!G$15,CalculationsAndCharts!$A112+$A$11,IF($C$5,8,0),1,1)) -> 4970630000 | D112: =IF(A112>$A$8,"",OFFSET(InputPriceData!C$15,CalculationsAndCharts!$A112+$A$11,IF($C$5,8,0),1,1)) -> 12487.79004 | E112: =IF(A112>$A$8,"",OFFSET(InputPriceData!D$15,CalculationsAndCharts!$A112+$A$11,IF($C$5,8,0),1,1)) -> 12578.34961 | F112: =IF(A112>$A$8,"",OFFSET(InputPriceData!E$15,CalculationsAndCharts!$A112+$A$11,IF($C$5,8,0),1,1)) -> 12407.82031 | G112: =IF(A112>$A$8,"",OFFSET(InputPriceData!F$15,CalculationsAndCharts!$A112+$A$11,IF($C$5,8,0),1,1)) -> 12562.61035 | J112: 1002.817923 | K112: 38.56992012 | L112: =IF(A112>$L$30,NA(),IF(A112=$L$30,AVERAGE(OFFSET(K112,0,0,$A$18,1)),$C$18*(K112-L113)+L113)) -> 18.38534449 | M112: 1838.534449 | N112: 141.4257268 | P112: =IF(A112>$J$30,NA(),(L112*$I$33)-SUMPRODUCT(OFFSET(L113,0,0,$A$17,1),OFFSET($H$33,0,0,$A$17,1))) -> 57.7715846 | Q112: =IF(A112>$J$30,NA(),P112/$A$17) -> 2.221984023 | R112: =IF(A112>$J$30,NA(),Q112*100) -> 222.1984023 | BC112: 4970630000
A113: 81 | B113: =IF(A113>$A$8,"",OFFSET(InputPriceData!B$15,$A113+$A$11,0,1,1)) -> 2023-03-17 | C113: =IF(A113>$A$8,"",OFFSET(InputPriceData!G$15,CalculationsAndCharts!$A113+$A$11,IF($C$5,8,0),1,1)) -> 7903090000 | D113: =IF(A113>$A$8,"",OFFSET(InputPriceData!C$15,CalculationsAndCharts!$A113+$A$11,IF($C$5,8,0),1,1)) -> 12570.16016 | E113: =IF(A113>$A$8,"",OFFSET(InputPriceData!D$15,CalculationsAndCharts!$A113+$A$11,IF($C$5,8,0),1,1)) -> 12674.33984 | F113: =IF(A113>$A$8,"",OFFSET(InputPriceData!E$15,CalculationsAndCharts!$A113+$A$11,IF($C$5,8,0),1,1)) -> 12444.08008 | G113: =IF(A113>$A$8,"",OFFSET(InputPriceData!F$15,CalculationsAndCharts!$A113+$A$11,IF($C$5,8,0),1,1)) -> 12519.87988 | J113: 979.3076437 | K113: 37.6656786 | L113: =IF(A113>$L$30,NA(),IF(A113=$L$30,AVERAGE(OFFSET(K113,0,0,$A$18,1)),$C$18*(K113-L114)+L114)) -> 13.33920058 | M113: 1333.920058 | N113: 102.6092352 | P113: =IF(A113>$J$30,NA(),(L113*$I$33)-SUMPRODUCT(OFFSET(L114,0,0,$A$17,1),OFFSET($H$33,0,0,$A$17,1))) -> 49.16167611 | Q113: =IF(A113>$J$30,NA(),P113/$A$17) -> 1.890833696 | R113: =IF(A113>$J$30,NA(),Q113*100) -> 189.0833696 | BD113: 7903090000
A114: 82 | B114: =IF(A114>$A$8,"",OFFSET(InputPriceData!B$15,$A114+$A$11,0,1,1)) -> 2023-03-16 | C114: =IF(A114>$A$8,"",OFFSET(InputPriceData!G$15,CalculationsAndCharts!$A114+$A$11,IF($C$5,8,0),1,1)) -> 5498920000 | D114: =IF(A114>$A$8,"",OFFSET(InputPriceData!C$15,CalculationsAndCharts!$A114+$A$11,IF($C$5,8,0),1,1)) -> 12211.87012 | E114: =IF(A114>$A$8,"",OFFSET(InputPriceData!D$15,CalculationsAndCharts!$A114+$A$11,IF($C$5,8,0),1,1)) -> 12595.69043 | F114: =IF(A114>$A$8,"",OFFSET(InputPriceData!E$15,CalculationsAndCharts!$A114+$A$11,IF($C$5,8,0),1,1)) -> 12190.65039 | G114: =IF(A114>$A$8,"",OFFSET(InputPriceData!F$15,CalculationsAndCharts!$A114+$A$11,IF($C$5,8,0),1,1)) -> 12581.38965 | J114: 1600.91428 | K114: 61.57362616 | L114: =IF(A114>$L$30,NA(),IF(A114=$L$30,AVERAGE(OFFSET(K114,0,0,$A$18,1)),$C$18*(K114-L115)+L115)) -> 7.257581071 | M114: 725.7581071 | N114: 55.8275467 | P114: =IF(A114>$J$30,NA(),(L114*$I$33)-SUMPRODUCT(OFFSET(L115,0,0,$A$17,1),OFFSET($H$33,0,0,$A$17,1))) -> 37.97867206 | Q114: =IF(A114>$J$30,NA(),P114/$A$17) -> 1.460718156 | R114: =IF(A114>$J$30,NA(),Q114*100) -> 146.0718156 | BC114: 5498920000
A115: 83 | B115: =IF(A115>$A$8,"",OFFSET(InputPriceData!B$15,$A115+$A$11,0,1,1)) -> 2023-03-15 | C115: =IF(A115>$A$8,"",OFFSET(InputPriceData!G$15,CalculationsAndCharts!$A115+$A$11,IF($C$5,8,0),1,1)) -> 5912430000 | D115: =IF(A115>$A$8,"",OFFSET(InputPriceData!C$15,CalculationsAndCharts!$A115+$A$11,IF($C$5,8,0),1,1)) -> 12083.24023 | E115: =IF(A115>$A$8,"",OFFSET(InputPriceData!D$15,CalculationsAndCharts!$A115+$A$11,IF($C$5,8,0),1,1)) -> 12269.45019 | F115: =IF(A115>$A$8,"",OFFSET(InputPriceData!E$15,CalculationsAndCharts!$A115+$A$11,IF($C$5,8,0),1,1)) -> 12026.17969 | G115: =IF(A115>$A$8,"",OFFSET(InputPriceData!F$15,CalculationsAndCharts!$A115+$A$11,IF($C$5,8,0),1,1)) -> 12251.32031 | J115: 457.3347856 | K115: 17.58979945 | L115: =IF(A115>$L$30,NA(),IF(A115=$L$30,AVERAGE(OFFSET(K115,0,0,$A$18,1)),$C$18*(K115-L116)+L116)) -> -6.321430201 | M115: -632.1430201 | N115: -48.62638616 | P115: =IF(A115>$J$30,NA(),(L115*$I$33)-SUMPRODUCT(OFFSET(L116,0,0,$A$17,1),OFFSET($H$33,0,0,$A$17,1))) -> -12.2109156 | Q115: =IF(A115>$J$30,NA(),P115/$A$17) -> -0.4696506 | R115: =IF(A115>$J$30,NA(),Q115*100) -> -46.96506 | BC115: 5912430000
A116: 84 | B116: =IF(A116>$A$8,"",OFFSET(InputPriceData!B$15,$A116+$A$11,0,1,1)) -> 2023-03-14 | C116: =IF(A116>$A$8,"",OFFSET(InputPriceData!G$15,CalculationsAndCharts!$A116+$A$11,IF($C$5,8,0),1,1)) -> 5533120000 | D116: =IF(A116>$A$8,"",OFFSET(InputPriceData!C$15,CalculationsAndCharts!$A116+$A$11,IF($C$5,8,0),1,1)) -> 12078.45996 | E116: =IF(A116>$A$8,"",OFFSET(InputPriceData!D$15,CalculationsAndCharts!$A116+$A$11,IF($C$5,8,0),1,1)) -> 12217.87012 | F116: =IF(A116>$A$8,"",OFFSET(InputPriceData!E$15,CalculationsAndCharts!$A116+$A$11,IF($C$5,8,0),1,1)) -> 12035.21973 | G116: =IF(A116>$A$8,"",OFFSET(InputPriceData!F$15,CalculationsAndCharts!$A116+$A$11,IF($C$5,8,0),1,1)) -> 12199.79004 | J116: 461.3767054 | K116: 17.7452579 | L116: =IF(A116>$L$30,NA(),IF(A116=$L$30,AVERAGE(OFFSET(K116,0,0,$A$18,1)),$C$18*(K116-L117)+L117)) -> -12.29923761 | M116: -1229.923761 | N116: -94.6095201 | P116: =IF(A116>$J$30,NA(),(L116*$I$33)-SUMPRODUCT(OFFSET(L117,0,0,$A$17,1),OFFSET($H$33,0,0,$A$17,1))) -> -36.90686828 | Q116: =IF(A116>$J$30,NA(),P116/$A$17) -> -1.419494934 | R116: =IF(A116>$J$30,NA(),Q116*100) -> -141.9494934 | BC116: 5533120000
A117: 85 | B117: =IF(A117>$A$8,"",OFFSET(InputPriceData!B$15,$A117+$A$11,0,1,1)) -> 2023-03-13 | C117: =IF(A117>$A$8,"",OFFSET(InputPriceData!G$15,CalculationsAndCharts!$A117+$A$11,IF($C$5,8,0),1,1)) -> 6201490000 | D117: =IF(A117>$A$8,"",OFFSET(InputPriceData!C$15,CalculationsAndCharts!$A117+$A$11,IF($C$5,8,0),1,1)) -> 11752.09961 | E117: =IF(A117>$A$8,"",OFFSET(InputPriceData!D$15,CalculationsAndCharts!$A117+$A$11,IF($C$5,8,0),1,1)) -> 12073.95996 | F117: =IF(A117>$A$8,"",OFFSET(InputPriceData!E$15,CalculationsAndCharts!$A117+$A$11,IF($C$5,8,0),1,1)) -> 11695.41016 | G117: =IF(A117>$A$8,"",OFFSET(InputPriceData!F$15,CalculationsAndCharts!$A117+$A$11,IF($C$5,8,0),1,1)) -> 11923.16992 | J117: -686.0062 | K117: -26.38485385 | L117: =IF(A117>$L$30,NA(),IF(A117=$L$30,AVERAGE(OFFSET(K117,0,0,$A$18,1)),$C$18*(K117-L118)+L118)) -> -19.81036149 | M117: -1981.036149 | N117: -152.3873961 | P117: =IF(A117>$J$30,NA(),(L117*$I$33)-SUMPRODUCT(OFFSET(L118,0,0,$A$17,1),OFFSET($H$33,0,0,$A$17,1))) -> -77.84905086 | Q117: =IF(A117>$J$30,NA(),P117/$A$17) -> -2.994194264 | R117: =IF(A117>$J$30,NA(),Q117*100) -> -299.4194264 | BC117: 6201490000
A118: 86 | B118: =IF(A118>$A$8,"",OFFSET(InputPriceData!B$15,$A118+$A$11,0,1,1)) -> 2023-03-10 | C118: =IF(A118>$A$8,"",OFFSET(InputPriceData!G$15,CalculationsAndCharts!$A118+$A$11,IF($C$5,8,0),1,1)) -> 6193500000 | D118: =IF(A118>$A$8,"",OFFSET(InputPriceData!C$15,CalculationsAndCharts!$A118+$A$11,IF($C$5,8,0),1,1)) -> 12001.70019 | E118: =IF(A118>$A$8,"",OFFSET(InputPriceData!D$15,CalculationsAndCharts!$A118+$A$11,IF($C$5,8,0),1,1)) -> 12069.62012 | F118: =IF(A118>$A$8,"",OFFSET(InputPriceData!E$15,CalculationsAndCharts!$A118+$A$11,IF($C$5,8,0),1,1)) -> 11789.86035 | G118: =IF(A118>$A$8,"",OFFSET(InputPriceData!F$15,CalculationsAndCharts!$A118+$A$11,IF($C$5,8,0),1,1)) -> 11830.28027 | J118: -1318.829419 | K118: -50.72420842 | L118: =IF(A118>$L$30,NA(),IF(A118=$L$30,AVERAGE(OFFSET(K118,0,0,$A$18,1)),$C$18*(K118-L119)+L119)) -> -18.1667384 | M118: -1816.67384 | N118: -139.7441416 | P118: =IF(A118>$J$30,NA(),(L118*$I$33)-SUMPRODUCT(OFFSET(L119,0,0,$A$17,1),OFFSET($H$33,0,0,$A$17,1))) -> -86.46090843 | Q118: =IF(A118>$J$30,NA(),P118/$A$17) -> -3.325419555 | R118: =IF(A118>$J$30,NA(),Q118*100) -> -332.5419555 | BD118: 6193500000
A119: 87 | B119: =IF(A119>$A$8,"",OFFSET(InputPriceData!B$15,$A119+$A$11,0,1,1)) -> 2023-03-09 | C119: =IF(A119>$A$8,"",OFFSET(InputPriceData!G$15,CalculationsAndCharts!$A119+$A$11,IF($C$5,8,0),1,1)) -> 5061790000 | D119: =IF(A119>$A$8,"",OFFSET(InputPriceData!C$15,CalculationsAndCharts!$A119+$A$11,IF($C$5,8,0),1,1)) -> 12230.83984 | E119: =IF(A119>$A$8,"",OFFSET(InputPriceData!D$15,CalculationsAndCharts!$A119+$A$11,IF($C$5,8,0),1,1)) -> 12340.45019 | F119: =IF(A119>$A$8,"",OFFSET(InputPriceData!E$15,CalculationsAndCharts!$A119+$A$11,IF($C$5,8,0),1,1)) -> 11970.33984 | G119: =IF(A119>$A$8,"",OFFSET(InputPriceData!F$15,CalculationsAndCharts!$A119+$A$11,IF($C$5,8,0),1,1)) -> 11995.87988 | J119: -884.3897764 | K119: -34.0149914 | L119: =IF(A119>$L$30,NA(),IF(A119=$L$30,AVERAGE(OFFSET(K119,0,0,$A$18,1)),$C$18*(K119-L120)+L120)) -> -10.0273709 | M119: -1002.73709 | N119: -77.1336223 | P119: =IF(A119>$J$30,NA(),(L119*$I$33)-SUMPRODUCT(OFFSET(L120,0,0,$A$17,1),OFFSET($H$33,0,0,$A$17,1))) -> -64.63536559 | Q119: =IF(A119>$J$30,NA(),P119/$A$17) -> -2.4859756 | R119: =IF(A119>$J$30,NA(),Q119*100) -> -248.59756 | BD119: 5061790000
A120: 88 | B120: =IF(A120>$A$8,"",OFFSET(InputPriceData!B$15,$A120+$A$11,0,1,1)) -> 2023-03-08 | C120: =IF(A120>$A$8,"",OFFSET(InputPriceData!G$15,CalculationsAndCharts!$A120+$A$11,IF($C$5,8,0),1,1)) -> 5085970000 | D120: =IF(A120>$A$8,"",OFFSET(InputPriceData!C$15,CalculationsAndCharts!$A120+$A$11,IF($C$5,8,0),1,1)) -> 12181.05957 | E120: =IF(A120>$A$8,"",OFFSET(InputPriceData!D$15,CalculationsAndCharts!$A120+$A$11,IF($C$5,8,0),1,1)) -> 12237.71973 | F120: =IF(A120>$A$8,"",OFFSET(InputPriceData!E$15,CalculationsAndCharts!$A120+$A$11,IF($C$5,8,0),1,1)) -> 12102.28027 | G120: =IF(A120>$A$8,"",OFFSET(InputPriceData!F$15,CalculationsAndCharts!$A120+$A$11,IF($C$5,8,0),1,1)) -> 12215.33008 | J120: 2.744839854 | K120: 0.1055707636 | L120: =IF(A120>$L$30,NA(),IF(A120=$L$30,AVERAGE(OFFSET(K120,0,0,$A$18,1)),$C$18*(K120-L121)+L121)) -> -4.030465773 | M120: -403.0465773 | N120: -31.00358287 | P120: =IF(A120>$J$30,NA(),(L120*$I$33)-SUMPRODUCT(OFFSET(L121,0,0,$A$17,1),OFFSET($H$33,0,0,$A$17,1))) -> -44.66582268 | Q120: =IF(A120>$J$30,NA(),P120/$A$17) -> -1.717916257 | R120: =IF(A120>$J$30,NA(),Q120*100) -> -171.7916257 | BC120: 5085970000
A121: 89 | B121: =IF(A121>$A$8,"",OFFSET(InputPriceData!B$15,$A121+$A$11,0,1,1)) -> 2023-03-07 | C121: =IF(A121>$A$8,"",OFFSET(InputPriceData!G$15,CalculationsAndCharts!$A121+$A$11,IF($C$5,8,0),1,1)) -> 5422820000 | D121: =IF(A121>$A$8,"",OFFSET(InputPriceData!C$15,CalculationsAndCharts!$A121+$A$11,IF($C$5,8,0),1,1)) -> 12303.19043 | E121: =IF(A121>$A$8,"",OFFSET(InputPriceData!D$15,CalculationsAndCharts!$A121+$A$11,IF($C$5,8,0),1,1)) -> 12344.04004 | F121: =IF(A121>$A$8,"",OFFSET(InputPriceData!E$15,CalculationsAndCharts!$A121+$A$11,IF($C$5,8,0),1,1)) -> 12130.00977 | G121: =IF(A121>$A$8,"",OFFSET(InputPriceData!F$15,CalculationsAndCharts!$A121+$A$11,IF($C$5,8,0),1,1)) -> 12152.16992 | J121: -325.9343229 | K121: -12.5359355 | L121: =IF(A121>$L$30,NA(),IF(A121=$L$30,AVERAGE(OFFSET(K121,0,0,$A$18,1)),$C$18*(K121-L122)+L122)) -> -5.064474907 | M121: -506.4474907 | N121: -38.95749929 | P121: =IF(A121>$J$30,NA(),(L121*$I$33)-SUMPRODUCT(OFFSET(L122,0,0,$A$17,1),OFFSET($H$33,0,0,$A$17,1))) -> -53.36767026 | Q121: =IF(A121>$J$30,NA(),P121/$A$17) -> -2.052602702 | R121: =IF(A121>$J$30,NA(),Q121*100) -> -205.2602702 | BD121: 5422820000
A122: 90 | B122: =IF(A122>$A$8,"",OFFSET(InputPriceData!B$15,$A122+$A$11,0,1,1)) -> 2023-03-06 | C122: =IF(A122>$A$8,"",OFFSET(InputPriceData!G$15,CalculationsAndCharts!$A122+$A$11,IF($C$5,8,0),1,1)) -> 4982880000 | D122: =IF(A122>$A$8,"",OFFSET(InputPriceData!C$15,CalculationsAndCharts!$A122+$A$11,IF($C$5,8,0),1,1)) -> 12344.65039 | E122: =IF(A122>$A$8,"",OFFSET(InputPriceData!D$15,CalculationsAndCharts!$A122+$A$11,IF($C$5,8,0),1,1)) -> 12466.87988 | F122: =IF(A122>$A$8,"",OFFSET(InputPriceData!E$15,CalculationsAndCharts!$A122+$A$11,IF($C$5,8,0),1,1)) -> 12297.57031 | G122: =IF(A122>$A$8,"",OFFSET(InputPriceData!F$15,CalculationsAndCharts!$A122+$A$11,IF($C$5,8,0),1,1)) -> 12302.48047 | J122: 369.6300392 | K122: 14.21653997 | L122: =IF(A122>$L$30,NA(),IF(A122=$L$30,AVERAGE(OFFSET(K122,0,0,$A$18,1)),$C$18*(K122-L123)+L123)) -> -3.19660976 | M122: -319.660976 | N122: -24.58930585 | P122: =IF(A122>$J$30,NA(),(L122*$I$33)-SUMPRODUCT(OFFSET(L123,0,0,$A$17,1),OFFSET($H$33,0,0,$A$17,1))) -> -46.35098477 | Q122: =IF(A122>$J$30,NA(),P122/$A$17) -> -1.782730184 | R122: =IF(A122>$J$30,NA(),Q122*100) -> -178.2730184 | BC122: 4982880000
A123: 91 | B123: =IF(A123>$A$8,"",OFFSET(InputPriceData!B$15,$A123+$A$11,0,1,1)) -> 2023-03-03 | C123: =IF(A123>$A$8,"",OFFSET(InputPriceData!G$15,CalculationsAndCharts!$A123+$A$11,IF($C$5,8,0),1,1)) -> 5102210000 | D123: =IF(A123>$A$8,"",OFFSET(InputPriceData!C$15,CalculationsAndCharts!$A123+$A$11,IF($C$5,8,0),1,1)) -> 12110.70996 | E123: =IF(A123>$A$8,"",OFFSET(InputPriceData!D$15,CalculationsAndCharts!$A123+$A$11,IF($C$5,8,0),1,1)) -> 12300.45996 | F123: =IF(A123>$A$8,"",OFFSET(InputPriceData!E$15,CalculationsAndCharts!$A123+$A$11,IF($C$5,8,0),1,1)) -> 12095.24023 | G123: =IF(A123>$A$8,"",OFFSET(InputPriceData!F$15,CalculationsAndCharts!$A123+$A$11,IF($C$5,8,0),1,1)) -> 12290.80957 | J123: 565.7202514 | K123: 21.75847121 | L123: =IF(A123>$L$30,NA(),IF(A123=$L$30,AVERAGE(OFFSET(K123,0,0,$A$18,1)),$C$18*(K123-L124)+L124)) -> -7.549897192 | M123: -754.9897192 | N123: -58.07613225 | P123: =IF(A123>$J$30,NA(),(L123*$I$33)-SUMPRODUCT(OFFSET(L124,0,0,$A$17,1),OFFSET($H$33,0,0,$A$17,1))) -> -65.06449123 | Q123: =IF(A123>$J$30,NA(),P123/$A$17) -> -2.502480432 | R123: =IF(A123>$J$30,NA(),Q123*100) -> -250.2480432 | BC123: 5102210000
A124: 92 | B124: =IF(A124>$A$8,"",OFFSET(InputPriceData!B$15,$A124+$A$11,0,1,1)) -> 2023-03-02 | C124: =IF(A124>$A$8,"",OFFSET(InputPriceData!G$15,CalculationsAndCharts!$A124+$A$11,IF($C$5,8,0),1,1)) -> 5313760000 | D124: =IF(A124>$A$8,"",OFFSET(InputPriceData!C$15,CalculationsAndCharts!$A124+$A$11,IF($C$5,8,0),1,1)) -> 11830.08984 | E124: =IF(A124>$A$8,"",OFFSET(InputPriceData!D$15,CalculationsAndCharts!$A124+$A$11,IF($C$5,8,0),1,1)) -> 12074.58984 | F124: =IF(A124>$A$8,"",OFFSET(InputPriceData!E$15,CalculationsAndCharts!$A124+$A$11,IF($C$5,8,0),1,1)) -> 11830.08984 | G124: =IF(A124>$A$8,"",OFFSET(InputPriceData!F$15,CalculationsAndCharts!$A124+$A$11,IF($C$5,8,0),1,1)) -> 12044.87012 | J124: -358.1235019 | K124: -13.77398084 | L124: =IF(A124>$L$30,NA(),IF(A124=$L$30,AVERAGE(OFFSET(K124,0,0,$A$18,1)),$C$18*(K124-L125)+L125)) -> -14.87698929 | M124: -1487.698929 | N124: -114.4383792 | P124: =IF(A124>$J$30,NA(),(L124*$I$33)-SUMPRODUCT(OFFSET(L125,0,0,$A$17,1),OFFSET($H$33,0,0,$A$17,1))) -> -104.5225691 | Q124: =IF(A124>$J$30,NA(),P124/$A$17) -> -4.02009881 | R124: =IF(A124>$J$30,NA(),Q124*100) -> -402.009881 | BC124: 5313760000
A125: 93 | B125: =IF(A125>$A$8,"",OFFSET(InputPriceData!B$15,$A125+$A$11,0,1,1)) -> 2023-03-01 | C125: =IF(A125>$A$8,"",OFFSET(InputPriceData!G$15,CalculationsAndCharts!$A125+$A$11,IF($C$5,8,0),1,1)) -> 4927530000 | D125: =IF(A125>$A$8,"",OFFSET(InputPriceData!C$15,CalculationsAndCharts!$A125+$A$11,IF($C$5,8,0),1,1)) -> 12026.71973 | E125: =IF(A125>$A$8,"",OFFSET(InputPriceData!D$15,CalculationsAndCharts!$A125+$A$11,IF($C$5,8,0),1,1)) -> 12054.48047 | F125: =IF(A125>$A$8,"",OFFSET(InputPriceData!E$15,CalculationsAndCharts!$A125+$A$11,IF($C$5,8,0),1,1)) -> 11906.58008 | G125: =IF(A125>$A$8,"",OFFSET(InputPriceData!F$15,CalculationsAndCharts!$A125+$A$11,IF($C$5,8,0),1,1)) -> 11938.57031 | J125: -910.8096748 | K125: -35.03114134 | L125: =IF(A125>$L$30,NA(),IF(A125=$L$30,AVERAGE(OFFSET(K125,0,0,$A$18,1)),$C$18*(K125-L126)+L126)) -> -15.15274141 | M125: -1515.274141 | N125: -116.5595493 | P125: =IF(A125>$J$30,NA(),(L125*$I$33)-SUMPRODUCT(OFFSET(L126,0,0,$A$17,1),OFFSET($H$33,0,0,$A$17,1))) -> -121.3662703 | Q125: =IF(A125>$J$30,NA(),P125/$A$17) -> -4.667933472 | R125: =IF(A125>$J$30,NA(),Q125*100) -> -466.7933472 | BD125: 4927530000
A126: 94 | B126: =IF(A126>$A$8,"",OFFSET(InputPriceData!B$15,$A126+$A$11,0,1,1)) -> 2023-02-28 | C126: =IF(A126>$A$8,"",OFFSET(InputPriceData!G$15,CalculationsAndCharts!$A126+$A$11,IF($C$5,8,0),1,1)) -> 5340950000 | D126: =IF(A126>$A$8,"",OFFSET(InputPriceData!C$15,CalculationsAndCharts!$A126+$A$11,IF($C$5,8,0),1,1)) -> 12041.75 | E126: =IF(A126>$A$8,"",OFFSET(InputPriceData!D$15,CalculationsAndCharts!$A126+$A$11,IF($C$5,8,0),1,1)) -> 12146.51953 | F126: =IF(A126>$A$8,"",OFFSET(InputPriceData!E$15,CalculationsAndCharts!$A126+$A$11,IF($C$5,8,0),1,1)) -> 12021.32031 | G126: =IF(A126>$A$8,"",OFFSET(InputPriceData!F$15,CalculationsAndCharts!$A126+$A$11,IF($C$5,8,0),1,1)) -> 12042.12012 | J126: -554.6073019 | K126: -21.33105007 | L126: =IF(A126>$L$30,NA(),IF(A126=$L$30,AVERAGE(OFFSET(K126,0,0,$A$18,1)),$C$18*(K126-L127)+L127)) -> -10.18314142 | M126: -1018.314142 | N126: -78.3318571 | P126: =IF(A126>$J$30,NA(),(L126*$I$33)-SUMPRODUCT(OFFSET(L127,0,0,$A$17,1),OFFSET($H$33,0,0,$A$17,1))) -> -116.3631665 | Q126: =IF(A126>$J$30,NA(),P126/$A$17) -> -4.475506404 | R126: =IF(A126>$J$30,NA(),Q126*100) -> -447.5506404 | BD126: 5340950000
A127: 95 | B127: =IF(A127>$A$8,"",OFFSET(InputPriceData!B$15,$A127+$A$11,0,1,1)) -> 2023-02-27 | C127: =IF(A127>$A$8,"",OFFSET(InputPriceData!G$15,CalculationsAndCharts!$A127+$A$11,IF($C$5,8,0),1,1)) -> 4494000000 | D127: =IF(A127>$A$8,"",OFFSET(InputPriceData!C$15,CalculationsAndCharts!$A127+$A$11,IF($C$5,8,0),1,1)) -> 12106.79004 | E127: =IF(A127>$A$8,"",OFFSET(InputPriceData!D$15,CalculationsAndCharts!$A127+$A$11,IF($C$5,8,0),1,1)) -> 12159.63965 | F127: =IF(A127>$A$8,"",OFFSET(InputPriceData!E$15,CalculationsAndCharts!$A127+$A$11,IF($C$5,8,0),1,1)) -> 12034.61035 | G127: =IF(A127>$A$8,"",OFFSET(InputPriceData!F$15,CalculationsAndCharts!$A127+$A$11,IF($C$5,8,0),1,1)) -> 12057.79004 | J127: -501.9713489 | K127: -19.30659034 | L127: =IF(A127>$L$30,NA(),IF(A127=$L$30,AVERAGE(OFFSET(K127,0,0,$A$18,1)),$C$18*(K127-L128)+L128)) -> -7.396164259 | M127: -739.6164259 | N127: -56.89357123 | P127: =IF(A127>$J$30,NA(),(L127*$I$33)-SUMPRODUCT(OFFSET(L128,0,0,$A$17,1),OFFSET($H$33,0,0,$A$17,1))) -> -121.306571 | Q127: =IF(A127>$J$30,NA(),P127/$A$17) -> -4.665637345 | R127: =IF(A127>$J$30,NA(),Q127*100) -> -466.5637345 | BC127: 4494000000
A128: 96 | B128: =IF(A128>$A$8,"",OFFSET(InputPriceData!B$15,$A128+$A$11,0,1,1)) -> 2023-02-24 | C128: =IF(A128>$A$8,"",OFFSET(InputPriceData!G$15,CalculationsAndCharts!$A128+$A$11,IF($C$5,8,0),1,1)) -> 4432650000 | D128: =IF(A128>$A$8,"",OFFSET(InputPriceData!C$15,CalculationsAndCharts!$A128+$A$11,IF($C$5,8,0),1,1)) -> 11979.79981 | E128: =IF(A128>$A$8,"",OFFSET(InputPriceData!D$15,CalculationsAndCharts!$A128+$A$11,IF($C$5,8,0),1,1)) -> 12018.32031 | F128: =IF(A128>$A$8,"",OFFSET(InputPriceData!E$15,CalculationsAndCharts!$A128+$A$11,IF($C$5,8,0),1,1)) -> 11900.83984 | G128: =IF(A128>$A$8,"",OFFSET(InputPriceData!F$15,CalculationsAndCharts!$A128+$A$11,IF($C$5,8,0),1,1)) -> 11969.65039 | J128: -1045.294144 | K128: -40.20362091 | L128: =IF(A128>$L$30,NA(),IF(A128=$L$30,AVERAGE(OFFSET(K128,0,0,$A$18,1)),$C$18*(K128-L129)+L129)) -> -4.418557738 | M128: -441.8557738 | N128: -33.98890568 | P128: =IF(A128>$J$30,NA(),(L128*$I$33)-SUMPRODUCT(OFFSET(L129,0,0,$A$17,1),OFFSET($H$33,0,0,$A$17,1))) -> -129.7434366 | Q128: =IF(A128>$J$30,NA(),P128/$A$17) -> -4.990132177 | R128: =IF(A128>$J$30,NA(),Q128*100) -> -499.0132177 | BD128: 4432650000
A129: 97 | B129: =IF(A129>$A$8,"",OFFSET(InputPriceData!B$15,$A129+$A$11,0,1,1)) -> 2023-02-23 | C129: =IF(A129>$A$8,"",OFFSET(InputPriceData!G$15,CalculationsAndCharts!$A129+$A$11,IF($C$5,8,0),1,1)) -> 4714580000 | D129: =IF(A129>$A$8,"",OFFSET(InputPriceData!C$15,CalculationsAndCharts!$A129+$A$11,IF($C$5,8,0),1,1)) -> 12224.44043 | E129: =IF(A129>$A$8,"",OFFSET(InputPriceData!D$15,CalculationsAndCharts!$A129+$A$11,IF($C$5,8,0),1,1)) -> 12227.40039 | F129: =IF(A129>$A$8,"",OFFSET(InputPriceData!E$15,CalculationsAndCharts!$A129+$A$11,IF($C$5,8,0),1,1)) -> 12003.30957 | G129: =IF(A129>$A$8,"",OFFSET(InputPriceData!F$15,CalculationsAndCharts!$A129+$A$11,IF($C$5,8,0),1,1)) -> 12180.13965 | J129: -204.8056549 | K129: -7.877140573 | L129: =IF(A129>$L$30,NA(),IF(A129=$L$30,AVERAGE(OFFSET(K129,0,0,$A$18,1)),$C$18*(K129-L130)+L130)) -> 4.527708055 | M129: 452.7708055 | N129: 34.8285235 | P129: =IF(A129>$J$30,NA(),(L129*$I$33)-SUMPRODUCT(OFFSET(L130,0,0,$A$17,1),OFFSET($H$33,0,0,$A$17,1))) -> -111.426139 | Q129: =IF(A129>$J$30,NA(),P129/$A$17) -> -4.285620732 | R129: =IF(A129>$J$30,NA(),Q129*100) -> -428.5620732 | BC129: 4714580000
A130: 98 | B130: =IF(A130>$A$8,"",OFFSET(InputPriceData!B$15,$A130+$A$11,0,1,1)) -> 2023-02-22 | C130: =IF(A130>$A$8,"",OFFSET(InputPriceData!G$15,CalculationsAndCharts!$A130+$A$11,IF($C$5,8,0),1,1)) -> 4671270000 | D130: =IF(A130>$A$8,"",OFFSET(InputPriceData!C$15,CalculationsAndCharts!$A130+$A$11,IF($C$5,8,0),1,1)) -> 12085.66992 | E130: =IF(A130>$A$8,"",OFFSET(InputPriceData!D$15,CalculationsAndCharts!$A130+$A$11,IF($C$5,8,0),1,1)) -> 12156.20996 | F130: =IF(A130>$A$8,"",OFFSET(InputPriceData!E$15,CalculationsAndCharts!$A130+$A$11,IF($C$5,8,0),1,1)) -> 12006.04004 | G130: =IF(A130>$A$8,"",OFFSET(InputPriceData!F$15,CalculationsAndCharts!$A130+$A$11,IF($C$5,8,0),1,1)) -> 12066.26953 | J130: -784.750539 | K130: -30.18271304 | L130: =IF(A130>$L$30,NA(),IF(A130=$L$30,AVERAGE(OFFSET(K130,0,0,$A$18,1)),$C$18*(K130-L131)+L131)) -> 7.628920212 | M130: 762.8920212 | N130: 58.68400163 | P130: =IF(A130>$J$30,NA(),(L130*$I$33)-SUMPRODUCT(OFFSET(L131,0,0,$A$17,1),OFFSET($H$33,0,0,$A$17,1))) -> -120.7945324 | Q130: =IF(A130>$J$30,NA(),P130/$A$17) -> -4.645943553 | R130: =IF(A130>$J$30,NA(),Q130*100) -> -464.5943553 | BC130: 4671270000
A131: 99 | B131: =IF(A131>$A$8,"",OFFSET(InputPriceData!B$15,$A131+$A$11,0,1,1)) -> 2023-02-21 | C131: =IF(A131>$A$8,"",OFFSET(InputPriceData!G$15,CalculationsAndCharts!$A131+$A$11,IF($C$5,8,0),1,1)) -> 5002540000 | D131: =IF(A131>$A$8,"",OFFSET(InputPriceData!C$15,CalculationsAndCharts!$A131+$A$11,IF($C$5,8,0),1,1)) -> 12205.20996 | E131: =IF(A131>$A$8,"",OFFSET(InputPriceData!D$15,CalculationsAndCharts!$A131+$A$11,IF($C$5,8,0),1,1)) -> 12257.05957 | F131: =IF(A131>$A$8,"",OFFSET(InputPriceData!E$15,CalculationsAndCharts!$A131+$A$11,IF($C$5,8,0),1,1)) -> 12058.23047 | G131: =IF(A131>$A$8,"",OFFSET(InputPriceData!F$15,CalculationsAndCharts!$A131+$A$11,IF($C$5,8,0),1,1)) -> 12060.29981 | J131: -1122.797673 | K131: -43.18452587 | L131: =IF(A131>$L$30,NA(),IF(A131=$L$30,AVERAGE(OFFSET(K131,0,0,$A$18,1)),$C$18*(K131-L132)+L132)) -> 17.08182852 | M131: 1708.182852 | N131: 131.398681 | P131: =IF(A131>$J$30,NA(),(L131*$I$33)-SUMPRODUCT(OFFSET(L132,0,0,$A$17,1),OFFSET($H$33,0,0,$A$17,1))) -> -105.702128 | Q131: =IF(A131>$J$30,NA(),P131/$A$17) -> -4.065466462 | R131: =IF(A131>$J$30,NA(),Q131*100) -> -406.5466462 | BD131: 5002540000
A132: 100 | B132: =IF(A132>$A$8,"",OFFSET(InputPriceData!B$15,$A132+$A$11,0,1,1)) -> 2023-02-17 | C132: =IF(A132>$A$8,"",OFFSET(InputPriceData!G$15,CalculationsAndCharts!$A132+$A$11,IF($C$5,8,0),1,1)) -> 4925230000 | D132: =IF(A132>$A$8,"",OFFSET(InputPriceData!C$15,CalculationsAndCharts!$A132+$A$11,IF($C$5,8,0),1,1)) -> 12352.29981 | E132: =IF(A132>$A$8,"",OFFSET(InputPriceData!D$15,CalculationsAndCharts!$A132+$A$11,IF($C$5,8,0),1,1)) -> 12385.51953 | F132: =IF(A132>$A$8,"",OFFSET(InputPriceData!E$15,CalculationsAndCharts!$A132+$A$11,IF($C$5,8,0),1,1)) -> 12233.79004 | G132: =IF(A132>$A$8,"",OFFSET(InputPriceData!F$15,CalculationsAndCharts!$A132+$A$11,IF($C$5,8,0),1,1)) -> 12358.17969 | J132: -54.35667324 | K132: -2.090641278 | L132: =IF(A132>$L$30,NA(),IF(A132=$L$30,AVERAGE(OFFSET(K132,0,0,$A$18,1)),$C$18*(K132-L133)+L133)) -> 32.14841712 | M132: 3214.841712 | N132: 247.2955163 | P132: =IF(A132>$J$30,NA(),(L132*$I$33)-SUMPRODUCT(OFFSET(L133,0,0,$A$17,1),OFFSET($H$33,0,0,$A$17,1))) -> -59.41002448 | Q132: =IF(A132>$J$30,NA(),P132/$A$17) -> -2.285000942 | R132: =IF(A132>$J$30,NA(),Q132*100) -> -228.5000942 | BD132: 4925230000
A133: 101 | B133: =IF(A133>$A$8,"",OFFSET(InputPriceData!B$15,$A133+$A$11,0,1,1)) -> 2023-02-16 | C133: =IF(A133>$A$8,"",OFFSET(InputPriceData!G$15,CalculationsAndCharts!$A133+$A$11,IF($C$5,8,0),1,1)) -> 5159410000 | D133: =IF(A133>$A$8,"",OFFSET(InputPriceData!C$15,CalculationsAndCharts!$A133+$A$11,IF($C$5,8,0),1,1)) -> 12495.07031 | E133: =IF(A133>$A$8,"",OFFSET(InputPriceData!D$15,CalculationsAndCharts!$A133+$A$11,IF($C$5,8,0),1,1)) -> 12653.40039 | F133: =IF(A133>$A$8,"",OFFSET(InputPriceData!E$15,CalculationsAndCharts!$A133+$A$11,IF($C$5,8,0),1,1)) -> 12440 | G133: =IF(A133>$A$8,"",OFFSET(InputPriceData!F$15,CalculationsAndCharts!$A133+$A$11,IF($C$5,8,0),1,1)) -> 12442.48047 | J133: 191.5471617 | K133: 7.367198527 | L133: =IF(A133>$L$30,NA(),IF(A133=$L$30,AVERAGE(OFFSET(K133,0,0,$A$18,1)),$C$18*(K133-L134)+L134)) -> 40.70818172 | M133: 4070.818172 | N133: 313.1398594 | P133: =IF(A133>$J$30,NA(),(L133*$I$33)-SUMPRODUCT(OFFSET(L134,0,0,$A$17,1),OFFSET($H$33,0,0,$A$17,1))) -> -33.60035103 | Q133: =IF(A133>$J$30,NA(),P133/$A$17) -> -1.292321194 | R133: =IF(A133>$J$30,NA(),Q133*100) -> -129.2321194 | BD133: 5159410000
A134: 102 | B134: =IF(A134>$A$8,"",OFFSET(InputPriceData!B$15,$A134+$A$11,0,1,1)) -> 2023-02-15 | C134: =IF(A134>$A$8,"",OFFSET(InputPriceData!G$15,CalculationsAndCharts!$A134+$A$11,IF($C$5,8,0),1,1)) -> 5056640000 | D134: =IF(A134>$A$8,"",OFFSET(InputPriceData!C$15,CalculationsAndCharts!$A134+$A$11,IF($C$5,8,0),1,1)) -> 12531.59961 | E134: =IF(A134>$A$8,"",OFFSET(InputPriceData!D$15,CalculationsAndCharts!$A134+$A$11,IF($C$5,8,0),1,1)) -> 12689.33984 | F134: =IF(A134>$A$8,"",OFFSET(InputPriceData!E$15,CalculationsAndCharts!$A134+$A$11,IF($C$5,8,0),1,1)) -> 12486.41992 | G134: =IF(A134>$A$8,"",OFFSET(InputPriceData!F$15,CalculationsAndCharts!$A134+$A$11,IF($C$5,8,0),1,1)) -> 12687.88965 | J134: 1383.484497 | K134: 53.2109422 | L134: =IF(A134>$L$30,NA(),IF(A134=$L$30,AVERAGE(OFFSET(K134,0,0,$A$18,1)),$C$18*(K134-L135)+L135)) -> 49.04342752 | M134: 4904.342752 | N134: 377.2571348 | P134: =IF(A134>$J$30,NA(),(L134*$I$33)-SUMPRODUCT(OFFSET(L135,0,0,$A$17,1),OFFSET($H$33,0,0,$A$17,1))) -> -0.1628954278 | Q134: =IF(A134>$J$30,NA(),P134/$A$17) -> -0.00626520876 | R134: =IF(A134>$J$30,NA(),Q134*100) -> -0.626520876 | BC134: 5056640000
A135: 103 | B135: =IF(A135>$A$8,"",OFFSET(InputPriceData!B$15,$A135+$A$11,0,1,1)) -> 2023-02-14 | C135: =IF(A135>$A$8,"",OFFSET(InputPriceData!G$15,CalculationsAndCharts!$A135+$A$11,IF($C$5,8,0),1,1)) -> 5032430000 | D135: =IF(A135>$A$8,"",OFFSET(InputPriceData!C$15,CalculationsAndCharts!$A135+$A$11,IF($C$5,8,0),1,1)) -> 12413.09961 | E135: =IF(A135>$A$8,"",OFFSET(InputPriceData!D$15,CalculationsAndCharts!$A135+$A$11,IF($C$5,8,0),1,1)) -> 12627.40039 | F135: =IF(A135>$A$8,"",OFFSET(InputPriceData!E$15,CalculationsAndCharts!$A135+$A$11,IF($C$5,8,0),1,1)) -> 12356.32031 | G135: =IF(A135>$A$8,"",OFFSET(InputPriceData!F$15,CalculationsAndCharts!$A135+$A$11,IF($C$5,8,0),1,1)) -> 12590.88965 | J135: 1230.259058 | K135: 47.31765608 | L135: =IF(A135>$L$30,NA(),IF(A135=$L$30,AVERAGE(OFFSET(K135,0,0,$A$18,1)),$C$18*(K135-L136)+L136)) -> 48.00154885 | M135: 4800.154885 | N135: 369.2426835 | P135: =IF(A135>$J$30,NA(),(L135*$I$33)-SUMPRODUCT(OFFSET(L136,0,0,$A$17,1),OFFSET($H$33,0,0,$A$17,1))) -> -4.911880731 | Q135: =IF(A135>$J$30,NA(),P135/$A$17) -> -0.1889184896 | R135: =IF(A135>$J$30,NA(),Q135*100) -> -18.89184896 | BC135: 5032430000
A136: 104 | B136: =IF(A136>$A$8,"",OFFSET(InputPriceData!B$15,$A136+$A$11,0,1,1)) -> 2023-02-13 | C136: =IF(A136>$A$8,"",OFFSET(InputPriceData!G$15,CalculationsAndCharts!$A136+$A$11,IF($C$5,8,0),1,1)) -> 4752880000 | D136: =IF(A136>$A$8,"",OFFSET(InputPriceData!C$15,CalculationsAndCharts!$A136+$A$11,IF($C$5,8,0),1,1)) -> 12356.5 | E136: =IF(A136>$A$8,"",OFFSET(InputPriceData!D$15,CalculationsAndCharts!$A136+$A$11,IF($C$5,8,0),1,1)) -> 12522.78027 | F136: =IF(A136>$A$8,"",OFFSET(InputPriceData!E$15,CalculationsAndCharts!$A136+$A$11,IF($C$5,8,0),1,1)) -> 12313.45019 | G136: =IF(A136>$A$8,"",OFFSET(InputPriceData!F$15,CalculationsAndCharts!$A136+$A$11,IF($C$5,8,0),1,1)) -> 12502.30957 | J136: 1112.141681 | K136: 42.77468006 | L136: =IF(A136>$L$30,NA(),IF(A136=$L$30,AVERAGE(OFFSET(K136,0,0,$A$18,1)),$C$18*(K136-L137)+L137)) -> 48.17252205 | M136: 4817.252205 | N136: 370.5578619 | P136: =IF(A136>$J$30,NA(),(L136*$I$33)-SUMPRODUCT(OFFSET(L137,0,0,$A$17,1),OFFSET($H$33,0,0,$A$17,1))) -> -7.231424906 | Q136: =IF(A136>$J$30,NA(),P136/$A$17) -> -0.2781317272 | R136: =IF(A136>$J$30,NA(),Q136*100) -> -27.81317272 | BC136: 4752880000
A137: 105 | B137: =IF(A137>$A$8,"",OFFSET(InputPriceData!B$15,$A137+$A$11,0,1,1)) -> 2023-02-10 | C137: =IF(A137>$A$8,"",OFFSET(InputPriceData!G$15,CalculationsAndCharts!$A137+$A$11,IF($C$5,8,0),1,1)) -> 4885030000 | D137: =IF(A137>$A$8,"",OFFSET(InputPriceData!C$15,CalculationsAndCharts!$A137+$A$11,IF($C$5,8,0),1,1)) -> 12306.58984 | E137: =IF(A137>$A$8,"",OFFSET(InputPriceData!D$15,CalculationsAndCharts!$A137+$A$11,IF($C$5,8,0),1,1)) -> 12375.71973 | F137: =IF(A137>$A$8,"",OFFSET(InputPriceData!E$15,CalculationsAndCharts!$A137+$A$11,IF($C$5,8,0),1,1)) -> 12204.20996 | G137: =IF(A137>$A$8,"",OFFSET(InputPriceData!F$15,CalculationsAndCharts!$A137+$A$11,IF($C$5,8,0),1,1)) -> 12304.91992 | J137: 314.3930084 | K137: 12.09203879 | L137: =IF(A137>$L$30,NA(),IF(A137=$L$30,AVERAGE(OFFSET(K137,0,0,$A$18,1)),$C$18*(K137-L138)+L138)) -> 49.52198254 | M137: 4952.198254 | N137: 380.9383273 | P137: =IF(A137>$J$30,NA(),(L137*$I$33)-SUMPRODUCT(OFFSET(L138,0,0,$A$17,1),OFFSET($H$33,0,0,$A$17,1))) -> -9.78142549 | Q137: =IF(A137>$J$30,NA(),P137/$A$17) -> -0.3762086727 | R137: =IF(A137>$J$30,NA(),Q137*100) -> -37.62086727 | BD137: 4885030000
A138: 106 | B138: =IF(A138>$A$8,"",OFFSET(InputPriceData!B$15,$A138+$A$11,0,1,1)) -> 2023-02-09 | C138: =IF(A138>$A$8,"",OFFSET(InputPriceData!G$15,CalculationsAndCharts!$A138+$A$11,IF($C$5,8,0),1,1)) -> 5536290000 | D138: =IF(A138>$A$8,"",OFFSET(InputPriceData!C$15,CalculationsAndCharts!$A138+$A$11,IF($C$5,8,0),1,1)) -> 12677.54004 | E138: =IF(A138>$A$8,"",OFFSET(InputPriceData!D$15,CalculationsAndCharts!$A138+$A$11,IF($C$5,8,0),1,1)) -> 12679.54004 | F138: =IF(A138>$A$8,"",OFFSET(InputPriceData!E$15,CalculationsAndCharts!$A138+$A$11,IF($C$5,8,0),1,1)) -> 12327.44043 | G138: =IF(A138>$A$8,"",OFFSET(InputPriceData!F$15,CalculationsAndCharts!$A138+$A$11,IF($C$5,8,0),1,1)) -> 12381.16992 | J138: 583.0463383 | K138: 22.42485917 | L138: =IF(A138>$L$30,NA(),IF(A138=$L$30,AVERAGE(OFFSET(K138,0,0,$A$18,1)),$C$18*(K138-L139)+L139)) -> 58.87946848 | M138: 5887.946848 | N138: 452.9189883 | P138: =IF(A138>$J$30,NA(),(L138*$I$33)-SUMPRODUCT(OFFSET(L139,0,0,$A$17,1),OFFSET($H$33,0,0,$A$17,1))) -> 23.25903321 | Q138: =IF(A138>$J$30,NA(),P138/$A$17) -> 0.8945782004 | R138: =IF(A138>$J$30,NA(),Q138*100) -> 89.45782004 | BD138: 5536290000
A139: 107 | B139: =IF(A139>$A$8,"",OFFSET(InputPriceData!B$15,$A139+$A$11,0,1,1)) -> 2023-02-08 | C139: =IF(A139>$A$8,"",OFFSET(InputPriceData!G$15,CalculationsAndCharts!$A139+$A$11,IF($C$5,8,0),1,1)) -> 5052870000 | D139: =IF(A139>$A$8,"",OFFSET(InputPriceData!C$15,CalculationsAndCharts!$A139+$A$11,IF($C$5,8,0),1,1)) -> 12680.03027 | E139: =IF(A139>$A$8,"",OFFSET(InputPriceData!D$15,CalculationsAndCharts!$A139+$A$11,IF($C$5,8,0),1,1)) -> 12709.45019 | F139: =IF(A139>$A$8,"",OFFSET(InputPriceData!E$15,CalculationsAndCharts!$A139+$A$11,IF($C$5,8,0),1,1)) -> 12471.12012 | G139: =IF(A139>$A$8,"",OFFSET(InputPriceData!F$15,CalculationsAndCharts!$A139+$A$11,IF($C$5,8,0),1,1)) -> 12495.37988 | J139: 1043.478896 | K139: 40.13380371 | L139: =IF(A139>$L$30,NA(),IF(A139=$L$30,AVERAGE(OFFSET(K139,0,0,$A$18,1)),$C$18*(K139-L140)+L140)) -> 67.99312081 | M139: 6799.312081 | N139: 523.0240062 | P139: =IF(A139>$J$30,NA(),(L139*$I$33)-SUMPRODUCT(OFFSET(L140,0,0,$A$17,1),OFFSET($H$33,0,0,$A$17,1))) -> 62.40506798 | Q139: =IF(A139>$J$30,NA(),P139/$A$17) -> 2.400194922 | R139: =IF(A139>$J$30,NA(),Q139*100) -> 240.0194922 | BD139: 5052870000
A140: 108 | B140: =IF(A140>$A$8,"",OFFSET(InputPriceData!B$15,$A140+$A$11,0,1,1)) -> 2023-02-07 | C140: =IF(A140>$A$8,"",OFFSET(InputPriceData!G$15,CalculationsAndCharts!$A140+$A$11,IF($C$5,8,0),1,1)) -> 5720240000 | D140: =IF(A140>$A$8,"",OFFSET(InputPriceData!C$15,CalculationsAndCharts!$A140+$A$11,IF($C$5,8,0),1,1)) -> 12474.95019 | E140: =IF(A140>$A$8,"",OFFSET(InputPriceData!D$15,CalculationsAndCharts!$A140+$A$11,IF($C$5,8,0),1,1)) -> 12771.58984 | F140: =IF(A140>$A$8,"",OFFSET(InputPriceData!E$15,CalculationsAndCharts!$A140+$A$11,IF($C$5,8,0),1,1)) -> 12419.70996 | G140: =IF(A140>$A$8,"",OFFSET(InputPriceData!F$15,CalculationsAndCharts!$A140+$A$11,IF($C$5,8,0),1,1)) -> 12728.26953 | J140: 2326.7003 | K140: 89.48847306 | L140: =IF(A140>$L$30,NA(),IF(A140=$L$30,AVERAGE(OFFSET(K140,0,0,$A$18,1)),$C$18*(K140-L141)+L141)) -> 74.95795009 | M140: 7495.795009 | N140: 576.5996161 | P140: =IF(A140>$J$30,NA(),(L140*$I$33)-SUMPRODUCT(OFFSET(L141,0,0,$A$17,1),OFFSET($H$33,0,0,$A$17,1))) -> 103.0282617 | Q140: =IF(A140>$J$30,NA(),P140/$A$17) -> 3.962625451 | R140: =IF(A140>$J$30,NA(),Q140*100) -> 396.2625451 | BC140: 5720240000
A141: 109 | B141: =IF(A141>$A$8,"",OFFSET(InputPriceData!B$15,$A141+$A$11,0,1,1)) -> 2023-02-06 | C141: =IF(A141>$A$8,"",OFFSET(InputPriceData!G$15,CalculationsAndCharts!$A141+$A$11,IF($C$5,8,0),1,1)) -> 5538350000 | D141: =IF(A141>$A$8,"",OFFSET(InputPriceData!C$15,CalculationsAndCharts!$A141+$A$11,IF($C$5,8,0),1,1)) -> 12468.79981 | E141: =IF(A141>$A$8,"",OFFSET(InputPriceData!D$15,CalculationsAndCharts!$A141+$A$11,IF($C$5,8,0),1,1)) -> 12558.87012 | F141: =IF(A141>$A$8,"",OFFSET(InputPriceData!E$15,CalculationsAndCharts!$A141+$A$11,IF($C$5,8,0),1,1)) -> 12411.87988 | G141: =IF(A141>$A$8,"",OFFSET(InputPriceData!F$15,CalculationsAndCharts!$A141+$A$11,IF($C$5,8,0),1,1)) -> 12464.50977 | J141: 1408.80669 | K141: 54.18487269 | L141: =IF(A141>$L$30,NA(),IF(A141=$L$30,AVERAGE(OFFSET(K141,0,0,$A$18,1)),$C$18*(K141-L142)+L142)) -> 71.32531934 | M141: 7132.531934 | N141: 548.6563026 | P141: =IF(A141>$J$30,NA(),(L141*$I$33)-SUMPRODUCT(OFFSET(L142,0,0,$A$17,1),OFFSET($H$33,0,0,$A$17,1))) -> 99.59320307 | Q141: =IF(A141>$J$30,NA(),P141/$A$17) -> 3.83050781 | R141: =IF(A141>$J$30,NA(),Q141*100) -> 383.050781 | BD141: 5538350000
A142: 110 | B142: =IF(A142>$A$8,"",OFFSET(InputPriceData!B$15,$A142+$A$11,0,1,1)) -> 2023-02-03 | C142: =IF(A142>$A$8,"",OFFSET(InputPriceData!G$15,CalculationsAndCharts!$A142+$A$11,IF($C$5,8,0),1,1)) -> 5954490000 | D142: =IF(A142>$A$8,"",OFFSET(InputPriceData!C$15,CalculationsAndCharts!$A142+$A$11,IF($C$5,8,0),1,1)) -> 12520.95019 | E142: =IF(A142>$A$8,"",OFFSET(InputPriceData!D$15,CalculationsAndCharts!$A142+$A$11,IF($C$5,8,0),1,1)) -> 12828.70996 | F142: =IF(A142>$A$8,"",OFFSET(InputPriceData!E$15,CalculationsAndCharts!$A142+$A$11,IF($C$5,8,0),1,1)) -> 12520.95019 | G142: =IF(A142>$A$8,"",OFFSET(InputPriceData!F$15,CalculationsAndCharts!$A142+$A$11,IF($C$5,8,0),1,1)) -> 12573.36035 | J142: 2023.553558 | K142: 77.82898301 | L142: =IF(A142>$L$30,NA(),IF(A142=$L$30,AVERAGE(OFFSET(K142,0,0,$A$18,1)),$C$18*(K142-L143)+L143)) -> 75.61043101 | M142: 7561.043101 | N142: 581.6187001 | P142: =IF(A142>$J$30,NA(),(L142*$I$33)-SUMPRODUCT(OFFSET(L143,0,0,$A$17,1),OFFSET($H$33,0,0,$A$17,1))) -> 134.9684764 | Q142: =IF(A142>$J$30,NA(),P142/$A$17) -> 5.191095246 | R142: =IF(A142>$J$30,NA(),Q142*100) -> 519.1095246 | BD142: 5954490000
A143: 111 | B143: =IF(A143>$A$8,"",OFFSET(InputPriceData!B$15,$A143+$A$11,0,1,1)) -> 2023-02-02 | C143: =IF(A143>$A$8,"",OFFSET(InputPriceData!G$15,CalculationsAndCharts!$A143+$A$11,IF($C$5,8,0),1,1)) -> 7038210000 | D143: =IF(A143>$A$8,"",OFFSET(InputPriceData!C$15,CalculationsAndCharts!$A143+$A$11,IF($C$5,8,0),1,1)) -> 12655.17969 | E143: =IF(A143>$A$8,"",OFFSET(InputPriceData!D$15,CalculationsAndCharts!$A143+$A$11,IF($C$5,8,0),1,1)) -> 12880.98047 | F143: =IF(A143>$A$8,"",OFFSET(InputPriceData!E$15,CalculationsAndCharts!$A143+$A$11,IF($C$5,8,0),1,1)) -> 12600.75977 | G143: =IF(A143>$A$8,"",OFFSET(InputPriceData!F$15,CalculationsAndCharts!$A143+$A$11,IF($C$5,8,0),1,1)) -> 12803.13965 | J143: 3609.548037 | K143: 138.8287707 | L143: =IF(A143>$L$30,NA(),IF(A143=$L$30,AVERAGE(OFFSET(K143,0,0,$A$18,1)),$C$18*(K143-L144)+L144)) -> 75.05579301 | M143: 7505.579301 | N143: 577.3522539 | P143: =IF(A143>$J$30,NA(),(L143*$I$33)-SUMPRODUCT(OFFSET(L144,0,0,$A$17,1),OFFSET($H$33,0,0,$A$17,1))) -> 161.0266607 | Q143: =IF(A143>$J$30,NA(),P143/$A$17) -> 6.193333106 | R143: =IF(A143>$J$30,NA(),Q143*100) -> 619.3333106 | BC143: 7038210000
A144: 112 | B144: =IF(A144>$A$8,"",OFFSET(InputPriceData!B$15,$A144+$A$11,0,1,1)) -> 2023-02-01 | C144: =IF(A144>$A$8,"",OFFSET(InputPriceData!G$15,CalculationsAndCharts!$A144+$A$11,IF($C$5,8,0),1,1)) -> 6336040000 | D144: =IF(A144>$A$8,"",OFFSET(InputPriceData!C$15,CalculationsAndCharts!$A144+$A$11,IF($C$5,8,0),1,1)) -> 12087.91992 | E144: =IF(A144>$A$8,"",OFFSET(InputPriceData!D$15,CalculationsAndCharts!$A144+$A$11,IF($C$5,8,0),1,1)) -> 12458.87012 | F144: =IF(A144>$A$8,"",OFFSET(InputPriceData!E$15,CalculationsAndCharts!$A144+$A$11,IF($C$5,8,0),1,1)) -> 12010.73047 | G144: =IF(A144>$A$8,"",OFFSET(InputPriceData!F$15,CalculationsAndCharts!$A144+$A$11,IF($C$5,8,0),1,1)) -> 12363.09961 | J144: 2335.818769 | K144: 89.83918342 | L144: =IF(A144>$L$30,NA(),IF(A144=$L$30,AVERAGE(OFFSET(K144,0,0,$A$18,1)),$C$18*(K144-L145)+L145)) -> 59.11254859 | M144: 5911.254859 | N144: 454.7119123 | P144: =IF(A144>$J$30,NA(),(L144*$I$33)-SUMPRODUCT(OFFSET(L145,0,0,$A$17,1),OFFSET($H$33,0,0,$A$17,1))) -> 116.7341246 | Q144: =IF(A144>$J$30,NA(),P144/$A$17) -> 4.489774024 | R144: =IF(A144>$J$30,NA(),Q144*100) -> 448.9774024 | BC144: 6336040000
A145: 113 | B145: =IF(A145>$A$8,"",OFFSET(InputPriceData!B$15,$A145+$A$11,0,1,1)) -> 2023-01-31 | C145: =IF(A145>$A$8,"",OFFSET(InputPriceData!G$15,CalculationsAndCharts!$A145+$A$11,IF($C$5,8,0),1,1)) -> 5695150000 | D145: =IF(A145>$A$8,"",OFFSET(InputPriceData!C$15,CalculationsAndCharts!$A145+$A$11,IF($C$5,8,0),1,1)) -> 11915.94043 | E145: =IF(A145>$A$8,"",OFFSET(InputPriceData!D$15,CalculationsAndCharts!$A145+$A$11,IF($C$5,8,0),1,1)) -> 12104.12988 | F145: =IF(A145>$A$8,"",OFFSET(InputPriceData!E$15,CalculationsAndCharts!$A145+$A$11,IF($C$5,8,0),1,1)) -> 11915.94043 | G145: =IF(A145>$A$8,"",OFFSET(InputPriceData!F$15,CalculationsAndCharts!$A145+$A$11,IF($C$5,8,0),1,1)) -> 12101.92969 | J145: 1561.163339 | K145: 60.04474382 | L145: =IF(A145>$L$30,NA(),IF(A145=$L$30,AVERAGE(OFFSET(K145,0,0,$A$18,1)),$C$18*(K145-L146)+L146)) -> 51.43088989 | M145: 5143.088989 | N145: 395.6222299 | P145: =IF(A145>$J$30,NA(),(L145*$I$33)-SUMPRODUCT(OFFSET(L146,0,0,$A$17,1),OFFSET($H$33,0,0,$A$17,1))) -> 98.30867422 | Q145: =IF(A145>$J$30,NA(),P145/$A$17) -> 3.781102855 | R145: =IF(A145>$J$30,NA(),Q145*100) -> 378.1102855 | BC145: 5695150000
A146: 114 | B146: =IF(A146>$A$8,"",OFFSET(InputPriceData!B$15,$A146+$A$11,0,1,1)) -> 2023-01-30 | C146: =IF(A146>$A$8,"",OFFSET(InputPriceData!G$15,CalculationsAndCharts!$A146+$A$11,IF($C$5,8,0),1,1)) -> 5122320000 | D146: =IF(A146>$A$8,"",OFFSET(InputPriceData!C$15,CalculationsAndCharts!$A146+$A$11,IF($C$5,8,0),1,1)) -> 12047.16016 | E146: =IF(A146>$A$8,"",OFFSET(InputPriceData!D$15,CalculationsAndCharts!$A146+$A$11,IF($C$5,8,0),1,1)) -> 12087.67969 | F146: =IF(A146>$A$8,"",OFFSET(InputPriceData!E$15,CalculationsAndCharts!$A146+$A$11,IF($C$5,8,0),1,1)) -> 11906.11035 | G146: =IF(A146>$A$8,"",OFFSET(InputPriceData!F$15,CalculationsAndCharts!$A146+$A$11,IF($C$5,8,0),1,1)) -> 11912.38965 | J146: 800.3265938 | K146: 30.78179207 | L146: =IF(A146>$L$30,NA(),IF(A146=$L$30,AVERAGE(OFFSET(K146,0,0,$A$18,1)),$C$18*(K146-L147)+L147)) -> 49.2774264 | M146: 4927.74264 | N146: 379.0571262 | P146: =IF(A146>$J$30,NA(),(L146*$I$33)-SUMPRODUCT(OFFSET(L147,0,0,$A$17,1),OFFSET($H$33,0,0,$A$17,1))) -> 99.47920369 | Q146: =IF(A146>$J$30,NA(),P146/$A$17) -> 3.826123219 | R146: =IF(A146>$J$30,NA(),Q146*100) -> 382.6123219 | BD146: 5122320000
A147: 115 | B147: =IF(A147>$A$8,"",OFFSET(InputPriceData!B$15,$A147+$A$11,0,1,1)) -> 2023-01-27 | C147: =IF(A147>$A$8,"",OFFSET(InputPriceData!G$15,CalculationsAndCharts!$A147+$A$11,IF($C$5,8,0),1,1)) -> 6243800000 | D147: =IF(A147>$A$8,"",OFFSET(InputPriceData!C$15,CalculationsAndCharts!$A147+$A$11,IF($C$5,8,0),1,1)) -> 12000.20996 | E147: =IF(A147>$A$8,"",OFFSET(InputPriceData!D$15,CalculationsAndCharts!$A147+$A$11,IF($C$5,8,0),1,1)) -> 12248.15039 | F147: =IF(A147>$A$8,"",OFFSET(InputPriceData!E$15,CalculationsAndCharts!$A147+$A$11,IF($C$5,8,0),1,1)) -> 11999.87012 | G147: =IF(A147>$A$8,"",OFFSET(InputPriceData!F$15,CalculationsAndCharts!$A147+$A$11,IF($C$5,8,0),1,1)) -> 12166.59961 | J147: 2112.608299 | K147: 81.25416534 | L147: =IF(A147>$L$30,NA(),IF(A147=$L$30,AVERAGE(OFFSET(K147,0,0,$A$18,1)),$C$18*(K147-L148)+L148)) -> 53.90133499 | M147: 5390.133499 | N147: 414.6256537 | P147: =IF(A147>$J$30,NA(),(L147*$I$33)-SUMPRODUCT(OFFSET(L148,0,0,$A$17,1),OFFSET($H$33,0,0,$A$17,1))) -> 137.1036319 | Q147: =IF(A147>$J$30,NA(),P147/$A$17) -> 5.27321661 | R147: =IF(A147>$J$30,NA(),Q147*100) -> 527.321661 | BC147: 6243800000
A148: 116 | B148: =IF(A148>$A$8,"",OFFSET(InputPriceData!B$15,$A148+$A$11,0,1,1)) -> 2023-01-26 | C148: =IF(A148>$A$8,"",OFFSET(InputPriceData!G$15,CalculationsAndCharts!$A148+$A$11,IF($C$5,8,0),1,1)) -> 5732890000 | D148: =IF(A148>$A$8,"",OFFSET(InputPriceData!C$15,CalculationsAndCharts!$A148+$A$11,IF($C$5,8,0),1,1)) -> 11972.57031 | E148: =IF(A148>$A$8,"",OFFSET(InputPriceData!D$15,CalculationsAndCharts!$A148+$A$11,IF($C$5,8,0),1,1)) -> 12055.80957 | F148: =IF(A148>$A$8,"",OFFSET(InputPriceData!E$15,CalculationsAndCharts!$A148+$A$11,IF($C$5,8,0),1,1)) -> 11853.37012 | G148: =IF(A148>$A$8,"",OFFSET(InputPriceData!F$15,CalculationsAndCharts!$A148+$A$11,IF($C$5,8,0),1,1)) -> 12051.48047 | J148: 2013.684428 | K148: 77.44940107 | L148: =IF(A148>$L$30,NA(),IF(A148=$L$30,AVERAGE(OFFSET(K148,0,0,$A$18,1)),$C$18*(K148-L149)+L149)) -> 47.0631274 | M148: 4706.31274 | N148: 362.0240569 | P148: =IF(A148>$J$30,NA(),(L148*$I$33)-SUMPRODUCT(OFFSET(L149,0,0,$A$17,1),OFFSET($H$33,0,0,$A$17,1))) -> 128.9915606 | Q148: =IF(A148>$J$30,NA(),P148/$A$17) -> 4.961213868 | R148: =IF(A148>$J$30,NA(),Q148*100) -> 496.1213868 | BC148: 5732890000
A149: 117 | B149: =IF(A149>$A$8,"",OFFSET(InputPriceData!B$15,$A149+$A$11,0,1,1)) -> 2023-01-25 | C149: =IF(A149>$A$8,"",OFFSET(InputPriceData!G$15,CalculationsAndCharts!$A149+$A$11,IF($C$5,8,0),1,1)) -> 5485570000 | D149: =IF(A149>$A$8,"",OFFSET(InputPriceData!C$15,CalculationsAndCharts!$A149+$A$11,IF($C$5,8,0),1,1)) -> 11636.00977 | E149: =IF(A149>$A$8,"",OFFSET(InputPriceData!D$15,CalculationsAndCharts!$A149+$A$11,IF($C$5,8,0),1,1)) -> 11841.80957 | F149: =IF(A149>$A$8,"",OFFSET(InputPriceData!E$15,CalculationsAndCharts!$A149+$A$11,IF($C$5,8,0),1,1)) -> 11550.07031 | G149: =IF(A149>$A$8,"",OFFSET(InputPriceData!F$15,CalculationsAndCharts!$A149+$A$11,IF($C$5,8,0),1,1)) -> 11814.69043 | J149: 1220.079829 | K149: 46.92614729 | L149: =IF(A149>$L$30,NA(),IF(A149=$L$30,AVERAGE(OFFSET(K149,0,0,$A$18,1)),$C$18*(K149-L150)+L150)) -> 39.46655898 | M149: 3946.655898 | N149: 303.5889152 | P149: =IF(A149>$J$30,NA(),(L149*$I$33)-SUMPRODUCT(OFFSET(L150,0,0,$A$17,1),OFFSET($H$33,0,0,$A$17,1))) -> 113.474297 | Q149: =IF(A149>$J$30,NA(),P149/$A$17) -> 4.36439604 | R149: =IF(A149>$J$30,NA(),Q149*100) -> 436.439604 | BD149: 5485570000
A150: 118 | B150: =IF(A150>$A$8,"",OFFSET(InputPriceData!B$15,$A150+$A$11,0,1,1)) -> 2023-01-24 | C150: =IF(A150>$A$8,"",OFFSET(InputPriceData!G$15,CalculationsAndCharts!$A150+$A$11,IF($C$5,8,0),1,1)) -> 5670860000 | D150: =IF(A150>$A$8,"",OFFSET(InputPriceData!C$15,CalculationsAndCharts!$A150+$A$11,IF($C$5,8,0),1,1)) -> 11802.95019 | E150: =IF(A150>$A$8,"",OFFSET(InputPriceData!D$15,CalculationsAndCharts!$A150+$A$11,IF($C$5,8,0),1,1)) -> 11889.37012 | F150: =IF(A150>$A$8,"",OFFSET(InputPriceData!E$15,CalculationsAndCharts!$A150+$A$11,IF($C$5,8,0),1,1)) -> 11780.07031 | G150: =IF(A150>$A$8,"",OFFSET(InputPriceData!F$15,CalculationsAndCharts!$A150+$A$11,IF($C$5,8,0),1,1)) -> 11846.63965 | J150: 1531.108952 | K150: 58.88880585 | L150: =IF(A150>$L$30,NA(),IF(A150=$L$30,AVERAGE(OFFSET(K150,0,0,$A$18,1)),$C$18*(K150-L151)+L151)) -> 37.60166191 | M150: 3760.166191 | N150: 289.2435531 | P150: =IF(A150>$J$30,NA(),(L150*$I$33)-SUMPRODUCT(OFFSET(L151,0,0,$A$17,1),OFFSET($H$33,0,0,$A$17,1))) -> 123.2854211 | Q150: =IF(A150>$J$30,NA(),P150/$A$17) -> 4.741746965 | R150: =IF(A150>$J$30,NA(),Q150*100) -> 474.1746965 | BD150: 5670860000
A151: 119 | B151: =IF(A151>$A$8,"",OFFSET(InputPriceData!B$15,$A151+$A$11,0,1,1)) -> 2023-01-23 | C151: =IF(A151>$A$8,"",OFFSET(InputPriceData!G$15,CalculationsAndCharts!$A151+$A$11,IF($C$5,8,0),1,1)) -> 5997810000 | D151: =IF(A151>$A$8,"",OFFSET(InputPriceData!C$15,CalculationsAndCharts!$A151+$A$11,IF($C$5,8,0),1,1)) -> 11652 | E151: =IF(A151>$A$8,"",OFFSET(InputPriceData!D$15,CalculationsAndCharts!$A151+$A$11,IF($C$5,8,0),1,1)) -> 11918.86035 | F151: =IF(A151>$A$8,"",OFFSET(InputPriceData!E$15,CalculationsAndCharts!$A151+$A$11,IF($C$5,8,0),1,1)) -> 11617.83008 | G151: =IF(A151>$A$8,"",OFFSET(InputPriceData!F$15,CalculationsAndCharts!$A151+$A$11,IF($C$5,8,0),1,1)) -> 11872.54004 | J151: 2012.567721 | K151: 77.40645081 | L151: =IF(A151>$L$30,NA(),IF(A151=$L$30,AVERAGE(OFFSET(K151,0,0,$A$18,1)),$C$18*(K151-L152)+L152)) -> 32.27987592 | M151: 3227.987592 | N151: 248.3067378 | P151: =IF(A151>$J$30,NA(),(L151*$I$33)-SUMPRODUCT(OFFSET(L152,0,0,$A$17,1),OFFSET($H$33,0,0,$A$17,1))) -> 121.7480667 | Q151: =IF(A151>$J$30,NA(),P151/$A$17) -> 4.682617951 | R151: =IF(A151>$J$30,NA(),Q151*100) -> 468.2617951 | BC151: 5997810000
A152: 120 | B152: =IF(A152>$A$8,"",OFFSET(InputPriceData!B$15,$A152+$A$11,0,1,1)) -> 2023-01-20 | C152: =IF(A152>$A$8,"",OFFSET(InputPriceData!G$15,CalculationsAndCharts!$A152+$A$11,IF($C$5,8,0),1,1)) -> 5980110000 | D152: =IF(A152>$A$8,"",OFFSET(InputPriceData!C$15,CalculationsAndCharts!$A152+$A$11,IF($C$5,8,0),1,1)) -> 11363.84961 | E152: =IF(A152>$A$8,"",OFFSET(InputPriceData!D$15,CalculationsAndCharts!$A152+$A$11,IF($C$5,8,0),1,1)) -> 11623.20019 | F152: =IF(A152>$A$8,"",OFFSET(InputPriceData!E$15,CalculationsAndCharts!$A152+$A$11,IF($C$5,8,0),1,1)) -> 11329.54004 | G152: =IF(A152>$A$8,"",OFFSET(InputPriceData!F$15,CalculationsAndCharts!$A152+$A$11,IF($C$5,8,0),1,1)) -> 11619.03027 | J152: 1309.04304 | K152: 50.34780922 | L152: =IF(A152>$L$30,NA(),IF(A152=$L$30,AVERAGE(OFFSET(K152,0,0,$A$18,1)),$C$18*(K152-L153)+L153)) -> 20.9982322 | M152: 2099.82322 | N152: 161.5248631 | P152: =IF(A152>$J$30,NA(),(L152*$I$33)-SUMPRODUCT(OFFSET(L153,0,0,$A$17,1),OFFSET($H$33,0,0,$A$17,1))) -> 90.2101789 | Q152: =IF(A152>$J$30,NA(),P152/$A$17) -> 3.469622265 | R152: =IF(A152>$J$30,NA(),Q152*100) -> 346.9622265 | BC152: 5980110000
A153: 121 | B153: =IF(A153>$A$8,"",OFFSET(InputPriceData!B$15,$A153+$A$11,0,1,1)) -> 2023-01-19 | C153: =IF(A153>$A$8,"",OFFSET(InputPriceData!G$15,CalculationsAndCharts!$A153+$A$11,IF($C$5,8,0),1,1)) -> 4660800000 | D153: =IF(A153>$A$8,"",OFFSET(InputPriceData!C$15,CalculationsAndCharts!$A153+$A$11,IF($C$5,8,0),1,1)) -> 11345.19043 | E153: =IF(A153>$A$8,"",OFFSET(InputPriceData!D$15,CalculationsAndCharts!$A153+$A$11,IF($C$5,8,0),1,1)) -> 11388.45996 | F153: =IF(A153>$A$8,"",OFFSET(InputPriceData!E$15,CalculationsAndCharts!$A153+$A$11,IF($C$5,8,0),1,1)) -> 11251.94043 | G153: =IF(A153>$A$8,"",OFFSET(InputPriceData!F$15,CalculationsAndCharts!$A153+$A$11,IF($C$5,8,0),1,1)) -> 11295.66992 | J153: -48.54991839 | K153: -1.867304554 | L153: =IF(A153>$L$30,NA(),IF(A153=$L$30,AVERAGE(OFFSET(K153,0,0,$A$18,1)),$C$18*(K153-L154)+L154)) -> 13.66083794 | M153: 1366.083794 | N153: 105.0833688 | P153: =IF(A153>$J$30,NA(),(L153*$I$33)-SUMPRODUCT(OFFSET(L154,0,0,$A$17,1),OFFSET($H$33,0,0,$A$17,1))) -> 66.19171597 | Q153: =IF(A153>$J$30,NA(),P153/$A$17) -> 2.54583523 | R153: =IF(A153>$J$30,NA(),Q153*100) -> 254.583523 | BD153: 4660800000
A154: 122 | B154: =IF(A154>$A$8,"",OFFSET(InputPriceData!B$15,$A154+$A$11,0,1,1)) -> 2023-01-18 | C154: =IF(A154>$A$8,"",OFFSET(InputPriceData!G$15,CalculationsAndCharts!$A154+$A$11,IF($C$5,8,0),1,1)) -> 5288630000 | D154: =IF(A154>$A$8,"",OFFSET(InputPriceData!C$15,CalculationsAndCharts!$A154+$A$11,IF($C$5,8,0),1,1)) -> 11636.61035 | E154: =IF(A154>$A$8,"",OFFSET(InputPriceData!D$15,CalculationsAndCharts!$A154+$A$11,IF($C$5,8,0),1,1)) -> 11690.26953 | F154: =IF(A154>$A$8,"",OFFSET(InputPriceData!E$15,CalculationsAndCharts!$A154+$A$11,IF($C$5,8,0),1,1)) -> 11403.30957 | G154: =IF(A154>$A$8,"",OFFSET(InputPriceData!F$15,CalculationsAndCharts!$A154+$A$11,IF($C$5,8,0),1,1)) -> 11410.29004 | J154: 343.4204624 | K154: 13.20847932 | L154: =IF(A154>$L$30,NA(),IF(A154=$L$30,AVERAGE(OFFSET(K154,0,0,$A$18,1)),$C$18*(K154-L155)+L155)) -> 17.54287356 | M154: 1754.287356 | N154: 134.9451813 | P154: =IF(A154>$J$30,NA(),(L154*$I$33)-SUMPRODUCT(OFFSET(L155,0,0,$A$17,1),OFFSET($H$33,0,0,$A$17,1))) -> 91.42123283 | Q154: =IF(A154>$J$30,NA(),P154/$A$17) -> 3.516201263 | R154: =IF(A154>$J$30,NA(),Q154*100) -> 351.6201263 | BD154: 5288630000
A155: 123 | B155: =IF(A155>$A$8,"",OFFSET(InputPriceData!B$15,$A155+$A$11,0,1,1)) -> 2023-01-17 | C155: =IF(A155>$A$8,"",OFFSET(InputPriceData!G$15,CalculationsAndCharts!$A155+$A$11,IF($C$5,8,0),1,1)) -> 5138410000 | D155: =IF(A155>$A$8,"",OFFSET(InputPriceData!C$15,CalculationsAndCharts!$A155+$A$11,IF($C$5,8,0),1,1)) -> 11531.54004 | E155: =IF(A155>$A$8,"",OFFSET(InputPriceData!D$15,CalculationsAndCharts!$A155+$A$11,IF($C$5,8,0),1,1)) -> 11615.95019 | F155: =IF(A155>$A$8,"",OFFSET(InputPriceData!E$15,CalculationsAndCharts!$A155+$A$11,IF($C$5,8,0),1,1)) -> 11484.01953 | G155: =IF(A155>$A$8,"",OFFSET(InputPriceData!F$15,CalculationsAndCharts!$A155+$A$11,IF($C$5,8,0),1,1)) -> 11557.19043 | J155: 1054.211863 | K155: 40.54661012 | L155: =IF(A155>$L$30,NA(),IF(A155=$L$30,AVERAGE(OFFSET(K155,0,0,$A$18,1)),$C$18*(K155-L156)+L156)) -> 18.62647212 | M155: 1862.647212 | N155: 143.2805548 | P155: =IF(A155>$J$30,NA(),(L155*$I$33)-SUMPRODUCT(OFFSET(L156,0,0,$A$17,1),OFFSET($H$33,0,0,$A$17,1))) -> 112.8560964 | Q155: =IF(A155>$J$30,NA(),P155/$A$17) -> 4.340619093 | R155: =IF(A155>$J$30,NA(),Q155*100) -> 434.0619093 | BC155: 5138410000
A156: 124 | B156: =IF(A156>$A$8,"",OFFSET(InputPriceData!B$15,$A156+$A$11,0,1,1)) -> 2023-01-13 | C156: =IF(A156>$A$8,"",OFFSET(InputPriceData!G$15,CalculationsAndCharts!$A156+$A$11,IF($C$5,8,0),1,1)) -> 5077990000 | D156: =IF(A156>$A$8,"",OFFSET(InputPriceData!C$15,CalculationsAndCharts!$A156+$A$11,IF($C$5,8,0),1,1)) -> 11362.12988 | E156: =IF(A156>$A$8,"",OFFSET(InputPriceData!D$15,CalculationsAndCharts!$A156+$A$11,IF($C$5,8,0),1,1)) -> 11547.95996 | F156: =IF(A156>$A$8,"",OFFSET(InputPriceData!E$15,CalculationsAndCharts!$A156+$A$11,IF($C$5,8,0),1,1)) -> 11347.59961 | G156: =IF(A156>$A$8,"",OFFSET(InputPriceData!F$15,CalculationsAndCharts!$A156+$A$11,IF($C$5,8,0),1,1)) -> 11541.48047 | J156: 1196.790048 | K156: 46.03038646 | L156: =IF(A156>$L$30,NA(),IF(A156=$L$30,AVERAGE(OFFSET(K156,0,0,$A$18,1)),$C$18*(K156-L157)+L157)) -> 13.14643762 | M156: 1314.643762 | N156: 101.1264433 | P156: =IF(A156>$J$30,NA(),(L156*$I$33)-SUMPRODUCT(OFFSET(L157,0,0,$A$17,1),OFFSET($H$33,0,0,$A$17,1))) -> 110.5438609 | Q156: =IF(A156>$J$30,NA(),P156/$A$17) -> 4.251686959 | R156: =IF(A156>$J$30,NA(),Q156*100) -> 425.1686959 | BC156: 5077990000
A157: 125 | B157: =IF(A157>$A$8,"",OFFSET(InputPriceData!B$15,$A157+$A$11,0,1,1)) -> 2023-01-12 | C157: =IF(A157>$A$8,"",OFFSET(InputPriceData!G$15,CalculationsAndCharts!$A157+$A$11,IF($C$5,8,0),1,1)) -> 5681240000 | D157: =IF(A157>$A$8,"",OFFSET(InputPriceData!C$15,CalculationsAndCharts!$A157+$A$11,IF($C$5,8,0),1,1)) -> 11441.45019 | E157: =IF(A157>$A$8,"",OFFSET(InputPriceData!D$15,CalculationsAndCharts!$A157+$A$11,IF($C$5,8,0),1,1)) -> 11500.86035 | F157: =IF(A157>$A$8,"",OFFSET(InputPriceData!E$15,CalculationsAndCharts!$A157+$A$11,IF($C$5,8,0),1,1)) -> 11246.01953 | G157: =IF(A157>$A$8,"",OFFSET(InputPriceData!F$15,CalculationsAndCharts!$A157+$A$11,IF($C$5,8,0),1,1)) -> 11459.61035 | J157: 1070.097774 | K157: 41.15760671 | L157: =IF(A157>$L$30,NA(),IF(A157=$L$30,AVERAGE(OFFSET(K157,0,0,$A$18,1)),$C$18*(K157-L158)+L158)) -> 4.925450416 | M157: 492.5450416 | N157: 37.88808012 | P157: =IF(A157>$J$30,NA(),(L157*$I$33)-SUMPRODUCT(OFFSET(L158,0,0,$A$17,1),OFFSET($H$33,0,0,$A$17,1))) -> 96.72275383 | Q157: =IF(A157>$J$30,NA(),P157/$A$17) -> 3.720105916 | R157: =IF(A157>$J$30,NA(),Q157*100) -> 372.0105916 | BC157: 5681240000
A158: 126 | B158: =IF(A158>$A$8,"",OFFSET(InputPriceData!B$15,$A158+$A$11,0,1,1)) -> 2023-01-11 | C158: =IF(A158>$A$8,"",OFFSET(InputPriceData!G$15,CalculationsAndCharts!$A158+$A$11,IF($C$5,8,0),1,1)) -> 5284390000 | D158: =IF(A158>$A$8,"",OFFSET(InputPriceData!C$15,CalculationsAndCharts!$A158+$A$11,IF($C$5,8,0),1,1)) -> 11259.16016 | E158: =IF(A158>$A$8,"",OFFSET(InputPriceData!D$15,CalculationsAndCharts!$A158+$A$11,IF($C$5,8,0),1,1)) -> 11403.88965 | F158: =IF(A158>$A$8,"",OFFSET(InputPriceData!E$15,CalculationsAndCharts!$A158+$A$11,IF($C$5,8,0),1,1)) -> 11220.75 | G158: =IF(A158>$A$8,"",OFFSET(InputPriceData!F$15,CalculationsAndCharts!$A158+$A$11,IF($C$5,8,0),1,1)) -> 11402.51953 | J158: 1100.801661 | K158: 42.33852542 | L158: =IF(A158>$L$30,NA(),IF(A158=$L$30,AVERAGE(OFFSET(K158,0,0,$A$18,1)),$C$18*(K158-L159)+L159)) -> -4.132588658 | M158: -413.2588658 | N158: -31.78914352 | P158: =IF(A158>$J$30,NA(),(L158*$I$33)-SUMPRODUCT(OFFSET(L159,0,0,$A$17,1),OFFSET($H$33,0,0,$A$17,1))) -> 78.51223325 | Q158: =IF(A158>$J$30,NA(),P158/$A$17) -> 3.019701279 | R158: =IF(A158>$J$30,NA(),Q158*100) -> 301.9701279 | BC158: 5284390000
A159: 127 | B159: =IF(A159>$A$8,"",OFFSET(InputPriceData!B$15,$A159+$A$11,0,1,1)) -> 2023-01-10 | C159: =IF(A159>$A$8,"",OFFSET(InputPriceData!G$15,CalculationsAndCharts!$A159+$A$11,IF($C$5,8,0),1,1)) -> 4710680000 | D159: =IF(A159>$A$8,"",OFFSET(InputPriceData!C$15,CalculationsAndCharts!$A159+$A$11,IF($C$5,8,0),1,1)) -> 11069.04981 | E159: =IF(A159>$A$8,"",OFFSET(InputPriceData!D$15,CalculationsAndCharts!$A159+$A$11,IF($C$5,8,0),1,1)) -> 11207.55957 | F159: =IF(A159>$A$8,"",OFFSET(InputPriceData!E$15,CalculationsAndCharts!$A159+$A$11,IF($C$5,8,0),1,1)) -> 11050.67969 | G159: =IF(A159>$A$8,"",OFFSET(InputPriceData!F$15,CalculationsAndCharts!$A159+$A$11,IF($C$5,8,0),1,1)) -> 11205.78027 | J159: 467.9880078 | K159: 17.99953876 | L159: =IF(A159>$L$30,NA(),IF(A159=$L$30,AVERAGE(OFFSET(K159,0,0,$A$18,1)),$C$18*(K159-L160)+L160)) -> -15.75036718 | M159: -1575.036718 | N159: -121.1566706 | P159: =IF(A159>$J$30,NA(),(L159*$I$33)-SUMPRODUCT(OFFSET(L160,0,0,$A$17,1),OFFSET($H$33,0,0,$A$17,1))) -> 44.91679852 | Q159: =IF(A159>$J$30,NA(),P159/$A$17) -> 1.727569174 | R159: =IF(A159>$J$30,NA(),Q159*100) -> 172.7569174 | BC159: 4710680000
A160: 128 | B160: =IF(A160>$A$8,"",OFFSET(InputPriceData!B$15,$A160+$A$11,0,1,1)) -> 2023-01-09 | C160: =IF(A160>$A$8,"",OFFSET(InputPriceData!G$15,CalculationsAndCharts!$A160+$A$11,IF($C$5,8,0),1,1)) -> 5132190000 | D160: =IF(A160>$A$8,"",OFFSET(InputPriceData!C$15,CalculationsAndCharts!$A160+$A$11,IF($C$5,8,0),1,1)) -> 11133.07031 | E160: =IF(A160>$A$8,"",OFFSET(InputPriceData!D$15,CalculationsAndCharts!$A160+$A$11,IF($C$5,8,0),1,1)) -> 11304.83984 | F160: =IF(A160>$A$8,"",OFFSET(InputPriceData!E$15,CalculationsAndCharts!$A160+$A$11,IF($C$5,8,0),1,1)) -> 11085.32031 | G160: =IF(A160>$A$8,"",OFFSET(InputPriceData!F$15,CalculationsAndCharts!$A160+$A$11,IF($C$5,8,0),1,1)) -> 11108.45019 | J160: 187.838585 | K160: 7.224560962 | L160: =IF(A160>$L$30,NA(),IF(A160=$L$30,AVERAGE(OFFSET(K160,0,0,$A$18,1)),$C$18*(K160-L161)+L161)) -> -24.18784366 | M160: -2418.784366 | N160: -186.0603359 | P160: =IF(A160>$J$30,NA(),(L160*$I$33)-SUMPRODUCT(OFFSET(L161,0,0,$A$17,1),OFFSET($H$33,0,0,$A$17,1))) -> 20.51742048 | Q160: =IF(A160>$J$30,NA(),P160/$A$17) -> 0.789131557 | R160: =IF(A160>$J$30,NA(),Q160*100) -> 78.9131557 | BC160: 5132190000
A161: 129 | B161: =IF(A161>$A$8,"",OFFSET(InputPriceData!B$15,$A161+$A$11,0,1,1)) -> 2023-01-06 | C161: =IF(A161>$A$8,"",OFFSET(InputPriceData!G$15,CalculationsAndCharts!$A161+$A$11,IF($C$5,8,0),1,1)) -> 5199780000 | D161: =IF(A161>$A$8,"",OFFSET(InputPriceData!C$15,CalculationsAndCharts!$A161+$A$11,IF($C$5,8,0),1,1)) -> 10807.45996 | E161: =IF(A161>$A$8,"",OFFSET(InputPriceData!D$15,CalculationsAndCharts!$A161+$A$11,IF($C$5,8,0),1,1)) -> 11082.58984 | F161: =IF(A161>$A$8,"",OFFSET(InputPriceData!E$15,CalculationsAndCharts!$A161+$A$11,IF($C$5,8,0),1,1)) -> 10696.41992 | G161: =IF(A161>$A$8,"",OFFSET(InputPriceData!F$15,CalculationsAndCharts!$A161+$A$11,IF($C$5,8,0),1,1)) -> 11040.34961 | J161: 90.45349 | K161: 3.478980385 | L161: =IF(A161>$L$30,NA(),IF(A161=$L$30,AVERAGE(OFFSET(K161,0,0,$A$18,1)),$C$18*(K161-L162)+L162)) -> -32.04094482 | M161: -3204.094482 | N161: -246.4688063 | P161: =IF(A161>$J$30,NA(),(L161*$I$33)-SUMPRODUCT(OFFSET(L162,0,0,$A$17,1),OFFSET($H$33,0,0,$A$17,1))) -> -4.928481126 | Q161: =IF(A161>$J$30,NA(),P161/$A$17) -> -0.1895569664 | R161: =IF(A161>$J$30,NA(),Q161*100) -> -18.95569664 | BC161: 5199780000
A162: 130 | B162: =IF(A162>$A$8,"",OFFSET(InputPriceData!B$15,$A162+$A$11,0,1,1)) -> 2023-01-05 | C162: =IF(A162>$A$8,"",OFFSET(InputPriceData!G$15,CalculationsAndCharts!$A162+$A$11,IF($C$5,8,0),1,1)) -> 4764270000 | D162: =IF(A162>$A$8,"",OFFSET(InputPriceData!C$15,CalculationsAndCharts!$A162+$A$11,IF($C$5,8,0),1,1)) -> 10837.25 | E162: =IF(A162>$A$8,"",OFFSET(InputPriceData!D$15,CalculationsAndCharts!$A162+$A$11,IF($C$5,8,0),1,1)) -> 10842.33008 | F162: =IF(A162>$A$8,"",OFFSET(InputPriceData!E$15,CalculationsAndCharts!$A162+$A$11,IF($C$5,8,0),1,1)) -> 10728.25977 | G162: =IF(A162>$A$8,"",OFFSET(InputPriceData!F$15,CalculationsAndCharts!$A162+$A$11,IF($C$5,8,0),1,1)) -> 10741.21973 | H162: =IF(A162<=$A$17,1/A162,NA()) ->  | J162: =IF(A162>$J$30,NA(),(G162*$I$33)-SUMPRODUCT(OFFSET(G163,0,0,$A$17,1),OFFSET($H$33,0,0,$A$17,1))) -> -1286.509948 | K162: =IF(A162>$J$30,NA(),J162/$A$17) -> -49.48115184 | L162: =IF(A162>$L$30,NA(),IF(A162=$L$30,AVERAGE(OFFSET(K162,0,0,$A$18,1)),$C$18*(K162-L163)+L163)) -> -40.92092612 | M162: =IF(A162>$L$30,NA(),L162*100) -> -4092.092612 | N162: =IF(A162>$L$30,NA(),M162/$A$17*2) -> -314.7763548 | P162: =IF(A162>$J$30,NA(),(L162*$I$33)-SUMPRODUCT(OFFSET(L163,0,0,$A$17,1),OFFSET($H$33,0,0,$A$17,1))) -> -44.18327708 | Q162: =IF(A162>$J$30,NA(),P162/$A$17) -> -1.699356811 | R162: =IF(A162>$J$30,NA(),Q162*100) -> -169.9356811 | BD162: 4764270000
A163: 131 | B163: =IF(A163>$A$8,"",OFFSET(InputPriceData!B$15,$A163+$A$11,0,1,1)) -> 2023-01-04 | C163: =IF(A163>$A$8,"",OFFSET(InputPriceData!G$15,CalculationsAndCharts!$A163+$A$11,IF($C$5,8,0),1,1)) -> 5085380000 | D163: =IF(A163>$A$8,"",OFFSET(InputPriceData!C$15,CalculationsAndCharts!$A163+$A$11,IF($C$5,8,0),1,1)) -> 10949.33984 | E163: =IF(A163>$A$8,"",OFFSET(InputPriceData!D$15,CalculationsAndCharts!$A163+$A$11,IF($C$5,8,0),1,1)) -> 10981.45996 | F163: =IF(A163>$A$8,"",OFFSET(InputPriceData!E$15,CalculationsAndCharts!$A163+$A$11,IF($C$5,8,0),1,1)) -> 10785.53027 | G163: =IF(A163>$A$8,"",OFFSET(InputPriceData!F$15,CalculationsAndCharts!$A163+$A$11,IF($C$5,8,0),1,1)) -> 10914.79981 | J163: -662.5045194 | K163: -25.48094305 | L163: =IF(A163>$L$30,NA(),IF(A163=$L$30,AVERAGE(OFFSET(K163,0,0,$A$18,1)),$C$18*(K163-L164)+L164)) -> -38.78086969 | M163: -3878.086969 | N163: -298.3143822 | P163: =IF(A163>$J$30,NA(),(L163*$I$33)-SUMPRODUCT(OFFSET(L164,0,0,$A$17,1),OFFSET($H$33,0,0,$A$17,1))) -> -37.49448737 | Q163: =IF(A163>$J$30,NA(),P163/$A$17) -> -1.442095668 | R163: =IF(A163>$J$30,NA(),Q163*100) -> -144.2095668 | BC163: 5085380000
A164: 132 | B164: =IF(A164>$A$8,"",OFFSET(InputPriceData!B$15,$A164+$A$11,0,1,1)) -> 2023-01-03 | C164: =IF(A164>$A$8,"",OFFSET(InputPriceData!G$15,CalculationsAndCharts!$A164+$A$11,IF($C$5,8,0),1,1)) -> 4780650000 | D164: =IF(A164>$A$8,"",OFFSET(InputPriceData!C$15,CalculationsAndCharts!$A164+$A$11,IF($C$5,8,0),1,1)) -> 11038.41992 | E164: =IF(A164>$A$8,"",OFFSET(InputPriceData!D$15,CalculationsAndCharts!$A164+$A$11,IF($C$5,8,0),1,1)) -> 11093.09961 | F164: =IF(A164>$A$8,"",OFFSET(InputPriceData!E$15,CalculationsAndCharts!$A164+$A$11,IF($C$5,8,0),1,1)) -> 10770.92969 | G164: =IF(A164>$A$8,"",OFFSET(InputPriceData!F$15,CalculationsAndCharts!$A164+$A$11,IF($C$5,8,0),1,1)) -> 10862.63965 | J164: -1001.159479 | K164: -38.50613379 | L164: =IF(A164>$L$30,NA(),IF(A164=$L$30,AVERAGE(OFFSET(K164,0,0,$A$18,1)),$C$18*(K164-L165)+L165)) -> -42.10585135 | M164: -4210.585135 | N164: -323.8911642 | P164: =IF(A164>$J$30,NA(),(L164*$I$33)-SUMPRODUCT(OFFSET(L165,0,0,$A$17,1),OFFSET($H$33,0,0,$A$17,1))) -> -54.82761499 | Q164: =IF(A164>$J$30,NA(),P164/$A$17) -> -2.108754423 | R164: =IF(A164>$J$30,NA(),Q164*100) -> -210.8754423 | BD164: 4780650000
A165: 133 | B165: =IF(A165>$A$8,"",OFFSET(InputPriceData!B$15,$A165+$A$11,0,1,1)) -> 2022-12-30 | C165: =IF(A165>$A$8,"",OFFSET(InputPriceData!G$15,CalculationsAndCharts!$A165+$A$11,IF($C$5,8,0),1,1)) -> 3959030000 | D165: =IF(A165>$A$8,"",OFFSET(InputPriceData!C$15,CalculationsAndCharts!$A165+$A$11,IF($C$5,8,0),1,1)) -> 10835.58984 | E165: =IF(A165>$A$8,"",OFFSET(InputPriceData!D$15,CalculationsAndCharts!$A165+$A$11,IF($C$5,8,0),1,1)) -> 10942.90039 | F165: =IF(A165>$A$8,"",OFFSET(InputPriceData!E$15,CalculationsAndCharts!$A165+$A$11,IF($C$5,8,0),1,1)) -> 10778.63965 | G165: =IF(A165>$A$8,"",OFFSET(InputPriceData!F$15,CalculationsAndCharts!$A165+$A$11,IF($C$5,8,0),1,1)) -> 10939.75977 | J165: -749.0999546 | K165: -28.81153671 | L165: =IF(A165>$L$30,NA(),IF(A165=$L$30,AVERAGE(OFFSET(K165,0,0,$A$18,1)),$C$18*(K165-L166)+L166)) -> -43.00578074 | M165: -4300.578074 | N165: -330.813698 | P165: =IF(A165>$J$30,NA(),(L165*$I$33)-SUMPRODUCT(OFFSET(L166,0,0,$A$17,1),OFFSET($H$33,0,0,$A$17,1))) -> -62.42868167 | Q165: =IF(A165>$J$30,NA(),P165/$A$17) -> -2.401103141 | R165: =IF(A165>$J$30,NA(),Q165*100) -> -240.1103141 | BD165: 3959030000
A166: 134 | B166: =IF(A166>$A$8,"",OFFSET(InputPriceData!B$15,$A166+$A$11,0,1,1)) -> 2022-12-29 | C166: =IF(A166>$A$8,"",OFFSET(InputPriceData!G$15,CalculationsAndCharts!$A166+$A$11,IF($C$5,8,0),1,1)) -> 4154100000 | D166: =IF(A166>$A$8,"",OFFSET(InputPriceData!C$15,CalculationsAndCharts!$A166+$A$11,IF($C$5,8,0),1,1)) -> 10800.79981 | E166: =IF(A166>$A$8,"",OFFSET(InputPriceData!D$15,CalculationsAndCharts!$A166+$A$11,IF($C$5,8,0),1,1)) -> 10981.05957 | F166: =IF(A166>$A$8,"",OFFSET(InputPriceData!E$15,CalculationsAndCharts!$A166+$A$11,IF($C$5,8,0),1,1)) -> 10776.62012 | G166: =IF(A166>$A$8,"",OFFSET(InputPriceData!F$15,CalculationsAndCharts!$A166+$A$11,IF($C$5,8,0),1,1)) -> 10951.04981 | J166: -645.4359725 | K166: -24.82446048 | L166: =IF(A166>$L$30,NA(),IF(A166=$L$30,AVERAGE(OFFSET(K166,0,0,$A$18,1)),$C$18*(K166-L167)+L167)) -> -46.55434175 | M166: -4655.434175 | N166: -358.1103211 | P166: =IF(A166>$J$30,NA(),(L166*$I$33)-SUMPRODUCT(OFFSET(L167,0,0,$A$17,1),OFFSET($H$33,0,0,$A$17,1))) -> -83.46017026 | Q166: =IF(A166>$J$30,NA(),P166/$A$17) -> -3.210006548 | R166: =IF(A166>$J$30,NA(),Q166*100) -> -321.0006548 | BC166: 4154100000
A167: 135 | B167: =IF(A167>$A$8,"",OFFSET(InputPriceData!B$15,$A167+$A$11,0,1,1)) -> 2022-12-28 | C167: =IF(A167>$A$8,"",OFFSET(InputPriceData!G$15,CalculationsAndCharts!$A167+$A$11,IF($C$5,8,0),1,1)) -> 3842970000 | D167: =IF(A167>$A$8,"",OFFSET(InputPriceData!C$15,CalculationsAndCharts!$A167+$A$11,IF($C$5,8,0),1,1)) -> 10807.12012 | E167: =IF(A167>$A$8,"",OFFSET(InputPriceData!D$15,CalculationsAndCharts!$A167+$A$11,IF($C$5,8,0),1,1)) -> 10898.63965 | F167: =IF(A167>$A$8,"",OFFSET(InputPriceData!E$15,CalculationsAndCharts!$A167+$A$11,IF($C$5,8,0),1,1)) -> 10671.19043 | G167: =IF(A167>$A$8,"",OFFSET(InputPriceData!F$15,CalculationsAndCharts!$A167+$A$11,IF($C$5,8,0),1,1)) -> 10679.33984 | J167: -2022.34704 | K167: -77.78257845 | L167: =IF(A167>$L$30,NA(),IF(A167=$L$30,AVERAGE(OFFSET(K167,0,0,$A$18,1)),$C$18*(K167-L168)+L168)) -> -51.98681206 | M167: -5198.681206 | N167: -399.8985543 | P167: =IF(A167>$J$30,NA(),(L167*$I$33)-SUMPRODUCT(OFFSET(L168,0,0,$A$17,1),OFFSET($H$33,0,0,$A$17,1))) -> -122.7690927 | Q167: =IF(A167>$J$30,NA(),P167/$A$17) -> -4.721888183 | R167: =IF(A167>$J$30,NA(),Q167*100) -> -472.1888183 | BD167: 3842970000
A168: 136 | B168: =IF(A168>$A$8,"",OFFSET(InputPriceData!B$15,$A168+$A$11,0,1,1)) -> 2022-12-27 | C168: =IF(A168>$A$8,"",OFFSET(InputPriceData!G$15,CalculationsAndCharts!$A168+$A$11,IF($C$5,8,0),1,1)) -> 3827290000 | D168: =IF(A168>$A$8,"",OFFSET(InputPriceData!C$15,CalculationsAndCharts!$A168+$A$11,IF($C$5,8,0),1,1)) -> 10944.29981 | E168: =IF(A168>$A$8,"",OFFSET(InputPriceData!D$15,CalculationsAndCharts!$A168+$A$11,IF($C$5,8,0),1,1)) -> 10957.44043 | F168: =IF(A168>$A$8,"",OFFSET(InputPriceData!E$15,CalculationsAndCharts!$A168+$A$11,IF($C$5,8,0),1,1)) -> 10807.61035 | G168: =IF(A168>$A$8,"",OFFSET(InputPriceData!F$15,CalculationsAndCharts!$A168+$A$11,IF($C$5,8,0),1,1)) -> 10822.50977 | J168: -1759.84544 | K168: -67.68636309 | L168: =IF(A168>$L$30,NA(),IF(A168=$L$30,AVERAGE(OFFSET(K168,0,0,$A$18,1)),$C$18*(K168-L169)+L169)) -> -45.53787047 | M168: -4553.787047 | N168: -350.2913113 | P168: =IF(A168>$J$30,NA(),(L168*$I$33)-SUMPRODUCT(OFFSET(L169,0,0,$A$17,1),OFFSET($H$33,0,0,$A$17,1))) -> -114.5336742 | Q168: =IF(A168>$J$30,NA(),P168/$A$17) -> -4.405141316 | R168: =IF(A168>$J$30,NA(),Q168*100) -> -440.5141316 | BD168: 3827290000
A169: 137 | B169: =IF(A169>$A$8,"",OFFSET(InputPriceData!B$15,$A169+$A$11,0,1,1)) -> 2022-12-23 | C169: =IF(A169>$A$8,"",OFFSET(InputPriceData!G$15,CalculationsAndCharts!$A169+$A$11,IF($C$5,8,0),1,1)) -> 3544680000 | D169: =IF(A169>$A$8,"",OFFSET(InputPriceData!C$15,CalculationsAndCharts!$A169+$A$11,IF($C$5,8,0),1,1)) -> 10911.04004 | E169: =IF(A169>$A$8,"",OFFSET(InputPriceData!D$15,CalculationsAndCharts!$A169+$A$11,IF($C$5,8,0),1,1)) -> 11007.08984 | F169: =IF(A169>$A$8,"",OFFSET(InputPriceData!E$15,CalculationsAndCharts!$A169+$A$11,IF($C$5,8,0),1,1)) -> 10830.90039 | G169: =IF(A169>$A$8,"",OFFSET(InputPriceData!F$15,CalculationsAndCharts!$A169+$A$11,IF($C$5,8,0),1,1)) -> 10985.45019 | J169: -1292.384522 | K169: -49.70709701 | L169: =IF(A169>$L$30,NA(),IF(A169=$L$30,AVERAGE(OFFSET(K169,0,0,$A$18,1)),$C$18*(K169-L170)+L170)) -> -40.00074731 | M169: -4000.074731 | N169: -307.6980562 | P169: =IF(A169>$J$30,NA(),(L169*$I$33)-SUMPRODUCT(OFFSET(L170,0,0,$A$17,1),OFFSET($H$33,0,0,$A$17,1))) -> -107.910762 | Q169: =IF(A169>$J$30,NA(),P169/$A$17) -> -4.150413924 | R169: =IF(A169>$J$30,NA(),Q169*100) -> -415.0413924 | BC169: 3544680000
A170: 138 | B170: =IF(A170>$A$8,"",OFFSET(InputPriceData!B$15,$A170+$A$11,0,1,1)) -> 2022-12-22 | C170: =IF(A170>$A$8,"",OFFSET(InputPriceData!G$15,CalculationsAndCharts!$A170+$A$11,IF($C$5,8,0),1,1)) -> 5125070000 | D170: =IF(A170>$A$8,"",OFFSET(InputPriceData!C$15,CalculationsAndCharts!$A170+$A$11,IF($C$5,8,0),1,1)) -> 11099.36035 | E170: =IF(A170>$A$8,"",OFFSET(InputPriceData!D$15,CalculationsAndCharts!$A170+$A$11,IF($C$5,8,0),1,1)) -> 11114.23047 | F170: =IF(A170>$A$8,"",OFFSET(InputPriceData!E$15,CalculationsAndCharts!$A170+$A$11,IF($C$5,8,0),1,1)) -> 10784.01953 | G170: =IF(A170>$A$8,"",OFFSET(InputPriceData!F$15,CalculationsAndCharts!$A170+$A$11,IF($C$5,8,0),1,1)) -> 10956.13965 | J170: -1735.80284 | K170: -66.76164771 | L170: =IF(A170>$L$30,NA(),IF(A170=$L$30,AVERAGE(OFFSET(K170,0,0,$A$18,1)),$C$18*(K170-L171)+L171)) -> -37.57415988 | M170: -3757.415988 | N170: -289.0319991 | P170: =IF(A170>$J$30,NA(),(L170*$I$33)-SUMPRODUCT(OFFSET(L171,0,0,$A$17,1),OFFSET($H$33,0,0,$A$17,1))) -> -116.1491715 | Q170: =IF(A170>$J$30,NA(),P170/$A$17) -> -4.467275828 | R170: =IF(A170>$J$30,NA(),Q170*100) -> -446.7275828 | BD170: 5125070000
A171: 139 | B171: =IF(A171>$A$8,"",OFFSET(InputPriceData!B$15,$A171+$A$11,0,1,1)) -> 2022-12-21 | C171: =IF(A171>$A$8,"",OFFSET(InputPriceData!G$15,CalculationsAndCharts!$A171+$A$11,IF($C$5,8,0),1,1)) -> 4401420000 | D171: =IF(A171>$A$8,"",OFFSET(InputPriceData!C$15,CalculationsAndCharts!$A171+$A$11,IF($C$5,8,0),1,1)) -> 11110.65039 | E171: =IF(A171>$A$8,"",OFFSET(InputPriceData!D$15,CalculationsAndCharts!$A171+$A$11,IF($C$5,8,0),1,1)) -> 11285.78027 | F171: =IF(A171>$A$8,"",OFFSET(InputPriceData!E$15,CalculationsAndCharts!$A171+$A$11,IF($C$5,8,0),1,1)) -> 11083.36035 | G171: =IF(A171>$A$8,"",OFFSET(InputPriceData!F$15,CalculationsAndCharts!$A171+$A$11,IF($C$5,8,0),1,1)) -> 11235.87988 | J171: -653.2356534 | K171: -25.12444821 | L171: =IF(A171>$L$30,NA(),IF(A171=$L$30,AVERAGE(OFFSET(K171,0,0,$A$18,1)),$C$18*(K171-L172)+L172)) -> -30.27728793 | M171: -3027.728793 | N171: -232.9022148 | P171: =IF(A171>$J$30,NA(),(L171*$I$33)-SUMPRODUCT(OFFSET(L172,0,0,$A$17,1),OFFSET($H$33,0,0,$A$17,1))) -> -100.3961481 | Q171: =IF(A171>$J$30,NA(),P171/$A$17) -> -3.861390311 | R171: =IF(A171>$J$30,NA(),Q171*100) -> -386.1390311 | BC171: 4401420000
A172: 140 | B172: =IF(A172>$A$8,"",OFFSET(InputPriceData!B$15,$A172+$A$11,0,1,1)) -> 2022-12-20 | C172: =IF(A172>$A$8,"",OFFSET(InputPriceData!G$15,CalculationsAndCharts!$A172+$A$11,IF($C$5,8,0),1,1)) -> 4707190000 | D172: =IF(A172>$A$8,"",OFFSET(InputPriceData!C$15,CalculationsAndCharts!$A172+$A$11,IF($C$5,8,0),1,1)) -> 11023.46973 | E172: =IF(A172>$A$8,"",OFFSET(InputPriceData!D$15,CalculationsAndCharts!$A172+$A$11,IF($C$5,8,0),1,1)) -> 11143.62012 | F172: =IF(A172>$A$8,"",OFFSET(InputPriceData!E$15,CalculationsAndCharts!$A172+$A$11,IF($C$5,8,0),1,1)) -> 10967.07031 | G172: =IF(A172>$A$8,"",OFFSET(InputPriceData!F$15,CalculationsAndCharts!$A172+$A$11,IF($C$5,8,0),1,1)) -> 11072.41992 | J172: -1507.046505 | K172: -57.9633271 | L172: =IF(A172>$L$30,NA(),IF(A172=$L$30,AVERAGE(OFFSET(K172,0,0,$A$18,1)),$C$18*(K172-L173)+L173)) -> -31.56549786 | M172: -3156.549786 | N172: -242.811522 | P172: =IF(A172>$J$30,NA(),(L172*$I$33)-SUMPRODUCT(OFFSET(L173,0,0,$A$17,1),OFFSET($H$33,0,0,$A$17,1))) -> -125.4986626 | Q172: =IF(A172>$J$30,NA(),P172/$A$17) -> -4.826871638 | R172: =IF(A172>$J$30,NA(),Q172*100) -> -482.6871638 | BD172: 4707190000
A173: 141 | B173: =IF(A173>$A$8,"",OFFSET(InputPriceData!B$15,$A173+$A$11,0,1,1)) -> 2022-12-19 | C173: =IF(A173>$A$8,"",OFFSET(InputPriceData!G$15,CalculationsAndCharts!$A173+$A$11,IF($C$5,8,0),1,1)) -> 4631820000 | D173: =IF(A173>$A$8,"",OFFSET(InputPriceData!C$15,CalculationsAndCharts!$A173+$A$11,IF($C$5,8,0),1,1)) -> 11243 | E173: =IF(A173>$A$8,"",OFFSET(InputPriceData!D$15,CalculationsAndCharts!$A173+$A$11,IF($C$5,8,0),1,1)) -> 11251.57031 | F173: =IF(A173>$A$8,"",OFFSET(InputPriceData!E$15,CalculationsAndCharts!$A173+$A$11,IF($C$5,8,0),1,1)) -> 11029.76953 | G173: =IF(A173>$A$8,"",OFFSET(InputPriceData!F$15,CalculationsAndCharts!$A173+$A$11,IF($C$5,8,0),1,1)) -> 11084.58984 | J173: -1792.493605 | K173: -68.94206173 | L173: =IF(A173>$L$30,NA(),IF(A173=$L$30,AVERAGE(OFFSET(K173,0,0,$A$18,1)),$C$18*(K173-L174)+L174)) -> -24.96604055 | M173: -2496.604055 | N173: -192.0464657 | P173: =IF(A173>$J$30,NA(),(L173*$I$33)-SUMPRODUCT(OFFSET(L174,0,0,$A$17,1),OFFSET($H$33,0,0,$A$17,1))) -> -121.3059162 | Q173: =IF(A173>$J$30,NA(),P173/$A$17) -> -4.665612161 | R173: =IF(A173>$J$30,NA(),Q173*100) -> -466.5612161 | BC173: =IF(G173>=G174,C173,NA()) ->  | BD173: =IF(G173<G174,C173,NA()) -> 4631820000
A174: 142 | B174: =IF(A174>$A$8,"",OFFSET(InputPriceData!B$15,$A174+$A$11,0,1,1)) -> 2022-12-16 | C174: =IF(A174>$A$8,"",OFFSET(InputPriceData!G$15,CalculationsAndCharts!$A174+$A$11,IF($C$5,8,0),1,1)) -> 7968170000 | D174: =IF(A174>$A$8,"",OFFSET(InputPriceData!C$15,CalculationsAndCharts!$A174+$A$11,IF($C$5,8,0),1,1)) -> 11313.63965 | E174: =IF(A174>$A$8,"",OFFSET(InputPriceData!D$15,CalculationsAndCharts!$A174+$A$11,IF($C$5,8,0),1,1)) -> 11383.38965 | F174: =IF(A174>$A$8,"",OFFSET(InputPriceData!E$15,CalculationsAndCharts!$A174+$A$11,IF($C$5,8,0),1,1)) -> 11175.54004 | G174: =IF(A174>$A$8,"",OFFSET(InputPriceData!F$15,CalculationsAndCharts!$A174+$A$11,IF($C$5,8,0),1,1)) -> 11243.71973 | J174: -1437.297272 | K174: -55.28066432 | L174: =IF(A174>$L$30,NA(),IF(A174=$L$30,AVERAGE(OFFSET(K174,0,0,$A$18,1)),$C$18*(K174-L175)+L175)) -> -13.97203525 | M174: -1397.203525 | N174: -107.4771942 | P174: =IF(A174>$J$30,NA(),(L174*$I$33)-SUMPRODUCT(OFFSET(L175,0,0,$A$17,1),OFFSET($H$33,0,0,$A$17,1))) -> -95.75747152 | Q174: =IF(A174>$J$30,NA(),P174/$A$17) -> -3.682979674 | R174: =IF(A174>$J$30,NA(),Q174*100) -> -368.2979674 | BD174: 7968170000
A175: 143 | B175: =IF(A175>$A$8,"",OFFSET(InputPriceData!B$15,$A175+$A$11,0,1,1)) -> 2022-12-15 | C175: =IF(A175>$A$8,"",OFFSET(InputPriceData!G$15,CalculationsAndCharts!$A175+$A$11,IF($C$5,8,0),1,1)) -> 5536070000 | D175: =IF(A175>$A$8,"",OFFSET(InputPriceData!C$15,CalculationsAndCharts!$A175+$A$11,IF($C$5,8,0),1,1)) -> 11573.37988 | E175: =IF(A175>$A$8,"",OFFSET(InputPriceData!D$15,CalculationsAndCharts!$A175+$A$11,IF($C$5,8,0),1,1)) -> 11591.33008 | F175: =IF(A175>$A$8,"",OFFSET(InputPriceData!E$15,CalculationsAndCharts!$A175+$A$11,IF($C$5,8,0),1,1)) -> 11300.34961 | G175: =IF(A175>$A$8,"",OFFSET(InputPriceData!F$15,CalculationsAndCharts!$A175+$A$11,IF($C$5,8,0),1,1)) -> 11345.21973 | J175: -1410.732412 | K175: -54.25893894 | L175: =IF(A175>$L$30,NA(),IF(A175=$L$30,AVERAGE(OFFSET(K175,0,0,$A$18,1)),$C$18*(K175-L176)+L176)) -> -3.644877982 | M175: -364.4877982 | N175: -28.03752294 | P175: =IF(A175>$J$30,NA(),(L175*$I$33)-SUMPRODUCT(OFFSET(L176,0,0,$A$17,1),OFFSET($H$33,0,0,$A$17,1))) -> -69.11276942 | Q175: =IF(A175>$J$30,NA(),P175/$A$17) -> -2.658183439 | R175: =IF(A175>$J$30,NA(),Q175*100) -> -265.8183439 | BD175: 5536070000
A176: 144 | B176: =IF(A176>$A$8,"",OFFSET(InputPriceData!B$15,$A176+$A$11,0,1,1)) -> 2022-12-14 | C176: =IF(A176>$A$8,"",OFFSET(InputPriceData!G$15,CalculationsAndCharts!$A176+$A$11,IF($C$5,8,0),1,1)) -> 5485150000 | D176: =IF(A176>$A$8,"",OFFSET(InputPriceData!C$15,CalculationsAndCharts!$A176+$A$11,IF($C$5,8,0),1,1)) -> 11824.54004 | E176: =IF(A176>$A$8,"",OFFSET(InputPriceData!D$15,CalculationsAndCharts!$A176+$A$11,IF($C$5,8,0),1,1)) -> 11941.28027 | F176: =IF(A176>$A$8,"",OFFSET(InputPriceData!E$15,CalculationsAndCharts!$A176+$A$11,IF($C$5,8,0),1,1)) -> 11617.41016 | G176: =IF(A176>$A$8,"",OFFSET(InputPriceData!F$15,CalculationsAndCharts!$A176+$A$11,IF($C$5,8,0),1,1)) -> 11740.91992 | J176: 131.2614614 | K176: 5.048517746 | L176: =IF(A176>$L$30,NA(),IF(A176=$L$30,AVERAGE(OFFSET(K176,0,0,$A$18,1)),$C$18*(K176-L177)+L177)) -> 9.008637257 | M176: 900.8637257 | N176: 69.29720967 | P176: =IF(A176>$J$30,NA(),(L176*$I$33)-SUMPRODUCT(OFFSET(L177,0,0,$A$17,1),OFFSET($H$33,0,0,$A$17,1))) -> -20.93928908 | Q176: =IF(A176>$J$30,NA(),P176/$A$17) -> -0.8053572724 | R176: =IF(A176>$J$30,NA(),Q176*100) -> -80.53572724 | BD176: 5485150000
A177: 145 | B177: =IF(A177>$A$8,"",OFFSET(InputPriceData!B$15,$A177+$A$11,0,1,1)) -> 2022-12-13 | C177: =IF(A177>$A$8,"",OFFSET(InputPriceData!G$15,CalculationsAndCharts!$A177+$A$11,IF($C$5,8,0),1,1)) -> 6126890000 | D177: =IF(A177>$A$8,"",OFFSET(InputPriceData!C$15,CalculationsAndCharts!$A177+$A$11,IF($C$5,8,0),1,1)) -> 12141.24023 | E177: =IF(A177>$A$8,"",OFFSET(InputPriceData!D$15,CalculationsAndCharts!$A177+$A$11,IF($C$5,8,0),1,1)) -> 12166.41016 | F177: =IF(A177>$A$8,"",OFFSET(InputPriceData!E$15,CalculationsAndCharts!$A177+$A$11,IF($C$5,8,0),1,1)) -> 11724.90039 | G177: =IF(A177>$A$8,"",OFFSET(InputPriceData!F$15,CalculationsAndCharts!$A177+$A$11,IF($C$5,8,0),1,1)) -> 11834.20996 | J177: 687.1080454 | K177: 26.42723251 | L177: =IF(A177>$L$30,NA(),IF(A177=$L$30,AVERAGE(OFFSET(K177,0,0,$A$18,1)),$C$18*(K177-L178)+L178)) -> 9.998667135 | M177: 999.8667135 | N177: 76.91282411 | P177: =IF(A177>$J$30,NA(),(L177*$I$33)-SUMPRODUCT(OFFSET(L178,0,0,$A$17,1),OFFSET($H$33,0,0,$A$17,1))) -> -15.16792198 | Q177: =IF(A177>$J$30,NA(),P177/$A$17) -> -0.5833816148 | R177: =IF(A177>$J$30,NA(),Q177*100) -> -58.33816148 | BC177: 6126890000
A178: 146 | B178: =IF(A178>$A$8,"",OFFSET(InputPriceData!B$15,$A178+$A$11,0,1,1)) -> 2022-12-12 | C178: =IF(A178>$A$8,"",OFFSET(InputPriceData!G$15,CalculationsAndCharts!$A178+$A$11,IF($C$5,8,0),1,1)) -> 4829990000 | D178: =IF(A178>$A$8,"",OFFSET(InputPriceData!C$15,CalculationsAndCharts!$A178+$A$11,IF($C$5,8,0),1,1)) -> 11572.25977 | E178: =IF(A178>$A$8,"",OFFSET(InputPriceData!D$15,CalculationsAndCharts!$A178+$A$11,IF($C$5,8,0),1,1)) -> 11707.70996 | F178: =IF(A178>$A$8,"",OFFSET(InputPriceData!E$15,CalculationsAndCharts!$A178+$A$11,IF($C$5,8,0),1,1)) -> 11529.41016 | G178: =IF(A178>$A$8,"",OFFSET(InputPriceData!F$15,CalculationsAndCharts!$A178+$A$11,IF($C$5,8,0),1,1)) -> 11706.44043 | J178: 329.9601796 | K178: 12.69077614 | L178: =IF(A178>$L$30,NA(),IF(A178=$L$30,AVERAGE(OFFSET(K178,0,0,$A$18,1)),$C$18*(K178-L179)+L179)) -> 5.89152579 | M178: 589.152579 | N178: 45.31942915 | P178: =IF(A178>$J$30,NA(),(L178*$I$33)-SUMPRODUCT(OFFSET(L179,0,0,$A$17,1),OFFSET($H$33,0,0,$A$17,1))) -> -33.84590215 | Q178: =IF(A178>$J$30,NA(),P178/$A$17) -> -1.301765467 | R178: =IF(A178>$J$30,NA(),Q178*100) -> -130.1765467 | BC178: 4829990000
A179: 147 | B179: =IF(A179>$A$8,"",OFFSET(InputPriceData!B$15,$A179+$A$11,0,1,1)) -> 2022-12-09 | C179: =IF(A179>$A$8,"",OFFSET(InputPriceData!G$15,CalculationsAndCharts!$A179+$A$11,IF($C$5,8,0),1,1)) -> 4337440000 | D179: =IF(A179>$A$8,"",OFFSET(InputPriceData!C$15,CalculationsAndCharts!$A179+$A$11,IF($C$5,8,0),1,1)) -> 11594.37988 | E179: =IF(A179>$A$8,"",OFFSET(InputPriceData!D$15,CalculationsAndCharts!$A179+$A$11,IF($C$5,8,0),1,1)) -> 11707.08984 | F179: =IF(A179>$A$8,"",OFFSET(InputPriceData!E$15,CalculationsAndCharts!$A179+$A$11,IF($C$5,8,0),1,1)) -> 11550.30957 | G179: =IF(A179>$A$8,"",OFFSET(InputPriceData!F$15,CalculationsAndCharts!$A179+$A$11,IF($C$5,8,0),1,1)) -> 11563.33008 | J179: -268.3175946 | K179: -10.31990749 | L179: =IF(A179>$L$30,NA(),IF(A179=$L$30,AVERAGE(OFFSET(K179,0,0,$A$18,1)),$C$18*(K179-L180)+L180)) -> 4.191713202 | M179: 419.1713202 | N179: 32.24394771 | P179: =IF(A179>$J$30,NA(),(L179*$I$33)-SUMPRODUCT(OFFSET(L180,0,0,$A$17,1),OFFSET($H$33,0,0,$A$17,1))) -> -48.71401355 | Q179: =IF(A179>$J$30,NA(),P179/$A$17) -> -1.873615906 | R179: =IF(A179>$J$30,NA(),Q179*100) -> -187.3615906 | BD179: 4337440000
A180: 148 | B180: =IF(A180>$A$8,"",OFFSET(InputPriceData!B$15,$A180+$A$11,0,1,1)) -> 2022-12-08 | C180: =IF(A180>$A$8,"",OFFSET(InputPriceData!G$15,CalculationsAndCharts!$A180+$A$11,IF($C$5,8,0),1,1)) -> 4281800000 | D180: =IF(A180>$A$8,"",OFFSET(InputPriceData!C$15,CalculationsAndCharts!$A180+$A$11,IF($C$5,8,0),1,1)) -> 11543.67969 | E180: =IF(A180>$A$8,"",OFFSET(InputPriceData!D$15,CalculationsAndCharts!$A180+$A$11,IF($C$5,8,0),1,1)) -> 11672.13965 | F180: =IF(A180>$A$8,"",OFFSET(InputPriceData!E$15,CalculationsAndCharts!$A180+$A$11,IF($C$5,8,0),1,1)) -> 11470.67969 | G180: =IF(A180>$A$8,"",OFFSET(InputPriceData!F$15,CalculationsAndCharts!$A180+$A$11,IF($C$5,8,0),1,1)) -> 11637.5 | J180: 68.87370741 | K180: 2.648988746 | L180: =IF(A180>$L$30,NA(),IF(A180=$L$30,AVERAGE(OFFSET(K180,0,0,$A$18,1)),$C$18*(K180-L181)+L181)) -> 7.819618374 | M180: 781.9618374 | N180: 60.15091057 | P180: =IF(A180>$J$30,NA(),(L180*$I$33)-SUMPRODUCT(OFFSET(L181,0,0,$A$17,1),OFFSET($H$33,0,0,$A$17,1))) -> -42.91359227 | Q180: =IF(A180>$J$30,NA(),P180/$A$17) -> -1.65052278 | R180: =IF(A180>$J$30,NA(),Q180*100) -> -165.052278 | BC180: 4281800000
A181: 149 | B181: =IF(A181>$A$8,"",OFFSET(InputPriceData!B$15,$A181+$A$11,0,1,1)) -> 2022-12-07 | C181: =IF(A181>$A$8,"",OFFSET(InputPriceData!G$15,CalculationsAndCharts!$A181+$A$11,IF($C$5,8,0),1,1)) -> 4343860000 | D181: =IF(A181>$A$8,"",OFFSET(InputPriceData!C$15,CalculationsAndCharts!$A181+$A$11,IF($C$5,8,0),1,1)) -> 11490.99023 | E181: =IF(A181>$A$8,"",OFFSET(InputPriceData!D$15,CalculationsAndCharts!$A181+$A$11,IF($C$5,8,0),1,1)) -> 11577.69043 | F181: =IF(A181>$A$8,"",OFFSET(InputPriceData!E$15,CalculationsAndCharts!$A181+$A$11,IF($C$5,8,0),1,1)) -> 11431.95996 | G181: =IF(A181>$A$8,"",OFFSET(InputPriceData!F$15,CalculationsAndCharts!$A181+$A$11,IF($C$5,8,0),1,1)) -> 11497.38965 | J181: -638.7680766 | K181: -24.56800295 | L181: =IF(A181>$L$30,NA(),IF(A181=$L$30,AVERAGE(OFFSET(K181,0,0,$A$18,1)),$C$18*(K181-L182)+L182)) -> 9.112275782 | M181: 911.2275782 | N181: 70.09442909 | P181: =IF(A181>$J$30,NA(),(L181*$I$33)-SUMPRODUCT(OFFSET(L182,0,0,$A$17,1),OFFSET($H$33,0,0,$A$17,1))) -> -51.14083506 | Q181: =IF(A181>$J$30,NA(),P181/$A$17) -> -1.966955195 | R181: =IF(A181>$J$30,NA(),Q181*100) -> -196.6955195 | BD181: 4343860000
A182: 150 | B182: =IF(A182>$A$8,"",OFFSET(InputPriceData!B$15,$A182+$A$11,0,1,1)) -> 2022-12-06 | C182: =IF(A182>$A$8,"",OFFSET(InputPriceData!G$15,CalculationsAndCharts!$A182+$A$11,IF($C$5,8,0),1,1)) -> 4713330000 | D182: =IF(A182>$A$8,"",OFFSET(InputPriceData!C$15,CalculationsAndCharts!$A182+$A$11,IF($C$5,8,0),1,1)) -> 11775.20019 | E182: =IF(A182>$A$8,"",OFFSET(InputPriceData!D$15,CalculationsAndCharts!$A182+$A$11,IF($C$5,8,0),1,1)) -> 11790.92969 | F182: =IF(A182>$A$8,"",OFFSET(InputPriceData!E$15,CalculationsAndCharts!$A182+$A$11,IF($C$5,8,0),1,1)) -> 11488.59961 | G182: =IF(A182>$A$8,"",OFFSET(InputPriceData!F$15,CalculationsAndCharts!$A182+$A$11,IF($C$5,8,0),1,1)) -> 11549.69043 | J182: -699.8304549 | K182: -26.91655596 | L182: =IF(A182>$L$30,NA(),IF(A182=$L$30,AVERAGE(OFFSET(K182,0,0,$A$18,1)),$C$18*(K182-L183)+L183)) -> 17.53234546 | M182: 1753.234546 | N182: 134.8641959 | P182: =IF(A182>$J$30,NA(),(L182*$I$33)-SUMPRODUCT(OFFSET(L183,0,0,$A$17,1),OFFSET($H$33,0,0,$A$17,1))) -> -29.49095838 | Q182: =IF(A182>$J$30,NA(),P182/$A$17) -> -1.13426763 | R182: =IF(A182>$J$30,NA(),Q182*100) -> -113.426763 | BD182: 4713330000
A183: 151 | B183: =IF(A183>$A$8,"",OFFSET(InputPriceData!B$15,$A183+$A$11,0,1,1)) -> 2022-12-05 | C183: =IF(A183>$A$8,"",OFFSET(InputPriceData!G$15,CalculationsAndCharts!$A183+$A$11,IF($C$5,8,0),1,1)) -> 4510030000 | D183: =IF(A183>$A$8,"",OFFSET(InputPriceData!C$15,CalculationsAndCharts!$A183+$A$11,IF($C$5,8,0),1,1)) -> 11899.54004 | E183: =IF(A183>$A$8,"",OFFSET(InputPriceData!D$15,CalculationsAndCharts!$A183+$A$11,IF($C$5,8,0),1,1)) -> 11957.36035 | F183: =IF(A183>$A$8,"",OFFSET(InputPriceData!E$15,CalculationsAndCharts!$A183+$A$11,IF($C$5,8,0),1,1)) -> 11732.15039 | G183: =IF(A183>$A$8,"",OFFSET(InputPriceData!F$15,CalculationsAndCharts!$A183+$A$11,IF($C$5,8,0),1,1)) -> 11786.79981 | J183: 113.1263299 | K183: 4.35101269 | L183: =IF(A183>$L$30,NA(),IF(A183=$L$30,AVERAGE(OFFSET(K183,0,0,$A$18,1)),$C$18*(K183-L184)+L184)) -> 28.64457082 | M183: 2864.457082 | N183: 220.3428524 | P183: =IF(A183>$J$30,NA(),(L183*$I$33)-SUMPRODUCT(OFFSET(L184,0,0,$A$17,1),OFFSET($H$33,0,0,$A$17,1))) -> 11.83484343 | Q183: =IF(A183>$J$30,NA(),P183/$A$17) -> 0.4551862859 | R183: =IF(A183>$J$30,NA(),Q183*100) -> 45.51862859 | BD183: 4510030000
A184: 152 | B184: =IF(A184>$A$8,"",OFFSET(InputPriceData!B$15,$A184+$A$11,0,1,1)) -> 2022-12-02 | C184: =IF(A184>$A$8,"",OFFSET(InputPriceData!G$15,CalculationsAndCharts!$A184+$A$11,IF($C$5,8,0),1,1)) -> 4523010000 | D184: =IF(A184>$A$8,"",OFFSET(InputPriceData!C$15,CalculationsAndCharts!$A184+$A$11,IF($C$5,8,0),1,1)) -> 11845.53027 | E184: =IF(A184>$A$8,"",OFFSET(InputPriceData!D$15,CalculationsAndCharts!$A184+$A$11,IF($C$5,8,0),1,1)) -> 12027.62012 | F184: =IF(A184>$A$8,"",OFFSET(InputPriceData!E$15,CalculationsAndCharts!$A184+$A$11,IF($C$5,8,0),1,1)) -> 11825.53027 | G184: =IF(A184>$A$8,"",OFFSET(InputPriceData!F$15,CalculationsAndCharts!$A184+$A$11,IF($C$5,8,0),1,1)) -> 11994.25977 | J184: 1026.247275 | K184: 39.47104905 | L184: =IF(A184>$L$30,NA(),IF(A184=$L$30,AVERAGE(OFFSET(K184,0,0,$A$18,1)),$C$18*(K184-L185)+L185)) -> 34.71796035 | M184: 3471.796035 | N184: 267.0612335 | P184: =IF(A184>$J$30,NA(),(L184*$I$33)-SUMPRODUCT(OFFSET(L185,0,0,$A$17,1),OFFSET($H$33,0,0,$A$17,1))) -> 41.59232061 | Q184: =IF(A184>$J$30,NA(),P184/$A$17) -> 1.599704639 | R184: =IF(A184>$J$30,NA(),Q184*100) -> 159.9704639 | BD184: 4523010000
A185: 153 | B185: =IF(A185>$A$8,"",OFFSET(InputPriceData!B$15,$A185+$A$11,0,1,1)) -> 2022-12-01 | C185: =IF(A185>$A$8,"",OFFSET(InputPriceData!G$15,CalculationsAndCharts!$A185+$A$11,IF($C$5,8,0),1,1)) -> 5158120000 | D185: =IF(A185>$A$8,"",OFFSET(InputPriceData!C$15,CalculationsAndCharts!$A185+$A$11,IF($C$5,8,0),1,1)) -> 12030.24023 | E185: =IF(A185>$A$8,"",OFFSET(InputPriceData!D$15,CalculationsAndCharts!$A185+$A$11,IF($C$5,8,0),1,1)) -> 12115.33984 | F185: =IF(A185>$A$8,"",OFFSET(InputPriceData!E$15,CalculationsAndCharts!$A185+$A$11,IF($C$5,8,0),1,1)) -> 11928.66016 | G185: =IF(A185>$A$8,"",OFFSET(InputPriceData!F$15,CalculationsAndCharts!$A185+$A$11,IF($C$5,8,0),1,1)) -> 12041.88965 | J185: 1442.184732 | K185: 55.46864355 | L185: =IF(A185>$L$30,NA(),IF(A185=$L$30,AVERAGE(OFFSET(K185,0,0,$A$18,1)),$C$18*(K185-L186)+L186)) -> 33.52968818 | M185: 3352.968818 | N185: 257.9206783 | P185: =IF(A185>$J$30,NA(),(L185*$I$33)-SUMPRODUCT(OFFSET(L186,0,0,$A$17,1),OFFSET($H$33,0,0,$A$17,1))) -> 45.98771816 | Q185: =IF(A185>$J$30,NA(),P185/$A$17) -> 1.768758391 | R185: =IF(A185>$J$30,NA(),Q185*100) -> 176.8758391 | BC185: 5158120000
A186: 154 | B186: =IF(A186>$A$8,"",OFFSET(InputPriceData!B$15,$A186+$A$11,0,1,1)) -> 2022-11-30 | C186: =IF(A186>$A$8,"",OFFSET(InputPriceData!G$15,CalculationsAndCharts!$A186+$A$11,IF($C$5,8,0),1,1)) -> 6653460000 | D186: =IF(A186>$A$8,"",OFFSET(InputPriceData!C$15,CalculationsAndCharts!$A186+$A$11,IF($C$5,8,0),1,1)) -> 11505.74023 | E186: =IF(A186>$A$8,"",OFFSET(InputPriceData!D$15,CalculationsAndCharts!$A186+$A$11,IF($C$5,8,0),1,1)) -> 12031.33984 | F186: =IF(A186>$A$8,"",OFFSET(InputPriceData!E$15,CalculationsAndCharts!$A186+$A$11,IF($C$5,8,0),1,1)) -> 11481.88965 | G186: =IF(A186>$A$8,"",OFFSET(InputPriceData!F$15,CalculationsAndCharts!$A186+$A$11,IF($C$5,8,0),1,1)) -> 12030.05957 | J186: 1864.801931 | K186: 71.72315118 | L186: =IF(A186>$L$30,NA(),IF(A186=$L$30,AVERAGE(OFFSET(K186,0,0,$A$18,1)),$C$18*(K186-L187)+L187)) -> 28.04494933 | M186: 2804.494933 | N186: 215.7303795 | P186: =IF(A186>$J$30,NA(),(L186*$I$33)-SUMPRODUCT(OFFSET(L187,0,0,$A$17,1),OFFSET($H$33,0,0,$A$17,1))) -> 32.77283014 | Q186: =IF(A186>$J$30,NA(),P186/$A$17) -> 1.260493467 | R186: =IF(A186>$J$30,NA(),Q186*100) -> 126.0493467 | BC186: 6653460000
A187: 155 | B187: =IF(A187>$A$8,"",OFFSET(InputPriceData!B$15,$A187+$A$11,0,1,1)) -> 2022-11-29 | C187: =IF(A187>$A$8,"",OFFSET(InputPriceData!G$15,CalculationsAndCharts!$A187+$A$11,IF($C$5,8,0),1,1)) -> 4592830000 | D187: =IF(A187>$A$8,"",OFFSET(InputPriceData!C$15,CalculationsAndCharts!$A187+$A$11,IF($C$5,8,0),1,1)) -> 11590.29981 | E187: =IF(A187>$A$8,"",OFFSET(InputPriceData!D$15,CalculationsAndCharts!$A187+$A$11,IF($C$5,8,0),1,1)) -> 11613.33008 | F187: =IF(A187>$A$8,"",OFFSET(InputPriceData!E$15,CalculationsAndCharts!$A187+$A$11,IF($C$5,8,0),1,1)) -> 11450.33984 | G187: =IF(A187>$A$8,"",OFFSET(InputPriceData!F$15,CalculationsAndCharts!$A187+$A$11,IF($C$5,8,0),1,1)) -> 11503.45019 | J187: -285.027721 | K187: -10.96260465 | L187: =IF(A187>$L$30,NA(),IF(A187=$L$30,AVERAGE(OFFSET(K187,0,0,$A$18,1)),$C$18*(K187-L188)+L188)) -> 17.12539887 | M187: 1712.539887 | N187: 131.7338374 | P187: =IF(A187>$J$30,NA(),(L187*$I$33)-SUMPRODUCT(OFFSET(L188,0,0,$A$17,1),OFFSET($H$33,0,0,$A$17,1))) -> -16.32703647 | Q187: =IF(A187>$J$30,NA(),P187/$A$17) -> -0.6279629412 | R187: =IF(A187>$J$30,NA(),Q187*100) -> -62.79629412 | BD187: 4592830000
A188: 156 | B188: =IF(A188>$A$8,"",OFFSET(InputPriceData!B$15,$A188+$A$11,0,1,1)) -> 2022-11-28 | C188: =IF(A188>$A$8,"",OFFSET(InputPriceData!G$15,CalculationsAndCharts!$A188+$A$11,IF($C$5,8,0),1,1)) -> 4271360000 | D188: =IF(A188>$A$8,"",OFFSET(InputPriceData!C$15,CalculationsAndCharts!$A188+$A$11,IF($C$5,8,0),1,1)) -> 11684.07031 | E188: =IF(A188>$A$8,"",OFFSET(InputPriceData!D$15,CalculationsAndCharts!$A188+$A$11,IF($C$5,8,0),1,1)) -> 11764.83008 | F188: =IF(A188>$A$8,"",OFFSET(InputPriceData!E$15,CalculationsAndCharts!$A188+$A$11,IF($C$5,8,0),1,1)) -> 11555.25977 | G188: =IF(A188>$A$8,"",OFFSET(InputPriceData!F$15,CalculationsAndCharts!$A188+$A$11,IF($C$5,8,0),1,1)) -> 11587.75 | J188: -66.81557486 | K188: -2.569829802 | L188: =IF(A188>$L$30,NA(),IF(A188=$L$30,AVERAGE(OFFSET(K188,0,0,$A$18,1)),$C$18*(K188-L189)+L189)) -> 24.14739975 | M188: 2414.739975 | N188: 185.7492288 | P188: =IF(A188>$J$30,NA(),(L188*$I$33)-SUMPRODUCT(OFFSET(L189,0,0,$A$17,1),OFFSET($H$33,0,0,$A$17,1))) -> 8.024998064 | Q188: =IF(A188>$J$30,NA(),P188/$A$17) -> 0.3086537717 | R188: =IF(A188>$J$30,NA(),Q188*100) -> 30.86537717 | BD188: 4271360000
A189: 157 | B189: =IF(A189>$A$8,"",OFFSET(InputPriceData!B$15,$A189+$A$11,0,1,1)) -> 2022-11-25 | C189: =IF(A189>$A$8,"",OFFSET(InputPriceData!G$15,CalculationsAndCharts!$A189+$A$11,IF($C$5,8,0),1,1)) -> 2184080000 | D189: =IF(A189>$A$8,"",OFFSET(InputPriceData!C$15,CalculationsAndCharts!$A189+$A$11,IF($C$5,8,0),1,1)) -> 11777.33008 | E189: =IF(A189>$A$8,"",OFFSET(InputPriceData!D$15,CalculationsAndCharts!$A189+$A$11,IF($C$5,8,0),1,1)) -> 11803.91016 | F189: =IF(A189>$A$8,"",OFFSET(InputPriceData!E$15,CalculationsAndCharts!$A189+$A$11,IF($C$5,8,0),1,1)) -> 11748.79004 | G189: =IF(A189>$A$8,"",OFFSET(InputPriceData!F$15,CalculationsAndCharts!$A189+$A$11,IF($C$5,8,0),1,1)) -> 11756.03027 | J189: 630.6358369 | K189: 24.25522449 | L189: =IF(A189>$L$30,NA(),IF(A189=$L$30,AVERAGE(OFFSET(K189,0,0,$A$18,1)),$C$18*(K189-L190)+L190)) -> 30.82670714 | M189: 3082.670714 | N189: 237.1285164 | P189: =IF(A189>$J$30,NA(),(L189*$I$33)-SUMPRODUCT(OFFSET(L190,0,0,$A$17,1),OFFSET($H$33,0,0,$A$17,1))) -> 37.78476707 | Q189: =IF(A189>$J$30,NA(),P189/$A$17) -> 1.453260272 | R189: =IF(A189>$J$30,NA(),Q189*100) -> 145.3260272 | BD189: 2184080000
A190: 158 | B190: =IF(A190>$A$8,"",OFFSET(InputPriceData!B$15,$A190+$A$11,0,1,1)) -> 2022-11-23 | C190: =IF(A190>$A$8,"",OFFSET(InputPriceData!G$15,CalculationsAndCharts!$A190+$A$11,IF($C$5,8,0),1,1)) -> 4431530000 | D190: =IF(A190>$A$8,"",OFFSET(InputPriceData!C$15,CalculationsAndCharts!$A190+$A$11,IF($C$5,8,0),1,1)) -> 11725.08008 | E190: =IF(A190>$A$8,"",OFFSET(InputPriceData!D$15,CalculationsAndCharts!$A190+$A$11,IF($C$5,8,0),1,1)) -> 11866.41992 | F190: =IF(A190>$A$8,"",OFFSET(InputPriceData!E$15,CalculationsAndCharts!$A190+$A$11,IF($C$5,8,0),1,1)) -> 11722.00977 | G190: =IF(A190>$A$8,"",OFFSET(InputPriceData!F$15,CalculationsAndCharts!$A190+$A$11,IF($C$5,8,0),1,1)) -> 11838.71973 | J190: 1158.459601 | K190: 44.5561385 | L190: =IF(A190>$L$30,NA(),IF(A190=$L$30,AVERAGE(OFFSET(K190,0,0,$A$18,1)),$C$18*(K190-L191)+L191)) -> 32.4695778 | M190: 3246.95778 | N190: 249.765983 | P190: =IF(A190>$J$30,NA(),(L190*$I$33)-SUMPRODUCT(OFFSET(L191,0,0,$A$17,1),OFFSET($H$33,0,0,$A$17,1))) -> 51.76381096 | Q190: =IF(A190>$J$30,NA(),P190/$A$17) -> 1.990915806 | R190: =IF(A190>$J$30,NA(),Q190*100) -> 199.0915806 | BC190: 4431530000
A191: 159 | B191: =IF(A191>$A$8,"",OFFSET(InputPriceData!B$15,$A191+$A$11,0,1,1)) -> 2022-11-22 | C191: =IF(A191>$A$8,"",OFFSET(InputPriceData!G$15,CalculationsAndCharts!$A191+$A$11,IF($C$5,8,0),1,1)) -> 4186360000 | D191: =IF(A191>$A$8,"",OFFSET(InputPriceData!C$15,CalculationsAndCharts!$A191+$A$11,IF($C$5,8,0),1,1)) -> 11590.83008 | E191: =IF(A191>$A$8,"",OFFSET(InputPriceData!D$15,CalculationsAndCharts!$A191+$A$11,IF($C$5,8,0),1,1)) -> 11731.75977 | F191: =IF(A191>$A$8,"",OFFSET(InputPriceData!E$15,CalculationsAndCharts!$A191+$A$11,IF($C$5,8,0),1,1)) -> 11503.33984 | G191: =IF(A191>$A$8,"",OFFSET(InputPriceData!F$15,CalculationsAndCharts!$A191+$A$11,IF($C$5,8,0),1,1)) -> 11724.83984 | J191: 887.512109 | K191: 34.13508111 | L191: =IF(A191>$L$30,NA(),IF(A191=$L$30,AVERAGE(OFFSET(K191,0,0,$A$18,1)),$C$18*(K191-L192)+L192)) -> 29.44793762 | M191: 2944.793762 | N191: 226.5225971 | P191: =IF(A191>$J$30,NA(),(L191*$I$33)-SUMPRODUCT(OFFSET(L192,0,0,$A$17,1),OFFSET($H$33,0,0,$A$17,1))) -> 45.42199781 | Q191: =IF(A191>$J$30,NA(),P191/$A$17) -> 1.746999916 | R191: =IF(A191>$J$30,NA(),Q191*100) -> 174.6999916 | BC191: 4186360000
A192: 160 | B192: =IF(A192>$A$8,"",OFFSET(InputPriceData!B$15,$A192+$A$11,0,1,1)) -> 2022-11-21 | C192: =IF(A192>$A$8,"",OFFSET(InputPriceData!G$15,CalculationsAndCharts!$A192+$A$11,IF($C$5,8,0),1,1)) -> 3977130000 | D192: =IF(A192>$A$8,"",OFFSET(InputPriceData!C$15,CalculationsAndCharts!$A192+$A$11,IF($C$5,8,0),1,1)) -> 11623.34961 | E192: =IF(A192>$A$8,"",OFFSET(InputPriceData!D$15,CalculationsAndCharts!$A192+$A$11,IF($C$5,8,0),1,1)) -> 11664.94043 | F192: =IF(A192>$A$8,"",OFFSET(InputPriceData!E$15,CalculationsAndCharts!$A192+$A$11,IF($C$5,8,0),1,1)) -> 11524.44043 | G192: =IF(A192>$A$8,"",OFFSET(InputPriceData!F$15,CalculationsAndCharts!$A192+$A$11,IF($C$5,8,0),1,1)) -> 11553.45019 | J192: 180.3981915 | K192: 6.938391982 | L192: =IF(A192>$L$30,NA(),IF(A192=$L$30,AVERAGE(OFFSET(K192,0,0,$A$18,1)),$C$18*(K192-L193)+L193)) -> 28.27615175 | M192: 2827.615175 | N192: 217.5088596 | P192: =IF(A192>$J$30,NA(),(L192*$I$33)-SUMPRODUCT(OFFSET(L193,0,0,$A$17,1),OFFSET($H$33,0,0,$A$17,1))) -> 43.47838213 | Q192: =IF(A192>$J$30,NA(),P192/$A$17) -> 1.672245467 | R192: =IF(A192>$J$30,NA(),Q192*100) -> 167.2245467 | BD192: 3977130000
A193: 161 | B193: =IF(A193>$A$8,"",OFFSET(InputPriceData!B$15,$A193+$A$11,0,1,1)) -> 2022-11-18 | C193: =IF(A193>$A$8,"",OFFSET(InputPriceData!G$15,CalculationsAndCharts!$A193+$A$11,IF($C$5,8,0),1,1)) -> 4175420000 | D193: =IF(A193>$A$8,"",OFFSET(InputPriceData!C$15,CalculationsAndCharts!$A193+$A$11,IF($C$5,8,0),1,1)) -> 11791.84961 | E193: =IF(A193>$A$8,"",OFFSET(InputPriceData!D$15,CalculationsAndCharts!$A193+$A$11,IF($C$5,8,0),1,1)) -> 11794.67969 | F193: =IF(A193>$A$8,"",OFFSET(InputPriceData!E$15,CalculationsAndCharts!$A193+$A$11,IF($C$5,8,0),1,1)) -> 11579.63965 | G193: =IF(A193>$A$8,"",OFFSET(InputPriceData!F$15,CalculationsAndCharts!$A193+$A$11,IF($C$5,8,0),1,1)) -> 11677.01953 | J193: 723.5938599 | K193: 27.83053307 | L193: =IF(A193>$L$30,NA(),IF(A193=$L$30,AVERAGE(OFFSET(K193,0,0,$A$18,1)),$C$18*(K193-L194)+L194)) -> 33.61059169 | M193: 3361.059169 | N193: 258.543013 | P193: =IF(A193>$J$30,NA(),(L193*$I$33)-SUMPRODUCT(OFFSET(L194,0,0,$A$17,1),OFFSET($H$33,0,0,$A$17,1))) -> 72.31769199 | Q193: =IF(A193>$J$30,NA(),P193/$A$17) -> 2.781449692 | R193: =IF(A193>$J$30,NA(),Q193*100) -> 278.1449692 | BC193: 4175420000
A194: 162 | B194: =IF(A194>$A$8,"",OFFSET(InputPriceData!B$15,$A194+$A$11,0,1,1)) -> 2022-11-17 | C194: =IF(A194>$A$8,"",OFFSET(InputPriceData!G$15,CalculationsAndCharts!$A194+$A$11,IF($C$5,8,0),1,1)) -> 4354360000 | D194: =IF(A194>$A$8,"",OFFSET(InputPriceData!C$15,CalculationsAndCharts!$A194+$A$11,IF($C$5,8,0),1,1)) -> 11521.63965 | E194: =IF(A194>$A$8,"",OFFSET(InputPriceData!D$15,CalculationsAndCharts!$A194+$A$11,IF($C$5,8,0),1,1)) -> 11737.61035 | F194: =IF(A194>$A$8,"",OFFSET(InputPriceData!E$15,CalculationsAndCharts!$A194+$A$11,IF($C$5,8,0),1,1)) -> 11519.37988 | G194: =IF(A194>$A$8,"",OFFSET(InputPriceData!F$15,CalculationsAndCharts!$A194+$A$11,IF($C$5,8,0),1,1)) -> 11676.86035 | J194: 789.5612627 | K194: 30.36774087 | L194: =IF(A194>$L$30,NA(),IF(A194=$L$30,AVERAGE(OFFSET(K194,0,0,$A$18,1)),$C$18*(K194-L195)+L195)) -> 35.05560634 | M194: 3505.560634 | N194: 269.6585103 | P194: =IF(A194>$J$30,NA(),(L194*$I$33)-SUMPRODUCT(OFFSET(L195,0,0,$A$17,1),OFFSET($H$33,0,0,$A$17,1))) -> 89.4718422 | Q194: =IF(A194>$J$30,NA(),P194/$A$17) -> 3.4412247 | R194: =IF(A194>$J$30,NA(),Q194*100) -> 344.12247 | BD194: 4354360000
A195: 163 | B195: =IF(A195>$A$8,"",OFFSET(InputPriceData!B$15,$A195+$A$11,0,1,1)) -> 2022-11-16 | C195: =IF(A195>$A$8,"",OFFSET(InputPriceData!G$15,CalculationsAndCharts!$A195+$A$11,IF($C$5,8,0),1,1)) -> 4585190000 | D195: =IF(A195>$A$8,"",OFFSET(InputPriceData!C$15,CalculationsAndCharts!$A195+$A$11,IF($C$5,8,0),1,1)) -> 11767.41992 | E195: =IF(A195>$A$8,"",OFFSET(InputPriceData!D$15,CalculationsAndCharts!$A195+$A$11,IF($C$5,8,0),1,1)) -> 11796.99023 | F195: =IF(A195>$A$8,"",OFFSET(InputPriceData!E$15,CalculationsAndCharts!$A195+$A$11,IF($C$5,8,0),1,1)) -> 11673.13965 | G195: =IF(A195>$A$8,"",OFFSET(InputPriceData!F$15,CalculationsAndCharts!$A195+$A$11,IF($C$5,8,0),1,1)) -> 11699.08984 | J195: 928.4433409 | K195: 35.70935927 | L195: =IF(A195>$L$30,NA(),IF(A195=$L$30,AVERAGE(OFFSET(K195,0,0,$A$18,1)),$C$18*(K195-L196)+L196)) -> 36.22757271 | M195: 3622.757271 | N195: 278.6736362 | P195: =IF(A195>$J$30,NA(),(L195*$I$33)-SUMPRODUCT(OFFSET(L196,0,0,$A$17,1),OFFSET($H$33,0,0,$A$17,1))) -> 110.2946069 | Q195: =IF(A195>$J$30,NA(),P195/$A$17) -> 4.242100266 | R195: =IF(A195>$J$30,NA(),Q195*100) -> 424.2100266 | BD195: 4585190000
A196: 164 | B196: =IF(A196>$A$8,"",OFFSET(InputPriceData!B$15,$A196+$A$11,0,1,1)) -> 2022-11-15 | C196: =IF(A196>$A$8,"",OFFSET(InputPriceData!G$15,CalculationsAndCharts!$A196+$A$11,IF($C$5,8,0),1,1)) -> 5617310000 | D196: =IF(A196>$A$8,"",OFFSET(InputPriceData!C$15,CalculationsAndCharts!$A196+$A$11,IF($C$5,8,0),1,1)) -> 12006.45019 | E196: =IF(A196>$A$8,"",OFFSET(InputPriceData!D$15,CalculationsAndCharts!$A196+$A$11,IF($C$5,8,0),1,1)) -> 12024.95019 | F196: =IF(A196>$A$8,"",OFFSET(InputPriceData!E$15,CalculationsAndCharts!$A196+$A$11,IF($C$5,8,0),1,1)) -> 11735.40039 | G196: =IF(A196>$A$8,"",OFFSET(InputPriceData!F$15,CalculationsAndCharts!$A196+$A$11,IF($C$5,8,0),1,1)) -> 11871.15039 | J196: 1927.794955 | K196: 74.14595979 | L196: =IF(A196>$L$30,NA(),IF(A196=$L$30,AVERAGE(OFFSET(K196,0,0,$A$18,1)),$C$18*(K196-L197)+L197)) -> 36.35712607 | M196: 3635.712607 | N196: 279.6702005 | P196: =IF(A196>$J$30,NA(),(L196*$I$33)-SUMPRODUCT(OFFSET(L197,0,0,$A$17,1),OFFSET($H$33,0,0,$A$17,1))) -> 135.3693608 | Q196: =IF(A196>$J$30,NA(),P196/$A$17) -> 5.206513877 | R196: =IF(A196>$J$30,NA(),Q196*100) -> 520.6513877 | BC196: 5617310000
A197: 165 | B197: =IF(A197>$A$8,"",OFFSET(InputPriceData!B$15,$A197+$A$11,0,1,1)) -> 2022-11-14 | C197: =IF(A197>$A$8,"",OFFSET(InputPriceData!G$15,CalculationsAndCharts!$A197+$A$11,IF($C$5,8,0),1,1)) -> 5004060000 | D197: =IF(A197>$A$8,"",OFFSET(InputPriceData!C$15,CalculationsAndCharts!$A197+$A$11,IF($C$5,8,0),1,1)) -> 11728.11035 | E197: =IF(A197>$A$8,"",OFFSET(InputPriceData!D$15,CalculationsAndCharts!$A197+$A$11,IF($C$5,8,0),1,1)) -> 11863.82031 | F197: =IF(A197>$A$8,"",OFFSET(InputPriceData!E$15,CalculationsAndCharts!$A197+$A$11,IF($C$5,8,0),1,1)) -> 11669.09961 | G197: =IF(A197>$A$8,"",OFFSET(InputPriceData!F$15,CalculationsAndCharts!$A197+$A$11,IF($C$5,8,0),1,1)) -> 11700.94043 | J197: 1466.388696 | K197: 56.39956524 | L197: =IF(A197>$L$30,NA(),IF(A197=$L$30,AVERAGE(OFFSET(K197,0,0,$A$18,1)),$C$18*(K197-L198)+L198)) -> 26.90991764 | M197: 2690.991764 | N197: 206.9993665 | P197: =IF(A197>$J$30,NA(),(L197*$I$33)-SUMPRODUCT(OFFSET(L198,0,0,$A$17,1),OFFSET($H$33,0,0,$A$17,1))) -> 122.1077445 | Q197: =IF(A197>$J$30,NA(),P197/$A$17) -> 4.696451713 | R197: =IF(A197>$J$30,NA(),Q197*100) -> 469.6451713 | BD197: 5004060000
A198: 166 | B198: =IF(A198>$A$8,"",OFFSET(InputPriceData!B$15,$A198+$A$11,0,1,1)) -> 2022-11-11 | C198: =IF(A198>$A$8,"",OFFSET(InputPriceData!G$15,CalculationsAndCharts!$A198+$A$11,IF($C$5,8,0),1,1)) -> 5867750000 | D198: =IF(A198>$A$8,"",OFFSET(InputPriceData!C$15,CalculationsAndCharts!$A198+$A$11,IF($C$5,8,0),1,1)) -> 11604.36035 | E198: =IF(A198>$A$8,"",OFFSET(InputPriceData!D$15,CalculationsAndCharts!$A198+$A$11,IF($C$5,8,0),1,1)) -> 11840.07031 | F198: =IF(A198>$A$8,"",OFFSET(InputPriceData!E$15,CalculationsAndCharts!$A198+$A$11,IF($C$5,8,0),1,1)) -> 11535.55957 | G198: =IF(A198>$A$8,"",OFFSET(InputPriceData!F$15,CalculationsAndCharts!$A198+$A$11,IF($C$5,8,0),1,1)) -> 11817.00977 | J198: 2428.718689 | K198: 93.41225729 | L198: =IF(A198>$L$30,NA(),IF(A198=$L$30,AVERAGE(OFFSET(K198,0,0,$A$18,1)),$C$18*(K198-L199)+L199)) -> 19.53750574 | M198: 1953.750574 | N198: 150.2885057 | P198: =IF(A198>$J$30,NA(),(L198*$I$33)-SUMPRODUCT(OFFSET(L199,0,0,$A$17,1),OFFSET($H$33,0,0,$A$17,1))) -> 121.4978214 | Q198: =IF(A198>$J$30,NA(),P198/$A$17) -> 4.672993129 | R198: =IF(A198>$J$30,NA(),Q198*100) -> 467.2993129 | BC198: 5867750000
A199: 167 | B199: =IF(A199>$A$8,"",OFFSET(InputPriceData!B$15,$A199+$A$11,0,1,1)) -> 2022-11-10 | C199: =IF(A199>$A$8,"",OFFSET(InputPriceData!G$15,CalculationsAndCharts!$A199+$A$11,IF($C$5,8,0),1,1)) -> 6433000000 | D199: =IF(A199>$A$8,"",OFFSET(InputPriceData!C$15,CalculationsAndCharts!$A199+$A$11,IF($C$5,8,0),1,1)) -> 11350.41992 | E199: =IF(A199>$A$8,"",OFFSET(InputPriceData!D$15,CalculationsAndCharts!$A199+$A$11,IF($C$5,8,0),1,1)) -> 11612.20019 | F199: =IF(A199>$A$8,"",OFFSET(InputPriceData!E$15,CalculationsAndCharts!$A199+$A$11,IF($C$5,8,0),1,1)) -> 11235.74023 | G199: =IF(A199>$A$8,"",OFFSET(InputPriceData!F$15,CalculationsAndCharts!$A199+$A$11,IF($C$5,8,0),1,1)) -> 11605.95996 | J199: 2281.946252 | K199: 87.76716354 | L199: =IF(A199>$L$30,NA(),IF(A199=$L$30,AVERAGE(OFFSET(K199,0,0,$A$18,1)),$C$18*(K199-L200)+L200)) -> 1.068817851 | M199: 106.8817851 | N199: 8.221675777 | P199: =IF(A199>$J$30,NA(),(L199*$I$33)-SUMPRODUCT(OFFSET(L200,0,0,$A$17,1),OFFSET($H$33,0,0,$A$17,1))) -> 69.7607017 | Q199: =IF(A199>$J$30,NA(),P199/$A$17) -> 2.683103912 | R199: =IF(A199>$J$30,NA(),Q199*100) -> 268.3103912 | BC199: 6433000000
A200: 168 | B200: =IF(A200>$A$8,"",OFFSET(InputPriceData!B$15,$A200+$A$11,0,1,1)) -> 2022-11-09 | C200: =IF(A200>$A$8,"",OFFSET(InputPriceData!G$15,CalculationsAndCharts!$A200+$A$11,IF($C$5,8,0),1,1)) -> 4977460000 | D200: =IF(A200>$A$8,"",OFFSET(InputPriceData!C$15,CalculationsAndCharts!$A200+$A$11,IF($C$5,8,0),1,1)) -> 10971.42969 | E200: =IF(A200>$A$8,"",OFFSET(InputPriceData!D$15,CalculationsAndCharts!$A200+$A$11,IF($C$5,8,0),1,1)) -> 11012.66016 | F200: =IF(A200>$A$8,"",OFFSET(InputPriceData!E$15,CalculationsAndCharts!$A200+$A$11,IF($C$5,8,0),1,1)) -> 10790.34961 | G200: =IF(A200>$A$8,"",OFFSET(InputPriceData!F$15,CalculationsAndCharts!$A200+$A$11,IF($C$5,8,0),1,1)) -> 10797.54981 | J200: -1092.583057 | K200: -42.02242528 | L200: =IF(A200>$L$30,NA(),IF(A200=$L$30,AVERAGE(OFFSET(K200,0,0,$A$18,1)),$C$18*(K200-L201)+L201)) -> -20.60576857 | M200: -2060.576857 | N200: -158.5059121 | P200: =IF(A200>$J$30,NA(),(L200*$I$33)-SUMPRODUCT(OFFSET(L201,0,0,$A$17,1),OFFSET($H$33,0,0,$A$17,1))) -> -18.16130964 | Q200: =IF(A200>$J$30,NA(),P200/$A$17) -> -0.6985119091 | R200: =IF(A200>$J$30,NA(),Q200*100) -> -69.85119091 | BD200: 4977460000
A201: 169 | B201: =IF(A201>$A$8,"",OFFSET(InputPriceData!B$15,$A201+$A$11,0,1,1)) -> 2022-11-08 | C201: =IF(A201>$A$8,"",OFFSET(InputPriceData!G$15,CalculationsAndCharts!$A201+$A$11,IF($C$5,8,0),1,1)) -> 5134500000 | D201: =IF(A201>$A$8,"",OFFSET(InputPriceData!C$15,CalculationsAndCharts!$A201+$A$11,IF($C$5,8,0),1,1)) -> 11039.58008 | E201: =IF(A201>$A$8,"",OFFSET(InputPriceData!D$15,CalculationsAndCharts!$A201+$A$11,IF($C$5,8,0),1,1)) -> 11191.90039 | F201: =IF(A201>$A$8,"",OFFSET(InputPriceData!E$15,CalculationsAndCharts!$A201+$A$11,IF($C$5,8,0),1,1)) -> 10897.53027 | G201: =IF(A201>$A$8,"",OFFSET(InputPriceData!F$15,CalculationsAndCharts!$A201+$A$11,IF($C$5,8,0),1,1)) -> 11059.5 | J201: -16.28751842 | K201: -0.6264430161 | L201: =IF(A201>$L$30,NA(),IF(A201=$L$30,AVERAGE(OFFSET(K201,0,0,$A$18,1)),$C$18*(K201-L202)+L202)) -> -15.25160439 | M201: -1525.160439 | N201: -117.3200338 | P201: =IF(A201>$J$30,NA(),(L201*$I$33)-SUMPRODUCT(OFFSET(L202,0,0,$A$17,1),OFFSET($H$33,0,0,$A$17,1))) -> 5.175368613 | Q201: =IF(A201>$J$30,NA(),P201/$A$17) -> 0.199052639 | R201: =IF(A201>$J$30,NA(),Q201*100) -> 19.9052639 | BC201: 5134500000
A202: 170 | B202: =IF(A202>$A$8,"",OFFSET(InputPriceData!B$15,$A202+$A$11,0,1,1)) -> 2022-11-07 | C202: =IF(A202>$A$8,"",OFFSET(InputPriceData!G$15,CalculationsAndCharts!$A202+$A$11,IF($C$5,8,0),1,1)) -> 4456690000 | D202: =IF(A202>$A$8,"",OFFSET(InputPriceData!C$15,CalculationsAndCharts!$A202+$A$11,IF($C$5,8,0),1,1)) -> 10900.83008 | E202: =IF(A202>$A$8,"",OFFSET(InputPriceData!D$15,CalculationsAndCharts!$A202+$A$11,IF($C$5,8,0),1,1)) -> 11001.16016 | F202: =IF(A202>$A$8,"",OFFSET(InputPriceData!E$15,CalculationsAndCharts!$A202+$A$11,IF($C$5,8,0),1,1)) -> 10817.58984 | G202: =IF(A202>$A$8,"",OFFSET(InputPriceData!F$15,CalculationsAndCharts!$A202+$A$11,IF($C$5,8,0),1,1)) -> 10977 | J202: -291.9182962 | K202: -11.22762678 | L202: =IF(A202>$L$30,NA(),IF(A202=$L$30,AVERAGE(OFFSET(K202,0,0,$A$18,1)),$C$18*(K202-L203)+L203)) -> -18.90789474 | M202: -1890.789474 | N202: -145.4453441 | P202: =IF(A202>$J$30,NA(),(L202*$I$33)-SUMPRODUCT(OFFSET(L203,0,0,$A$17,1),OFFSET($H$33,0,0,$A$17,1))) -> -10.53635924 | Q202: =IF(A202>$J$30,NA(),P202/$A$17) -> -0.4052445863 | R202: =IF(A202>$J$30,NA(),Q202*100) -> -40.52445863 | BC202: 4456690000
A203: 171 | B203: =IF(A203>$A$8,"",OFFSET(InputPriceData!B$15,$A203+$A$11,0,1,1)) -> 2022-11-04 | C203: =IF(A203>$A$8,"",OFFSET(InputPriceData!G$15,CalculationsAndCharts!$A203+$A$11,IF($C$5,8,0),1,1)) -> 5453750000 | D203: =IF(A203>$A$8,"",OFFSET(InputPriceData!C$15,CalculationsAndCharts!$A203+$A$11,IF($C$5,8,0),1,1)) -> 10911.98047 | E203: =IF(A203>$A$8,"",OFFSET(InputPriceData!D$15,CalculationsAndCharts!$A203+$A$11,IF($C$5,8,0),1,1)) -> 10934.62012 | F203: =IF(A203>$A$8,"",OFFSET(InputPriceData!E$15,CalculationsAndCharts!$A203+$A$11,IF($C$5,8,0),1,1)) -> 10632.38965 | G203: =IF(A203>$A$8,"",OFFSET(InputPriceData!F$15,CalculationsAndCharts!$A203+$A$11,IF($C$5,8,0),1,1)) -> 10857.03027 | J203: -827.7471144 | K203: -31.83642748 | L203: =IF(A203>$L$30,NA(),IF(A203=$L$30,AVERAGE(OFFSET(K203,0,0,$A$18,1)),$C$18*(K203-L204)+L204)) -> -20.82796173 | M203: -2082.796173 | N203: -160.2150902 | P203: =IF(A203>$J$30,NA(),(L203*$I$33)-SUMPRODUCT(OFFSET(L204,0,0,$A$17,1),OFFSET($H$33,0,0,$A$17,1))) -> -26.00420013 | Q203: =IF(A203>$J$30,NA(),P203/$A$17) -> -1.000161544 | R203: =IF(A203>$J$30,NA(),Q203*100) -> -100.0161544 | BC203: 5453750000
A204: 172 | B204: =IF(A204>$A$8,"",OFFSET(InputPriceData!B$15,$A204+$A$11,0,1,1)) -> 2022-11-03 | C204: =IF(A204>$A$8,"",OFFSET(InputPriceData!G$15,CalculationsAndCharts!$A204+$A$11,IF($C$5,8,0),1,1)) -> 5102190000 | D204: =IF(A204>$A$8,"",OFFSET(InputPriceData!C$15,CalculationsAndCharts!$A204+$A$11,IF($C$5,8,0),1,1)) -> 10769.42969 | E204: =IF(A204>$A$8,"",OFFSET(InputPriceData!D$15,CalculationsAndCharts!$A204+$A$11,IF($C$5,8,0),1,1)) -> 10852.17969 | F204: =IF(A204>$A$8,"",OFFSET(InputPriceData!E$15,CalculationsAndCharts!$A204+$A$11,IF($C$5,8,0),1,1)) -> 10680.83008 | G204: =IF(A204>$A$8,"",OFFSET(InputPriceData!F$15,CalculationsAndCharts!$A204+$A$11,IF($C$5,8,0),1,1)) -> 10690.59961 | J204: -1901.272791 | K204: -73.12587659 | L204: =IF(A204>$L$30,NA(),IF(A204=$L$30,AVERAGE(OFFSET(K204,0,0,$A$18,1)),$C$18*(K204-L205)+L205)) -> -18.07584529 | M204: -1807.584529 | N204: -139.0449638 | P204: =IF(A204>$J$30,NA(),(L204*$I$33)-SUMPRODUCT(OFFSET(L205,0,0,$A$17,1),OFFSET($H$33,0,0,$A$17,1))) -> -29.43547335 | Q204: =IF(A204>$J$30,NA(),P204/$A$17) -> -1.132133591 | R204: =IF(A204>$J$30,NA(),Q204*100) -> -113.2133591 | BD204: 5102190000
A205: 173 | B205: =IF(A205>$A$8,"",OFFSET(InputPriceData!B$15,$A205+$A$11,0,1,1)) -> 2022-11-02 | C205: =IF(A205>$A$8,"",OFFSET(InputPriceData!G$15,CalculationsAndCharts!$A205+$A$11,IF($C$5,8,0),1,1)) -> 5436420000 | D205: =IF(A205>$A$8,"",OFFSET(InputPriceData!C$15,CalculationsAndCharts!$A205+$A$11,IF($C$5,8,0),1,1)) -> 11300.26953 | E205: =IF(A205>$A$8,"",OFFSET(InputPriceData!D$15,CalculationsAndCharts!$A205+$A$11,IF($C$5,8,0),1,1)) -> 11410.91016 | F205: =IF(A205>$A$8,"",OFFSET(InputPriceData!E$15,CalculationsAndCharts!$A205+$A$11,IF($C$5,8,0),1,1)) -> 10903.48047 | G205: =IF(A205>$A$8,"",OFFSET(InputPriceData!F$15,CalculationsAndCharts!$A205+$A$11,IF($C$5,8,0),1,1)) -> 10906.33984 | J205: -1487.47883 | K205: -57.21072424 | L205: =IF(A205>$L$30,NA(),IF(A205=$L$30,AVERAGE(OFFSET(K205,0,0,$A$18,1)),$C$18*(K205-L206)+L206)) -> -4.313337468 | M205: -431.3337468 | N205: -33.17951899 | P205: =IF(A205>$J$30,NA(),(L205*$I$33)-SUMPRODUCT(OFFSET(L206,0,0,$A$17,1),OFFSET($H$33,0,0,$A$17,1))) -> 17.48594741 | Q205: =IF(A205>$J$30,NA(),P205/$A$17) -> 0.6725364389 | R205: =IF(A205>$J$30,NA(),Q205*100) -> 67.25364389 | BD205: 5436420000
A206: 174 | B206: =IF(A206>$A$8,"",OFFSET(InputPriceData!B$15,$A206+$A$11,0,1,1)) -> 2022-11-01 | C206: =IF(A206>$A$8,"",OFFSET(InputPriceData!G$15,CalculationsAndCharts!$A206+$A$11,IF($C$5,8,0),1,1)) -> 4677520000 | D206: =IF(A206>$A$8,"",OFFSET(InputPriceData!C$15,CalculationsAndCharts!$A206+$A$11,IF($C$5,8,0),1,1)) -> 11571.53027 | E206: =IF(A206>$A$8,"",OFFSET(InputPriceData!D$15,CalculationsAndCharts!$A206+$A$11,IF($C$5,8,0),1,1)) -> 11574.38965 | F206: =IF(A206>$A$8,"",OFFSET(InputPriceData!E$15,CalculationsAndCharts!$A206+$A$11,IF($C$5,8,0),1,1)) -> 11278.28027 | G206: =IF(A206>$A$8,"",OFFSET(InputPriceData!F$15,CalculationsAndCharts!$A206+$A$11,IF($C$5,8,0),1,1)) -> 11288.95019 | J206: -107.8544371 | K206: -4.148247582 | L206: =IF(A206>$L$30,NA(),IF(A206=$L$30,AVERAGE(OFFSET(K206,0,0,$A$18,1)),$C$18*(K206-L207)+L207)) -> 8.911009223 | M206: 891.1009223 | N206: 68.54622479 | P206: =IF(A206>$J$30,NA(),(L206*$I$33)-SUMPRODUCT(OFFSET(L207,0,0,$A$17,1),OFFSET($H$33,0,0,$A$17,1))) -> 75.31445378 | Q206: =IF(A206>$J$30,NA(),P206/$A$17) -> 2.896709761 | R206: =IF(A206>$J$30,NA(),Q206*100) -> 289.6709761 | BD206: 4677520000
A207: 175 | B207: =IF(A207>$A$8,"",OFFSET(InputPriceData!B$15,$A207+$A$11,0,1,1)) -> 2022-10-31 | C207: =IF(A207>$A$8,"",OFFSET(InputPriceData!G$15,CalculationsAndCharts!$A207+$A$11,IF($C$5,8,0),1,1)) -> 4753740000 | D207: =IF(A207>$A$8,"",OFFSET(InputPriceData!C$15,CalculationsAndCharts!$A207+$A$11,IF($C$5,8,0),1,1)) -> 11465.20996 | E207: =IF(A207>$A$8,"",OFFSET(InputPriceData!D$15,CalculationsAndCharts!$A207+$A$11,IF($C$5,8,0),1,1)) -> 11482.99023 | F207: =IF(A207>$A$8,"",OFFSET(InputPriceData!E$15,CalculationsAndCharts!$A207+$A$11,IF($C$5,8,0),1,1)) -> 11331.25977 | G207: =IF(A207>$A$8,"",OFFSET(InputPriceData!F$15,CalculationsAndCharts!$A207+$A$11,IF($C$5,8,0),1,1)) -> 11405.57031 | J207: 333.7733018 | K207: 12.83743468 | L207: =IF(A207>$L$30,NA(),IF(A207=$L$30,AVERAGE(OFFSET(K207,0,0,$A$18,1)),$C$18*(K207-L208)+L208)) -> 12.17582342 | M207: 1217.582342 | N207: 93.66018019 | P207: =IF(A207>$J$30,NA(),(L207*$I$33)-SUMPRODUCT(OFFSET(L208,0,0,$A$17,1),OFFSET($H$33,0,0,$A$17,1))) -> 100.0997044 | Q207: =IF(A207>$J$30,NA(),P207/$A$17) -> 3.84998863 | R207: =IF(A207>$J$30,NA(),Q207*100) -> 384.998863 | BD207: 4753740000
A208: 176 | B208: =IF(A208>$A$8,"",OFFSET(InputPriceData!B$15,$A208+$A$11,0,1,1)) -> 2022-10-28 | C208: =IF(A208>$A$8,"",OFFSET(InputPriceData!G$15,CalculationsAndCharts!$A208+$A$11,IF($C$5,8,0),1,1)) -> 4731940000 | D208: =IF(A208>$A$8,"",OFFSET(InputPriceData!C$15,CalculationsAndCharts!$A208+$A$11,IF($C$5,8,0),1,1)) -> 11176.99023 | E208: =IF(A208>$A$8,"",OFFSET(InputPriceData!D$15,CalculationsAndCharts!$A208+$A$11,IF($C$5,8,0),1,1)) -> 11563.16016 | F208: =IF(A208>$A$8,"",OFFSET(InputPriceData!E$15,CalculationsAndCharts!$A208+$A$11,IF($C$5,8,0),1,1)) -> 11176.99023 | G208: =IF(A208>$A$8,"",OFFSET(InputPriceData!F$15,CalculationsAndCharts!$A208+$A$11,IF($C$5,8,0),1,1)) -> 11546.20996 | J208: 1142.537799 | K208: 43.9437615 | L208: =IF(A208>$L$30,NA(),IF(A208=$L$30,AVERAGE(OFFSET(K208,0,0,$A$18,1)),$C$18*(K208-L209)+L209)) -> 12.01042061 | M208: 1201.042061 | N208: 92.38785084 | P208: =IF(A208>$J$30,NA(),(L208*$I$33)-SUMPRODUCT(OFFSET(L209,0,0,$A$17,1),OFFSET($H$33,0,0,$A$17,1))) -> 116.0839967 | Q208: =IF(A208>$J$30,NA(),P208/$A$17) -> 4.464769104 | R208: =IF(A208>$J$30,NA(),Q208*100) -> 446.4769104 | BC208: 4731940000
... 1074 more rows

Sheet Follow
A1: Stocks and Indexes I wish to follow
A3: To ease following a stock, enter a Yahoo Finance acceptable symbol in column "A" anywhere below cell "A9".
A4: Thereafter you may doubleclick the cell containing a symbol of interest to initiate data retrieval and charting for that symbol.
A6: =COUNTA(A10:A108) -> 97
A7: Symbol
A8: To | B8: Description | C8: Last Trade as of most recent check
A9: Follow | C9: Date | D9: Time | E9: Open | F9: High | G9: Low | H9: Close | I9: Volume | J9: Change | K9: Retrieved @
A10: A | B10: Agilent Technologies, Inc. (A) -NYSE (Daily) | C10: 2022-10-07 | D10: 16:03:00 | E10: 130.449997 | F10: 130.929993 | G10: 126.959999 | H10: 127.440002 | I10: 1154700 | J10: -4.739991 | K10: 2022-10-08T20:06:52.050
A11: AA | B11: Alcoa Corporation (AA) -NYSE (Daily) | C11: 2023-06-16 | D11: 16:00:00 | E11: 35.970001 | F11: 36.040001 | G11: 34.790001 | H11: 35.619999 | I11: 5811700 | J11: -0.350002 | K11: 2023-06-17T11:43:27
A12: AAL | B12: American Airlines Group Inc. (AAL) -NasdaqGS (Daily) | C12: 2023-06-16 | D12: 16:00:00 | E12: 16.67 | F12: 16.719999 | G12: 16.43 | H12: 16.48 | I12: 22635600 | J12: -0.17 | K12: 2023-06-17T10:36:27.890
A13: AAPL | B13: Apple Inc. (AAPL) -NasdaqGS (Daily) | C13: 2022-10-07 | D13: 16:00:00 | E13: 142.539993 | F13: 143.100006 | G13: 139.449997 | H13: 140.089996 | I13: 85859100 | J13: -5.339997 | K13: 2022-10-08T20:07:45.780
A14: ADM | B14: Archer-Daniels-Midland Company (ADM) -NYSE (Daily) | C14: 2023-06-16 | D14: 16:00:00 | E14: 74.900002 | F14: 76 | G14: 74.470001 | H14: 75.480003 | I14: 5529600 | J14: 0.920005 | K14: 2023-06-17T11:43:58.380
A15: ADBE | B15: Adobe Inc. (ADBE) -NasdaqGS (Daily) | C15: 2023-06-16 | D15: 16:00:00 | E15: 518.22998 | F15: 518.73999 | G15: 494.619995 | H15: 495.179993 | I15: 13335800 | J15: 4.269989 | K15: 2023-06-17T11:42:39.820 | L15: [X]
A16: ALGN | B16: Align Technology, Inc. (ALGN) -NasdaqGS (Daily) | C16: 2023-06-16 | D16: 16:00:00 | E16: 334.950012 | F16: 335.869995 | G16: 326.519989 | H16: 330.290009 | I16: 1258300 | J16: -2.899993 | K16: 2023-06-17T10:47:06.620
A17: AMC | B17: AMC Entertainment Holdings, Inc. (AMC) -NYSE (Daily) | C17: 2023-06-16 | D17: 16:00:00 | E17: 4.82 | F17: 4.83 | G17: 4.67 | H17: 4.7 | I17: 18483600 | J17: -0.06 | K17: 2023-06-17T10:46:36.020
A18: AMD | B18: Advanced Micro Devices, Inc. (AMD) -NasdaqGS (Daily) | C18: 2023-06-16 | D18: 16:00:00 | E18: 125.82 | F18: 125.849998 | G18: 119.900002 | H18: 120.080002 | I18: 81846900 | J18: -4.159996 | K18: 2023-06-17T10:42:05.850
A19: AR | B19: Antero Resources Corporation (AR) -NYSE (Daily) | C19: 2023-09-15 | D19: 11:11:00 | E19: 26.940001 | F19: 27.280001 | G19: 26.745001 | H19: 26.759899 | I19: 1304111 | J19: -0.580101 | K19: 2023-09-15T11:12:04.270 | L19: [X]
A20: BA | B20: The Boeing Company (BA) -NYSE (Daily) | C20: 2023-06-16 | D20: 16:00:00 | E20: 220.720001 | F20: 223.869995 | G20: 218.979996 | H20: 219.990005 | I20: 7799500 | J20: 0.580001 | K20: 2023-06-17T10:43:22.080
A21: BSX | B21: Boston Scientific Corporation (BSX) -NYSE (Daily) | C21: 2023-06-16 | D21: 16:00:00 | E21: 54.509998 | F21: 54.689999 | G21: 54.049999 | H21: 54.32 | I21: 13022800 | J21: 0.34 | K21: 2023-06-17T10:45:23.450
A22: CASY | B22: Casey's General Stores, Inc. (CASY) -NasdaqGS (Daily) | C22: 2023-06-16 | D22: 16:00:00 | E22: 223.339996 | F22: 223.449997 | G22: 219.070007 | H22: 219.619995 | I22: 388500 | J22: -2.960007 | K22: 2023-06-17T10:46:01.080
A23: CAT | B23: Caterpillar Inc. (CAT) -NYSE (Daily) | C23: 2023-09-15 | D23: 11:10:00 | E23: 281.869995 | F23: 281.869995 | G23: 277.769989 | H23: 278.117493 | I23: 1524594 | J23: -4.442505 | K23: 2023-09-15T11:10:38.830
A24: COST | B24: Costco Wholesale Corporation (COST) -NasdaqGS (Daily) | C24: 2023-03-06 | D24: 16:00:00 | E24: 476.519989 | F24: 488.817413 | G24: 475.609985 | H24: 483.079987 | I24: 3005250 | J24: 7.819977 | K24: 2023-03-06T21:04:51.590
A25: CSCO | B25: Cisco Systems, Inc. (CSCO) -NasdaqGS (Daily) | C25: 2023-06-16 | D25: 16:00:00 | E25: 52.200001 | F25: 52.41 | G25: 51.93 | H25: 52.07 | I25: 37133300 | J25: 0.14 | K25: 2023-06-17T10:48:11.650
A26: CVS | B26: CVS Health Corporation (CVS) -NYSE (Daily) | C26: 2023-06-16 | D26: 16:00:00 | E26: 69.290001 | F26: 69.589996 | G26: 67.489998 | H26: 67.720001 | I26: 18202800 | J26: -1.779999 | K26: 2023-06-17T11:41:13.330
A27: DELL | B27: Dell Technologies Inc. (DELL) -NYSE (Daily) | C27: 2023-06-16 | D27: 16:00:00 | E27: 50.200001 | F27: 50.299999 | G27: 49.529999 | H27: 49.669998 | I27: 9352100 | J27: -0.530003 | K27: 2023-06-17T10:48:49.940
A28: DG | B28: Dollar General Corporation (DG) -NYSE (Daily) | C28: 2023-06-16 | D28: 16:03:00 | E28: 163.210007 | F28: 164.649994 | G28: 161.759995 | H28: 164.320007 | I28: 4781100 | J28: 0.640014 | K28: 2023-06-17T10:49:14.920
A29: DIS | B29: The Walt Disney Company (DIS) -NYSE (Daily) | C29: 2023-06-16 | D29: 16:03:00 | E29: 92.879997 | F29: 92.970001 | G29: 90.860001 | H29: 91.32 | I29: 22665000 | J29: -1.620002 | K29: 2023-06-17T10:49:55.860
A30: DLTR | B30: Dollar Tree, Inc. (DLTR) -NasdaqGS (Daily) | C30: 2023-06-16 | D30: 16:00:00 | E30: 139.070007 | F30: 139.070007 | G30: 136.089996 | H30: 136.220001 | I30: 2592600 | J30: -2.220001 | K30: 2023-06-17T10:50:23.460
A31: EPD | B31: Enterprise Products Partners L.P. (EPD) -NYSE (Daily) | C31: 2023-06-16 | D31: 16:00:00 | E31: 26.389999 | F31: 26.48 | G31: 26.23 | H31: 26.389999 | I31: 3749200 | J31: 0.069999 | K31: 2023-06-17T10:51:07.130
A32: F | B32: Ford Motor Company (F) -NYSE (Daily) | C32: 2023-06-16 | D32: 16:00:00 | E32: 14.52 | F32: 14.61 | G32: 14.32 | H32: 14.42 | I32: 75366700 | J32: -0.03 | K32: 2023-06-17T11:35:12.500 | L32: [X]
A33: FAS | B33: Direxion Daily Financial Bull 3X Shares (FAS) -NYSEArca (Daily) | C33: 2022-10-07 | D33: 16:00:00 | E33: 59.529999 | F33: 59.849998 | G33: 55.689999 | H33: 56.790001 | I33: 1488400 | J33: -4.290001 | K33: 2022-10-08T20:13:13.080
A34: GSK | B34: GSK plc (GSK) -NYSE (Daily) | C34: 2022-10-07 | D34: 16:00:00 | E34: 30.190001 | F34: 30.42 | G34: 30.040001 | H34: 30.110001 | I34: 5486300 | J34: 0.110001 | K34: 2022-10-08T20:13:33.450
A35: GDX | B35: VanEck Gold Miners ETF (GDX) -NYSEArca (Daily) | C35: 2023-06-16 | D35: 16:00:00 | E35: 31.200001 | F35: 31.74 | G35: 30.9 | H35: 31.389999 | I35: 19283100 | J35: 0.389999 | K35: 2023-06-17T10:52:54.260
A36: GILD | B36: Gilead Sciences, Inc. (GILD) -NasdaqGS (Daily) | C36: 2022-10-07 | D36: 16:00:00 | E36: 64.639999 | F36: 65.099998 | G36: 63.959999 | H36: 64.290001 | I36: 6722600 | J36: -0.659996 | K36: 2022-10-08T20:14:12.060
A37: GOOG | B37: Alphabet Inc. (GOOG) -NasdaqGS (Daily) | C37: 2023-06-05 | D37: 14:47:00 | E37: 124.610001 | F37: 127.987701 | G37: 124.389999 | H37: 126.32 | I37: 17012908 | J37: 1.089997 | K37: 2023-06-05T14:47:20.460
A38: HD | B38: The Home Depot, Inc. (HD) -NYSE (Daily) | C38: 2023-06-16 | D38: 16:00:00 | E38: 304.339996 | F38: 305.980011 | G38: 300.140015 | H38: 300.380005 | I38: 10808400 | J38: -1.639984 | K38: 2023-06-17T11:36:54.610
A39: HSY | B39: The Hershey Company (HSY) -NYSE (Daily) | C39: 2023-06-16 | D39: 16:00:00 | E39: 262 | F39: 263.290009 | G39: 260.269989 | H39: 260.720001 | I39: 1577100 | J39: -0.139984 | K39: 2023-06-17T10:54:48.190
A40: HTLD | B40: Heartland Express, Inc. (HTLD) -NasdaqGS (Daily) | C40: 2023-06-16 | D40: 16:00:00 | E40: 16.440001 | F40: 16.440001 | G40: 16.139999 | H40: 16.290001 | I40: 738100 | J40: -0.039999 | K40: 2023-06-17T11:04:51.680
A41: IBM | B41: International Business Machines Corporation (IBM) -NYSE (Daily) | C41: 2023-06-16 | D41: 16:00:00 | E41: 139.229996 | F41: 139.470001 | G41: 137.470001 | H41: 137.479996 | I41: 7473100 | J41: -0.919998 | K41: 2023-06-17T11:05:53.630 | L41: [X]
A42: ILMN | B42: Illumina, Inc. (ILMN) -NasdaqGS (Daily) | C42: 2023-06-16 | D42: 16:00:00 | E42: 212.100006 | F42: 212.490005 | G42: 205 | H42: 205.869995 | I42: 2443300 | J42: -4.070007 | K42: 2023-06-17T10:19:57.970
A43: INTC | B43: Intel Corporation (INTC) -NasdaqGS (Daily) | C43: 2023-06-16 | D43: 16:00:00 | E43: 36.360001 | F43: 36.799999 | G43: 35.599998 | H43: 36.369999 | I43: 110188500 | J43: 0.549999 | K43: 2023-06-17T11:35:58.390 | L43: [X]
A44: JNJ | B44: Johnson & Johnson (JNJ) -NYSE (Daily) | C44: 2022-10-07 | D44: 16:00:00 | E44: 161.770004 | F44: 162.220001 | G44: 159.169998 | H44: 160.199997 | I44: 6363000 | J44: -1.710007 | K44: 2022-10-08T20:16:52.840
A45: KO | B45: The Coca-Cola Company (KO) -NYSE (Daily) | C45: 2023-06-16 | D45: 16:00:00 | E45: 61.599998 | F45: 62.169998 | G45: 61.48 | H45: 61.669998 | I45: 26735800 | J45: 0.439998 | K45: 2023-06-17T11:20:04.690
A46: LOW | B46: Lowe's Companies, Inc. (LOW) -NYSE (Daily) | C46: 2023-06-16 | D46: 16:02:00 | E46: 219.339996 | F46: 219.490005 | G46: 216.850006 | H46: 217.080002 | I46: 6874300 | J46: -1.849991 | K46: 2023-06-17T11:20:37.350 | L46: [X]
A47: LMT | B47: Lockheed Martin Corporation (LMT) -NYSE (Daily) | C47: 2023-06-16 | D47: 16:01:00 | E47: 457.730011 | F47: 461.769989 | G47: 456.600006 | H47: 459.170013 | I47: 1642800 | J47: 3.220001 | K47: 2023-06-17T11:23:13.320
A48: M | B48: Macy's, Inc. (M) -NYSE (Daily) | C48: 2023-06-16 | D48: 16:00:00 | E48: 16.17 | F48: 16.34 | G48: 15.8 | H48: 15.85 | I48: 17840800 | J48: -0.14 | K48: 2023-06-17T11:24:02.180
A49: MCD | B49: McDonald's Corporation (MCD) -NYSE (Daily) | C49: 2023-06-16 | D49: 16:00:00 | E49: 294.51001 | F49: 296.570007 | G49: 293.140015 | H49: 293.700012 | I49: 4890400 | J49: 1.090027 | K49: 2023-06-17T10:18:27.960
A50: MDT | B50: Medtronic plc (MDT) -NYSE (Daily) | C50: 2023-06-16 | D50: 16:00:00 | E50: 88.279999 | F50: 89.720001 | G50: 88.279999 | H50: 89.150002 | I50: 9108400 | J50: 0.900002 | K50: 2023-06-17T11:37:39.300
A51: META | B51: Meta Platforms, Inc. (META) -NasdaqGS (Daily) | C51: 2022-10-07 | D51: 16:00:00 | E51: 136.759995 | F51: 138.289993 | G51: 132.440002 | H51: 133.449997 | I51: 33179700 | J51: -5.62001 | K51: 2022-10-08T20:19:13.140
A52: MGM | B52: MGM Resorts International (MGM) -NYSE (Daily) | C52: 2023-06-16 | D52: 16:00:00 | E52: 43.68 | F52: 43.75 | G52: 42.43 | H52: 42.639999 | I52: 7929700 | J52: -1.080002 | K52: 2023-06-17T11:24:42.990
A53: MO | B53: Altria Group, Inc. (MO) -NYSE (Daily) | C53: 2023-06-16 | D53: 16:03:00 | E53: 44.220001 | F53: 44.27 | G53: 43.919998 | H53: 44.07 | I53: 13661200 | J53: -0.080002 | K53: 2023-06-17T11:25:41.960
A54: MRNA | B54: Moderna, Inc. (MRNA) -NasdaqGS (Daily) | C54: 2022-10-07 | D54: 16:00:00 | E54: 121.5 | F54: 123.360001 | G54: 118.459999 | H54: 119.32 | I54: 3149000 | J54: -5.830002 | K54: 2022-10-08T20:20:13.090
A55: MSFT | B55: Microsoft Corporation (MSFT) -NasdaqGS (Daily) | C55: 2023-06-16 | D55: 16:00:00 | E55: 351.320007 | F55: 351.470001 | G55: 341.950012 | H55: 342.329987 | I55: 46533600 | J55: -5.770019 | K55: 2023-06-17T11:26:05.540 | L55: [X]
A56: MU | B56: Micron Technology, Inc. (MU) -NasdaqGS (Daily) | C56: 2023-06-16 | D56: 16:00:00 | E56: 70.150002 | F56: 70.5 | G56: 66.059998 | H56: 67.660004 | I56: 32252600 | J56: -1.159996 | K56: 2023-06-17T10:17:34.780
A57: NFLX | B57: Netflix, Inc. (NFLX) -NasdaqGS (Daily) | C57: 2022-10-07 | D57: 16:00:00 | E57: 235.770004 | F57: 237.330002 | G57: 224.279999 | H57: 224.75 | I57: 9784800 | J57: -15.270004 | K57: 2022-10-08T20:20:51.730
A58: NUGT | B58: Direxion Daily Gold Miners Index Bull 2X Shares (NUGT) -NYSEArca (Daily) | C58: 2023-04-18 | D58: 11:15:00 | E58: 47.110001 | F58: 49.1688 | G58: 47 | H58: 48.517601 | I58: 939091 | J58: 1.647602 | K58: 2023-04-18T11:16:03.120
A59: NVS | B59: Novartis AG (NVS) -NYSE (Daily) | C59: 2023-06-16 | D59: 16:00:00 | E59: 102.43 | F59: 102.730003 | G59: 101.540001 | H59: 101.830002 | I59: 2683400 | J59: 0.440003 | K59: 2023-06-17T11:40:12.900
A60: NVDA | B60: NVIDIA Corporation (NVDA) -NasdaqGS (Daily) | C60: 2023-09-15 | D60: 11:05:00 | E60: 453.410004 | F60: 455.98999 | G60: 442.440002 | H60: 443.180786 | I60: 15999732 | J60: -12.629212 | K60: 2023-09-15T11:05:25.050
A61: NWL | B61: Newell Brands Inc. (NWL) -NasdaqGS (Daily) | C61: 2022-10-07 | D61: 16:00:00 | E61: 14.18 | F61: 14.25 | G61: 13.89 | H61: 13.96 | I61: 2832700 | J61: -0.42 | K61: 2022-10-08T20:22:10.460
A62: PEP | B62: PepsiCo, Inc. (PEP) -NasdaqGS (Daily) | C62: 2023-09-15 | D62: 11:05:00 | E62: 181.410004 | F62: 181.820007 | G62: 180.210007 | H62: 180.289993 | I62: 2715164 | J62: -0.940003 | K62: 2023-09-15T11:06:06.970
A63: PFE | B63: Pfizer Inc. (PFE) -NYSE (Daily) | C63: 2022-10-07 | D63: 16:03:00 | E63: 43.049999 | F63: 43.049999 | G63: 41.919998 | H63: 42.32 | I63: 20093100 | J63: -0.77 | K63: 2022-10-08T20:22:31.070
A64: PRU | B64: Prudential Financial, Inc. (PRU) -NYSE (Daily) | C64: 2023-06-16 | D64: 16:00:00 | E64: 86.809998 | F64: 87.470001 | G64: 86.309998 | H64: 87.029999 | I64: 3976700 | J64: 0.269997 | K64: 2023-06-17T11:27:17.570
A65: PSA | B65: Public Storage (PSA) -NYSE (Daily) | C65: 2023-03-08 | D65: 13:52:00 | E65: 301.850006 | F65: 305.119995 | G65: 300.910004 | H65: 302.279999 | I65: 329019 | J65: -0.070007 | K65: 2023-03-08T13:53:27.260
A66: PSEC | B66: Prospect Capital Corporation (PSEC) -NasdaqGS (Daily) | C66: 2023-06-16 | D66: 16:00:00 | E66: 6.28 | F66: 6.3 | G66: 6.22 | H66: 6.23 | I66: 1790300 | J66: -0.05 | K66: 2023-06-17T11:34:40.180
A67: RPM | B67: RPM International Inc. (RPM) -NYSE (Daily) | C67: 2023-05-19 | D67: 16:00:00 | E67: 81.349998 | F67: 81.449997 | G67: 79.650002 | H67: 80.080002 | I67: 569600 | J67: -0.720001 | K67: 2023-05-19T21:39:10.650
A68: RY | B68: Royal Bank of Canada (RY) -NYSE (Daily) | C68: 2023-09-15 | D68: 11:02:00 | E68: 91.07 | F68: 91.474098 | G68: 91.059998 | H68: 91.140999 | I68: 62690 | J68: -0.168999 | K68: 2023-09-15T11:03:52.640 | L68: [X]
A69: SCHW | B69: The Charles Schwab Corporation (SCHW) -NYSE (Daily) | C69: 2023-06-16 | D69: 16:00:00 | E69: 55.889999 | F69: 55.889999 | G69: 54.27 | H69: 54.400002 | I69: 19691000 | J69: -1.109996 | K69: 2023-06-17T11:34:11.580
A70: SPR | B70: Spirit AeroSystems Holdings, Inc. (SPR) -NYSE (Daily) | C70: 2022-10-07 | D70: 16:00:00 | E70: 24.26 | F70: 24.700001 | G70: 23.559999 | H70: 24.68 | I70: 1823200 | J70: -0.06 | K70: 2022-10-08T20:24:37.430
A71: SQ | B71: Block, Inc. (SQ) -NYSE (Daily) | C71: 2023-06-16 | D71: 16:00:00 | E71: 66.510002 | F71: 67.790001 | G71: 65.700996 | H71: 66.510002 | I71: 12245500 | J71: 0.32 | K71: 2023-06-17T11:39:20.620
A72: SWKS | B72: Skyworks Solutions, Inc. (SWKS) -NasdaqGS (Daily) | C72: 2022-10-07 | D72: 16:00:00 | E72: 90.18 | F72: 90.400002 | G72: 86.949997 | H72: 87.199997 | I72: 2592400 | J72: -5.410004 | K72: 2022-10-08T20:25:16.990
A73: TOL | B73: Toll Brothers, Inc. (TOL) -NYSE (Daily) | C73: 2023-06-08 | D73: 14:21:00 | E73: 73.739998 | F73: 74.809998 | G73: 73.379997 | H73: 74.334999 | I73: 1031567 | J73: 0.394997 | K73: 2023-06-08T14:22:29.470
A74: TSLA | B74: Tesla, Inc. (TSLA) -NasdaqGS (Daily) | C74: 2022-10-07 | D74: 16:00:00 | E74: 233.940002 | F74: 234.570007 | G74: 222.020004 | H74: 223.070007 | I74: 83592300 | J74: -15.059998 | K74: 2022-10-08T20:25:55.990
A75: TSN | B75: Tyson Foods, Inc. (TSN) -NYSE (Daily) | C75: 2023-06-16 | D75: 16:00:00 | E75: 50.360001 | F75: 50.490002 | G75: 49.959999 | H75: 50.389999 | I75: 4116300 | J75: 0.18 | K75: 2023-06-17T11:30:51.590
A76: TXN | B76: Texas Instruments Incorporated (TXN) -NasdaqGS (Daily) | C76: 2023-06-16 | D76: 16:00:00 | E76: 179.449997 | F76: 179.830002 | G76: 176.259995 | H76: 176.759995 | I76: 10374500 | J76: -1.330001 | K76: 2023-06-17T11:30:24.380
A77: UNP | B77: Union Pacific Corporation (UNP) -NYSE (Daily) | C77: 2023-06-16 | D77: 16:00:00 | E77: 206.369995 | F77: 206.899994 | G77: 204.479996 | H77: 204.669998 | I77: 4139800 | J77: -1.25 | K77: 2023-06-17T11:30:02.020
A78: VZ | B78: Verizon Communications Inc. (VZ) -NYSE (Daily) | C78: 2023-06-16 | D78: 16:00:00 | E78: 36.52 | F78: 36.689999 | G78: 36.169998 | H78: 36.459999 | I78: 36093500 | J78: 0.02 | K78: 2023-06-17T11:29:32.350
A79: WBA | B79: Walgreens Boots Alliance, Inc. (WBA) -NasdaqGS (Daily) | C79: 2023-06-16 | D79: 16:00:00 | E79: 31.83 | F79: 32.810001 | G79: 31.73 | H79: 32.669998 | I79: 16018300 | J79: 0.649998 | K79: 2023-06-17T11:29:06.980
A80: WMT | B80: Walmart Inc. (WMT) -NYSE (Daily) | C80: 2023-06-16 | D80: 16:00:00 | E80: 158.080002 | F80: 158.149994 | G80: 155.279999 | H80: 155.529999 | I80: 11556700 | J80: -2.199997 | K80: 2023-06-17T11:28:37.380
A82: ^AEX | B82: AEX-Index (^AEX) -Amsterdam (Daily) | C82: 2022-10-07 | D82: 18:05:00 | E82: 655.869995 | F82: 660.320007 | G82: 646.809998 | H82: 647.109985 | I82: 68900 | J82: -14.27002 | K82: 2022-10-08T20:27:56.300
A83: ^AORD | B83: ALL ORDINARIES (^AORD) -ASX (Daily) | C83: 2023-03-03 | D83: 16:46:00 | E83: 7460 | F83: 7493.299805 | G83: 7460 | H83: 7484 | I83: 915646200 | J83: 24 | K83: 2023-03-05T16:26:16.030
A84: ^AXJO | B84: S&P/ASX 200 (^AXJO) -ASX (Daily) | C84: 2023-03-15 | D84: 16:44:00 | E84: 7008.899902 | F84: 7068.899902 | G84: 7008.899902 | H84: 7068.899902 | I84: 0 | J84: 60 | K84: 2023-03-15T11:43:59.040
A85: DIA | B85: SPDR Dow Jones Industrial Average ETF Trust (DIA) -NYSEArca (Daily) | C85: 2022-10-07 | D85: 16:00:00 | E85: 296.730011 | F85: 296.890015 | G85: 291.440002 | H85: 292.970001 | I85: 3026900 | J85: -6.26001 | K85: 2022-10-08T20:28:35.330
A86: ^DJI | B86: Dow Jones Industrial Average (^DJI) -DJI (Daily) | C86: 2022-10-07 | D86: 17:28:00 | E86: 29685.26953 | F86: 29685.26953 | G86: 29142.66016 | H86: 29296.78906 | I86: 367950000 | J86: -630.15039 | K86: 2022-10-08T20:28:54.910
A87: ^FTSE | B87: FTSE 100 (^FTSE) -FTSE Index (Daily) | C87: 2022-10-07 | D87: 16:35:00 | E87: 6997.299805 | F87: 7022.399902 | G87: 6960.399902 | H87: 6991.100098 | I87: 807923600 | J87: -6.199707 | K87: 2022-10-08T20:29:14.340
A88: ^GSPC | B88: S&P 500 (^GSPC) -SNP (Daily) | C88: 2023-02-10 | D88: 17:04:00 | E88: 4068.919922 | F88: 4094.360107 | G88: 4060.790039 | H88: 4090.459961 | I88: 3891520000 | J88: 8.959961 | K88: 2023-02-12T10:01:40.360
A89: ^HSI | B89: HANG SENG INDEX (^HSI) -HKSE (Daily) | C89: 2023-04-18 | D89: 16:09:00 | E89: 20643.41016 | F89: 20742.39062 | G89: 20559.08008 | H89: 20650.50977 | I89: 0 | J89: -131.939453 | K89: 2023-04-18T11:21:48.850
A90: ^MID | B90: S&P MID CAP 400 INDEX (^MID) -NYSE (Daily) | C90: 2022-10-07 | D90: 16:04:00 | E90: 2325.449951 | F90: 2325.449951 | G90: 2255.810059 | H90: 2266.889893 | I90: 0 | J90: -58.560058 | K90: 2022-10-08T20:30:12.560
A91: ^NDX | B91: NASDAQ 100 (^NDX) -Nasdaq GIDS (Daily) | C91: 2023-09-15 | D91: 12:10:00 | E91: 15425.90039 | F91: 15435.45019 | G91: 15227.21777 | H91: 15258.62207 | I91: 507836217 | J91: -215.267578 | K91: 2023-09-15T12:11:00.300
A92: ^NYA | B92: NYSE COMPOSITE (DJ) (^NYA) -NYSE (Daily) | C92: 2022-10-07 | D92: 16:20:00 | E92: 14087.37988 | F92: 14087.37988 | G92: 13727.79004 | H92: 13798.25977 | I92: 4449660000 | J92: -289.120117 | K92: 2022-10-08T20:30:51.020
A93: ^OEX | B93: S&P 100 INDEX (^OEX) -Chicago Options (Daily) | C93: 2022-10-07 | D93: 17:28:00 | E93: 1674.359985 | F93: 1674.359985 | G93: 1634.599976 | H93: 1642.890015 | I93: 4449660000 | J93: -51.380005 | K93: 2022-10-08T20:31:10.140
A94: RSP | B94: Invesco S&P 500 Equal Weight ETF (RSP) -NYSEArca (Daily) | C94: 2022-10-07 | D94: 16:00:00 | E94: 132.009995 | F94: 132.199997 | G94: 129.389999 | H94: 130.149994 | I94: 3197700 | J94: -3.160004 | K94: 2022-10-08T20:31:31.900
A95: ^RUT | B95: Russell 2000 (^RUT) -Chicago Options (Daily) | C95: 2022-10-07 | D95: 16:30:00 | E95: 1734.650024 | F95: 1734.920044 | G95: 1694.959961 | H95: 1702.150024 | I95: 4449660000 | J95: -50.359986 | K95: 2022-10-08T20:31:50.530
A96: ^VIX | B96: CBOE Volatility Index (^VIX) -Chicago Options (Daily) | C96: 2022-10-07 | D96: 16:15:00 | E96: 30.370001 | F96: 32.02 | G96: 29.879999 | H96: 31.360001 | I96: 0 | J96: 0.840001 | K96: 2022-10-08T20:32:09.750
A97: IWM | B97: iShares Russell 2000 ETF (IWM) -NYSEArca (Daily) | C97: 2022-10-07 | D97: 16:00:00 | E97: 171.929993 | F97: 172.470001 | G97: 167.919998 | H97: 168.610001 | I97: 26504500 | J97: -5.11 | K97: 2022-10-08T20:32:29.720
A98: QQQ | B98: Invesco QQQ Trust (QQQ) -NasdaqGM (Daily) | C98: 2022-10-07 | D98: 16:00:00 | E98: 275.019989 | F98: 275.149994 | G98: 267.73999 | H98: 269.100006 | I98: 71263400 | J98: -10.660004 | K98: 2022-10-08T20:32:50.270
A99: XLE | B99: Energy Select Sector SPDR Fund (XLE) -NYSEArca (Daily) | C99: 2022-10-07 | D99: 16:00:00 | E99: 82.610001 | F99: 83.540001 | G99: 81.209999 | H99: 81.800003 | I99: 28449900 | J99: -0.639999 | K99: 2022-10-08T20:33:10.770
A100: SOXL | B100: Direxion Daily Semiconductor Bull 3X Shares (SOXL) -NYSEArca (Daily) | C100: 2022-10-07 | D100: 16:00:00 | E100: 10.18 | F100: 10.28 | G100: 9 | H100: 9.21 | I100: 134291600 | J100: -1.98 | K100: 2022-10-08T20:33:31.210
A101: SPY | B101: SPDR S&P 500 ETF Trust (SPY) -NYSEArca (Daily) | C101: 2022-10-07 | D101: 16:00:00 | E101: 368.970001 | F101: 373.290009 | G101: 360.940002 | H101: 362.790009 | I101: 107680800 | J101: -10.410003 | K101: 2022-10-08T20:33:50.980
A103: ACAD | B103: ACADIA Pharmaceuticals Inc. (ACAD) -NasdaqGS (Daily) | C103: 2022-10-07 | D103: 16:00:00 | E103: 18.219999 | F103: 18.27 | G103: 16.030001 | H103: 16.290001 | I103: 2891100 | J103: -2.339998 | K103: 2022-10-08T20:34:10.690
A104: CLDX | B104: Celldex Therapeutics, Inc. (CLDX) -NasdaqCM (Daily) | C104: 2022-10-07 | D104: 16:00:00 | E104: 28.530001 | F104: 29.16 | G104: 28.01 | H104: 28.07 | I104: 426400 | J104: -0.91 | K104: 2022-10-08T20:34:27.670
A105: ICPT | B105: Intercept Pharmaceuticals, Inc. (ICPT) -NasdaqGS (Daily) | C105: 2022-10-07 | D105: 16:00:00 | E105: 13.97 | F105: 14.06 | G105: 13.64 | H105: 13.66 | I105: 691500 | J105: -0.28 | K105: 2022-10-08T20:34:46.490
A106: INO | B106: Inovio Pharmaceuticals, Inc. (INO) -NasdaqGS (Daily) | C106: 2022-10-07 | D106: 16:00:00 | E106: 1.69 | F106: 1.7 | G106: 1.6 | H106: 1.61 | I106: 4513100 | J106: -0.13 | K106: 2022-10-08T20:35:05.980
A107: LCI | B107: Lannett Company, Inc. (LCI) -NYSE (Daily) | C107: 2022-10-07 | D107: 16:00:00 | E107: 0.48 | F107: 0.493 | G107: 0.471 | H107: 0.471 | I107: 105400 | J107: -0.011 | K107: 2022-10-08T20:35:25.780
A108: PBYI | B108: Puma Biotechnology, Inc. (PBYI) -NasdaqGS (Daily) | C108: 2022-10-07 | D108: 16:00:00 | E108: 2.47 | F108: 2.5 | G108: 2.32 | H108: 2.37 | I108: 123700 | J108: -0.15 | K108: 2022-10-08T20:35:44.300
